Workbook

Sheet REGIÃO
B2: RESUMO DA REGIÃO
B3: Todos | C3: BDI SERVICO | D3: BDI INSUMO | E3: QUANTIDADE POÇOS PARCIALMENTE REVESTIDO | F3: PREÇO UNIT | G3: PREÇO TOTAL | H3: QUANTIDADE POÇOS TOTALMENTE REVESTIDO | I3: PREÇO UNIT | J3: PREÇO TOTAL
B4: PARAÍBA | C4: ='BDI-SERVICOS'!D22 -> 0.2378 | D4: ='BDI-FORNECIMENTO'!C28 -> 0.146920122 | E4: 230 | F4: ='Planilha Resumo PB'!F7 -> 120510.0527 | G4: ='Planilha Resumo PB'!G7 -> 27717312.13 | H4: 25 | I4: ='Planilha Resumo PB'!F8 -> 181057.7976 | J4: ='Planilha Resumo PB'!G8 -> 4526444.94
B5: PERNAMBUCO | C5: ='BDI-SERVICOS'!D22 -> 0.2378 | D5: ='BDI-FORNECIMENTO'!C28 -> 0.146920122 | E5: 200 | F5: ='Planilha Resumo PE'!F7 -> 118535.6259 | G5: ='Planilha Resumo PE'!G7 -> 23707125.18 | H5: 50 | I5: ='Planilha Resumo PE'!F8 -> 185987.1066 | J5: ='Planilha Resumo PE'!G8 -> 9299355.33
B7: DATABASE DO ORÇAMENTO: SETEMBRO/2025 - NÃO DESONERADO | H7: TOTAL REGIAO | I7: =G4+G5+J4+J5 -> 65250237.58

Sheet CAPA PB
B7: EXECUÇÃO DE SERVIÇOS DE PERFURAÇÃO E INSTALAÇÃO DE POÇOS TUBULARES NO ESTADO DA PARAÍBA

Sheet Planilha Resumo PB
B2: OBJETO: EXECUÇÃO DE SERVIÇOS DE PERFURAÇÃO E INSTALAÇÃO DE POÇOS TUBULARES EM MUNICÍPIOS LOCALIZADOS NO ESTADO DA PARAÍBA, NA ÁREA DE ATUAÇÃO DA CODEVASF
B3: PLANILHA ORÇAMENTÁRIA ESTIMATIVA GERAL
B4: DATABASE DO ORÇAMENTO: SETEMBRO/2025 - NÃO DESONERADO
B5: PLANILHA RESUMIDA - GRUPO 1 - PARAÍBA
B6: ITEM | C6: DISCRIMINAÇÃO | D6: UND | E6: Quantidade de Poços | F6: PREÇO UNITÁRIO | G6: TOTAL
B7: 1 | C7: Perfuração e instalação de poço tubular parcialmente revestido, instalado com sistema fotovoltaico, bomba submersa, reservatório e bebedouro para animais. | D7: un | E7: ='Orçamento Sintético - PB - P'!H2 -> 230 | F7: ='Orçamento Sintético - PB - P'!L2 -> 120510.0527 | G7: =E7*F7 -> 27717312.13
B8: 2 | C8: Perfuração e instalação de poços poço tubular totalmente revestido, instalado com sistema fotovoltaico, bomba submersa, reservatório e bebedouro para animais. | D8: un | E8: ='Orçamento Sintético - PB - T'!H2 -> 25 | F8: ='Orçamento Sintético - PB - T'!L2 -> 181057.7976 | G8: =E8*F8 -> 4526444.94
B9: TOTAL GERAL ESTIMADO GRUPO | D9: un | E9: =E7+E8 -> 255 | G9: =G7+G8 -> 32243757.07
B13: Base de Preços Consultados | E13: SBC 09/2025 SINAPI 08/2025 SICRO 04/2025 ORSE 06/2025 CPOS/CDHU 06/2025 EMBASA 06/2025 SEINFRA 028 SIURB 01/2025
B15: Encargos Sociais | E15: Não Desonerado: Horista: 114,59% Mensalista: 70,27%

Sheet Orçamento Sintético - PB - P
A1: OBJETO: EXECUÇÃO DE SERVIÇOS DE PERFURAÇÃO E INSTALAÇÃO DE POÇOS TUBULARES EM MUNICÍPIOS LOCALIZADOS NO ESTADO DA PARAÍBA, NA ÁREA DE ATUAÇÃO DA CODEVASF | H1: Quantidade de Poços | I1: BDI SERVIÇO | J1: BDI INSUMO | K1: Total | L1: Preço Unitário Por Poço | M1: DESCONTO
A2: PLANILHA SINTÉTICA - POÇO PARCIALMENTE REVESTIDO - PARAÍBA | H2: 230 | I2: ='BDI-SERVICOS'!D22 -> 0.2378 | J2: ='BDI-FORNECIMENTO'!C28 -> 0.146920122 | K2: =SUM(K4,K13,K9,K18,K24,K27,K29,K31,K33,K41,K43,K49,K52) -> 27717312.13 | L2: =K2/H2 -> 120510.0527 | M2: 0
A3: Item | B3: Código | C3: Banco | D3: Tipo | E3: Descrição. | F3: un. | G3: Mem. calc. | H3: Quant. | I3: Valor Unit | J3: Valor Unit com BDI | K3: Total | L3: Peso (%)
A4: 1 | E4: Serviços preliminares. | K4: =SUM(K5:K8) -> 477693.62 | L4: =K4/$K$2 -> 0.01723448572
A5: 1.1 | B5: COMPOSIÇÃO - 1 | C5: Próprio | D5: Serviço | E5: Administração local da obra - poço parcialmente revestido | F5: un. | G5: 1 | H5: =ROUND(G5*$H$2,2) -> 230 | I5: =VLOOKUP(B5,'Orçamento Analítico - PB - P'!B:J,9,0)*(1-$M$2) -> 186.0366 | J5: =ROUND(I5*(1+$I$2),2) -> 230.28 | K5: =ROUND(J5*H5,2) -> 52964.4 | L5: =K5/$K$2 -> 0.001910877929
A6: 1.2 | B6: COMPOSIÇÃO - 2 | C6: Próprio | D6: Serviço | E6: Serviço de locação geológica de campo com relatório hidro geológico e perfil construtivo e geológico esperado. relatório de viabilidade de implantação das estruturas e vistorias preliminares. | F6: un. | G6: 1 | H6: =ROUND(G6*$H$2,2) -> 230 | I6: =VLOOKUP(B6,'Orçamento Analítico - PB - P'!B:J,9,0)*(1-$M$2) -> 601.45 | J6: =ROUND(I6*(1+$I$2),2) -> 744.47 | K6: =ROUND(J6*H6,2) -> 171228.1 | L6: 0.006177658901
A7: 1.3 | B7: 103689 | C7: Sinapi | D7: Serviço | E7: Fornecimento e instalação de placa de obra com chapa galvanizada e estrutura de madeira. | F7: m² | G7: 0.72 | H7: 165.6 | I7: =VLOOKUP(B7,'Orçamento Analítico - PB - P'!B:J,9,0)*(1-$M$2) -> 464.57 | J7: =ROUND(I7*(1+$I$2),2) -> 575.04 | K7: 95226.62 | L7: 0.003435636888
A8: 1.4 | B8: COMPOSIÇÃO - 3 | C8: Próprio | D8: Insumo | E8: Taxas e emolumentos fiscais , administrativos para obtenção outorga e outros. | F8: un. | G8: 1 | H8: 230 | I8: =VLOOKUP(B8,'Orçamento Analítico - PB - P'!B:J,9,0)*(1-$M$2) -> 600 | J8: =ROUND(I8*(1+$J$2),2) -> 688.15 | K8: 158274.5 | L8: 0.005710311998
A9: 2 | E9: Mobilizaçâo e desmobilizaçâo equipes perfuraçâo e instalação. | K9: =SUM(K10:K12) -> 531990 | L9: 0.01919341953
A10: 2.1 | B10: COMPOSIÇÃO - 4 | C10: Próprio | D10: Serviço | E10: Transporte de comboio perfuração. | F10: km | G10: 150 | H10: =ROUND(G10*$H$2,2) -> 34500 | I10: =VLOOKUP(B10,'Orçamento Analítico - PB - P'!B:J,9,0)*(1-$M$2) -> 4.4335592 | J10: =ROUND(I10*(1+$I$2),2) -> 5.49 | K10: =ROUND(J10*H10,2) -> 189405 | L10: 0.006833454814
A11: 2.2 | B11: COMPOSIÇÃO - 5 | C11: Próprio | D11: Serviço | E11: Transporte de comboio instalação. | F11: km | G11: 150 | H11: 34500 | I11: =VLOOKUP(B11,'Orçamento Analítico - PB - P'!B:J,9,0)*(1-$M$2) -> 5.5892634 | J11: =ROUND(I11*(1+$I$2),2) -> 6.92 | K11: 238740 | L11: 0.00861338931
A12: 2.3 | B12: COMPOSIÇÃO - 6 | C12: Próprio | D12: Serviço | E12: Transporte de equipe teste de vazão. | F12: km | G12: 150 | H12: 34500 | I12: =VLOOKUP(B12,'Orçamento Analítico - PB - P'!B:J,9,0)*(1-$M$2) -> 2.430323 | J12: =ROUND(I12*(1+$I$2),2) -> 3.01 | K12: 103845 | L12: 0.003746575408
A13: 3 | E13: Perfuração e completação de poço tubular. | K13: =SUM(K14:K17) -> 7291600.12 | L13: 0.263070246
A14: 3.1 | B14: 5048 | C14: Orse | D14: Serviço | E14: Perfuraçao em rocha cristalina - rocha cristalina alterada / compacta dn 6" (poço até 120m) | F14: m | G14: 90 | H14: =ROUND(G14*$H$2,2) -> 20700 | I14: =VLOOKUP(B14,'Orçamento Analítico - PB - P'!B:J,9,0)*(1-$M$2) -> 156.31 | J14: =ROUND(I14*(1+$I$2),2) -> 193.48 | K14: =ROUND(J14*H14,2) -> 4005036 | L14: 0.1444958292
A15: 3.2 | B15: 5057 | C15: Orse | D15: Serviço | E15: Perfuração rocha sedimentar sedimento / Camadas inconsolidadas DN 12.1/2" - Poço até 150 m | F15: m | G15: 30 | H15: 6900 | I15: =VLOOKUP(B15,'Orçamento Analítico - PB - P'!B:J,9,0)*(1-$M$2) -> 247.66 | J15: =ROUND(I15*(1+$I$2),2) -> 306.55 | K15: 2115195 | L15: 0.07631313563
A16: 3.3 | B16: COMPOSIÇÃO - 7 | C16: Próprio | D16: Serviço | E16: Serviço de lançamento cimentação anelar, incluso materiais. | F16: m³ | G16: 1.74 | H16: 400.2 | I16: =VLOOKUP(B16,'Orçamento Analítico - PB - P'!B:J,9,0)*(1-$M$2) -> 525.59 | J16: =ROUND(I16*(1+$I$2),2) -> 650.58 | K16: 260362.12 | L16: 0.009393483711
A17: 3.4 | B17: 9854 | C17: Sinapi | D17: Insumo | E17: Tubo pvc de revestimento geomecanico nervurado standard, dn = 154 mm, comprimento = 2 m. | F17: m | G17: 30 | H17: 6900 | I17: =VLOOKUP(B17,'Orçamento Analítico - PB - P'!B:J,9,0)*(1-$M$2) -> 115.12 | J17: =ROUND(I17*(1+$J$2),2) -> 132.03 | K17: 911007 | L17: 0.03286779742
A18: 4 | E18: Pós perfuração. | K18: =SUM(K19:K23) -> 2710651.2 | L18: 0.09779632265
A19: 4.1 | B19: 6305 | C19: Orse | D19: Serviço | E19: Desenvolvimento com compressor 250psi / 750cfm. | F19: h | G19: 2 | H19: =ROUND(G19*$H$2,2) -> 460 | I19: =VLOOKUP(B19,'Orçamento Analítico - PB - P'!B:J,9,0)*(1-$M$2) -> 411.16 | J19: =ROUND(I19*(1+$I$2),2) -> 508.93 | K19: =ROUND(J19*H19,2) -> 234107.8 | L19: 0.008446266323
A20: 4.2 | B20: COMPOSIÇÃO - 8 | C20: Próprio | D20: Serviço | E20: Inspeção ótica em poço tubular câmera com rotação de 360º, visada lateral, com fonte própria de luz, entregue vídeo em cores e marcação de profundidades. | F20: m | G20: 120 | H20: 27600 | I20: =VLOOKUP(B20,'Orçamento Analítico - PB - P'!B:J,9,0)*(1-$M$2) -> 9.64046 | J20: 11.93 | K20: 329268 | L20: 0.01187950687
A21: 4.3 | B21: COMPOSIÇÃO - 9 | C21: Próprio | D21: Serviço | E21: Serviço de coleta e análise físico-química e bacteriológica. | F21: un. | G21: 1 | H21: 230 | I21: =VLOOKUP(B21,'Orçamento Analítico - PB - P'!B:J,9,0)*(1-$M$2) -> 621.19 | J21: 768.91 | K21: 176849.3 | L21: 0.006380463559
A22: 4.4 | B22: 24.80.22 | C22: Embasa | D22: Serviço | E22: (REVISADA) DESENVOLVIMENTO OU TESTE COM BOMBA SUBMERSA - UEB1 NO SEDIMENTO COM VAZAO < 60M3 (Ensaio de bombeamento poço tubular incluso materiais e grupo gerador) | F22: h | G22: 24 | H22: 5520 | I22: =VLOOKUP(B22,'Orçamento Analítico - PB - P'!B:J,9,0)*(1-$M$2) -> 263.27 | J22: 325.88 | K22: 1798857.6 | L22: 0.06490014586
A23: 4.5 | B23: COMPOSIÇÃO - 10 | C23: Próprio | D23: Serviço | E23: Serviço de instalação de laje sanitária com dimensões (1,5x1,5x0,3) metros , incluso material. | F23: un. | G23: 1 | H23: 230 | I23: =VLOOKUP(B23,'Orçamento Analítico - PB - P'!B:J,9,0)*(1-$M$2) -> 602.6445 | J23: 745.95 | K23: 171568.5 | L23: 0.006189940034
A24: 5 | E24: Reservação. | K24: =SUM(K25:K26) -> 4500238.42 | L24: 0.1623620068
A25: 5.1 | B25: COMPOSIÇÃO - 11 | C25: Próprio | D25: Serviço | E25: Fornecimento e instalação de reservatório e base elevada 10 m³. | F25: un. | G25: 0.8 | H25: =ROUND(G25*$H$2,2) -> 184 | I25: =VLOOKUP(B25,'Orçamento Analítico - PB - P'!B:J,9,0)*(1-$M$2) -> 17856.27263 | J25: =ROUND(I25*(1+$I$2),2) -> 22102.49 | K25: =ROUND(J25*H25,2) -> 4066858.16 | L25: 0.1467262821
A26: 5.2 | B26: COMPOSIÇÃO - 12 | C26: Próprio | D26: Serviço | E26: Fornecimento e execução de reservatório apoiado de 5 m³. | F26: un. | G26: 0.2 | H26: 46 | I26: =VLOOKUP(B26,'Orçamento Analítico - PB - P'!B:J,9,0)*(1-$M$2) -> 7611.333375 | J26: 9421.31 | K26: 433380.26 | L26: 0.01563572463
A27: 6 | E27: Bebedouro. | K27: =K28 -> 454963 | L27: 0.01641439826
A28: 6.1 | B28: COMPOSIÇÃO - 13 | C28: Próprio | D28: Serviço | E28: Serviço de execução do bebedouro em concreto armado, incluso materiais. | F28: un. | G28: 1 | H28: =ROUND(G28*$H$2,2) -> 230 | I28: =VLOOKUP(B28,'Orçamento Analítico - PB - P'!B:J,9,0)*(1-$M$2) -> 1598.07602 | J28: =ROUND(I28*(1+$I$2),2) -> 1978.1 | K28: =ROUND(J28*H28,2) -> 454963 | L28: 0.01641439826
A29: 7 | E29: Chafariz. | K29: =K30 -> 260580.8 | L29: 0.009401373365
A30: 7.1 | B30: COMPOSIÇÃO - 14 | C30: Próprio | D30: Serviço | E30: Fornecimento de material e instalação do chafariz. | F30: un. | G30: 1 | H30: =ROUND(G30*$H$2,2) -> 230 | I30: =VLOOKUP(B30,'Orçamento Analítico - PB - P'!B:J,9,0)*(1-$M$2) -> 915.3001162 | J30: =ROUND(I30*(1+$I$2),2) -> 1132.96 | K30: =ROUND(J30*H30,2) -> 260580.8 | L30: 0.009401373365
A31: 8 | E31: Cavalete. | K31: =K32 -> 663200.4 | L31: 0.02392729847
A32: 8.1 | B32: COMPOSIÇÃO - 15 | C32: Próprio | D32: Serviço | E32: Fornecimento de conexões e instalação do cavalete com hidrômetro e clorador de pastilhas. | F32: un. | G32: 1 | H32: =ROUND(G32*$H$2,2) -> 230 | I32: =VLOOKUP(B32,'Orçamento Analítico - PB - P'!B:J,9,0)*(1-$M$2) -> 2329.52 | J32: =ROUND(I32*(1+$I$2),2) -> 2883.48 | K32: =ROUND(J32*H32,2) -> 663200.4 | L32: 0.02392729847
A33: 9 | E33: Instalações hidráulicas. | K33: =SUM(K34:K40) -> 4187477.06 | L33: 0.1510780353
A34: 9.1 | B34: COMPOSIÇÃO - 16 | C34: Próprio | D34: Serviço | E34: Instalação da rede adutora poço-reservatório-bebedouro em pn80 e dn50mm. | F34: m | G34: 400 | H34: =ROUND(G34*$H$2,2) -> 92000 | I34: =VLOOKUP(B34,'Orçamento Analítico - PB - P'!B:J,9,0)*(1-$M$2) -> 5.6725 | J34: =ROUND(I34*(1+$I$2),2) -> 7.02 | K34: =ROUND(J34*H34,2) -> 645840 | L34: 0.02330096068
A35: 9.2 | B35: 9875 | C35: SINAPI | D35: Insumo | E35: TUBO PVC, SOLDAVEL, DE 50 MM, AGUA FRIA (NBR-5648) | F35: m | G35: 400 | H35: =G35*H2 -> 92000 | I35: =VLOOKUP(B35,'Orçamento Analítico - PB - P'!B:J,9,0)*(1-$M$2) -> 15.31 | J35: =ROUND(I35*(1+$J$2),2) -> 17.56 | K35: =J35*H35 -> 1615520 | L35: =K35/$K$2 -> 0.05828559394
A36: 9.3 | B36: COMPOSIÇÃO - 17 | C36: Próprio | D36: Serviço | E36: Montagem hidráulica do equipamento de bombeamento. | F36: un. | G36: 1 | H36: 230 | I36: =VLOOKUP(B36,'Orçamento Analítico - PB - P'!B:J,9,0)*(1-$M$2) -> 134.1 | J36: 165.99 | K36: 38177.7 | L36: 0.001377395464
A37: 9.4 | B37: 38200 | C37: Sinapi | D37: Insumo | E37: Corda de poliamida 12 mm tipo bombeiro, para trabalho em altura. | F37: 100m | G37: 0.93 | H37: 213.9 | I37: =VLOOKUP(B37,'Orçamento Analítico - PB - P'!B:J,9,0)*(1-$M$2) -> 493.84 | J37: =ROUND(I37*(1+$J$2),2) -> 566.4 | K37: 121152.96 | L37: 0.004371021239
A38: 9.5 | B38: 9860 | C38: Sinapi | D38: Insumo | E38: Tubo pvc, roscavel, 2", para agua fria predial. | F38: m | G38: 90 | H38: 20700 | I38: =VLOOKUP(B38,'Orçamento Analítico - PB - P'!B:J,9,0)*(1-$M$2) -> 66.72 | J38: 76.52 | K38: 1583964 | L38: 0.05714709971
A39: 9.6 | B39: 3912 | C39: Sinapi | D39: Insumo | E39: Luva de ferro galvanizado, com rosca bsp, de 2". | F39: un. | G39: 16 | H39: 3680 | I39: =VLOOKUP(B39,'Orçamento Analítico - PB - P'!B:J,9,0)*(1-$M$2) -> 36.61 | J39: 41.99 | K39: 154523.2 | L39: 0.005574970591
A40: 9.7 | B40: 5128 | C40: Orse | D40: Insumo | E40: Tampa de poço galvanizada em 6" un. | F40: un. | G40: 1 | H40: 230 | I40: =VLOOKUP(B40,'Orçamento Analítico - PB - P'!B:J,9,0)*(1-$M$2) -> 107.28 | J40: 123.04 | K40: 28299.2 | L40: 0.001020993662
A41: 10 | E41: Estrutura de fixação para módulos fotovoltáicos. | K41: =K42 -> 284176.68 | L41: 0.01025267813
A42: 10.1 | B42: COMPOSIÇÃO - 18 | C42: Próprio | D42: Serviço | E42: Serviço de fixação de estruturas para os módulos fotovoltaicos e suportes de concreto, incluso materiais. | F42: m² | G42: 10.12 | H42: =ROUND(G42*$H$2,2) -> 2327.6 | I42: =VLOOKUP(B42,'Orçamento Analítico - PB - P'!B:J,9,0)*(1-$M$2) -> 98.636366 | J42: =ROUND(I42*(1+$I$2),2) -> 122.09 | K42: =ROUND(J42*H42,2) -> 284176.68 | L42: 0.01025267813
A43: 11 | E43: Instalações elétricas e bóia elétrica. | K43: =SUM(K44:K48) -> 3159130.5 | L43: 0.1139767985
A44: 11.1 | B44: COMPOSIÇÃO - 19 | C44: Próprio | D44: Serviço | E44: Montagem e instalação elétrica do kit de bombeamento e sistema fotovoltaico inclusive sistema de aterramento. | F44: un. | G44: 1 | H44: =ROUND(G44*$H$2,2) -> 230 | I44: =VLOOKUP(B44,'Orçamento Analítico - PB - P'!B:J,9,0)*(1-$M$2) -> 1024.8274 | J44: =ROUND(I44*(1+$I$2),2) -> 1268.53 | K44: =ROUND(J44*H44,2) -> 291761.9 | L44: 0.01052634175
A45: 11.2 | B45: 34622 | C45: Sinapi | D45: Insumo | E45: Fornecimento de cabo flexivel pvc 750 v, 3 condutores de 6,0 mm2. | F45: m | G45: 105 | H45: 24150 | I45: =VLOOKUP(B45,'Orçamento Analítico - PB - P'!B:J,9,0)*(1-$M$2) -> 24.58 | J45: =ROUND(I45*(1+$J$2),2) -> 28.19 | K45: 680788.5 | L45: 0.02456185134
A46: 11.3 | B46: COMPOSIÇÃO - 20 | C46: Próprio | D46: Serviço | E46: Fornecimento e instalação de automático de bóia superior e inferior. | F46: un. | G46: 1 | H46: 230 | I46: =VLOOKUP(B46,'Orçamento Analítico - PB - P'!B:J,9,0)*(1-$M$2) -> 49.031 | J46: =ROUND(I46*(1+$I$2),2) -> 60.69 | K46: 13958.7 | L46: 0.0005036094386
A47: 11.4 | B47: 39257 | C47: Sinapi | D47: Insumo | E47: Cabo multipolar de cobre, flexivel, classe 4 ou 5, isolacao em hepr, cobertura em pvc-st2, antichama bwf-b, 0,6/1 kv, 3 condutores de 1,5 mm2. | F47: m | G47: 200 | H47: 46000 | I47: =VLOOKUP(B47,'Orçamento Analítico - PB - P'!B:J,9,0)*(1-$M$2) -> 6.68 | J47: =ROUND(I47*(1+$J$2),2) -> 7.66 | K47: 352360 | L47: 0.01271263239
A48: 11.5 | B48: Cotação-001 | C48: Próprio | D48: Insumo | E48: Fornecimento de kit de bombeamento fotovoltaico, incluindo uma bomba cc de 1500w com controladora de carga externa, caixa de proteção metálica, módulos fotovoltaicos compatíveis com a geração de 2200wp além de componentes elétricos necessários para interligação dos painéis, como cabos, conectores mc4 e presilhas de fixação. | F48: un. | G48: 1 | H48: 230 | I48: =VLOOKUP(B48,'Orçamento Analítico - PB - P'!B:J,9,0)*(1-$M$2) -> 6900.38 | J48: =ROUND(I48*(1+$J$2),2) -> 7914.18 | K48: 1820261.4 | L48: 0.06567236359
A49: 12 | E49: Urbanização. | K49: =SUM(K50:K51) -> 934699.3 | L49: 0.03372258088
A50: 12.1 | B50: COMPOSIÇÃO - 21 | C50: Próprio | D50: Serviço | E50: Cerca com mourões de concreto de 15x15cm, espaçados de 3m e cravados a 0,5m, escoras de 10x10cm nos cantos, e 9 fios de arame de aço ovalado 15x17. | F50: m | G50: 28 | H50: =ROUND(G50*$H$2,2) -> 6440 | I50: =VLOOKUP(B50,'Orçamento Analítico - PB - P'!B:J,9,0)*(1-$M$2) -> 76.697166 | J50: =ROUND(I50*(1+$I$2),2) -> 94.94 | K50: =ROUND(J50*H50,2) -> 611413.6 | L50: 0.02205890662
A51: 12.2 | B51: COMPOSIÇÃO - 22 | C51: Próprio | D51: Serviço | E51: Serviço de instalação de portão de ferro com suporte e batedor conforme projeto, incluso material. | F51: m² | G51: 1.5 | H51: 345 | I51: =VLOOKUP(B51,'Orçamento Analítico - PB - P'!B:J,9,0)*(1-$M$2) -> 757.03789 | J51: 937.06 | K51: 323285.7 | L51: 0.01166367426
A52: 13 | E52: Outros serviços e insumos excepcionais. | K52: =SUM(K53:K60) -> 2260911.03 | L52: 0.08157035644
A53: 13.1 | B53: COMPOSIÇÃO - 23 | C53: Próprio | D53: Serviço | E53: Fornecimento e instalação do pré filtro para revestimento interno. | F53: m³ | G53: 1.212 | H53: =ROUND(G53*$H$2,2) -> 278.76 | I53: =VLOOKUP(B53,'Orçamento Analítico - PB - P'!B:J,9,0)*(1-$M$2) -> 1648.755 | J53: =ROUND(I53*(1+$I$2),2) -> 2040.83 | K53: =ROUND(J53*H53,2) -> 568901.77 | L53: 0.0205251421
A54: 13.2 | B54: COMPOSIÇÃO - 24 | C54: Próprio | D54: Serviço | E54: Execução de tamponamento conforme especificação. | F54: m³ | G54: 0.24 | H54: 55.2 | I54: =VLOOKUP(B54,'Orçamento Analítico - PB - P'!B:J,9,0)*(1-$M$2) -> 597.22 | J54: 739.24 | K54: 40806.05 | L54: 0.00147222248
A55: 13.3 | B55: COMPOSIÇÃO - 25 | C55: Próprio | D55: Serviço | E55: Fornecimento e instalação do filtro para revestimento interno ø 4 1/2". | F55: m | G55: 0.6 | H55: 138 | I55: =VLOOKUP(B55,'Orçamento Analítico - PB - P'!B:J,9,0)*(1-$M$2) -> 107.4705 | J55: 133.03 | K55: 18358.14 | L55: 0.0006623347861
A56: 13.4 | B56: COMPOSIÇÃO - 26 | C56: Próprio | D56: Serviço | E56: Fornecimento e instalação do revestimento interno ø 4 1/2". | F56: m | G56: 34.8 | H56: 8004 | I56: =VLOOKUP(B56,'Orçamento Analítico - PB - P'!B:J,9,0)*(1-$M$2) -> 98.7605 | J56: 122.25 | K56: 978489 | L56: 0.03530244908
A57: 13.5 | B57: M3929 | C57: Sicro3 | D57: Insumo | E57: Tubo em aço-carbono - e = 3,00 mm e d = 150 mm (6"). | F57: m | G57: 9 | H57: 2070 | I57: =VLOOKUP(B57,'Orçamento Analítico - PB - P'!B:J,9,0)*(1-$M$2) -> 148.57 | J57: =ROUND(I57*(1+$J$2),2) -> 170.4 | K57: 352728 | L57: 0.01272590929
A58: 13.6 | B58: 5108 | C58: Orse | D58: Insumo | E58: Revestimento tubo liso aço sch-40 em 8" | F58: m | G58: 6 | H58: 1380 | I58: =VLOOKUP(B58,'Orçamento Analítico - PB - P'!B:J,9,0)*(1-$M$2) -> 164.55 | J58: 188.73 | K58: 260447.4 | L58: 0.009396560488
A59: 13.7 | B59: M039706073 | C59: Embasa | D59: Insumo | E59: Filtro nold em aço galvanizado dn 6". | F59: m | G59: 0.04 | H59: 9.2 | I59: =VLOOKUP(B59,'Orçamento Analítico - PB - P'!B:J,9,0)*(1-$M$2) -> 835.86 | J59: 958.66 | K59: 8819.67 | L59: 0.0003182007678
A60: 13.8 | B60: COMPOSIÇÃO - 27 | C60: Próprio | D60: Serviço | E60: Limpeza manual , remoção de cerca, capina e instalação dos equipamentos (área do poço, painéis solares, bebedouro e reservatório). | F60: m² | G60: 70 | H60: 16100 | I60: =VLOOKUP(B60,'Orçamento Analítico - PB - P'!B:J,9,0)*(1-$M$2) -> 1.6216 | J60: =ROUND(I60*(1+$I$2),2) -> 2.01 | K60: 32361 | L60: 0.001167537453

Sheet Orçamento Analítico - PB - P
A1: OBJETO: EXECUÇÃO DE SERVIÇOS DE PERFURAÇÃO E INSTALAÇÃO DE POÇOS TUBULARES EM MUNICÍPIOS LOCALIZADOS NO ESTADO DA PARAÍBA, NA ÁREA DE ATUAÇÃO DA CODEVASF | L1: SBC 09/2025 SINAPI 08/2025 SICRO 04/2025 ORSE 06/2025 CPOS/CDHU 06/2025 EMBASA 06/2025 SEINFRA 028 SIURB 01/2025
A4: PLANILHA ANALÍTICA - POÇO PARCIALMENTE REVESTIDO - PARAÍBA
A5: 1 | D5: Serviços preliminares.
A6: 1 | D6: SERVIÇOS PRELIMINARES
A7: 1.1 | B7: Código | C7: Banco | D7: Descrição | E7: Tipo | G7: Und | H7: Quant. | I7: Valor Unit | J7: Total
A8: Composição | B8: COMPOSIÇÃO - 1 | C8: Próprio | D8: Administração Local da Obra - Poço Parcialmente Revestido | E8: CANT - CANTEIRO DE OBRAS | G8: un | H8: 1 | I8: =SUM(J9:J10) -> 186.0366 | J8: =I8 -> 186.0366
A9: Composição Auxiliar | B9: 12710 | C9: SBC | D9: DESPESAS GERAIS DE MANUTENCAO CANTEIRO DE OBRAS | E9: INSTALACOES PROVISORIAS | G9: MES | H9: 0.03 | I9: =IF(C9="SINAPI", IF( IF(A9="Insumo", VLOOKUP(B9,'SINAPI INSUMOS'!B:F,5,0), VLOOKUP(B9,'SINAPI COMP'!B:F,4,0))=0,VLOOKUP(B9,'OUTRAS BASES'!C:D,2,0),IF(A9="Insumo", VLOOKUP(B9,'SINAPI INSUMOS'!B:F,5,0),VLOOKUP(B9,'SINAPI COMP'!B:F,4,0))), VLOOKUP(B9,'OUTRAS BASES'!C:D,2,0)) -> 910.61 | J9: =H9*I9 -> 27.3183
A10: Composição Auxiliar | B10: 100321 | C10: SINAPI | D10: TÉCNICO EM SEGURANÇA DO TRABALHO COM ENCARGOS COMPLEMENTARES | E10: Livro SINAPI: Cálculos e Parâmetros | G10: MES | H10: 0.03 | I10: =IF(C10="SINAPI", IF( IF(A10="Insumo", VLOOKUP(B10,'SINAPI INSUMOS'!B:F,5,0), VLOOKUP(B10,'SINAPI COMP'!B:F,4,0))=0,VLOOKUP(B10,'OUTRAS BASES'!C:D,2,0),IF(A10="Insumo", VLOOKUP(B10,'SINAPI INSUMOS'!B:F,5,0),VLOOKUP(B10,'SINAPI COMP'!B:F,4,0))), VLOOKUP(B10,'OUTRAS BASES'!C:D,2,0)) -> 5290.61 | J10: =I10*H10 -> 158.7183
A11: 1.2 | B11: Código | C11: Banco | D11: Descrição | E11: Tipo | G11: Und | H11: Quant. | I11: Valor Unit | J11: Total
A12: Composição | B12: COMPOSIÇÃO - 2 | C12: Próprio | D12: Serviço de locação Geológica de campo com relatório hidro geológico e perfil construtivo e geológico esperado. Relatório de Viabilidade de implantação das estruturas e vistorias preliminares | E12: SERT - SERVIÇOS TÉCNICOS | G12: un | H12: 1 | I12: =SUM(J13:J15) -> 601.45 | J12: =I12 -> 601.45
A13: Composição Auxiliar | B13: 30.01.45 | C13: EMBASA | D13: GEOLOGO SENIOR | E13: 3001 | G13: hora | H13: 5 | I13: =IF(C13="SINAPI", IF( IF(A13="Insumo", VLOOKUP(B13,'SINAPI INSUMOS'!B:F,5,0), VLOOKUP(B13,'SINAPI COMP'!B:F,4,0))=0,VLOOKUP(B13,'OUTRAS BASES'!C:D,2,0),IF(A13="Insumo", VLOOKUP(B13,'SINAPI INSUMOS'!B:F,5,0),VLOOKUP(B13,'SINAPI COMP'!B:F,4,0))), VLOOKUP(B13,'OUTRAS BASES'!C:D,2,0)) -> 99.88 | J13: =I13*H13 -> 499.4
A14: Insumo | B14: 5896 | C14: ORSE | D14: Veículo tipo sedan ou pick-up capacidade 0,6 ton h | E14: Equipamento | G14: h | H14: 5 | I14: =IF(C14="SINAPI", IF( IF(A14="Insumo", VLOOKUP(B14,'SINAPI INSUMOS'!B:F,5,0), VLOOKUP(B14,'SINAPI COMP'!B:F,4,0))=0,VLOOKUP(B14,'OUTRAS BASES'!C:D,2,0),IF(A14="Insumo", VLOOKUP(B14,'SINAPI INSUMOS'!B:F,5,0),VLOOKUP(B14,'SINAPI COMP'!B:F,4,0))), VLOOKUP(B14,'OUTRAS BASES'!C:D,2,0)) -> 8.33 | J14: =(I14*H14) -> 41.65
A15: Insumo | B15: 4222 | C15: SINAPI | D15: GASOLINA COMUM | E15: Material | G15: L | H15: 10 | I15: =IF(C15="SINAPI", IF( IF(A15="Insumo", VLOOKUP(B15,'SINAPI INSUMOS'!B:F,5,0), VLOOKUP(B15,'SINAPI COMP'!B:F,4,0))=0,VLOOKUP(B15,'OUTRAS BASES'!C:D,2,0),IF(A15="Insumo", VLOOKUP(B15,'SINAPI INSUMOS'!B:F,5,0),VLOOKUP(B15,'SINAPI COMP'!B:F,4,0))), VLOOKUP(B15,'OUTRAS BASES'!C:D,2,0)) -> 6.04 | J15: =(I15*H15) -> 60.4
A16: 1.3 | B16: Código | C16: Banco | D16: Descrição | E16: Tipo | G16: Und | H16: Quant. | I16: Valor Unit | J16: Total
A17: Composição | B17: 103689 | C17: SINAPI | D17: FORNECIMENTO E INSTALAÇÃO DE PLACA DE OBRA COM CHAPA GALVANIZADA E ESTRUTURA DE MADEIRA. AF_03/2022_PS | E17: Sinalização Vertical Viária | G17: m² | H17: 1 | I17: =IF(C17="SINAPI", IF( IF(A17="Insumo", VLOOKUP(B17,'SINAPI INSUMOS'!B:F,5,0), VLOOKUP(B17,'SINAPI COMP'!B:F,4,0))=0,VLOOKUP(B17,'OUTRAS BASES'!C:D,2,0),IF(A17="Insumo", VLOOKUP(B17,'SINAPI INSUMOS'!B:F,5,0),VLOOKUP(B17,'SINAPI COMP'!B:F,4,0))), VLOOKUP(B17,'OUTRAS BASES'!C:D,2,0)) -> 464.57 | J17: =I17 -> 464.57
A18: Composição Auxiliar | B18: 102234 | C18: SINAPI | D18: PINTURA IMUNIZANTE PARA MADEIRA, 2 DEMÃOS. AF_01/2021 | E18: Pintura em Madeira | G18: m² | H18: 0.5 | I18: =IF(C18="SINAPI", IF( IF(A18="Insumo", VLOOKUP(B18,'SINAPI INSUMOS'!B:F,5,0), VLOOKUP(B18,'SINAPI COMP'!B:F,4,0))=0,VLOOKUP(B18,'OUTRAS BASES'!C:D,2,0),IF(A18="Insumo", VLOOKUP(B18,'SINAPI INSUMOS'!B:F,5,0),VLOOKUP(B18,'SINAPI COMP'!B:F,4,0))), VLOOKUP(B18,'OUTRAS BASES'!C:D,2,0)) -> 24.79 | J18: =I18*H18 -> 12.395
A19: Composição Auxiliar | B19: 88262 | C19: SINAPI | D19: CARPINTEIRO DE FORMAS COM ENCARGOS COMPLEMENTARES | E19: Livro SINAPI: Cálculos e Parâmetros | G19: H | H19: 0.3729 | I19: =IF(C19="SINAPI", IF( IF(A19="Insumo", VLOOKUP(B19,'SINAPI INSUMOS'!B:F,5,0), VLOOKUP(B19,'SINAPI COMP'!B:F,4,0))=0,VLOOKUP(B19,'OUTRAS BASES'!C:D,2,0),IF(A19="Insumo", VLOOKUP(B19,'SINAPI INSUMOS'!B:F,5,0),VLOOKUP(B19,'SINAPI COMP'!B:F,4,0))), VLOOKUP(B19,'OUTRAS BASES'!C:D,2,0)) -> 24.58 | J19: 9.165882
A20: Composição Auxiliar | B20: 88316 | C20: SINAPI | D20: SERVENTE COM ENCARGOS COMPLEMENTARES | E20: Livro SINAPI: Cálculos e Parâmetros | G20: H | H20: 1.1186 | I20: =IF(C20="SINAPI", IF( IF(A20="Insumo", VLOOKUP(B20,'SINAPI INSUMOS'!B:F,5,0), VLOOKUP(B20,'SINAPI COMP'!B:F,4,0))=0,VLOOKUP(B20,'OUTRAS BASES'!C:D,2,0),IF(A20="Insumo", VLOOKUP(B20,'SINAPI INSUMOS'!B:F,5,0),VLOOKUP(B20,'SINAPI COMP'!B:F,4,0))), VLOOKUP(B20,'OUTRAS BASES'!C:D,2,0)) -> 20.27 | J20: 22.674022
A21: Insumo | B21: 4509 | C21: SINAPI | D21: SARRAFO *2,5 X 10* CM EM PINUS, MISTA OU EQUIVALENTE DA REGIAO - BRUTA | E21: Material | G21: M | H21: 3.2083 | I21: =IF(C21="SINAPI", IF( IF(A21="Insumo", VLOOKUP(B21,'SINAPI INSUMOS'!B:F,5,0), VLOOKUP(B21,'SINAPI COMP'!B:F,4,0))=0,VLOOKUP(B21,'OUTRAS BASES'!C:D,2,0),IF(A21="Insumo", VLOOKUP(B21,'SINAPI INSUMOS'!B:F,5,0),VLOOKUP(B21,'SINAPI COMP'!B:F,4,0))), VLOOKUP(B21,'OUTRAS BASES'!C:D,2,0)) -> 6.1 | J21: =(I21*H21) -> 19.57063
A22: Insumo | B22: 4813 | C22: SINAPI | D22: PLACA DE OBRA (PARA CONSTRUCAO CIVIL) EM CHAPA GALVANIZADA *N. 22*, ADESIVADA, DE *2,4 X 1,2* M (SEM POSTES PARA FIXACAO) | E22: Material | G22: m² | H22: 1 | I22: =IF(C22="SINAPI", IF( IF(A22="Insumo", VLOOKUP(B22,'SINAPI INSUMOS'!B:F,5,0), VLOOKUP(B22,'SINAPI COMP'!B:F,4,0))=0,VLOOKUP(B22,'OUTRAS BASES'!C:D,2,0),IF(A22="Insumo", VLOOKUP(B22,'SINAPI INSUMOS'!B:F,5,0),VLOOKUP(B22,'SINAPI COMP'!B:F,4,0))), VLOOKUP(B22,'OUTRAS BASES'!C:D,2,0)) -> 400 | J22: 400
A23: Insumo | B23: 5065 | C23: SINAPI | D23: PREGO DE ACO POLIDO COM CABECA 10 X 10 (7/8 X 17) | E23: Material | G23: KG | H23: 0.0113 | I23: =IF(C23="SINAPI", IF( IF(A23="Insumo", VLOOKUP(B23,'SINAPI INSUMOS'!B:F,5,0), VLOOKUP(B23,'SINAPI COMP'!B:F,4,0))=0,VLOOKUP(B23,'OUTRAS BASES'!C:D,2,0),IF(A23="Insumo", VLOOKUP(B23,'SINAPI INSUMOS'!B:F,5,0),VLOOKUP(B23,'SINAPI COMP'!B:F,4,0))), VLOOKUP(B23,'OUTRAS BASES'!C:D,2,0)) -> 42.57 | J23: 0.481041
A24: Insumo | B24: 5069 | C24: SINAPI | D24: PREGO DE ACO POLIDO COM CABECA 17 X 27 (2 1/2 X 11) | E24: Material | G24: KG | H24: 0.0132 | I24: =IF(C24="SINAPI", IF( IF(A24="Insumo", VLOOKUP(B24,'SINAPI INSUMOS'!B:F,5,0), VLOOKUP(B24,'SINAPI COMP'!B:F,4,0))=0,VLOOKUP(B24,'OUTRAS BASES'!C:D,2,0),IF(A24="Insumo", VLOOKUP(B24,'SINAPI INSUMOS'!B:F,5,0),VLOOKUP(B24,'SINAPI COMP'!B:F,4,0))), VLOOKUP(B24,'OUTRAS BASES'!C:D,2,0)) -> 22.81 | J24: 0.301092
A25: 1.4 | B25: Código | C25: Banco | D25: Descrição | E25: Tipo | G25: Und | H25: Quant. | I25: Valor Unit | J25: Total
A26: Composição | B26: COMPOSIÇÃO - 3 | C26: Próprio | D26: Taxas e emolumentos fiscais , administrativos para obtenção outorga e outros | E26: ASTU - ASSENTAMENTO DE TUBOS E PECAS | G26: un | H26: 1 | I26: =SUM(J27:J27) -> 600 | J26: =I26 -> 600
A27: Insumo | B27: A.09.000.020507 | C27: CPOS/CDHU | D27: Outorga de direito de uso para poço profundo conforme Portaria DAEE nº 1.630 de 30/05/2017 e suas complementares 1.631 a 1.635 e Instrução Técnica DPO nº 10 de 30/05/2017 do DAEE | E27: Material | G27: UN | H27: 1 | I27: =IF(C27="SINAPI", IF( IF(A27="Insumo", VLOOKUP(B27,'SINAPI INSUMOS'!B:F,5,0), VLOOKUP(B27,'SINAPI COMP'!B:F,4,0))=0,VLOOKUP(B27,'OUTRAS BASES'!C:D,2,0),IF(A27="Insumo", VLOOKUP(B27,'SINAPI INSUMOS'!B:F,5,0),VLOOKUP(B27,'SINAPI COMP'!B:F,4,0))), VLOOKUP(B27,'OUTRAS BASES'!C:D,2,0)) -> 600 | J27: =(I27*H27) -> 600
A28: 2 | D28: MOBILIZAÇÂO E DESMOBILIZAÇÂO EQUIPES PERFURAÇÂO E INSTALAÇÃO
A29: 2.1 | B29: Código | C29: Banco | D29: Descrição | E29: Tipo | G29: Und | H29: Quant. | I29: Valor Unit | J29: Total
A30: Composição | B30: COMPOSIÇÃO - 4 | C30: Próprio | D30: Transporte de Comboio Perfuração | E30: TRAN - TRANSPORTES, CARGAS E DESCARGAS | G30: km | H30: 1 | I30: =SUM(J31:J32) -> 4.4335592 | J30: =I30 -> 4.4335592
A31: Composição Auxiliar | B31: 5824 | C31: SINAPI | D31: CAMINHÃO TOCO, PBT 16.000 KG, CARGA ÚTIL MÁX. 10.685 KG, DIST. ENTRE EIXOS 4,8 M, POTÊNCIA 189 CV, INCLUSIVE CARROCERIA FIXA ABERTA DE MADEIRA P/ TRANSPORTE GERAL DE CARGA SECA, DIMEN. APROX. 2,5 X 7,00 X 0,50 M - CHP DIURNO. AF_06/2014 | E31: Custos Horários Produtivo e Improdutivo dos Equipamentos | G31: CHP | H31: 0.01666 | I31: =IF(C31="SINAPI", IF( IF(A31="Insumo", VLOOKUP(B31,'SINAPI INSUMOS'!B:F,5,0), VLOOKUP(B31,'SINAPI COMP'!B:F,4,0))=0,VLOOKUP(B31,'OUTRAS BASES'!C:D,2,0),IF(A31="Insumo", VLOOKUP(B31,'SINAPI INSUMOS'!B:F,5,0),VLOOKUP(B31,'SINAPI COMP'!B:F,4,0))), VLOOKUP(B31,'OUTRAS BASES'!C:D,2,0)) -> 207.25 | J31: =I31*H31 -> 3.452785
A32: Composição Auxiliar | B32: 5826 | C32: SINAPI | D32: CAMINHÃO TOCO, PBT 16.000 KG, CARGA ÚTIL MÁX. 10.685 KG, DIST. ENTRE EIXOS 4,8 M, POTÊNCIA 189 CV, INCLUSIVE CARROCERIA FIXA ABERTA DE MADEIRA P/ TRANSPORTE GERAL DE CARGA SECA, DIMEN. APROX. 2,5 X 7,00 X 0,50 M - CHI DIURNO. AF_06/2014 | E32: Custos Horários Produtivo e Improdutivo dos Equipamentos | G32: CHI | H32: 0.01666 | I32: =IF(C32="SINAPI", IF( IF(A32="Insumo", VLOOKUP(B32,'SINAPI INSUMOS'!B:F,5,0), VLOOKUP(B32,'SINAPI COMP'!B:F,4,0))=0,VLOOKUP(B32,'OUTRAS BASES'!C:D,2,0),IF(A32="Insumo", VLOOKUP(B32,'SINAPI INSUMOS'!B:F,5,0),VLOOKUP(B32,'SINAPI COMP'!B:F,4,0))), VLOOKUP(B32,'OUTRAS BASES'!C:D,2,0)) -> 58.87 | J32: 0.9807742
A33: 2.2 | B33: Código | C33: Banco | D33: Descrição | E33: Tipo | G33: Und | H33: Quant. | I33: Valor Unit | J33: Total
A34: Composição | B34: COMPOSIÇÃO - 5 | C34: Próprio | D34: Transporte de Comboio Instalação | E34: TRAN - TRANSPORTES, CARGAS E DESCARGAS | G34: km | H34: 1 | I34: =SUM(J35:J36) -> 5.5892634 | J34: =I34 -> 5.5892634
A35: Composição Auxiliar | B35: 5928 | C35: SINAPI | D35: GUINDAUTO HIDRÁULICO, CAPACIDADE MÁXIMA DE CARGA 6200 KG, MOMENTO MÁXIMO DE CARGA 11,7 TM, ALCANCE MÁXIMO HORIZONTAL 9,70 M, INCLUSIVE CAMINHÃO TOCO PBT 16.000 KG, POTÊNCIA DE 189 CV - CHP DIURNO. AF_06/2014 | E35: Custos Horários Produtivo e Improdutivo dos Equipamentos | G35: CHP | H35: 0.01666 | I35: =IF(C35="SINAPI", IF( IF(A35="Insumo", VLOOKUP(B35,'SINAPI INSUMOS'!B:F,5,0), VLOOKUP(B35,'SINAPI COMP'!B:F,4,0))=0,VLOOKUP(B35,'OUTRAS BASES'!C:D,2,0),IF(A35="Insumo", VLOOKUP(B35,'SINAPI INSUMOS'!B:F,5,0),VLOOKUP(B35,'SINAPI COMP'!B:F,4,0))), VLOOKUP(B35,'OUTRAS BASES'!C:D,2,0)) -> 265.33 | J35: =I35*H35 -> 4.4203978
A36: Composição Auxiliar | B36: 5930 | C36: SINAPI | D36: GUINDAUTO HIDRÁULICO, CAPACIDADE MÁXIMA DE CARGA 6200 KG, MOMENTO MÁXIMO DE CARGA 11,7 TM, ALCANCE MÁXIMO HORIZONTAL 9,70 M, INCLUSIVE CAMINHÃO TOCO PBT 16.000 KG, POTÊNCIA DE 189 CV - CHI DIURNO. AF_06/2014 | E36: Custos Horários Produtivo e Improdutivo dos Equipamentos | G36: CHI | H36: 0.01666 | I36: =IF(C36="SINAPI", IF( IF(A36="Insumo", VLOOKUP(B36,'SINAPI INSUMOS'!B:F,5,0), VLOOKUP(B36,'SINAPI COMP'!B:F,4,0))=0,VLOOKUP(B36,'OUTRAS BASES'!C:D,2,0),IF(A36="Insumo", VLOOKUP(B36,'SINAPI INSUMOS'!B:F,5,0),VLOOKUP(B36,'SINAPI COMP'!B:F,4,0))), VLOOKUP(B36,'OUTRAS BASES'!C:D,2,0)) -> 70.16 | J36: 1.1688656
A37: 2.3 | B37: Código | C37: Banco | D37: Descrição | E37: Tipo | G37: Und | H37: Quant. | I37: Valor Unit | J37: Total
A38: Composição | B38: COMPOSIÇÃO - 6 | C38: Próprio | D38: Transporte de Equipe Teste de Vazão | E38: TRAN - TRANSPORTES, CARGAS E DESCARGAS | G38: km | H38: 1 | I38: =SUM(J39:J40) -> 2.430323 | J38: =I38 -> 2.430323
A39: Composição Auxiliar | B39: 73467 | C39: SINAPI | D39: CAMINHÃO TOCO, PBT 14.300 KG, CARGA ÚTIL MÁX. 9.710 KG, DIST. ENTRE EIXOS 3,56 M, POTÊNCIA 185 CV, INCLUSIVE CARROCERIA FIXA ABERTA DE MADEIRA P/ TRANSPORTE GERAL DE CARGA SECA, DIMEN. APROX. 2,50 X 6,50 X 0,50 M - CHP DIURNO. AF_06/2014 | E39: Custos Horários Produtivo e Improdutivo dos Equipamentos | G39: CHP | H39: 0.0083 | I39: =IF(C39="SINAPI", IF( IF(A39="Insumo", VLOOKUP(B39,'SINAPI INSUMOS'!B:F,5,0), VLOOKUP(B39,'SINAPI COMP'!B:F,4,0))=0,VLOOKUP(B39,'OUTRAS BASES'!C:D,2,0),IF(A39="Insumo", VLOOKUP(B39,'SINAPI INSUMOS'!B:F,5,0),VLOOKUP(B39,'SINAPI COMP'!B:F,4,0))), VLOOKUP(B39,'OUTRAS BASES'!C:D,2,0)) -> 236.86 | J39: =I39*H39 -> 1.965938
A40: Composição Auxiliar | B40: 91395 | C40: SINAPI | D40: CAMINHÃO TOCO, PBT 14.300 KG, CARGA ÚTIL MÁX. 9.710 KG, DIST. ENTRE EIXOS 3,56 M, POTÊNCIA 185 CV, INCLUSIVE CARROCERIA FIXA ABERTA DE MADEIRA P/ TRANSPORTE GERAL DE CARGA SECA, DIMEN. APROX. 2,50 X 6,50 X 0,50 M - CHI DIURNO. AF_06/2014 | E40: Custos Horários Produtivo e Improdutivo dos Equipamentos | G40: CHI | H40: 0.0083 | I40: =IF(C40="SINAPI", IF( IF(A40="Insumo", VLOOKUP(B40,'SINAPI INSUMOS'!B:F,5,0), VLOOKUP(B40,'SINAPI COMP'!B:F,4,0))=0,VLOOKUP(B40,'OUTRAS BASES'!C:D,2,0),IF(A40="Insumo", VLOOKUP(B40,'SINAPI INSUMOS'!B:F,5,0),VLOOKUP(B40,'SINAPI COMP'!B:F,4,0))), VLOOKUP(B40,'OUTRAS BASES'!C:D,2,0)) -> 55.95 | J40: 0.464385
A41: 3 | D41: PERFURAÇÃO E COMPLETAÇÃO DE POÇO TUBULAR
A42: 3.1 | B42: Código | C42: Banco | D42: Descrição | E42: Tipo | G42: Und | H42: Quant. | I42: Valor Unit | J42: Total
A43: Insumo | B43: 5048 | C43: ORSE | D43: Perfuraçao em rocha cristalina - rocha cristalina alterada / compacta dn 6" (poço até 120m) | E43: Serviços | G43: m | H43: 1 | I43: =IF(C43="SINAPI", IF( IF(A43="Insumo", VLOOKUP(B43,'SINAPI INSUMOS'!B:F,5,0), VLOOKUP(B43,'SINAPI COMP'!B:F,4,0))=0,VLOOKUP(B43,'OUTRAS BASES'!C:D,2,0),IF(A43="Insumo", VLOOKUP(B43,'SINAPI INSUMOS'!B:F,5,0),VLOOKUP(B43,'SINAPI COMP'!B:F,4,0))), VLOOKUP(B43,'OUTRAS BASES'!C:D,2,0)) -> 125.23 | J43: 156.31
A44: 3.2 | B44: Código | C44: Banco | D44: Descrição | E44: Tipo | G44: Und | H44: Quant. | I44: Valor Unit | J44: Total
A45: Insumo | B45: 5057 | C45: ORSE | D45: Perfuração rocha sedimentar sedimento / Camadas inconsolidadas DN 12.1/2" - Poço até 150 m (Perfuração rotopneumática Ø 12 1/2" . | E45: Serviços | G45: m | H45: 1 | I45: =IF(C45="SINAPI", IF( IF(A45="Insumo", VLOOKUP(B45,'SINAPI INSUMOS'!B:F,5,0), VLOOKUP(B45,'SINAPI COMP'!B:F,4,0))=0,VLOOKUP(B45,'OUTRAS BASES'!C:D,2,0),IF(A45="Insumo", VLOOKUP(B45,'SINAPI INSUMOS'!B:F,5,0),VLOOKUP(B45,'SINAPI COMP'!B:F,4,0))), VLOOKUP(B45,'OUTRAS BASES'!C:D,2,0)) -> 247.66 | J45: 247.66
A46: 3.3 | B46: Código | C46: Banco | D46: Descrição | E46: Tipo | G46: Und | H46: Quant. | I46: Valor Unit | J46: Total
A47: Composição | B47: COMPOSIÇÃO - 7 | C47: Próprio | D47: Serviço de lançamento cimentação anelar, incluso materiais. | E47: SEDI - SERVIÇOS DIVERSOS | G47: m³ | H47: 1 | I47: 525.59 | J47: =I47 -> 525.59
A48: Composição Auxiliar | B48: 1903 | C48: ORSE | D48: Argamassa cimento e areia traço t-1 (1:3) - 1 saco cimento 50kg / 3 padiolas areia dim. 0.35 x 0.45 x 0.23 m - Confecção mecânica e transporte | E48: Argamassas | G48: m³ | H48: 1 | I48: =IF(C48="SINAPI", IF( IF(A48="Insumo", VLOOKUP(B48,'SINAPI INSUMOS'!B:F,5,0), VLOOKUP(B48,'SINAPI COMP'!B:F,4,0))=0,VLOOKUP(B48,'OUTRAS BASES'!C:D,2,0),IF(A48="Insumo", VLOOKUP(B48,'SINAPI INSUMOS'!B:F,5,0),VLOOKUP(B48,'SINAPI COMP'!B:F,4,0))), VLOOKUP(B48,'OUTRAS BASES'!C:D,2,0)) -> 521.34 | J48: =I48*H48 -> 521.34
A49: 3.4 | B49: Código | C49: Banco | D49: Descrição | E49: Tipo | G49: Und | H49: Quant. | I49: Valor Unit | J49: Total
A50: Insumo | B50: 9854 | C50: SINAPI | D50: TUBO PVC DE REVESTIMENTO GEOMECANICO NERVURADO STANDARD, DN = 154 MM, COMPRIMENTO = 2 M | E50: Material | G50: M | H50: 1 | I50: =IF(C50="SINAPI", IF( IF(A50="Insumo", VLOOKUP(B50,'SINAPI INSUMOS'!B:F,5,0), VLOOKUP(B50,'SINAPI COMP'!B:F,4,0))=0,VLOOKUP(B50,'OUTRAS BASES'!C:D,2,0),IF(A50="Insumo", VLOOKUP(B50,'SINAPI INSUMOS'!B:F,5,0),VLOOKUP(B50,'SINAPI COMP'!B:F,4,0))), VLOOKUP(B50,'OUTRAS BASES'!C:D,2,0)) -> 115.12 | J50: 115.12
A51: 4 | D51: PÓS PERFURAÇÃO
A52: 4.1 | B52: Código | C52: Banco | D52: Descrição | E52: Tipo | G52: Und | H52: Quant. | I52: Valor Unit | J52: Total
A53: Composição | B53: 6305 | C53: ORSE | D53: Desenvolvimento com Compressor 250psi / 750cfm | E53: Conversão InfoWOrca | G53: h | H53: 1 | I53: =IF(C53="SINAPI", IF( IF(A53="Insumo", VLOOKUP(B53,'SINAPI INSUMOS'!B:F,5,0), VLOOKUP(B53,'SINAPI COMP'!B:F,4,0))=0,VLOOKUP(B53,'OUTRAS BASES'!C:D,2,0),IF(A53="Insumo", VLOOKUP(B53,'SINAPI INSUMOS'!B:F,5,0),VLOOKUP(B53,'SINAPI COMP'!B:F,4,0))), VLOOKUP(B53,'OUTRAS BASES'!C:D,2,0)) -> 411.16 | J53: =I53 -> 411.16
A54: Insumo | B54: 5030 | C54: ORSE | D54: Desenvolvimento com compressor 250psi - 750cfm h | E54: Serviços | G54: h | H54: 1 | I54: =IF(C54="SINAPI", IF( IF(A54="Insumo", VLOOKUP(B54,'SINAPI INSUMOS'!B:F,5,0), VLOOKUP(B54,'SINAPI COMP'!B:F,4,0))=0,VLOOKUP(B54,'OUTRAS BASES'!C:D,2,0),IF(A54="Insumo", VLOOKUP(B54,'SINAPI INSUMOS'!B:F,5,0),VLOOKUP(B54,'SINAPI COMP'!B:F,4,0))), VLOOKUP(B54,'OUTRAS BASES'!C:D,2,0)) -> 411.16 | J54: =(I54*H54) -> 411.16
A55: 4.2 | B55: Código | C55: Banco | D55: Descrição | E55: Tipo | G55: Und | H55: Quant. | I55: Valor Unit | J55: Total
A56: Composição | B56: COMPOSIÇÃO - 8 | C56: Próprio | D56: Inspeção ótica em poço tubular câmera com rotação de 360º, visada lateral, com fonte própria de luz, entregue vídeo em cores e marcação de profundidades. | E56: SEES - SERVIÇOS ESPECIAIS | G56: m | H56: 1 | I56: =SUM(J57:J58) -> 9.64046 | J56: =I56 -> 9.64046
A57: Insumo | B57: H020050004 | C57: EMBASA | D57: APARELHO DE PERFILAGEM OPTICA | E57: Material | G57: M | H57: 1 | I57: =IF(C57="SINAPI", IF( IF(A57="Insumo", VLOOKUP(B57,'SINAPI INSUMOS'!B:F,5,0), VLOOKUP(B57,'SINAPI COMP'!B:F,4,0))=0,VLOOKUP(B57,'OUTRAS BASES'!C:D,2,0),IF(A57="Insumo", VLOOKUP(B57,'SINAPI INSUMOS'!B:F,5,0),VLOOKUP(B57,'SINAPI COMP'!B:F,4,0))), VLOOKUP(B57,'OUTRAS BASES'!C:D,2,0)) -> 4.4 | J57: =(I57*H57) -> 4.4
A58: Insumo | B58: B590000022 | C58: EMBASA | D58: TECNICO MEDIO | E58: Mão de Obra | G58: H | H58: 0.0835 | I58: =IF(C58="SINAPI", IF( IF(A58="Insumo", VLOOKUP(B58,'SINAPI INSUMOS'!B:F,5,0), VLOOKUP(B58,'SINAPI COMP'!B:F,4,0))=0,VLOOKUP(B58,'OUTRAS BASES'!C:D,2,0),IF(A58="Insumo", VLOOKUP(B58,'SINAPI INSUMOS'!B:F,5,0),VLOOKUP(B58,'SINAPI COMP'!B:F,4,0))), VLOOKUP(B58,'OUTRAS BASES'!C:D,2,0)) -> 62.76 | J58: 5.24046
A59: 4.3 | B59: Código | C59: Banco | D59: Descrição | E59: Tipo | G59: Und | H59: Quant. | I59: Valor Unit | J59: Total
A60: Composição | B60: COMPOSIÇÃO - 9 | C60: Próprio | D60: Serviço de coleta e Análise Físico-Química e Bacteriológica | E60: SEDI - SERVIÇOS DIVERSOS | G60: un | H60: 1 | I60: =SUM(J61:J62) -> 621.19 | J60: =I60 -> 621.19
A61: Composição Auxiliar | B61: 6312 | C61: ORSE | D61: Análise Físico-química da Água | E61: Conversão InfoWOrca | G61: un | H61: 1 | I61: =IF(C61="SINAPI", IF( IF(A61="Insumo", VLOOKUP(B61,'SINAPI INSUMOS'!B:F,5,0), VLOOKUP(B61,'SINAPI COMP'!B:F,4,0))=0,VLOOKUP(B61,'OUTRAS BASES'!C:D,2,0),IF(A61="Insumo", VLOOKUP(B61,'SINAPI INSUMOS'!B:F,5,0),VLOOKUP(B61,'SINAPI COMP'!B:F,4,0))), VLOOKUP(B61,'OUTRAS BASES'!C:D,2,0)) -> 565.21 | J61: =I61*H61 -> 565.21
A62: Composição Auxiliar | B62: 6313 | C62: ORSE | D62: Análise Bacteriológica da Água | E62: Conversão InfoWOrca | G62: un | H62: 1 | I62: =IF(C62="SINAPI", IF( IF(A62="Insumo", VLOOKUP(B62,'SINAPI INSUMOS'!B:F,5,0), VLOOKUP(B62,'SINAPI COMP'!B:F,4,0))=0,VLOOKUP(B62,'OUTRAS BASES'!C:D,2,0),IF(A62="Insumo", VLOOKUP(B62,'SINAPI INSUMOS'!B:F,5,0),VLOOKUP(B62,'SINAPI COMP'!B:F,4,0))), VLOOKUP(B62,'OUTRAS BASES'!C:D,2,0)) -> 55.98 | J62: 55.98
A63: 4.4 | B63: Código | C63: Banco | D63: Descrição | E63: Tipo | G63: Und | H63: Quant. | I63: Valor Unit | J63: Total
A64: Composição | B64: 24.80.22 | C64: EMBASA | D64: (REVISADA) DESENVOLVIMENTO OU TESTE COM BOMBA SUBMERSA - UEB1 NO SEDIMENTO COM VAZAO < 60M3 (Ensaio de bombeamento poço tubular incluso materiais e grupo gerador) | E64: 2480 | G64: H | H64: 1 | I64: =IF(C64="SINAPI", IF( IF(A64="Insumo", VLOOKUP(B64,'SINAPI INSUMOS'!B:F,5,0), VLOOKUP(B64,'SINAPI COMP'!B:F,4,0))=0,VLOOKUP(B64,'OUTRAS BASES'!C:D,2,0),IF(A64="Insumo", VLOOKUP(B64,'SINAPI INSUMOS'!B:F,5,0),VLOOKUP(B64,'SINAPI COMP'!B:F,4,0))), VLOOKUP(B64,'OUTRAS BASES'!C:D,2,0)) -> 263.27 | J64: =I64 -> 263.27
A65: Composição Auxiliar | B65: 24.00.15 | C65: EMBASA | D65: EQUIPE (3 PROFISSIONAIS CAMPO) - BOMBEIO | E65: 2400 | G65: H | H65: 1 | I65: =IF(C65="SINAPI", IF( IF(A65="Insumo", VLOOKUP(B65,'SINAPI INSUMOS'!B:F,5,0), VLOOKUP(B65,'SINAPI COMP'!B:F,4,0))=0,VLOOKUP(B65,'OUTRAS BASES'!C:D,2,0),IF(A65="Insumo", VLOOKUP(B65,'SINAPI INSUMOS'!B:F,5,0),VLOOKUP(B65,'SINAPI COMP'!B:F,4,0))), VLOOKUP(B65,'OUTRAS BASES'!C:D,2,0)) -> 198.35 | J65: =I65*H65 -> 198.35
A66: Insumo | B66: H020050001 | C66: EMBASA | D66: UNIDADE DE ENSAIO E BOMBEAMENTO - UEB1 ATE 150M3 NO SEDIMENTO | E66: Material | G66: H | H66: 1 | I66: =IF(C66="SINAPI", IF( IF(A66="Insumo", VLOOKUP(B66,'SINAPI INSUMOS'!B:F,5,0), VLOOKUP(B66,'SINAPI COMP'!B:F,4,0))=0,VLOOKUP(B66,'OUTRAS BASES'!C:D,2,0),IF(A66="Insumo", VLOOKUP(B66,'SINAPI INSUMOS'!B:F,5,0),VLOOKUP(B66,'SINAPI COMP'!B:F,4,0))), VLOOKUP(B66,'OUTRAS BASES'!C:D,2,0)) -> 64.92 | J66: =(I66*H66) -> 64.92
A67: 4.5 | B67: Código | C67: Banco | D67: Descrição | E67: Tipo | G67: Und | H67: Quant. | I67: Valor Unit | J67: Total
A68: Composição | B68: COMPOSIÇÃO - 10 | C68: Próprio | D68: Serviço de instalação de laje sanitária com dimensões (1,5x1,5x0,3) metros , incluso material. | E68: SEDI - SERVIÇOS DIVERSOS | G68: un | H68: 1 | I68: =SUM(J69:J72) -> 602.6445 | J68: =I68 -> 602.6445
A69: Composição Auxiliar | B69: 92522 | C69: SINAPI | D69: MONTAGEM E DESMONTAGEM DE FÔRMA DE LAJE MACIÇA, PÉ-DIREITO SIMPLES, EM CHAPA DE MADEIRA COMPENSADA RESINADA, 8 UTILIZAÇÕES. AF_09/2020 | E69: Fôrmas para Estruturas de Concreto Armado | G69: m² | H69: 1.8 | I69: =IF(C69="SINAPI", IF( IF(A69="Insumo", VLOOKUP(B69,'SINAPI INSUMOS'!B:F,5,0), VLOOKUP(B69,'SINAPI COMP'!B:F,4,0))=0,VLOOKUP(B69,'OUTRAS BASES'!C:D,2,0),IF(A69="Insumo", VLOOKUP(B69,'SINAPI INSUMOS'!B:F,5,0),VLOOKUP(B69,'SINAPI COMP'!B:F,4,0))), VLOOKUP(B69,'OUTRAS BASES'!C:D,2,0)) -> 33.3 | J69: =I69*H69 -> 59.94
A70: Composição Auxiliar | B70: 93358 | C70: SINAPI | D70: ESCAVAÇÃO MANUAL DE VALA COM PROFUNDIDADE MENOR OU IGUAL A 1,30 M. AF_02/2021 | E70: Escavação de Valas | G70: m³ | H70: 0.225 | I70: =IF(C70="SINAPI", IF( IF(A70="Insumo", VLOOKUP(B70,'SINAPI INSUMOS'!B:F,5,0), VLOOKUP(B70,'SINAPI COMP'!B:F,4,0))=0,VLOOKUP(B70,'OUTRAS BASES'!C:D,2,0),IF(A70="Insumo", VLOOKUP(B70,'SINAPI INSUMOS'!B:F,5,0),VLOOKUP(B70,'SINAPI COMP'!B:F,4,0))), VLOOKUP(B70,'OUTRAS BASES'!C:D,2,0)) -> 80.18 | J70: 18.0405
A71: Composição Auxiliar | B71: 94975 | C71: SINAPI | D71: CONCRETO FCK = 15MPA, TRAÇO 1:3,4:3,5 (EM MASSA SECA DE CIMENTO/ AREIA MÉDIA/ BRITA 1) - PREPARO MANUAL. AF_05/2021 | E71: Produção de Concreto | G71: m³ | H71: 0.675 | I71: =IF(C71="SINAPI", IF( IF(A71="Insumo", VLOOKUP(B71,'SINAPI INSUMOS'!B:F,5,0), VLOOKUP(B71,'SINAPI COMP'!B:F,4,0))=0,VLOOKUP(B71,'OUTRAS BASES'!C:D,2,0),IF(A71="Insumo", VLOOKUP(B71,'SINAPI INSUMOS'!B:F,5,0),VLOOKUP(B71,'SINAPI COMP'!B:F,4,0))), VLOOKUP(B71,'OUTRAS BASES'!C:D,2,0)) -> 503.17 | J71: 339.63975
A72: Composição Auxiliar | B72: 103670 | C72: SINAPI | D72: LANÇAMENTO COM USO DE BALDES, ADENSAMENTO E ACABAMENTO DE CONCRETO EM ESTRUTURAS. AF_02/2022 | E72: Concretagem para Estruturas de Concreto Armado | G72: m³ | H72: 0.675 | I72: =IF(C72="SINAPI", IF( IF(A72="Insumo", VLOOKUP(B72,'SINAPI INSUMOS'!B:F,5,0), VLOOKUP(B72,'SINAPI COMP'!B:F,4,0))=0,VLOOKUP(B72,'OUTRAS BASES'!C:D,2,0),IF(A72="Insumo", VLOOKUP(B72,'SINAPI INSUMOS'!B:F,5,0),VLOOKUP(B72,'SINAPI COMP'!B:F,4,0))), VLOOKUP(B72,'OUTRAS BASES'!C:D,2,0)) -> 274.11 | J72: 185.02425
A73: 5 | D73: RESERVAÇÃO
A74: 5.1 | B74: Código | C74: Banco | D74: Descrição | E74: Tipo | G74: Und | H74: Quant. | I74: Valor Unit | J74: Total
A75: Composição | B75: COMPOSIÇÃO - 11 | C75: Próprio | D75: Fornecimento e instalação de reservatório e base elevada 10 m³ | E75: ASTU - ASSENTAMENTO DE TUBOS E PECAS | G75: un | H75: 1 | I75: =SUM(J76:J97) -> 17856.27263 | J75: =I75 -> 17856.27263
A76: Composição Auxiliar | B76: 92759 | C76: SINAPI | D76: ARMAÇÃO DE PILAR OU VIGA DE ESTRUTURA CONVENCIONAL DE CONCRETO ARMADO UTILIZANDO AÇO CA-60 DE 5,0 MM - MONTAGEM. AF_06/2022 | E76: Armação para Estruturas de Concreto Armado | G76: KG | H76: 17.2 | I76: =IF(C76="SINAPI", IF( IF(A76="Insumo", VLOOKUP(B76,'SINAPI INSUMOS'!B:F,5,0), VLOOKUP(B76,'SINAPI COMP'!B:F,4,0))=0,VLOOKUP(B76,'OUTRAS BASES'!C:D,2,0),IF(A76="Insumo", VLOOKUP(B76,'SINAPI INSUMOS'!B:F,5,0),VLOOKUP(B76,'SINAPI COMP'!B:F,4,0))), VLOOKUP(B76,'OUTRAS BASES'!C:D,2,0)) -> 13.2 | J76: =I76*H76 -> 227.04
A77: Composição Auxiliar | B77: 92761 | C77: SINAPI | D77: ARMAÇÃO DE PILAR OU VIGA DE ESTRUTURA CONVENCIONAL DE CONCRETO ARMADO UTILIZANDO AÇO CA-50 DE 8,0 MM - MONTAGEM. AF_06/2022 | E77: Armação para Estruturas de Concreto Armado | G77: KG | H77: 30.4 | I77: =IF(C77="SINAPI", IF( IF(A77="Insumo", VLOOKUP(B77,'SINAPI INSUMOS'!B:F,5,0), VLOOKUP(B77,'SINAPI COMP'!B:F,4,0))=0,VLOOKUP(B77,'OUTRAS BASES'!C:D,2,0),IF(A77="Insumo", VLOOKUP(B77,'SINAPI INSUMOS'!B:F,5,0),VLOOKUP(B77,'SINAPI COMP'!B:F,4,0))), VLOOKUP(B77,'OUTRAS BASES'!C:D,2,0)) -> 11.71 | J77: 355.984
A78: Composição Auxiliar | B78: 92768 | C78: SINAPI | D78: ARMAÇÃO DE LAJE DE ESTRUTURA CONVENCIONAL DE CONCRETO ARMADO UTILIZANDO AÇO CA-60 DE 5,0 MM - MONTAGEM. AF_06/2022 | E78: Armação para Estruturas de Concreto Armado | G78: KG | H78: 11.9 | I78: =IF(C78="SINAPI", IF( IF(A78="Insumo", VLOOKUP(B78,'SINAPI INSUMOS'!B:F,5,0), VLOOKUP(B78,'SINAPI COMP'!B:F,4,0))=0,VLOOKUP(B78,'OUTRAS BASES'!C:D,2,0),IF(A78="Insumo", VLOOKUP(B78,'SINAPI INSUMOS'!B:F,5,0),VLOOKUP(B78,'SINAPI COMP'!B:F,4,0))), VLOOKUP(B78,'OUTRAS BASES'!C:D,2,0)) -> 12.74 | J78: 151.606
A79: Composição Auxiliar | B79: 92770 | C79: SINAPI | D79: ARMAÇÃO DE LAJE DE ESTRUTURA CONVENCIONAL DE CONCRETO ARMADO UTILIZANDO AÇO CA-50 DE 8,0 MM - MONTAGEM. AF_06/2022 | E79: Armação para Estruturas de Concreto Armado | G79: KG | H79: 48 | I79: =IF(C79="SINAPI", IF( IF(A79="Insumo", VLOOKUP(B79,'SINAPI INSUMOS'!B:F,5,0), VLOOKUP(B79,'SINAPI COMP'!B:F,4,0))=0,VLOOKUP(B79,'OUTRAS BASES'!C:D,2,0),IF(A79="Insumo", VLOOKUP(B79,'SINAPI INSUMOS'!B:F,5,0),VLOOKUP(B79,'SINAPI COMP'!B:F,4,0))), VLOOKUP(B79,'OUTRAS BASES'!C:D,2,0)) -> 11.25 | J79: 540
A80: Composição Auxiliar | B80: 93358 | C80: SINAPI | D80: ESCAVAÇÃO MANUAL DE VALA COM PROFUNDIDADE MENOR OU IGUAL A 1,30 M. AF_02/2021 | E80: Escavação de Valas | G80: m³ | H80: 5.2 | I80: =IF(C80="SINAPI", IF( IF(A80="Insumo", VLOOKUP(B80,'SINAPI INSUMOS'!B:F,5,0), VLOOKUP(B80,'SINAPI COMP'!B:F,4,0))=0,VLOOKUP(B80,'OUTRAS BASES'!C:D,2,0),IF(A80="Insumo", VLOOKUP(B80,'SINAPI INSUMOS'!B:F,5,0),VLOOKUP(B80,'SINAPI COMP'!B:F,4,0))), VLOOKUP(B80,'OUTRAS BASES'!C:D,2,0)) -> 80.18 | J80: 416.936
A81: Composição Auxiliar | B81: 92763 | C81: SINAPI | D81: ARMAÇÃO DE PILAR OU VIGA DE ESTRUTURA CONVENCIONAL DE CONCRETO ARMADO UTILIZANDO AÇO CA-50 DE 12,5 MM - MONTAGEM. AF_06/2022 | E81: Armação para Estruturas de Concreto Armado | G81: KG | H81: 118.4 | I81: =IF(C81="SINAPI", IF( IF(A81="Insumo", VLOOKUP(B81,'SINAPI INSUMOS'!B:F,5,0), VLOOKUP(B81,'SINAPI COMP'!B:F,4,0))=0,VLOOKUP(B81,'OUTRAS BASES'!C:D,2,0),IF(A81="Insumo", VLOOKUP(B81,'SINAPI INSUMOS'!B:F,5,0),VLOOKUP(B81,'SINAPI COMP'!B:F,4,0))), VLOOKUP(B81,'OUTRAS BASES'!C:D,2,0)) -> 8.81 | J81: 1043.104
A82: Composição Auxiliar | B82: 94970 | C82: SINAPI | D82: CONCRETO FCK = 20MPA, TRAÇO 1:2,7:3 (EM MASSA SECA DE CIMENTO/ AREIA MÉDIA/ BRITA 1) - PREPARO MECÂNICO COM BETONEIRA 600 L. AF_05/2021 | E82: Produção de Concreto | G82: m³ | H82: 4.89 | I82: =IF(C82="SINAPI", IF( IF(A82="Insumo", VLOOKUP(B82,'SINAPI INSUMOS'!B:F,5,0), VLOOKUP(B82,'SINAPI COMP'!B:F,4,0))=0,VLOOKUP(B82,'OUTRAS BASES'!C:D,2,0),IF(A82="Insumo", VLOOKUP(B82,'SINAPI INSUMOS'!B:F,5,0),VLOOKUP(B82,'SINAPI COMP'!B:F,4,0))), VLOOKUP(B82,'OUTRAS BASES'!C:D,2,0)) -> 469.68 | J82: 2296.7352
A83: Composição Auxiliar | B83: 103670 | C83: SINAPI | D83: LANÇAMENTO COM USO DE BALDES, ADENSAMENTO E ACABAMENTO DE CONCRETO EM ESTRUTURAS. AF_02/2022 | E83: Concretagem para Estruturas de Concreto Armado | G83: m³ | H83: 6.85 | I83: =IF(C83="SINAPI", IF( IF(A83="Insumo", VLOOKUP(B83,'SINAPI INSUMOS'!B:F,5,0), VLOOKUP(B83,'SINAPI COMP'!B:F,4,0))=0,VLOOKUP(B83,'OUTRAS BASES'!C:D,2,0),IF(A83="Insumo", VLOOKUP(B83,'SINAPI INSUMOS'!B:F,5,0),VLOOKUP(B83,'SINAPI COMP'!B:F,4,0))), VLOOKUP(B83,'OUTRAS BASES'!C:D,2,0)) -> 274.11 | J83: 1877.6535
A84: Composição Auxiliar | B84: 84651 | C84: SINAPI | D84: PINTURA COM TINTA IMPERMEAVEL MINERAL EM PO, DUAS DEMAOS | E84: PINT - PINTURAS | G84: m² | H84: 28.27 | I84: =IF(C84="SINAPI", IF( IF(A84="Insumo", VLOOKUP(B84,'SINAPI INSUMOS'!B:F,5,0), VLOOKUP(B84,'SINAPI COMP'!B:F,4,0))=0,VLOOKUP(B84,'OUTRAS BASES'!C:D,2,0),IF(A84="Insumo", VLOOKUP(B84,'SINAPI INSUMOS'!B:F,5,0),VLOOKUP(B84,'SINAPI COMP'!B:F,4,0))), VLOOKUP(B84,'OUTRAS BASES'!C:D,2,0)) -> 12.5975 | J84: 356.131325
A85: Composição Auxiliar | B85: 90776 | C85: SINAPI | D85: ENCARREGADO GERAL COM ENCARGOS COMPLEMENTARES | E85: Livro SINAPI: Cálculos e Parâmetros | G85: H | H85: 1 | I85: =IF(C85="SINAPI", IF( IF(A85="Insumo", VLOOKUP(B85,'SINAPI INSUMOS'!B:F,5,0), VLOOKUP(B85,'SINAPI COMP'!B:F,4,0))=0,VLOOKUP(B85,'OUTRAS BASES'!C:D,2,0),IF(A85="Insumo", VLOOKUP(B85,'SINAPI INSUMOS'!B:F,5,0),VLOOKUP(B85,'SINAPI COMP'!B:F,4,0))), VLOOKUP(B85,'OUTRAS BASES'!C:D,2,0)) -> 24.3 | J85: 24.3
A86: Composição Auxiliar | B86: 102482 | C86: SINAPI | D86: CONCRETO FCK = 25MPA, TRAÇO 1:2,2:2,5 (EM MASSA SECA DE CIMENTO/ AREIA MÉDIA/ SEIXO ROLADO) - PREPARO MECÂNICO COM BETONEIRA 600 L. AF_05/2021 | E86: Produção de Concreto | G86: m³ | H86: 1.96 | I86: =IF(C86="SINAPI", IF( IF(A86="Insumo", VLOOKUP(B86,'SINAPI INSUMOS'!B:F,5,0), VLOOKUP(B86,'SINAPI COMP'!B:F,4,0))=0,VLOOKUP(B86,'OUTRAS BASES'!C:D,2,0),IF(A86="Insumo", VLOOKUP(B86,'SINAPI INSUMOS'!B:F,5,0),VLOOKUP(B86,'SINAPI COMP'!B:F,4,0))), VLOOKUP(B86,'OUTRAS BASES'!C:D,2,0)) -> 642.22 | J86: 1258.7512
A87: Composição Auxiliar | B87: 92263 | C87: SINAPI | D87: FABRICAÇÃO DE FÔRMA PARA PILARES E ESTRUTURAS SIMILARES, EM CHAPA DE MADEIRA COMPENSADA RESINADA, E = 17 MM. AF_09/2020 | E87: Fôrmas para Estruturas de Concreto Armado | G87: m² | H87: 25.19 | I87: =IF(C87="SINAPI", IF( IF(A87="Insumo", VLOOKUP(B87,'SINAPI INSUMOS'!B:F,5,0), VLOOKUP(B87,'SINAPI COMP'!B:F,4,0))=0,VLOOKUP(B87,'OUTRAS BASES'!C:D,2,0),IF(A87="Insumo", VLOOKUP(B87,'SINAPI INSUMOS'!B:F,5,0),VLOOKUP(B87,'SINAPI COMP'!B:F,4,0))), VLOOKUP(B87,'OUTRAS BASES'!C:D,2,0)) -> 149.96 | J87: 3777.4924
A88: Composição Auxiliar | B88: 88267 | C88: SINAPI | D88: ENCANADOR OU BOMBEIRO HIDRÁULICO COM ENCARGOS COMPLEMENTARES | E88: Livro SINAPI: Cálculos e Parâmetros | G88: H | H88: 4 | I88: =IF(C88="SINAPI", IF( IF(A88="Insumo", VLOOKUP(B88,'SINAPI INSUMOS'!B:F,5,0), VLOOKUP(B88,'SINAPI COMP'!B:F,4,0))=0,VLOOKUP(B88,'OUTRAS BASES'!C:D,2,0),IF(A88="Insumo", VLOOKUP(B88,'SINAPI INSUMOS'!B:F,5,0),VLOOKUP(B88,'SINAPI COMP'!B:F,4,0))), VLOOKUP(B88,'OUTRAS BASES'!C:D,2,0)) -> 24.19 | J88: 96.76
A89: Composição Auxiliar | B89: 88248 | C89: SINAPI | D89: AUXILIAR DE ENCANADOR OU BOMBEIRO HIDRÁULICO COM ENCARGOS COMPLEMENTARES | E89: Livro SINAPI: Cálculos e Parâmetros | G89: H | H89: 4 | I89: =IF(C89="SINAPI", IF( IF(A89="Insumo", VLOOKUP(B89,'SINAPI INSUMOS'!B:F,5,0), VLOOKUP(B89,'SINAPI COMP'!B:F,4,0))=0,VLOOKUP(B89,'OUTRAS BASES'!C:D,2,0),IF(A89="Insumo", VLOOKUP(B89,'SINAPI INSUMOS'!B:F,5,0),VLOOKUP(B89,'SINAPI COMP'!B:F,4,0))), VLOOKUP(B89,'OUTRAS BASES'!C:D,2,0)) -> 20.51 | J89: 82.04
A90: Insumo | B90: 3146 | C90: SINAPI | D90: FITA VEDA ROSCA EM ROLOS DE 18 MM X 10 M (L X C) | E90: Material | G90: UN | H90: 0.18 | I90: =IF(C90="SINAPI", IF( IF(A90="Insumo", VLOOKUP(B90,'SINAPI INSUMOS'!B:F,5,0), VLOOKUP(B90,'SINAPI COMP'!B:F,4,0))=0,VLOOKUP(B90,'OUTRAS BASES'!C:D,2,0),IF(A90="Insumo", VLOOKUP(B90,'SINAPI INSUMOS'!B:F,5,0),VLOOKUP(B90,'SINAPI COMP'!B:F,4,0))), VLOOKUP(B90,'OUTRAS BASES'!C:D,2,0)) -> 2 | J90: =(I90*H90) -> 0.36
A91: Insumo | B91: 37106 | C91: SINAPI | D91: CAIXA D'AGUA / RESERVATORIO EM POLIESTER REFORCADO COM FIBRA DE VIDRO, 10000 LITROS, COM TAMPA | E91: Material | G91: UN | H91: 1 | I91: =IF(C91="SINAPI", IF( IF(A91="Insumo", VLOOKUP(B91,'SINAPI INSUMOS'!B:F,5,0), VLOOKUP(B91,'SINAPI COMP'!B:F,4,0))=0,VLOOKUP(B91,'OUTRAS BASES'!C:D,2,0),IF(A91="Insumo", VLOOKUP(B91,'SINAPI INSUMOS'!B:F,5,0),VLOOKUP(B91,'SINAPI COMP'!B:F,4,0))), VLOOKUP(B91,'OUTRAS BASES'!C:D,2,0)) -> 5098.45 | J91: 5098.45
A92: Insumo | B92: 14073 | C92: ORSE | D92: CURVA 90º PVC D=50MM, LINHA IRRIGA-LF, TIGRE OU SIMILAR | E92: Material | G92: UM | H92: 3 | I92: =IF(C92="SINAPI", IF( IF(A92="Insumo", VLOOKUP(B92,'SINAPI INSUMOS'!B:F,5,0), VLOOKUP(B92,'SINAPI COMP'!B:F,4,0))=0,VLOOKUP(B92,'OUTRAS BASES'!C:D,2,0),IF(A92="Insumo", VLOOKUP(B92,'SINAPI INSUMOS'!B:F,5,0),VLOOKUP(B92,'SINAPI COMP'!B:F,4,0))), VLOOKUP(B92,'OUTRAS BASES'!C:D,2,0)) -> 8.1 | J92: 24.3
A93: Insumo | B93: 14068 | C93: ORSE | D93: Tubo PVC para irrigação LF PN 80 Ø 50mm, linha Irriga-LF, Tigre ou similar | E93: Material | G93: UN | H93: 15.2 | I93: =IF(C93="SINAPI", IF( IF(A93="Insumo", VLOOKUP(B93,'SINAPI INSUMOS'!B:F,5,0), VLOOKUP(B93,'SINAPI COMP'!B:F,4,0))=0,VLOOKUP(B93,'OUTRAS BASES'!C:D,2,0),IF(A93="Insumo", VLOOKUP(B93,'SINAPI INSUMOS'!B:F,5,0),VLOOKUP(B93,'SINAPI COMP'!B:F,4,0))), VLOOKUP(B93,'OUTRAS BASES'!C:D,2,0)) -> 9.27 | J93: 140.904
A94: Insumo | B94: 1434 | C94: ORSE | D94: Luva pvc rigido roscavel d=2 " | E94: Material | G94: UN | H94: 1 | I94: =IF(C94="SINAPI", IF( IF(A94="Insumo", VLOOKUP(B94,'SINAPI INSUMOS'!B:F,5,0), VLOOKUP(B94,'SINAPI COMP'!B:F,4,0))=0,VLOOKUP(B94,'OUTRAS BASES'!C:D,2,0),IF(A94="Insumo", VLOOKUP(B94,'SINAPI INSUMOS'!B:F,5,0),VLOOKUP(B94,'SINAPI COMP'!B:F,4,0))), VLOOKUP(B94,'OUTRAS BASES'!C:D,2,0)) -> 28.58 | J94: 28.58
A95: Insumo | B95: 90 | C95: ORSE | D95: Adaptador curto, pvc rigido soldavel, c/ bolsa e rosca p/ registro, d= 50mm x 1 1/2” | E95: Material | G95: UN | H95: 1 | I95: =IF(C95="SINAPI", IF( IF(A95="Insumo", VLOOKUP(B95,'SINAPI INSUMOS'!B:F,5,0), VLOOKUP(B95,'SINAPI COMP'!B:F,4,0))=0,VLOOKUP(B95,'OUTRAS BASES'!C:D,2,0),IF(A95="Insumo", VLOOKUP(B95,'SINAPI INSUMOS'!B:F,5,0),VLOOKUP(B95,'SINAPI COMP'!B:F,4,0))), VLOOKUP(B95,'OUTRAS BASES'!C:D,2,0)) -> 4.2 | J95: 4.2
A96: Insumo | B96: 99 | C96: SINAPI | D96: ADAPTADOR PVC SOLDAVEL, COM FLANGE E ANEL DE VEDACAO, 50 MM X 1 1/2", PARA CAIXA D'AGUA | E96: Material | G96: UN | H96: 2 | I96: =IF(C96="SINAPI", IF( IF(A96="Insumo", VLOOKUP(B96,'SINAPI INSUMOS'!B:F,5,0), VLOOKUP(B96,'SINAPI COMP'!B:F,4,0))=0,VLOOKUP(B96,'OUTRAS BASES'!C:D,2,0),IF(A96="Insumo", VLOOKUP(B96,'SINAPI INSUMOS'!B:F,5,0),VLOOKUP(B96,'SINAPI COMP'!B:F,4,0))), VLOOKUP(B96,'OUTRAS BASES'!C:D,2,0)) -> 26.01 | J96: 52.02
A97: Insumo | B97: 119 | C97: SINAPI | D97: ADESIVO PLASTICO PARA PVC, BISNAGA COM 75 GR | E97: Material | G97: UN | H97: 0.45 | I97: =IF(C97="SINAPI", IF( IF(A97="Insumo", VLOOKUP(B97,'SINAPI INSUMOS'!B:F,5,0), VLOOKUP(B97,'SINAPI COMP'!B:F,4,0))=0,VLOOKUP(B97,'OUTRAS BASES'!C:D,2,0),IF(A97="Insumo", VLOOKUP(B97,'SINAPI INSUMOS'!B:F,5,0),VLOOKUP(B97,'SINAPI COMP'!B:F,4,0))), VLOOKUP(B97,'OUTRAS BASES'!C:D,2,0)) -> 6.5 | J97: 2.925
A98: 5.2 | B98: Código | C98: Banco | D98: Descrição | E98: Tipo | G98: Und | H98: Quant. | I98: Valor Unit | J98: Total
A99: Composição | B99: COMPOSIÇÃO - 12 | C99: Próprio | D99: Fornecimento e execução de reservatório apoiado de 5 m³ | E99: SEDI - SERVIÇOS DIVERSOS | G99: un | H99: 1 | I99: =SUM(J100:J109) -> 7611.333375 | J99: =I99 -> 7611.333375
A100: Composição Auxiliar | B100: 88309 | C100: SINAPI | D100: PEDREIRO COM ENCARGOS COMPLEMENTARES | E100: Livro SINAPI: Cálculos e Parâmetros | G100: H | H100: 3 | I100: =IF(C100="SINAPI", IF( IF(A100="Insumo", VLOOKUP(B100,'SINAPI INSUMOS'!B:F,5,0), VLOOKUP(B100,'SINAPI COMP'!B:F,4,0))=0,VLOOKUP(B100,'OUTRAS BASES'!C:D,2,0),IF(A100="Insumo", VLOOKUP(B100,'SINAPI INSUMOS'!B:F,5,0),VLOOKUP(B100,'SINAPI COMP'!B:F,4,0))), VLOOKUP(B100,'OUTRAS BASES'!C:D,2,0)) -> 25.21 | J100: =I100*H100 -> 75.63
A101: Composição Auxiliar | B101: 88316 | C101: SINAPI | D101: SERVENTE COM ENCARGOS COMPLEMENTARES | E101: Livro SINAPI: Cálculos e Parâmetros | G101: H | H101: 3 | I101: =IF(C101="SINAPI", IF( IF(A101="Insumo", VLOOKUP(B101,'SINAPI INSUMOS'!B:F,5,0), VLOOKUP(B101,'SINAPI COMP'!B:F,4,0))=0,VLOOKUP(B101,'OUTRAS BASES'!C:D,2,0),IF(A101="Insumo", VLOOKUP(B101,'SINAPI INSUMOS'!B:F,5,0),VLOOKUP(B101,'SINAPI COMP'!B:F,4,0))), VLOOKUP(B101,'OUTRAS BASES'!C:D,2,0)) -> 20.27 | J101: 60.81
A102: Composição Auxiliar | B102: 102617 | C102: SINAPI | D102: CAIXA D´ÁGUA EM POLIÉSTER REFORÇADO COM FIBRA DE VIDRO, 5000 LITROS - FORNECIMENTO E INSTALAÇÃO. AF_06/2021 | E102: Caixas de Água para Edificações | G102: UN | H102: 1 | I102: =IF(C102="SINAPI", IF( IF(A102="Insumo", VLOOKUP(B102,'SINAPI INSUMOS'!B:F,5,0), VLOOKUP(B102,'SINAPI COMP'!B:F,4,0))=0,VLOOKUP(B102,'OUTRAS BASES'!C:D,2,0),IF(A102="Insumo", VLOOKUP(B102,'SINAPI INSUMOS'!B:F,5,0),VLOOKUP(B102,'SINAPI COMP'!B:F,4,0))), VLOOKUP(B102,'OUTRAS BASES'!C:D,2,0)) -> 3503.76 | J102: 3503.76
A103: Composição Auxiliar | B103: 92767 | C103: SINAPI | D103: ARMAÇÃO DE LAJE DE UMA ESTRUTURA CONVENCIONAL DE CONCRETO ARMADO UTILIZANDO AÇO CA-60 DE 4,2 MM - MONTAGEM. AF_12/2015 | E103: FUES - FUNDAÇÕES E ESTRUTURAS | G103: KG | H103: 3.04 | I103: =IF(C103="SINAPI", IF( IF(A103="Insumo", VLOOKUP(B103,'SINAPI INSUMOS'!B:F,5,0), VLOOKUP(B103,'SINAPI COMP'!B:F,4,0))=0,VLOOKUP(B103,'OUTRAS BASES'!C:D,2,0),IF(A103="Insumo", VLOOKUP(B103,'SINAPI INSUMOS'!B:F,5,0),VLOOKUP(B103,'SINAPI COMP'!B:F,4,0))), VLOOKUP(B103,'OUTRAS BASES'!C:D,2,0)) -> 14.51 | J103: 44.1104
A104: Composição Auxiliar | B104: 104917 | C104: SINAPI | D104: ARMAÇAO DE SAPATA ISOLADA, VIGA BALDRAME E SAPATA CORRIDA UTILIZANDO AÇO CA-50 DE 6,3 MM - MONTAGEM AD_01/2024 | E104: FUES - FUNDAÇÕES E ESTRUTURAS | G104: KG | H104: 9.3 | I104: =IF(C104="SINAPI", IF( IF(A104="Insumo", VLOOKUP(B104,'SINAPI INSUMOS'!B:F,5,0), VLOOKUP(B104,'SINAPI COMP'!B:F,4,0))=0,VLOOKUP(B104,'OUTRAS BASES'!C:D,2,0),IF(A104="Insumo", VLOOKUP(B104,'SINAPI INSUMOS'!B:F,5,0),VLOOKUP(B104,'SINAPI COMP'!B:F,4,0))), VLOOKUP(B104,'OUTRAS BASES'!C:D,2,0)) -> 14.47 | J104: 134.571
A105: Composição Auxiliar | B105: 92760 | C105: SINAPI | D105: ARMAÇÃO DE PILAR OU VIGA DE ESTRTURA CONVENCIONAL DE CONCRETO ARMADO UTILIZANDO AÇO CA-50 DE 6,3 MM - MONTAGEM. AF_12/2015 | E105: FUES - FUNDAÇÕES E ESTRUTURAS | G105: KG | H105: 16.3 | I105: =IF(C105="SINAPI", IF( IF(A105="Insumo", VLOOKUP(B105,'SINAPI INSUMOS'!B:F,5,0), VLOOKUP(B105,'SINAPI COMP'!B:F,4,0))=0,VLOOKUP(B105,'OUTRAS BASES'!C:D,2,0),IF(A105="Insumo", VLOOKUP(B105,'SINAPI INSUMOS'!B:F,5,0),VLOOKUP(B105,'SINAPI COMP'!B:F,4,0))), VLOOKUP(B105,'OUTRAS BASES'!C:D,2,0)) -> 12.46 | J105: 203.098
A106: Composição Auxiliar | B106: 94964 | C106: SINAPI | D106: CONCRETO FCK = 20MPA, TRAÇO 1:2,7:3 (EM MASSA SECA DE CIMENTO/ AREIA MÉDIA/ BRITA 1) - PREPARO MECÂNICO COM BETONEIRA 400 L. AF_05/2021 | E106: Produção de Concreto | G106: m³ | H106: 1.56 | I106: =IF(C106="SINAPI", IF( IF(A106="Insumo", VLOOKUP(B106,'SINAPI INSUMOS'!B:F,5,0), VLOOKUP(B106,'SINAPI COMP'!B:F,4,0))=0,VLOOKUP(B106,'OUTRAS BASES'!C:D,2,0),IF(A106="Insumo", VLOOKUP(B106,'SINAPI INSUMOS'!B:F,5,0),VLOOKUP(B106,'SINAPI COMP'!B:F,4,0))), VLOOKUP(B106,'OUTRAS BASES'!C:D,2,0)) -> 480.22 | J106: 749.1432
A107: Composição Auxiliar | B107: 84651 | C107: SINAPI | D107: PINTURA COM TINTA IMPERMEAVEL MINERAL EM PO, DUAS DEMAOS | E107: PINT - PINTURAS | G107: m² | H107: 7.85 | I107: =IF(C107="SINAPI", IF( IF(A107="Insumo", VLOOKUP(B107,'SINAPI INSUMOS'!B:F,5,0), VLOOKUP(B107,'SINAPI COMP'!B:F,4,0))=0,VLOOKUP(B107,'OUTRAS BASES'!C:D,2,0),IF(A107="Insumo", VLOOKUP(B107,'SINAPI INSUMOS'!B:F,5,0),VLOOKUP(B107,'SINAPI COMP'!B:F,4,0))), VLOOKUP(B107,'OUTRAS BASES'!C:D,2,0)) -> 12.5975 | J107: 98.890375
A108: Composição Auxiliar | B108: 92263 | C108: SINAPI | D108: FABRICAÇÃO DE FÔRMA PARA PILARES E ESTRUTURAS SIMILARES, EM CHAPA DE MADEIRA COMPENSADA RESINADA, E = 17 MM. AF_09/2020 | E108: FUES - FUNDAÇÕES E ESTRUTURAS | G108: KG | H108: 16.99 | I108: =IF(C108="SINAPI", IF( IF(A108="Insumo", VLOOKUP(B108,'SINAPI INSUMOS'!B:F,5,0), VLOOKUP(B108,'SINAPI COMP'!B:F,4,0))=0,VLOOKUP(B108,'OUTRAS BASES'!C:D,2,0),IF(A108="Insumo", VLOOKUP(B108,'SINAPI INSUMOS'!B:F,5,0),VLOOKUP(B108,'SINAPI COMP'!B:F,4,0))), VLOOKUP(B108,'OUTRAS BASES'!C:D,2,0)) -> 149.96 | J108: 2547.8204
A109: Composição Auxiliar | B109: 92770 | C109: SINAPI | D109: ARMAÇÃO DE LAJE DE UMA ESTRUTURA CONVENCIONAL DE CONCRETO ARMADO UTILIZANDO AÇO CA-50 DE 8,0 MM - MONTAGEM. AF_06/2022 | E109: FUES - FUNDAÇÕES E ESTRUTURAS | G109: KG | H109: 17.2 | I109: =IF(C109="SINAPI", IF( IF(A109="Insumo", VLOOKUP(B109,'SINAPI INSUMOS'!B:F,5,0), VLOOKUP(B109,'SINAPI COMP'!B:F,4,0))=0,VLOOKUP(B109,'OUTRAS BASES'!C:D,2,0),IF(A109="Insumo", VLOOKUP(B109,'SINAPI INSUMOS'!B:F,5,0),VLOOKUP(B109,'SINAPI COMP'!B:F,4,0))), VLOOKUP(B109,'OUTRAS BASES'!C:D,2,0)) -> 11.25 | J109: 193.5
A110: 6 | D110: BEBEDOURO
A111: 6.1 | B111: Código | C111: Banco | D111: Descrição | E111: Tipo | G111: Und | H111: Quant. | I111: Valor Unit | J111: Total
A112: Composição | B112: COMPOSIÇÃO - 13 | C112: Próprio | D112: Serviço de execução do bebedouro em concreto armado, incluso materiais. | E112: SEDI - SERVIÇOS DIVERSOS | G112: un | H112: 1 | I112: =SUM(J113:J118) -> 1598.07602 | J112: =I112 -> 1598.07602
A113: Composição Auxiliar | B113: 92916 | C113: SINAPI | D113: ARMAÇÃODE ESTRUTURAS DIVERSAS DE CONCRETO ARMADO, EXCETO VIGA, PILARES, LAJES E FUNDAÇÕES, UTILIZANDO AÇO CA-50 DE 6,3 MM - MONTAGEM. AF_06/2022 | E113: Armação para Estruturas de Concreto Armado | G113: KG | H113: 6 | I113: =IF(C113="SINAPI", IF( IF(A113="Insumo", VLOOKUP(B113,'SINAPI INSUMOS'!B:F,5,0), VLOOKUP(B113,'SINAPI COMP'!B:F,4,0))=0,VLOOKUP(B113,'OUTRAS BASES'!C:D,2,0),IF(A113="Insumo", VLOOKUP(B113,'SINAPI INSUMOS'!B:F,5,0),VLOOKUP(B113,'SINAPI COMP'!B:F,4,0))), VLOOKUP(B113,'OUTRAS BASES'!C:D,2,0)) -> 14.28 | J113: =I113*H113 -> 85.68
A114: Composição Auxiliar | B114: 92915 | C114: SINAPI | D114: ARMAÇÃODE ESTRUTURAS DIVERSAS DE CONCRETO ARMADO, EXCETO VIGA, PILARES, LAJES E FUNDAÇÕES, UTILIZANDO AÇO CA-60 DE 5,0 MM - MONTAGEM. AF_06/2022 | E114: Armação para Estruturas de Concreto Armado | G114: KG | H114: 13 | I114: =IF(C114="SINAPI", IF( IF(A114="Insumo", VLOOKUP(B114,'SINAPI INSUMOS'!B:F,5,0), VLOOKUP(B114,'SINAPI COMP'!B:F,4,0))=0,VLOOKUP(B114,'OUTRAS BASES'!C:D,2,0),IF(A114="Insumo", VLOOKUP(B114,'SINAPI INSUMOS'!B:F,5,0),VLOOKUP(B114,'SINAPI COMP'!B:F,4,0))), VLOOKUP(B114,'OUTRAS BASES'!C:D,2,0)) -> 15.66 | J114: 203.58
A115: Composição Auxiliar | B115: 92921 | C115: SINAPI | D115: ARMAÇÃODE ESTRUTURAS DIVERSAS DE CONCRETO ARMADO, EXCETO VIGA, PILARES, LAJES E FUNDAÇÕES, UTILIZANDO AÇO CA-50 DE 12,5 MM - MONTAGEM. AF_06/2022 | E115: Armação para Estruturas de Concreto Armado | G115: KG | H115: 12 | I115: =IF(C115="SINAPI", IF( IF(A115="Insumo", VLOOKUP(B115,'SINAPI INSUMOS'!B:F,5,0), VLOOKUP(B115,'SINAPI COMP'!B:F,4,0))=0,VLOOKUP(B115,'OUTRAS BASES'!C:D,2,0),IF(A115="Insumo", VLOOKUP(B115,'SINAPI INSUMOS'!B:F,5,0),VLOOKUP(B115,'SINAPI COMP'!B:F,4,0))), VLOOKUP(B115,'OUTRAS BASES'!C:D,2,0)) -> 9.41 | J115: 112.92
A116: Composição Auxiliar | B116: 94971 | C116: SINAPI | D116: CONCRETO FCK = 25MPA, TRAÇO 1:2,3:2:2,7(EM MASSA SECA DE CIMENTO, AREIA MÉDIA, BRITA 1) - PREPARO MECÂNICO COM BETONEIRA 600l. AF_05/2021 | E116: Produção de concreto | G116: m³ | H116: 0.374 | I116: =IF(C116="SINAPI", IF( IF(A116="Insumo", VLOOKUP(B116,'SINAPI INSUMOS'!B:F,5,0), VLOOKUP(B116,'SINAPI COMP'!B:F,4,0))=0,VLOOKUP(B116,'OUTRAS BASES'!C:D,2,0),IF(A116="Insumo", VLOOKUP(B116,'SINAPI INSUMOS'!B:F,5,0),VLOOKUP(B116,'SINAPI COMP'!B:F,4,0))), VLOOKUP(B116,'OUTRAS BASES'!C:D,2,0)) -> 492.58 | J116: 184.22492
A117: Composição Auxiliar | B117: 92263 | C117: SINAPI | D117: FABRICAÇÃO DE FÔRMA PARA PILARES E ESTRUTURAS SIMILARES, EM CHAPA DE MADEIRA COMPENSADA RESINADA, E = 17 MM. AF_09/2020 | E117: FUES - FUNDAÇÕES E ESTRUTURAS | G117: m² | H117: 6.21 | I117: =IF(C117="SINAPI", IF( IF(A117="Insumo", VLOOKUP(B117,'SINAPI INSUMOS'!B:F,5,0), VLOOKUP(B117,'SINAPI COMP'!B:F,4,0))=0,VLOOKUP(B117,'OUTRAS BASES'!C:D,2,0),IF(A117="Insumo", VLOOKUP(B117,'SINAPI INSUMOS'!B:F,5,0),VLOOKUP(B117,'SINAPI COMP'!B:F,4,0))), VLOOKUP(B117,'OUTRAS BASES'!C:D,2,0)) -> 149.96 | J117: 931.2516
A118: Composição Auxiliar | B118: 15.07.09 | C118: EMBASA | D118: PINTURA LÁTEX ACRÍLICA, APLICAÇÃO MANUAL EM DUAS DEMÃOS | E118: EDIFICAÇÕES | G118: m² | H118: 6.21 | I118: =IF(C118="SINAPI", IF( IF(A118="Insumo", VLOOKUP(B118,'SINAPI INSUMOS'!B:F,5,0), VLOOKUP(B118,'SINAPI COMP'!B:F,4,0))=0,VLOOKUP(B118,'OUTRAS BASES'!C:D,2,0),IF(A118="Insumo", VLOOKUP(B118,'SINAPI INSUMOS'!B:F,5,0),VLOOKUP(B118,'SINAPI COMP'!B:F,4,0))), VLOOKUP(B118,'OUTRAS BASES'!C:D,2,0)) -> 12.95 | J118: 80.4195
A119: 7 | D119: CHAFARIZ
A120: 7.1 | B120: Código | C120: Banco | D120: Descrição | E120: Tipo | G120: Und | H120: Quant. | I120: Valor Unit | J120: Total
A121: Composição | B121: COMPOSIÇÃO - 14 | C121: Próprio | D121: Fornecimento de material e instalação do chafariz | E121: ASTU - ASSENTAMENTO DE TUBOS E PECAS | G121: un | H121: 1 | I121: =SUM(J122:J141) -> 915.3001162 | J121: =I121 -> 915.3001162
A122: Composição Auxiliar | B122: 88267 | C122: SINAPI | D122: ENCANADOR OU BOMBEIRO HIDRÁULICO COM ENCARGOS COMPLEMENTARES | E122: Livro SINAPI: Cálculos e Parâmetros | G122: H | H122: 2 | I122: =IF(C122="SINAPI", IF( IF(A122="Insumo", VLOOKUP(B122,'SINAPI INSUMOS'!B:F,5,0), VLOOKUP(B122,'SINAPI COMP'!B:F,4,0))=0,VLOOKUP(B122,'OUTRAS BASES'!C:D,2,0),IF(A122="Insumo", VLOOKUP(B122,'SINAPI INSUMOS'!B:F,5,0),VLOOKUP(B122,'SINAPI COMP'!B:F,4,0))), VLOOKUP(B122,'OUTRAS BASES'!C:D,2,0)) -> 24.19 | J122: =I122*H122 -> 48.38
A123: Composição Auxiliar | B123: 88248 | C123: SINAPI | D123: AUXILIAR DE ENCANADOR OU BOMBEIRO HIDRÁULICO COM ENCARGOS COMPLEMENTARES | E123: Livro SINAPI: Cálculos e Parâmetros | G123: H | H123: 2 | I123: =IF(C123="SINAPI", IF( IF(A123="Insumo", VLOOKUP(B123,'SINAPI INSUMOS'!B:F,5,0), VLOOKUP(B123,'SINAPI COMP'!B:F,4,0))=0,VLOOKUP(B123,'OUTRAS BASES'!C:D,2,0),IF(A123="Insumo", VLOOKUP(B123,'SINAPI INSUMOS'!B:F,5,0),VLOOKUP(B123,'SINAPI COMP'!B:F,4,0))), VLOOKUP(B123,'OUTRAS BASES'!C:D,2,0)) -> 20.51 | J123: 41.02
A124: Composição Auxiliar | B124: 93358 | C124: SINAPI | D124: ESCAVAÇÃO MANUAL DE VALA COM PROFUNDIDADE MENOR OU IGUAL A 1,30 M. AF_02/2021 | E124: Escavação de Valas | G124: m³ | H124: 0.0785398 | I124: =IF(C124="SINAPI", IF( IF(A124="Insumo", VLOOKUP(B124,'SINAPI INSUMOS'!B:F,5,0), VLOOKUP(B124,'SINAPI COMP'!B:F,4,0))=0,VLOOKUP(B124,'OUTRAS BASES'!C:D,2,0),IF(A124="Insumo", VLOOKUP(B124,'SINAPI INSUMOS'!B:F,5,0),VLOOKUP(B124,'SINAPI COMP'!B:F,4,0))), VLOOKUP(B124,'OUTRAS BASES'!C:D,2,0)) -> 80.18 | J124: 6.297321164
A125: Composição Auxiliar | B125: 96533 | C125: SINAPI | D125: FABRICAÇÃO, MONTAGEM E DESMONTAGEM DE FÔRMA PARA VIGA BALDRAME, EM MADEIRA SERRADA, E=25 MM, 4 UTILIZAÇÕES. AF_01/2024 | E125: FUES - FUNDAÇÕES E ESTRUTURAS | G125: m² | H125: 0.628 | I125: =IF(C125="SINAPI", IF( IF(A125="Insumo", VLOOKUP(B125,'SINAPI INSUMOS'!B:F,5,0), VLOOKUP(B125,'SINAPI COMP'!B:F,4,0))=0,VLOOKUP(B125,'OUTRAS BASES'!C:D,2,0),IF(A125="Insumo", VLOOKUP(B125,'SINAPI INSUMOS'!B:F,5,0),VLOOKUP(B125,'SINAPI COMP'!B:F,4,0))), VLOOKUP(B125,'OUTRAS BASES'!C:D,2,0)) -> 107.32 | J125: 67.39696
A126: Composição Auxiliar | B126: 94963 | C126: SINAPI | D126: CONCRETO FCK = 15MPA, TRAÇO 1:3,4:3,5 (EM MASSA SECA DE CIMENTO/ AREIA MÉDIA/ BRITA 1) - PREPARO MANUAL. AF_05/2021 | E126: Produção de Concreto | G126: m³ | H126: 0.157 | I126: =IF(C126="SINAPI", IF( IF(A126="Insumo", VLOOKUP(B126,'SINAPI INSUMOS'!B:F,5,0), VLOOKUP(B126,'SINAPI COMP'!B:F,4,0))=0,VLOOKUP(B126,'OUTRAS BASES'!C:D,2,0),IF(A126="Insumo", VLOOKUP(B126,'SINAPI INSUMOS'!B:F,5,0),VLOOKUP(B126,'SINAPI COMP'!B:F,4,0))), VLOOKUP(B126,'OUTRAS BASES'!C:D,2,0)) -> 444 | J126: 69.708
A127: Composição Auxiliar | B127: 87904 | C127: SINAPI | D127: CHAPISCO APLICADO EM ALVENARIA (COM PRESENÇA DE VÃOS) E ESTRUTURAS DE CONCRETO DE FACHADA, COM COLHER DE PEDREIRO. ARGAMASSA TRAÇO 1:3 COM PREPARO MANUAL. AF_10/2022 | E127: Chapisco | G127: m² | H127: 0.314 | I127: =IF(C127="SINAPI", IF( IF(A127="Insumo", VLOOKUP(B127,'SINAPI INSUMOS'!B:F,5,0), VLOOKUP(B127,'SINAPI COMP'!B:F,4,0))=0,VLOOKUP(B127,'OUTRAS BASES'!C:D,2,0),IF(A127="Insumo", VLOOKUP(B127,'SINAPI INSUMOS'!B:F,5,0),VLOOKUP(B127,'SINAPI COMP'!B:F,4,0))), VLOOKUP(B127,'OUTRAS BASES'!C:D,2,0)) -> 7.96 | J127: 2.49944
A128: Composição Auxiliar | B128: 87529 | C128: SINAPI | D128: MASSA ÚNICA, EM ARGAMASSA TRAÇO 1:2:8, PREPARO MECÂNICO, APLICADA MANUALMENTE EM PAREDES INTERNAS DE AMBIENTES COM ÁREA ENTRE 5M² E 10M², E = 17,5MM, COM TALISCAS. AF_03/2024 | E128: Massa Única Interna | G128: m² | H128: 0.314 | I128: =IF(C128="SINAPI", IF( IF(A128="Insumo", VLOOKUP(B128,'SINAPI INSUMOS'!B:F,5,0), VLOOKUP(B128,'SINAPI COMP'!B:F,4,0))=0,VLOOKUP(B128,'OUTRAS BASES'!C:D,2,0),IF(A128="Insumo", VLOOKUP(B128,'SINAPI INSUMOS'!B:F,5,0),VLOOKUP(B128,'SINAPI COMP'!B:F,4,0))), VLOOKUP(B128,'OUTRAS BASES'!C:D,2,0)) -> 34.27 | J128: 10.76078
A129: Composição Auxiliar | B129: 84651 | C129: SINAPI | D129: PINTURA COM TINTA IMPERMEAVEL MINERAL EM PO, DUAS DEMAOS | E129: PINT - PINTURAS | G129: m² | H129: 0.314 | I129: =IF(C129="SINAPI", IF( IF(A129="Insumo", VLOOKUP(B129,'SINAPI INSUMOS'!B:F,5,0), VLOOKUP(B129,'SINAPI COMP'!B:F,4,0))=0,VLOOKUP(B129,'OUTRAS BASES'!C:D,2,0),IF(A129="Insumo", VLOOKUP(B129,'SINAPI INSUMOS'!B:F,5,0),VLOOKUP(B129,'SINAPI COMP'!B:F,4,0))), VLOOKUP(B129,'OUTRAS BASES'!C:D,2,0)) -> 12.5975 | J129: 3.955615
A130: Insumo | B130: 765 | C130: SINAPI | D130: BUCHA DE REDUCAO DE FERRO GALVANIZADO, COM ROSCA BSP, DE 1" X 3/4" | E130: Material | G130: UN | H130: 2 | I130: =IF(C130="SINAPI", IF( IF(A130="Insumo", VLOOKUP(B130,'SINAPI INSUMOS'!B:F,5,0), VLOOKUP(B130,'SINAPI COMP'!B:F,4,0))=0,VLOOKUP(B130,'OUTRAS BASES'!C:D,2,0),IF(A130="Insumo", VLOOKUP(B130,'SINAPI INSUMOS'!B:F,5,0),VLOOKUP(B130,'SINAPI COMP'!B:F,4,0))), VLOOKUP(B130,'OUTRAS BASES'!C:D,2,0)) -> 10.43 | J130: 20.86
A131: Insumo | B131: 9887 | C131: SINAPI | D131: UNIAO DE FERRO GALVANIZADO, COM ROSCA BSP, COM ASSENTO PLANO, DE 2" | E131: Material | G131: UN | H131: 2 | I131: =IF(C131="SINAPI", IF( IF(A131="Insumo", VLOOKUP(B131,'SINAPI INSUMOS'!B:F,5,0), VLOOKUP(B131,'SINAPI COMP'!B:F,4,0))=0,VLOOKUP(B131,'OUTRAS BASES'!C:D,2,0),IF(A131="Insumo", VLOOKUP(B131,'SINAPI INSUMOS'!B:F,5,0),VLOOKUP(B131,'SINAPI COMP'!B:F,4,0))), VLOOKUP(B131,'OUTRAS BASES'!C:D,2,0)) -> 106.17 | J131: =(I131*H131) -> 212.34 | L131: =VLOOKUP(B131,[1]ISD!$B$11:$AE$4907,30,FALSE) -> 106.17
A132: Insumo | B132: 21013 | C132: SINAPI | D132: TUBO ACO GALVANIZADO COM COSTURA, CLASSE LEVE, DN 50 MM ( 2"), E = 3,00 MM, *4,40* KG/M (NBR 5580) | E132: Material | G132: M | H132: 1.8 | I132: =IF(C132="SINAPI", IF( IF(A132="Insumo", VLOOKUP(B132,'SINAPI INSUMOS'!B:F,5,0), VLOOKUP(B132,'SINAPI COMP'!B:F,4,0))=0,VLOOKUP(B132,'OUTRAS BASES'!C:D,2,0),IF(A132="Insumo", VLOOKUP(B132,'SINAPI INSUMOS'!B:F,5,0),VLOOKUP(B132,'SINAPI COMP'!B:F,4,0))), VLOOKUP(B132,'OUTRAS BASES'!C:D,2,0)) -> 67.19 | J132: 120.942 | L132: =VLOOKUP(B132,[1]ISD!$B$11:$AE$4907,30,FALSE) -> 67.19
A133: Insumo | B133: 6298 | C133: SINAPI | D133: TE DE FERRO GALVANIZADO, DE 2" | E133: Material | G133: UN | H133: 1 | I133: =IF(C133="SINAPI", IF( IF(A133="Insumo", VLOOKUP(B133,'SINAPI INSUMOS'!B:F,5,0), VLOOKUP(B133,'SINAPI COMP'!B:F,4,0))=0,VLOOKUP(B133,'OUTRAS BASES'!C:D,2,0),IF(A133="Insumo", VLOOKUP(B133,'SINAPI INSUMOS'!B:F,5,0),VLOOKUP(B133,'SINAPI COMP'!B:F,4,0))), VLOOKUP(B133,'OUTRAS BASES'!C:D,2,0)) -> 69.15 | J133: 69.15 | L133: =VLOOKUP(B133,[1]ISD!$B$11:$AE$4907,30,FALSE) -> 69.15
A134: Insumo | B134: 3471 | C134: SINAPI | D134: COTOVELO 90 GRAUS DE FERRO GALVANIZADO, COM ROSCA BSP, DE 2" | E134: Material | G134: UN | H134: 1 | I134: =IF(C134="SINAPI", IF( IF(A134="Insumo", VLOOKUP(B134,'SINAPI INSUMOS'!B:F,5,0), VLOOKUP(B134,'SINAPI COMP'!B:F,4,0))=0,VLOOKUP(B134,'OUTRAS BASES'!C:D,2,0),IF(A134="Insumo", VLOOKUP(B134,'SINAPI INSUMOS'!B:F,5,0),VLOOKUP(B134,'SINAPI COMP'!B:F,4,0))), VLOOKUP(B134,'OUTRAS BASES'!C:D,2,0)) -> 52.01 | J134: 52.01 | L134: =VLOOKUP(B134,[1]ISD!$B$11:$AE$4907,30,FALSE) -> 52.01
A135: Insumo | B135: 113 | C135: SINAPI | D135: ADAPTADOR PVC SOLDAVEL CURTO COM BOLSA E ROSCA, 60 MM X 2", PARA AGUA FRIA | E135: Material | G135: UN | H135: 1 | I135: =IF(C135="SINAPI", IF( IF(A135="Insumo", VLOOKUP(B135,'SINAPI INSUMOS'!B:F,5,0), VLOOKUP(B135,'SINAPI COMP'!B:F,4,0))=0,VLOOKUP(B135,'OUTRAS BASES'!C:D,2,0),IF(A135="Insumo", VLOOKUP(B135,'SINAPI INSUMOS'!B:F,5,0),VLOOKUP(B135,'SINAPI COMP'!B:F,4,0))), VLOOKUP(B135,'OUTRAS BASES'!C:D,2,0)) -> 11.08 | J135: 11.08 | L135: =VLOOKUP(B135,[1]ISD!$B$11:$AE$4907,30,FALSE) -> 11.62
A136: Insumo | B136: 818 | C136: SINAPI | D136: BUCHA DE REDUCAO DE PVC, SOLDAVEL, CURTA, COM 60 X 50 MM, PARA AGUA FRIA PREDIAL | E136: Material | G136: UN | H136: 1 | I136: =IF(C136="SINAPI", IF( IF(A136="Insumo", VLOOKUP(B136,'SINAPI INSUMOS'!B:F,5,0), VLOOKUP(B136,'SINAPI COMP'!B:F,4,0))=0,VLOOKUP(B136,'OUTRAS BASES'!C:D,2,0),IF(A136="Insumo", VLOOKUP(B136,'SINAPI INSUMOS'!B:F,5,0),VLOOKUP(B136,'SINAPI COMP'!B:F,4,0))), VLOOKUP(B136,'OUTRAS BASES'!C:D,2,0)) -> 6.76 | J136: 6.76
A137: Insumo | B137: 7604 | C137: SINAPI | D137: TORNEIRA METALICA CROMADA PARA TANQUE / JARDIM, SEM BICO , CANO LONGO, DE PAREDE, PADRAO POPULAR / USO GERAL, 1/2 " OU 3/4 " (REF 1126) | E137: Material | G137: UN | H137: 2 | I137: =IF(C137="SINAPI", IF( IF(A137="Insumo", VLOOKUP(B137,'SINAPI INSUMOS'!B:F,5,0), VLOOKUP(B137,'SINAPI COMP'!B:F,4,0))=0,VLOOKUP(B137,'OUTRAS BASES'!C:D,2,0),IF(A137="Insumo", VLOOKUP(B137,'SINAPI INSUMOS'!B:F,5,0),VLOOKUP(B137,'SINAPI COMP'!B:F,4,0))), VLOOKUP(B137,'OUTRAS BASES'!C:D,2,0)) -> 52.86 | J137: 105.72
A138: Insumo | B138: 119 | C138: SINAPI | D138: ADESIVO PLASTICO PARA PVC, BISNAGA COM 75 GR | E138: Material | G138: UN | H138: 1 | I138: =IF(C138="SINAPI", IF( IF(A138="Insumo", VLOOKUP(B138,'SINAPI INSUMOS'!B:F,5,0), VLOOKUP(B138,'SINAPI COMP'!B:F,4,0))=0,VLOOKUP(B138,'OUTRAS BASES'!C:D,2,0),IF(A138="Insumo", VLOOKUP(B138,'SINAPI INSUMOS'!B:F,5,0),VLOOKUP(B138,'SINAPI COMP'!B:F,4,0))), VLOOKUP(B138,'OUTRAS BASES'!C:D,2,0)) -> 6.5 | J138: 6.5
A139: Insumo | B139: 3146 | C139: SINAPI | D139: FITA VEDA ROSCA EM ROLOS DE 18 MM X 10 M (L X C) | E139: Material | G139: UN | H139: 1 | I139: =IF(C139="SINAPI", IF( IF(A139="Insumo", VLOOKUP(B139,'SINAPI INSUMOS'!B:F,5,0), VLOOKUP(B139,'SINAPI COMP'!B:F,4,0))=0,VLOOKUP(B139,'OUTRAS BASES'!C:D,2,0),IF(A139="Insumo", VLOOKUP(B139,'SINAPI INSUMOS'!B:F,5,0),VLOOKUP(B139,'SINAPI COMP'!B:F,4,0))), VLOOKUP(B139,'OUTRAS BASES'!C:D,2,0)) -> 2 | J139: 2
A140: Insumo | B140: 771 | C140: SINAPI | D140: BUCHA DE REDUCAO DE FERRO GALVANIZADO, COM ROSCA BSP, DE 2" X 1" | E140: Material | G140: UN | H140: 2 | I140: =IF(C140="SINAPI", IF( IF(A140="Insumo", VLOOKUP(B140,'SINAPI INSUMOS'!B:F,5,0), VLOOKUP(B140,'SINAPI COMP'!B:F,4,0))=0,VLOOKUP(B140,'OUTRAS BASES'!C:D,2,0),IF(A140="Insumo", VLOOKUP(B140,'SINAPI INSUMOS'!B:F,5,0),VLOOKUP(B140,'SINAPI COMP'!B:F,4,0))), VLOOKUP(B140,'OUTRAS BASES'!C:D,2,0)) -> 28.96 | J140: 57.92
A141: 8 | D141: CAVALETE
A142: 8.1 | B142: Código | C142: Banco | D142: Descrição | E142: Tipo | G142: Und | H142: Quant. | I142: Valor Unit | J142: Total
A143: Composição | B143: COMPOSIÇÃO - 15 | C143: Próprio | D143: Fornecimento de conexões e Instalação do Cavalete com hidrômetro e clorador de pastilhas | E143: INHI - INSTALAÇÕES HIDROS SANITÁRIAS | G143: un | H143: 1 | I143: =SUM(J144:J161) -> 2329.52 | J143: =I143 -> 2329.52
A144: Composição Auxiliar | B144: 88248 | C144: SINAPI | D144: AUXILIAR DE ENCANADOR OU BOMBEIRO HIDRÁULICO COM ENCARGOS COMPLEMENTARES | E144: Livro SINAPI: Cálculos e Parâmetros | G144: H | H144: 3 | I144: =IF(C144="SINAPI", IF( IF(A144="Insumo", VLOOKUP(B144,'SINAPI INSUMOS'!B:F,5,0), VLOOKUP(B144,'SINAPI COMP'!B:F,4,0))=0,VLOOKUP(B144,'OUTRAS BASES'!C:D,2,0),IF(A144="Insumo", VLOOKUP(B144,'SINAPI INSUMOS'!B:F,5,0),VLOOKUP(B144,'SINAPI COMP'!B:F,4,0))), VLOOKUP(B144,'OUTRAS BASES'!C:D,2,0)) -> 20.51 | J144: =I144*H144 -> 61.53
A145: Insumo | B145: 9860 | C145: SINAPI | D145: TUBO PVC, ROSCAVEL, 2", PARA AGUA FRIA PREDIAL | E145: Tubos e Conexões de PVC Rígido Roscável | G145: m | H145: 1.5 | I145: =IF(C145="SINAPI", IF( IF(A145="Insumo", VLOOKUP(B145,'SINAPI INSUMOS'!B:F,5,0), VLOOKUP(B145,'SINAPI COMP'!B:F,4,0))=0,VLOOKUP(B145,'OUTRAS BASES'!C:D,2,0),IF(A145="Insumo", VLOOKUP(B145,'SINAPI INSUMOS'!B:F,5,0),VLOOKUP(B145,'SINAPI COMP'!B:F,4,0))), VLOOKUP(B145,'OUTRAS BASES'!C:D,2,0)) -> 44.48 | J145: =(I145*H145) -> 66.72 | L145: =VLOOKUP(B145,[1]ISD!$B$11:$AE$4907,30,FALSE) -> 46.64
A146: Insumo | B146: 11831 | C146: SINAPI | D146: TORNEIRA PLASTICA PARA TANQUE 1/2 " OU 3/4 " COM BICO PARA MANGUEIRA | E146: Material | G146: UN | H146: 1 | I146: =IF(C146="SINAPI", IF( IF(A146="Insumo", VLOOKUP(B146,'SINAPI INSUMOS'!B:F,5,0), VLOOKUP(B146,'SINAPI COMP'!B:F,4,0))=0,VLOOKUP(B146,'OUTRAS BASES'!C:D,2,0),IF(A146="Insumo", VLOOKUP(B146,'SINAPI INSUMOS'!B:F,5,0),VLOOKUP(B146,'SINAPI COMP'!B:F,4,0))), VLOOKUP(B146,'OUTRAS BASES'!C:D,2,0)) -> 16.64 | J146: 16.64 | L146: =VLOOKUP(B146,[1]ISD!$B$11:$AE$4907,30,FALSE) -> 20.62
A147: Insumo | B147: 9569 | C147: ORSE | D147: Adaptador pvc BSxRM d= 35mm x 1 1/2", linha Irriga-LF, Tigre ou similar un | E147: Material | G147: un | H147: 1 | I147: =IF(C147="SINAPI", IF( IF(A147="Insumo", VLOOKUP(B147,'SINAPI INSUMOS'!B:F,5,0), VLOOKUP(B147,'SINAPI COMP'!B:F,4,0))=0,VLOOKUP(B147,'OUTRAS BASES'!C:D,2,0),IF(A147="Insumo", VLOOKUP(B147,'SINAPI INSUMOS'!B:F,5,0),VLOOKUP(B147,'SINAPI COMP'!B:F,4,0))), VLOOKUP(B147,'OUTRAS BASES'!C:D,2,0)) -> 3.04 | J147: 3.04 | L147: =VLOOKUP(B147,[1]ISD!$B$11:$AE$4907,30,FALSE) -> 
A148: Insumo | B148: 3939 | C148: SINAPI | D148: LUVA DE FERRO GALVANIZADO, COM ROSCA BSP, DE 1 1/2" | E148: Material | G148: UN | H148: 1 | I148: =IF(C148="SINAPI", IF( IF(A148="Insumo", VLOOKUP(B148,'SINAPI INSUMOS'!B:F,5,0), VLOOKUP(B148,'SINAPI COMP'!B:F,4,0))=0,VLOOKUP(B148,'OUTRAS BASES'!C:D,2,0),IF(A148="Insumo", VLOOKUP(B148,'SINAPI INSUMOS'!B:F,5,0),VLOOKUP(B148,'SINAPI COMP'!B:F,4,0))), VLOOKUP(B148,'OUTRAS BASES'!C:D,2,0)) -> 23.91 | J148: 23.91
A149: Insumo | B149: 1798 | C149: SINAPI | D149: CURVA 90 GRAUS DE FERRO GALVANIZADO, COM ROSCA BSP MACHO, DE 2" | E149: Material | G149: UN | H149: 1 | I149: =IF(C149="SINAPI", IF( IF(A149="Insumo", VLOOKUP(B149,'SINAPI INSUMOS'!B:F,5,0), VLOOKUP(B149,'SINAPI COMP'!B:F,4,0))=0,VLOOKUP(B149,'OUTRAS BASES'!C:D,2,0),IF(A149="Insumo", VLOOKUP(B149,'SINAPI INSUMOS'!B:F,5,0),VLOOKUP(B149,'SINAPI COMP'!B:F,4,0))), VLOOKUP(B149,'OUTRAS BASES'!C:D,2,0)) -> 133.27 | J149: 133.27
A150: Insumo | B150: 9887 | C150: SINAPI | D150: UNIAO DE FERRO GALVANIZADO, COM ROSCA BSP, COM ASSENTO PLANO, DE 2" | E150: Material | G150: UN | H150: 1 | I150: =IF(C150="SINAPI", IF( IF(A150="Insumo", VLOOKUP(B150,'SINAPI INSUMOS'!B:F,5,0), VLOOKUP(B150,'SINAPI COMP'!B:F,4,0))=0,VLOOKUP(B150,'OUTRAS BASES'!C:D,2,0),IF(A150="Insumo", VLOOKUP(B150,'SINAPI INSUMOS'!B:F,5,0),VLOOKUP(B150,'SINAPI COMP'!B:F,4,0))), VLOOKUP(B150,'OUTRAS BASES'!C:D,2,0)) -> 106.17 | J150: 106.17 | L150: =VLOOKUP(B150,[1]ISD!$B$11:$AE$4907,30,FALSE) -> 106.17
A151: Insumo | B151: 00004181/SINAPI | C151: ORSE | D151: Niple de ferro galvanizado, com rosca bsp, de 2" | E151: Material | G151: un | H151: 2 | I151: =IF(C151="SINAPI", IF( IF(A151="Insumo", VLOOKUP(B151,'SINAPI INSUMOS'!B:F,5,0), VLOOKUP(B151,'SINAPI COMP'!B:F,4,0))=0,VLOOKUP(B151,'OUTRAS BASES'!C:D,2,0),IF(A151="Insumo", VLOOKUP(B151,'SINAPI INSUMOS'!B:F,5,0),VLOOKUP(B151,'SINAPI COMP'!B:F,4,0))), VLOOKUP(B151,'OUTRAS BASES'!C:D,2,0)) -> 36.64 | J151: 73.28 | L151: =VLOOKUP(B151,[1]ISD!$B$11:$AE$4907,30,FALSE) -> 
A152: Insumo | B152: 6028 | C152: SINAPI | D152: REGISTRO GAVETA BRUTO EM LATAO FORJADO, BITOLA 2 " (REF 1509) | E152: Material | G152: UN | H152: 1 | I152: =IF(C152="SINAPI", IF( IF(A152="Insumo", VLOOKUP(B152,'SINAPI INSUMOS'!B:F,5,0), VLOOKUP(B152,'SINAPI COMP'!B:F,4,0))=0,VLOOKUP(B152,'OUTRAS BASES'!C:D,2,0),IF(A152="Insumo", VLOOKUP(B152,'SINAPI INSUMOS'!B:F,5,0),VLOOKUP(B152,'SINAPI COMP'!B:F,4,0))), VLOOKUP(B152,'OUTRAS BASES'!C:D,2,0)) -> 138.78 | J152: 138.78 | L152: =VLOOKUP(B152,[1]ISD!$B$11:$AE$4907,30,FALSE) -> 99.08
A153: Insumo | B153: 12775 | C153: SINAPI | D153: HIDROMETRO MULTIJATO / MEDIDOR DE AGUA, DN 1", VAZAO MAXIMA DE 7 M3/H, PARA AGUA POTAVEL FRIA, RELOJOARIA PLANA, CLASSE B, HORIZONTAL (SEM CONEXOES) | E153: Material | G153: UN | H153: 1 | I153: =IF(C153="SINAPI", IF( IF(A153="Insumo", VLOOKUP(B153,'SINAPI INSUMOS'!B:F,5,0), VLOOKUP(B153,'SINAPI COMP'!B:F,4,0))=0,VLOOKUP(B153,'OUTRAS BASES'!C:D,2,0),IF(A153="Insumo", VLOOKUP(B153,'SINAPI INSUMOS'!B:F,5,0),VLOOKUP(B153,'SINAPI COMP'!B:F,4,0))), VLOOKUP(B153,'OUTRAS BASES'!C:D,2,0)) -> 420.58 | J153: 420.58
A154: Insumo | B154: 771 | C154: SINAPI | D154: BUCHA DE REDUCAO DE FERRO GALVANIZADO, COM ROSCA BSP, DE 2" X 1" | E154: Material | G154: UN | H154: 2 | I154: =IF(C154="SINAPI", IF( IF(A154="Insumo", VLOOKUP(B154,'SINAPI INSUMOS'!B:F,5,0), VLOOKUP(B154,'SINAPI COMP'!B:F,4,0))=0,VLOOKUP(B154,'OUTRAS BASES'!C:D,2,0),IF(A154="Insumo", VLOOKUP(B154,'SINAPI INSUMOS'!B:F,5,0),VLOOKUP(B154,'SINAPI COMP'!B:F,4,0))), VLOOKUP(B154,'OUTRAS BASES'!C:D,2,0)) -> 28.96 | J154: 57.92 | L154: =VLOOKUP(B154,[1]ISD!$B$11:$AE$4907,30,FALSE) -> 28.96
A155: Insumo | B155: 6305 | C155: SINAPI | D155: TE DE REDUCAO DE FERRO GALVANIZADO, COM ROSCA BSP, DE 2" X 1" | E155: Material | G155: UN | H155: 1 | I155: =IF(C155="SINAPI", IF( IF(A155="Insumo", VLOOKUP(B155,'SINAPI INSUMOS'!B:F,5,0), VLOOKUP(B155,'SINAPI COMP'!B:F,4,0))=0,VLOOKUP(B155,'OUTRAS BASES'!C:D,2,0),IF(A155="Insumo", VLOOKUP(B155,'SINAPI INSUMOS'!B:F,5,0),VLOOKUP(B155,'SINAPI COMP'!B:F,4,0))), VLOOKUP(B155,'OUTRAS BASES'!C:D,2,0)) -> 411.16 | J155: 411.16 | L155: =VLOOKUP(B155,[1]ISD!$B$11:$AE$4907,30,FALSE) -> 76.55
A156: Insumo | B156: 764 | C156: SINAPI | D156: BUCHA DE REDUCAO DE FERRO GALVANIZADO, COM ROSCA BSP, DE 1" X 1/2" | E156: Material | G156: UN | H156: 1 | I156: =IF(C156="SINAPI", IF( IF(A156="Insumo", VLOOKUP(B156,'SINAPI INSUMOS'!B:F,5,0), VLOOKUP(B156,'SINAPI COMP'!B:F,4,0))=0,VLOOKUP(B156,'OUTRAS BASES'!C:D,2,0),IF(A156="Insumo", VLOOKUP(B156,'SINAPI INSUMOS'!B:F,5,0),VLOOKUP(B156,'SINAPI COMP'!B:F,4,0))), VLOOKUP(B156,'OUTRAS BASES'!C:D,2,0)) -> 109.89 | J156: 109.89 | L156: =VLOOKUP(B156,[1]ISD!$B$11:$AE$4907,30,FALSE) -> 10.43
A157: Insumo | B157: 5128 | C157: ORSE | D157: Tampa de poço galvanizada em 6" | E157: Material | G157: UN | H157: 1 | I157: =IF(C157="SINAPI", IF( IF(A157="Insumo", VLOOKUP(B157,'SINAPI INSUMOS'!B:F,5,0), VLOOKUP(B157,'SINAPI COMP'!B:F,4,0))=0,VLOOKUP(B157,'OUTRAS BASES'!C:D,2,0),IF(A157="Insumo", VLOOKUP(B157,'SINAPI INSUMOS'!B:F,5,0),VLOOKUP(B157,'SINAPI COMP'!B:F,4,0))), VLOOKUP(B157,'OUTRAS BASES'!C:D,2,0)) -> 107.28 | J157: 107.28 | L157: =VLOOKUP(B157,[1]ISD!$B$11:$AE$4907,30,FALSE) -> 
A158: Insumo | B158: 1160 | C158: ORSE | D158: Joelho 45° ferro galvanizado d=2" | E158: Material | G158: UN | H158: 2 | I158: =IF(C158="SINAPI", IF( IF(A158="Insumo", VLOOKUP(B158,'SINAPI INSUMOS'!B:F,5,0), VLOOKUP(B158,'SINAPI COMP'!B:F,4,0))=0,VLOOKUP(B158,'OUTRAS BASES'!C:D,2,0),IF(A158="Insumo", VLOOKUP(B158,'SINAPI INSUMOS'!B:F,5,0),VLOOKUP(B158,'SINAPI COMP'!B:F,4,0))), VLOOKUP(B158,'OUTRAS BASES'!C:D,2,0)) -> 54.39 | J158: 108.78
A159: Insumo | B159: 53688 | C159: SBC | D159: VALVULA DE RETENCAO HORIZONTAL EM LATAO, ROSCA BSP 2" | E159: Material | G159: UN | H159: 1 | I159: =IF(C159="SINAPI", IF( IF(A159="Insumo", VLOOKUP(B159,'SINAPI INSUMOS'!B:F,5,0), VLOOKUP(B159,'SINAPI COMP'!B:F,4,0))=0,VLOOKUP(B159,'OUTRAS BASES'!C:D,2,0),IF(A159="Insumo", VLOOKUP(B159,'SINAPI INSUMOS'!B:F,5,0),VLOOKUP(B159,'SINAPI COMP'!B:F,4,0))), VLOOKUP(B159,'OUTRAS BASES'!C:D,2,0)) -> 192.66 | J159: =I159*H159 -> 192.66
A160: Insumo | B160: 4194 | C160: SINAPI | D160: NIPLE DE REDUCAO DE FERRO GALVANIZADO, COM ROSCA BSP, DE 2" X 1 1/2" | E160: Material | G160: UN | H160: 1 | I160: =IF(C160="SINAPI", IF( IF(A160="Insumo", VLOOKUP(B160,'SINAPI INSUMOS'!B:F,5,0), VLOOKUP(B160,'SINAPI COMP'!B:F,4,0))=0,VLOOKUP(B160,'OUTRAS BASES'!C:D,2,0),IF(A160="Insumo", VLOOKUP(B160,'SINAPI INSUMOS'!B:F,5,0),VLOOKUP(B160,'SINAPI COMP'!B:F,4,0))), VLOOKUP(B160,'OUTRAS BASES'!C:D,2,0)) -> 46.94 | J160: =I160*H160 -> 46.94
A161: Insumo | B161: 12464 | C161: ORSE | D161: Clorador dosador de cloro de pastilhas automático | E161: Material | G161: un | H161: 1 | I161: =IF(C161="SINAPI", IF( IF(A161="Insumo", VLOOKUP(B161,'SINAPI INSUMOS'!B:F,5,0), VLOOKUP(B161,'SINAPI COMP'!B:F,4,0))=0,VLOOKUP(B161,'OUTRAS BASES'!C:D,2,0),IF(A161="Insumo", VLOOKUP(B161,'SINAPI INSUMOS'!B:F,5,0),VLOOKUP(B161,'SINAPI COMP'!B:F,4,0))), VLOOKUP(B161,'OUTRAS BASES'!C:D,2,0)) -> 250.97 | J161: =I161*H161 -> 250.97
A162: 9 | D162: INSTALAÇÕES HIDRÁULICAS
A163: 9.1 | B163: Código | C163: Banco | D163: Descrição | E163: Tipo | G163: Und | H163: Quant. | I163: Valor Unit | J163: Total
A164: Composição | B164: COMPOSIÇÃO - 16 | C164: Próprio | D164: Instalação da rede adutora poço-reservatório-bebedouro em PN80 e DN50MM | E164: SEDI - SERVIÇOS DIVERSOS | G164: m | H164: 1 | I164: =SUM(J165:J167) -> 5.6725 | J164: =SUM(J165:J167) -> 5.6725
A165: Composição Auxiliar | B165: 88316 | C165: SINAPI | D165: SERVENTE COM ENCARGOS COMPLEMENTARES | E165: Livro SINAPI: Cálculos e Parâmetros | G165: H | H165: 0.05 | I165: =IF(C165="SINAPI", IF( IF(A165="Insumo", VLOOKUP(B165,'SINAPI INSUMOS'!B:F,5,0), VLOOKUP(B165,'SINAPI COMP'!B:F,4,0))=0,VLOOKUP(B165,'OUTRAS BASES'!C:D,2,0),IF(A165="Insumo", VLOOKUP(B165,'SINAPI INSUMOS'!B:F,5,0),VLOOKUP(B165,'SINAPI COMP'!B:F,4,0))), VLOOKUP(B165,'OUTRAS BASES'!C:D,2,0)) -> 20.27 | J165: =I165*H165 -> 1.0135
A166: Composição Auxiliar | B166: 93358 | C166: SINAPI | D166: ESCAVAÇÃO MANUAL DE VALA COM PROFUNDIDADE MENOR OU IGUAL A 1,30 M. AF_02/2021 | E166: Escavação de Valas | G166: m³ | H166: 0.05 | I166: =IF(C166="SINAPI", IF( IF(A166="Insumo", VLOOKUP(B166,'SINAPI INSUMOS'!B:F,5,0), VLOOKUP(B166,'SINAPI COMP'!B:F,4,0))=0,VLOOKUP(B166,'OUTRAS BASES'!C:D,2,0),IF(A166="Insumo", VLOOKUP(B166,'SINAPI INSUMOS'!B:F,5,0),VLOOKUP(B166,'SINAPI COMP'!B:F,4,0))), VLOOKUP(B166,'OUTRAS BASES'!C:D,2,0)) -> 80.18 | J166: 4.009
A167: Insumo | B167: 119 | C167: SINAPI | D167: ADESIVO PLASTICO PARA PVC, BISNAGA COM 75 GR | E167: Material | G167: UN | H167: 0.1 | I167: =IF(C167="SINAPI", IF( IF(A167="Insumo", VLOOKUP(B167,'SINAPI INSUMOS'!B:F,5,0), VLOOKUP(B167,'SINAPI COMP'!B:F,4,0))=0,VLOOKUP(B167,'OUTRAS BASES'!C:D,2,0),IF(A167="Insumo", VLOOKUP(B167,'SINAPI INSUMOS'!B:F,5,0),VLOOKUP(B167,'SINAPI COMP'!B:F,4,0))), VLOOKUP(B167,'OUTRAS BASES'!C:D,2,0)) -> 6.5 | J167: =(I167*H167) -> 0.65
A168: 9.2 | B168: Código | C168: Banco | D168: Descrição | E168: Tipo | G168: Und | H168: Quant. | I168: Valor Unit | J168: Total
A169: Insumo | B169: 9875 | C169: SINAPI | D169: TUBO PVC, SOLDAVEL, DE 50 MM, AGUA FRIA (NBR-5648) | E169: MATERIAL | G169: un | H169: 1 | I169: =IF(C169="SINAPI", IF( IF(A169="Insumo", VLOOKUP(B169,'SINAPI INSUMOS'!B:F,5,0), VLOOKUP(B169,'SINAPI COMP'!B:F,4,0))=0,VLOOKUP(B169,'OUTRAS BASES'!C:D,2,0),IF(A169="Insumo", VLOOKUP(B169,'SINAPI INSUMOS'!B:F,5,0),VLOOKUP(B169,'SINAPI COMP'!B:F,4,0))), VLOOKUP(B169,'OUTRAS BASES'!C:D,2,0)) -> 15.31 | J169: =I169*H169 -> 15.31
A171: 9.3 | B171: Código | C171: Banco | D171: Descrição | E171: Tipo | G171: Und | H171: Quant. | I171: Valor Unit | J171: Total
A172: Composição | B172: COMPOSIÇÃO - 17 | C172: Próprio | D172: Montagem hidráulica do equipamento de bombeamento | E172: INHI - INSTALAÇÕES HIDROS SANITÁRIAS | G172: un | H172: 1 | I172: =SUM(J173:J174) -> 134.1 | J172: =I172 -> 134.1
A173: Composição Auxiliar | B173: 88267 | C173: SINAPI | D173: ENCANADOR OU BOMBEIRO HIDRÁULICO COM ENCARGOS COMPLEMENTARES | E173: Livro SINAPI: Cálculos e Parâmetros | G173: H | H173: 3 | I173: =IF(C173="SINAPI", IF( IF(A173="Insumo", VLOOKUP(B173,'SINAPI INSUMOS'!B:F,5,0), VLOOKUP(B173,'SINAPI COMP'!B:F,4,0))=0,VLOOKUP(B173,'OUTRAS BASES'!C:D,2,0),IF(A173="Insumo", VLOOKUP(B173,'SINAPI INSUMOS'!B:F,5,0),VLOOKUP(B173,'SINAPI COMP'!B:F,4,0))), VLOOKUP(B173,'OUTRAS BASES'!C:D,2,0)) -> 24.19 | J173: =I173*H173 -> 72.57
A174: Composição Auxiliar | B174: 88248 | C174: SINAPI | D174: AUXILIAR DE ENCANADOR OU BOMBEIRO HIDRÁULICO COM ENCARGOS COMPLEMENTARES | E174: Livro SINAPI: Cálculos e Parâmetros | G174: H | H174: 3 | I174: =IF(C174="SINAPI", IF( IF(A174="Insumo", VLOOKUP(B174,'SINAPI INSUMOS'!B:F,5,0), VLOOKUP(B174,'SINAPI COMP'!B:F,4,0))=0,VLOOKUP(B174,'OUTRAS BASES'!C:D,2,0),IF(A174="Insumo", VLOOKUP(B174,'SINAPI INSUMOS'!B:F,5,0),VLOOKUP(B174,'SINAPI COMP'!B:F,4,0))), VLOOKUP(B174,'OUTRAS BASES'!C:D,2,0)) -> 20.51 | J174: 61.53
A175: 9.4 | B175: Código | C175: Banco | D175: Descrição | E175: Tipo | G175: Und | H175: Quant. | I175: Valor Unit | J175: Total
A176: Insumo | B176: 38200 | C176: SINAPI | D176: CORDA DE POLIAMIDA 12 MM TIPO BOMBEIRO, PARA TRABALHO EM ALTURA | E176: Material | G176: 100M | H176: 1 | I176: =IF(C176="SINAPI", IF( IF(A176="Insumo", VLOOKUP(B176,'SINAPI INSUMOS'!B:F,5,0), VLOOKUP(B176,'SINAPI COMP'!B:F,4,0))=0,VLOOKUP(B176,'OUTRAS BASES'!C:D,2,0),IF(A176="Insumo", VLOOKUP(B176,'SINAPI INSUMOS'!B:F,5,0),VLOOKUP(B176,'SINAPI COMP'!B:F,4,0))), VLOOKUP(B176,'OUTRAS BASES'!C:D,2,0)) -> 493.84 | J176: =I176 -> 493.84
A177: 9.5 | B177: Código | C177: Banco | D177: Descrição | E177: Tipo | G177: Und | H177: Quant. | I177: Valor Unit | J177: Total
A178: Insumo | B178: 9860 | C178: SINAPI | D178: TUBO PVC, ROSCAVEL, 2", PARA AGUA FRIA PREDIAL | E178: Material | G178: M | H178: 1 | I178: =IF(C178="SINAPI", IF( IF(A178="Insumo", VLOOKUP(B178,'SINAPI INSUMOS'!B:F,5,0), VLOOKUP(B178,'SINAPI COMP'!B:F,4,0))=0,VLOOKUP(B178,'OUTRAS BASES'!C:D,2,0),IF(A178="Insumo", VLOOKUP(B178,'SINAPI INSUMOS'!B:F,5,0),VLOOKUP(B178,'SINAPI COMP'!B:F,4,0))), VLOOKUP(B178,'OUTRAS BASES'!C:D,2,0)) -> 44.48 | J178: =I178 -> 44.48
A179: 9.6 | B179: Código | C179: Banco | D179: Descrição | E179: Tipo | G179: Und | H179: Quant. | I179: Valor Unit | J179: Total
A180: Insumo | B180: 3912 | C180: SINAPI | D180: LUVA DE FERRO GALVANIZADO, COM ROSCA BSP, DE 2" | E180: Material | G180: UN | H180: 1 | I180: =IF(C180="SINAPI", IF( IF(A180="Insumo", VLOOKUP(B180,'SINAPI INSUMOS'!B:F,5,0), VLOOKUP(B180,'SINAPI COMP'!B:F,4,0))=0,VLOOKUP(B180,'OUTRAS BASES'!C:D,2,0),IF(A180="Insumo", VLOOKUP(B180,'SINAPI INSUMOS'!B:F,5,0),VLOOKUP(B180,'SINAPI COMP'!B:F,4,0))), VLOOKUP(B180,'OUTRAS BASES'!C:D,2,0)) -> 36.61 | J180: =I180 -> 36.61 | L180: =VLOOKUP(B180,[1]ISD!$B$11:$AE$4907,30,FALSE) -> 36.61
A181: 9.7 | B181: Código | C181: Banco | D181: Descrição | E181: Tipo | G181: Und | H181: Quant. | I181: Valor Unit | J181: Total
A182: Insumo | B182: 5128 | C182: ORSE | D182: Tampa de poço galvanizada em 6" un | E182: Serviços | G182: un | H182: 1 | I182: =IF(C182="SINAPI", IF( IF(A182="Insumo", VLOOKUP(B182,'SINAPI INSUMOS'!B:F,5,0), VLOOKUP(B182,'SINAPI COMP'!B:F,4,0))=0,VLOOKUP(B182,'OUTRAS BASES'!C:D,2,0),IF(A182="Insumo", VLOOKUP(B182,'SINAPI INSUMOS'!B:F,5,0),VLOOKUP(B182,'SINAPI COMP'!B:F,4,0))), VLOOKUP(B182,'OUTRAS BASES'!C:D,2,0)) -> 107.28 | J182: =I182 -> 107.28
A183: 10 | D183: ESTRUTURA DE FIXAÇÃO PARA MÓDULOS FOTOVOLTÁICOS
A184: 10.1 | B184: Código | C184: Banco | D184: Descrição | E184: Tipo | G184: Und | H184: Quant. | I184: Valor Unit | J184: Total
A185: Composição | B185: COMPOSIÇÃO - 18 | C185: Próprio | D185: Serviço de fixação de estruturas para os módulos fotovoltaicos e suportes de concreto, incluso materiais. | E185: SEDI - SERVIÇOS DIVERSOS | G185: m² | H185: 1 | I185: =SUM(J186:J188) -> 98.636366 | J185: =I185 -> 98.636366
A186: Composição Auxiliar | B186: 94975 | C186: SINAPI | D186: CONCRETO FCK = 15MPA, TRAÇO 1:3,4:3,5 (EM MASSA SECA DE CIMENTO/ AREIA MÉDIA/ BRITA 1) - PREPARO MANUAL. AF_05/2021 | E186: Produção de Concreto | G186: m³ | H186: 0.09 | I186: =IF(C186="SINAPI", IF( IF(A186="Insumo", VLOOKUP(B186,'SINAPI INSUMOS'!B:F,5,0), VLOOKUP(B186,'SINAPI COMP'!B:F,4,0))=0,VLOOKUP(B186,'OUTRAS BASES'!C:D,2,0),IF(A186="Insumo", VLOOKUP(B186,'SINAPI INSUMOS'!B:F,5,0),VLOOKUP(B186,'SINAPI COMP'!B:F,4,0))), VLOOKUP(B186,'OUTRAS BASES'!C:D,2,0)) -> 503.17 | J186: =I186*H186 -> 45.2853
A187: Composição Auxiliar | B187: 96522 | C187: SINAPI | D187: ESCAVAÇÃO MANUAL PARA BLOCO DE COROAMENTO OU SAPATA (SEM ESCAVAÇÃO PARA COLOCAÇÃO DE FÔRMAS). AF_01/2024 | E187: Fundações Rasas (Blocos, Sapatas, Vigas Baldrame) | G187: m³ | H187: 0.0062 | I187: =IF(C187="SINAPI", IF( IF(A187="Insumo", VLOOKUP(B187,'SINAPI INSUMOS'!B:F,5,0), VLOOKUP(B187,'SINAPI COMP'!B:F,4,0))=0,VLOOKUP(B187,'OUTRAS BASES'!C:D,2,0),IF(A187="Insumo", VLOOKUP(B187,'SINAPI INSUMOS'!B:F,5,0),VLOOKUP(B187,'SINAPI COMP'!B:F,4,0))), VLOOKUP(B187,'OUTRAS BASES'!C:D,2,0)) -> 132.43 | J187: 0.821066
A188: Insumo | B188: 4183 | C188: SBC | D188: ESTRUTURA METALICA EM TESOURAS OU TRELICAS, VÃO LIVRE DE 12M, FORNECIMENTO E MONTAGEM | E188: Material | G188: m² | H188: 1 | I188: =IF(C188="SINAPI", IF( IF(A188="Insumo", VLOOKUP(B188,'SINAPI INSUMOS'!B:F,5,0), VLOOKUP(B188,'SINAPI COMP'!B:F,4,0))=0,VLOOKUP(B188,'OUTRAS BASES'!C:D,2,0),IF(A188="Insumo", VLOOKUP(B188,'SINAPI INSUMOS'!B:F,5,0),VLOOKUP(B188,'SINAPI COMP'!B:F,4,0))), VLOOKUP(B188,'OUTRAS BASES'!C:D,2,0)) -> 52.53 | J188: 52.53
A189: 11 | D189: INSTALAÇÕES ELÉTRICAS E BÓIA ELÉTRICA
A190: 11.1 | B190: Código | C190: Banco | D190: Descrição | E190: Tipo | G190: Und | H190: Quant. | I190: Valor Unit | J190: Total
A191: Composição | B191: COMPOSIÇÃO - 19 | C191: Próprio | D191: Montagem e instalação elétrica do kit de bombeamento e sistema fotovoltaico inclusive sistema de aterramento. | E191: INEL - INSTALAÇÃO ELÉTRICA/ELETRIFICAÇÃO E ILUMINAÇÃO EXTERNA | G191: un | H191: 1 | I191: =SUM(J192:J202) -> 1024.8274 | J191: =I191 -> 1024.8274
A192: Composição Auxiliar | B192: 88247 | C192: SINAPI | D192: AUXILIAR DE ELETRICISTA COM ENCARGOS COMPLEMENTARES | E192: Livro SINAPI: Cálculos e Parâmetros | G192: H | H192: 8 | I192: =IF(C192="SINAPI", IF( IF(A192="Insumo", VLOOKUP(B192,'SINAPI INSUMOS'!B:F,5,0), VLOOKUP(B192,'SINAPI COMP'!B:F,4,0))=0,VLOOKUP(B192,'OUTRAS BASES'!C:D,2,0),IF(A192="Insumo", VLOOKUP(B192,'SINAPI INSUMOS'!B:F,5,0),VLOOKUP(B192,'SINAPI COMP'!B:F,4,0))), VLOOKUP(B192,'OUTRAS BASES'!C:D,2,0)) -> 21.5 | J192: =I192*H192 -> 172
A193: Insumo | B193: 20111 | C193: SINAPI | D193: FITA ISOLANTE ADESIVA ANTICHAMA, USO ATE 750 V, EM ROLO DE 19 MM X 20 M | E193: Material | G193: UN | H193: 1 | I193: =IF(C193="SINAPI", IF( IF(A193="Insumo", VLOOKUP(B193,'SINAPI INSUMOS'!B:F,5,0), VLOOKUP(B193,'SINAPI COMP'!B:F,4,0))=0,VLOOKUP(B193,'OUTRAS BASES'!C:D,2,0),IF(A193="Insumo", VLOOKUP(B193,'SINAPI INSUMOS'!B:F,5,0),VLOOKUP(B193,'SINAPI COMP'!B:F,4,0))), VLOOKUP(B193,'OUTRAS BASES'!C:D,2,0)) -> 8.51 | J193: =(I193*H193) -> 8.51
A194: Insumo | B194: 2674 | C194: SINAPI | D194: FORNECIMENTO DE ELETRODUTO DE PVC RIGIDO ROSCAVEL DE 3/4 ", SEM LUVA | E194: Material | G194: M | H194: 15 | I194: =IF(C194="SINAPI", IF( IF(A194="Insumo", VLOOKUP(B194,'SINAPI INSUMOS'!B:F,5,0), VLOOKUP(B194,'SINAPI COMP'!B:F,4,0))=0,VLOOKUP(B194,'OUTRAS BASES'!C:D,2,0),IF(A194="Insumo", VLOOKUP(B194,'SINAPI INSUMOS'!B:F,5,0),VLOOKUP(B194,'SINAPI COMP'!B:F,4,0))), VLOOKUP(B194,'OUTRAS BASES'!C:D,2,0)) -> 5.19 | J194: 77.85
A195: Insumo | B195: 12034 | C195: SINAPI | D195: FORNECIMENTO DE CURVA 180 GRAUS, DE PVC RIGIDO ROSCAVEL, DE 3/4", PARA ELETRODUTO | E195: Material | G195: UN | H195: 1 | I195: =IF(C195="SINAPI", IF( IF(A195="Insumo", VLOOKUP(B195,'SINAPI INSUMOS'!B:F,5,0), VLOOKUP(B195,'SINAPI COMP'!B:F,4,0))=0,VLOOKUP(B195,'OUTRAS BASES'!C:D,2,0),IF(A195="Insumo", VLOOKUP(B195,'SINAPI INSUMOS'!B:F,5,0),VLOOKUP(B195,'SINAPI COMP'!B:F,4,0))), VLOOKUP(B195,'OUTRAS BASES'!C:D,2,0)) -> 2.67 | J195: 2.67
A196: Insumo | B196: 39272 | C196: SINAPI | D196: FORNECIMENTO DE CURVA 90 GRAUS, CURTA, DE PVC RIGIDO ROSCAVEL, DE 3/4", PARA ELETRODUTO | E196: Material | G196: UN | H196: 2 | I196: =IF(C196="SINAPI", IF( IF(A196="Insumo", VLOOKUP(B196,'SINAPI INSUMOS'!B:F,5,0), VLOOKUP(B196,'SINAPI COMP'!B:F,4,0))=0,VLOOKUP(B196,'OUTRAS BASES'!C:D,2,0),IF(A196="Insumo", VLOOKUP(B196,'SINAPI INSUMOS'!B:F,5,0),VLOOKUP(B196,'SINAPI COMP'!B:F,4,0))), VLOOKUP(B196,'OUTRAS BASES'!C:D,2,0)) -> 1.46 | J196: 2.92
A197: Insumo | B197: 3379 | C197: SINAPI | D197: HASTE DE ATERRAMENTO EM ACO COM 3,00 M DE COMPRIMENTO E DN = 5/8", REVESTIDA COM BAIXA CAMADA DE COBRE, SEM CONECTOR | E197: Material | G197: UN | H197: 0.66 | I197: =IF(C197="SINAPI", IF( IF(A197="Insumo", VLOOKUP(B197,'SINAPI INSUMOS'!B:F,5,0), VLOOKUP(B197,'SINAPI COMP'!B:F,4,0))=0,VLOOKUP(B197,'OUTRAS BASES'!C:D,2,0),IF(A197="Insumo", VLOOKUP(B197,'SINAPI INSUMOS'!B:F,5,0),VLOOKUP(B197,'SINAPI COMP'!B:F,4,0))), VLOOKUP(B197,'OUTRAS BASES'!C:D,2,0)) -> 75.14 | J197: 49.5924
A198: Insumo | B198: 1891 | C198: SINAPI | D198: FORNECIMENTO DE LUVA EM PVC RIGIDO ROSCAVEL, DE 3/4", PARA ELETRODUTO | E198: Material | G198: UN | H198: 9 | I198: =IF(C198="SINAPI", IF( IF(A198="Insumo", VLOOKUP(B198,'SINAPI INSUMOS'!B:F,5,0), VLOOKUP(B198,'SINAPI COMP'!B:F,4,0))=0,VLOOKUP(B198,'OUTRAS BASES'!C:D,2,0),IF(A198="Insumo", VLOOKUP(B198,'SINAPI INSUMOS'!B:F,5,0),VLOOKUP(B198,'SINAPI COMP'!B:F,4,0))), VLOOKUP(B198,'OUTRAS BASES'!C:D,2,0)) -> 0.67 | J198: 6.03
A199: Insumo | B199: 425 | C199: SINAPI | D199: GRAMPO METALICO TIPO OLHAL PARA HASTE DE ATERRAMENTO DE 5/8'', CONDUTOR DE *10* A 50 MM2 | E199: Material | G199: UN | H199: 2 | I199: =IF(C199="SINAPI", IF( IF(A199="Insumo", VLOOKUP(B199,'SINAPI INSUMOS'!B:F,5,0), VLOOKUP(B199,'SINAPI COMP'!B:F,4,0))=0,VLOOKUP(B199,'OUTRAS BASES'!C:D,2,0),IF(A199="Insumo", VLOOKUP(B199,'SINAPI INSUMOS'!B:F,5,0),VLOOKUP(B199,'SINAPI COMP'!B:F,4,0))), VLOOKUP(B199,'OUTRAS BASES'!C:D,2,0)) -> 7.13 | J199: 14.26
A200: Insumo | B200: 34643 | C200: SINAPI | D200: FORNECIMENTO DE CAIXA DE INSPECAO PARA ATERRAMENTO E PARA RAIOS, EM POLIPROPILENO, DIAMETRO = 300 MM X ALTURA = 400 MM | E200: Material | G200: UN | H200: 2 | I200: =IF(C200="SINAPI", IF( IF(A200="Insumo", VLOOKUP(B200,'SINAPI INSUMOS'!B:F,5,0), VLOOKUP(B200,'SINAPI COMP'!B:F,4,0))=0,VLOOKUP(B200,'OUTRAS BASES'!C:D,2,0),IF(A200="Insumo", VLOOKUP(B200,'SINAPI INSUMOS'!B:F,5,0),VLOOKUP(B200,'SINAPI COMP'!B:F,4,0))), VLOOKUP(B200,'OUTRAS BASES'!C:D,2,0)) -> 34.95 | J200: 69.9
A201: Insumo | B201: 867 | C201: SINAPI | D201: CABO DE COBRE NU 50 MM2 MEIO-DURO | E201: Material | G201: M | H201: 7.5 | I201: =IF(C201="SINAPI", IF( IF(A201="Insumo", VLOOKUP(B201,'SINAPI INSUMOS'!B:F,5,0), VLOOKUP(B201,'SINAPI COMP'!B:F,4,0))=0,VLOOKUP(B201,'OUTRAS BASES'!C:D,2,0),IF(A201="Insumo", VLOOKUP(B201,'SINAPI INSUMOS'!B:F,5,0),VLOOKUP(B201,'SINAPI COMP'!B:F,4,0))), VLOOKUP(B201,'OUTRAS BASES'!C:D,2,0)) -> 62.53 | J201: 468.975
A202: Insumo | B202: 54581 | C202: SIURB INFRA | D202: DPS - DISPOSITIVO DE PROTEÇÃO CONTRA SURTOS – 45KA – 500 VOLTS - CORRENTE CONTÍNUA - CLASSE II - P/ SISTEMA FOTOVOLTÁICO | E202: Material | G202: Un | H202: 1 | I202: =IF(C202="SINAPI", IF( IF(A202="Insumo", VLOOKUP(B202,'SINAPI INSUMOS'!B:F,5,0), VLOOKUP(B202,'SINAPI COMP'!B:F,4,0))=0,VLOOKUP(B202,'OUTRAS BASES'!C:D,2,0),IF(A202="Insumo", VLOOKUP(B202,'SINAPI INSUMOS'!B:F,5,0),VLOOKUP(B202,'SINAPI COMP'!B:F,4,0))), VLOOKUP(B202,'OUTRAS BASES'!C:D,2,0)) -> 152.12 | J202: 152.12
A203: 11.2 | B203: Código | C203: Banco | D203: Descrição | E203: Tipo | G203: Und | H203: Quant. | I203: Valor Unit | J203: Total
... 60 more rows

Sheet Crono. - PB - P
A1: OBJETO: EXECUÇÃO DE SERVIÇOS DE PERFURAÇÃO E INSTALAÇÃO DE POÇOS TUBULARES EM MUNICÍPIOS LOCALIZADOS NO ESTADO DA PARAÍBA, NA ÁREA DE ATUAÇÃO DA CODEVASF
A8: CRONOGRAMA FÍSICO-FINANCEIRO POÇO PARCIALMENTE REVESTIDO
A10: ITEM | B10: ESPECIFICAÇÃO DOS SERVIÇOS | C10: VALOR TOTAL (R$) | D10: Mês 01 | E10: Mês 02 | F10: Mês 03 | G10: Mês 04 | H10: Mês 05 | I10: Mês 06 | J10: Mês 07 | K10: Mês 08 | L10: Mês 09 | M10: Mês 10 | N10: Mês 11 | O10: Mês 12
A11: 1 | B11: Serviços preliminares. | C11: ='Orçamento Sintético - PB - P'!K4 -> 477693.62 | D11: =$C11/12 -> 39807.80167 | E11: =$C11/12 -> 39807.80167 | F11: 39807.80167 | G11: 39807.80167 | H11: 39807.80167 | I11: 39807.80167 | J11: 39807.80167 | K11: 39807.80167 | L11: 39807.80167 | M11: 39807.80167 | N11: 39807.80167 | O11: 39807.80167
A12: 2 | B12: Mobilizaçâo e desmobilizaçâo equipes perfuraçâo e instalação. | C12: ='Orçamento Sintético - PB - P'!K9 -> 531990 | D12: =$C12/12 -> 44332.5 | E12: 44332.5 | F12: 44332.5 | G12: 44332.5 | H12: 44332.5 | I12: 44332.5 | J12: 44332.5 | K12: 44332.5 | L12: 44332.5 | M12: 44332.5 | N12: 44332.5 | O12: 44332.5
A13: 3 | B13: Perfuração e completação de poço tubular. | C13: ='Orçamento Sintético - PB - P'!K13 -> 7291600.12 | D13: 607633.3433 | E13: 607633.3433 | F13: 607633.3433 | G13: 607633.3433 | H13: 607633.3433 | I13: 607633.3433 | J13: 607633.3433 | K13: 607633.3433 | L13: 607633.3433 | M13: 607633.3433 | N13: 607633.3433 | O13: 607633.3433
A14: 4 | B14: Pós perfuração. | C14: ='Orçamento Sintético - PB - P'!K18 -> 2710651.2 | D14: 225887.6 | E14: 225887.6 | F14: 225887.6 | G14: 225887.6 | H14: 225887.6 | I14: 225887.6 | J14: 225887.6 | K14: 225887.6 | L14: 225887.6 | M14: 225887.6 | N14: 225887.6 | O14: 225887.6
A15: 5 | B15: Reservação. | C15: ='Orçamento Sintético - PB - P'!K24 -> 4500238.42 | D15: 375019.8683 | E15: 375019.8683 | F15: 375019.8683 | G15: 375019.8683 | H15: 375019.8683 | I15: 375019.8683 | J15: 375019.8683 | K15: 375019.8683 | L15: 375019.8683 | M15: 375019.8683 | N15: 375019.8683 | O15: 375019.8683
A16: 6 | B16: Bebedouro. | C16: ='Orçamento Sintético - PB - P'!K27 -> 454963 | D16: 37913.58333 | E16: 37913.58333 | F16: 37913.58333 | G16: 37913.58333 | H16: 37913.58333 | I16: 37913.58333 | J16: 37913.58333 | K16: 37913.58333 | L16: 37913.58333 | M16: 37913.58333 | N16: 37913.58333 | O16: 37913.58333
A17: 7 | B17: Chafariz. | C17: ='Orçamento Sintético - PB - P'!K29 -> 260580.8 | D17: 21715.06667 | E17: 21715.06667 | F17: 21715.06667 | G17: 21715.06667 | H17: 21715.06667 | I17: 21715.06667 | J17: 21715.06667 | K17: 21715.06667 | L17: 21715.06667 | M17: 21715.06667 | N17: 21715.06667 | O17: 21715.06667
A18: 8 | B18: Cavalete. | C18: ='Orçamento Sintético - PB - P'!K31 -> 663200.4 | D18: 55266.7 | E18: 55266.7 | F18: 55266.7 | G18: 55266.7 | H18: 55266.7 | I18: 55266.7 | J18: 55266.7 | K18: 55266.7 | L18: 55266.7 | M18: 55266.7 | N18: 55266.7 | O18: 55266.7
A19: 9 | B19: Instalações hidráulicas. | C19: ='Orçamento Sintético - PB - P'!K33 -> 4187477.06 | D19: 348956.4217 | E19: 348956.4217 | F19: 348956.4217 | G19: 348956.4217 | H19: 348956.4217 | I19: 348956.4217 | J19: 348956.4217 | K19: 348956.4217 | L19: 348956.4217 | M19: 348956.4217 | N19: 348956.4217 | O19: 348956.4217
A20: 10 | B20: Estrutura de fixação para módulos fotovoltáicos. | C20: ='Orçamento Sintético - PB - P'!K41 -> 284176.68 | D20: 23681.39 | E20: 23681.39 | F20: 23681.39 | G20: 23681.39 | H20: 23681.39 | I20: 23681.39 | J20: 23681.39 | K20: 23681.39 | L20: 23681.39 | M20: 23681.39 | N20: 23681.39 | O20: 23681.39
A21: 11 | B21: Instalações elétricas e bóia elétrica. | C21: ='Orçamento Sintético - PB - P'!K43 -> 3159130.5 | D21: 263260.875 | E21: 263260.875 | F21: 263260.875 | G21: 263260.875 | H21: 263260.875 | I21: 263260.875 | J21: 263260.875 | K21: 263260.875 | L21: 263260.875 | M21: 263260.875 | N21: 263260.875 | O21: 263260.875
A22: 12 | B22: Urbanização. | C22: ='Orçamento Sintético - PB - P'!K49 -> 934699.3 | D22: 77891.60833 | E22: 77891.60833 | F22: 77891.60833 | G22: 77891.60833 | H22: 77891.60833 | I22: 77891.60833 | J22: 77891.60833 | K22: 77891.60833 | L22: 77891.60833 | M22: 77891.60833 | N22: 77891.60833 | O22: 77891.60833
A23: 13 | B23: Outros serviços e insumos excepcionais. | C23: ='Orçamento Sintético - PB - P'!K52 -> 2260911.03 | D23: 188409.2525 | E23: 188409.2525 | F23: 188409.2525 | G23: 188409.2525 | H23: 188409.2525 | I23: 188409.2525 | J23: 188409.2525 | K23: 188409.2525 | L23: 188409.2525 | M23: 188409.2525 | N23: 188409.2525 | O23: 188409.2525
A24: TOTAL | C24: =SUM(C11:C23) -> 27717312.13 | D24: =SUM(D11:D23) -> 2309776.011 | E24: =SUM(E11:E23) -> 2309776.011 | F24: 2309776.011 | G24: 2309776.011 | H24: 2309776.011 | I24: 2309776.011 | J24: 2309776.011 | K24: 2309776.011 | L24: 2309776.011 | M24: 2309776.011 | N24: 2309776.011 | O24: 2309776.011
A25: PERCENTUAL | D25: 0.08333333333 | E25: 0.08333333333 | F25: 0.08333333333 | G25: 0.08333333333 | H25: 0.08333333333 | I25: 0.08333333333 | J25: 0.08333333333 | K25: 0.08333333333 | L25: 0.08333333333 | M25: 0.08333333333 | N25: 0.08333333333 | O25: 0.08333333333
A26: CUSTO ACUMULADO | D26: =D24 -> 2309776.011 | E26: =D26+E24 -> 4619552.022 | F26: =E26+F24 -> 6929328.032 | G26: 9239104.043 | H26: 11548880.05 | I26: 13858656.06 | J26: 16168432.08 | K26: 18478208.09 | L26: 20787984.1 | M26: 23097760.11 | N26: 25407536.12 | O26: 27717312.13
A27: PERCENTUAL ACUMULADO | D27: =D25 -> 0.08333333333 | E27: =D27+E25 -> 0.1666666667 | F27: 0.25 | G27: 0.3333333333 | H27: 0.4166666667 | I27: 0.5 | J27: 0.5833333333 | K27: 0.6666666667 | L27: 0.75 | M27: 0.8333333333 | N27: 0.9166666667 | O27: 1

Sheet Orçamento Sintético - PB - T
A1: OBJETO: EXECUÇÃO DE SERVIÇOS DE PERFURAÇÃO E INSTALAÇÃO DE POÇOS TUBULARES EM MUNICÍPIOS LOCALIZADOS NO ESTADO DA PARAÍBA, NA ÁREA DE ATUAÇÃO DA CODEVASF | H1: Quantidade de Poços | I1: BDI SERVIÇO | J1: BDI INSUMO | K1: Total | L1: Preço Unitário Por Poço | M1: DESCONTO
A2: PLANILHA SINTÉTICA - POÇO TOTALMENTE REVESTIDO - PARAÍBA | H2: 25 | I2: ='BDI-SERVICOS'!D22 -> 0.2378 | J2: ='BDI-FORNECIMENTO'!C28 -> 0.146920122 | K2: =SUM(K4,K9,K13,K20,K26,K29,K31,K33,K35,K43,K45,K51,K54) -> 4526444.94 | L2: =K2/H2 -> 181057.7976 | M2: 0
A3: Item | B3: Código | C3: Banco | D3: Tipo | E3: Descrição. | F3: un. | G3: Mem. calc. | H3: Quant. | I3: Valor Unit | J3: Valor Unit com BDI | K3: Total | L3: Peso (%)
A4: 1 | E4: Serviços preliminares. | K4: =SUM(K5:K8) -> 71688.47 | L4: =K4/$K$2 -> 0.01583769845
A5: 1.1 | B5: COMPOSIÇÃO - 1 | C5: Próprio | D5: Serviço | E5: Administração local da obra - poço totalmente revestido. | F5: un. | G5: 1 | H5: =ROUND(G5*$H$2,2) -> 25 | I5: =VLOOKUP(B5,'Orçamento Analítico - PB - T'!B:G,6,0)*(1-$M$2) -> 824.76226 | J5: =ROUND(I5*(1+$I$2),2) -> 1020.89 | K5: =ROUND(J5*H5,2) -> 25522.25 | L5: =K5/$K$2 -> 0.005638475744
A6: 1.2 | B6: COMPOSIÇÃO - 2 | C6: Próprio | D6: Serviço | E6: Serviço de locação geológica de campo com relatório hidro geológico e perfil construtivo e geológico esperado. relatório de viabilidade de implantação das estruturas e vistorias preliminares. | F6: un. | G6: 1 | H6: =ROUND(G6*$H$2,2) -> 25 | I6: =VLOOKUP(B6,'Orçamento Analítico - PB - T'!B:G,6,0)*(1-$M$2) -> 601.45 | J6: =ROUND(I6*(1+$I$2),2) -> 744.47 | K6: =ROUND(J6*H6,2) -> 18611.75 | L6: 0.004111780933
A7: 1.3 | B7: 103689 | C7: Sinapi | D7: Serviço | E7: Fornecimento e instalação de placa de obra com chapa galvanizada e estrutura de madeira. | F7: m² | G7: 0.72 | H7: 18 | I7: =VLOOKUP(B7,'Orçamento Analítico - PB - T'!B:G,6,0)*(1-$M$2) -> 464.57 | J7: =ROUND(I7*(1+$I$2),2) -> 575.04 | K7: 10350.72 | L7: 0.002286721729
A8: 1.4 | B8: COMPOSIÇÃO - 3 | C8: Próprio | D8: Insumo | E8: Taxas e emolumentos fiscais , administrativos para obtenção outorga e outros. | F8: un. | G8: 1 | H8: 25 | I8: =VLOOKUP(B8,'Orçamento Analítico - PB - T'!B:G,6,0)*(1-$M$2) -> 600 | J8: =ROUND(I8*(1+$J$2),2) -> 688.15 | K8: 17203.75 | L8: 0.003800720041
A9: 2 | E9: Mobilizaçâo e desmobilizaçâo equipe campo. | K9: =SUM(K10:K12) -> 57825 | L9: 0.01277492619
A10: 2.1 | B10: COMPOSIÇÃO - 4 | C10: Próprio | D10: Serviço | E10: Transporte de comboio perfuração. | F10: km | G10: 150 | H10: =ROUND(G10*$H$2,2) -> 3750 | I10: =VLOOKUP(B10,'Orçamento Analítico - PB - T'!B:G,6,0)*(1-$M$2) -> 4.4335592 | J10: =ROUND(I10*(1+$I$2),2) -> 5.49 | K10: =ROUND(J10*H10,2) -> 20587.5 | L10: 0.004548271386
A11: 2.2 | B11: COMPOSIÇÃO - 5 | C11: Próprio | D11: Serviço | E11: Transporte de comboio instalação. | F11: km | G11: 150 | H11: 3750 | I11: =VLOOKUP(B11,'Orçamento Analítico - PB - T'!B:G,6,0)*(1-$M$2) -> 5.5892634 | J11: 6.92 | K11: 25950 | L11: 0.005732975954
A12: 2.3 | B12: COMPOSIÇÃO - 6 | C12: Próprio | D12: Serviço | E12: Transporte de equipe teste de vazão. | F12: km | G12: 150 | H12: 3750 | I12: =VLOOKUP(B12,'Orçamento Analítico - PB - T'!B:G,6,0)*(1-$M$2) -> 2.430323 | J12: 3.01 | K12: 11287.5 | L12: 0.002493678847
A13: 3 | E13: Perfuração e completação de poço tubular. | K13: =SUM(K14:K19) -> 2275326.69 | L13: 0.5026741118
A14: 3.1 | B14: COMPOSIÇÃO - 7 | C14: Próprio | D14: Serviço | E14: Perfuração diâmetro de ø 12 1/2" em rocha - incluso mão de obra para instalação do revestimento e completação anelar. | F14: m | G14: 150 | H14: =ROUND(G14*$H$2,2) -> 3750 | I14: =VLOOKUP(B14,'Orçamento Analítico - PB - T'!B:G,6,0)*(1-$M$2) -> 255.86 | J14: =ROUND(I14*(1+$I$2),2) -> 316.7 | K14: =ROUND(J14*H14,2) -> 1187625 | L14: 0.262374781
A15: 3.2 | B15: 5073 | C15: Orse | D15: Insumo | E15: Fornecimento de pré-filtro comum m3. | F15: m³ | G15: 6.96 | H15: 174 | I15: =VLOOKUP(B15,'Orçamento Analítico - PB - T'!B:G,6,0)*(1-$M$2) -> 1619.38 | J15: =ROUND(I15*(1+$J$2),2) -> 1857.3 | K15: 323170.2 | L15: 0.07139603028
A16: 3.3 | B16: 5091 | C16: Orse | D16: Insumo | E16: Revestimento filtro pvc geomecânico reforçado dn 150mm. | F16: m | G16: 16 | H16: 400 | I16: =VLOOKUP(B16,'Orçamento Analítico - PB - T'!B:G,6,0)*(1-$M$2) -> 221.38 | J16: 253.91 | K16: 101564 | L16: 0.02243791791
A17: 3.4 | B17: 5024 | C17: Orse | D17: Insumo | E17: Centralizador em 6". | F17: un. | G17: 10 | H17: 250 | I17: =VLOOKUP(B17,'Orçamento Analítico - PB - T'!B:G,6,0)*(1-$M$2) -> 267.02 | J17: 306.25 | K17: 76562.5 | L17: 0.0169144883
A18: 3.5 | B18: 9850 | C18: Sinapi | D18: Insumo | E18: Tubo pvc de revestimento geomecanico nervurado reforcado, dn = 150 mm, comprimento = 2 m. | F18: m | G18: 134 | H18: 3350 | I18: =VLOOKUP(B18,'Orçamento Analítico - PB - T'!B:G,6,0)*(1-$M$2) -> 147.75 | J18: 169.46 | K18: 567691 | L18: 0.1254165261
A19: 3.6 | B19: COMPOSIÇÃO - 8 | C19: Próprio | D19: Serviço | E19: Serviço de lançamento cimentação anelar, incluso materiais. | F19: m³ | G19: 1.16 | H19: 29 | I19: =VLOOKUP(B19,'Orçamento Analítico - PB - T'!B:G,6,0)*(1-$M$2) -> 521.34 | J19: =ROUND(I19*(1+$I$2),2) -> 645.31 | K19: 18713.99 | L19: 0.004134368196
A20: 4 | E20: Pós perfuração. | K20: =SUM(K21:K25) -> 303583.5 | L20: 0.06706885956
A21: 4.1 | B21: 6305 | C21: Orse | D21: Serviço | E21: Desenvolvimento com compressor 250psi / 750cfm. | F21: h | G21: 2 | H21: =ROUND(G21*$H$2,2) -> 50 | I21: =VLOOKUP(B21,'Orçamento Analítico - PB - T'!B:G,6,0)*(1-$M$2) -> 411.16 | J21: =ROUND(I21*(1+$I$2),2) -> 508.93 | K21: =ROUND(J21*H21,2) -> 25446.5 | L21: 0.005621740756
A22: 4.2 | B22: COMPOSIÇÃO - 9 | C22: Próprio | D22: Serviço | E22: Inspeção ótica em poço tubular câmera com rotação de 360º, visada lateral, com fonte própria de luz, entregue vídeo em cores e marcação de profundidades. | F22: m | G22: 150 | H22: 3750 | I22: =VLOOKUP(B22,'Orçamento Analítico - PB - T'!B:G,6,0)*(1-$M$2) -> 9.64046 | J22: 11.93 | K22: 44737.5 | L22: 0.009883584268
A23: 4.3 | B23: COMPOSIÇÃO - 10 | C23: Próprio | D23: Serviço | E23: Serviço de coleta e análise físico-química e bacteriológica. | F23: un. | G23: 1 | H23: 25 | I23: =VLOOKUP(B23,'Orçamento Analítico - PB - T'!B:G,6,0)*(1-$M$2) -> 621.19 | J23: 768.91 | K23: 19222.75 | L23: 0.004246765454
A24: 4.4 | B24: COMPOSIÇÃO - 11 | C24: Próprio | D24: Serviço | E24: Serviço de instalação de laje sanitária com dimensões (1,5x1,5x0,3) , incluso material. | F24: un. | G24: 1 | H24: 25 | I24: =VLOOKUP(B24,'Orçamento Analítico - PB - T'!B:G,6,0)*(1-$M$2) -> 602.6445 | J24: 745.95 | K24: 18648.75 | L24: 0.004119955119
A25: 4.5 | B25: 24.80.22 | C25: Embasa | D25: Serviço | E25: (REVISADA) DESENVOLVIMENTO OU TESTE COM BOMBA SUBMERSA - UEB1 NO SEDIMENTO COM VAZAO < 60M3 (Ensaio de bombeamento poço tubular incluso materiais e grupo gerador) | F25: h | G25: 24 | H25: 600 | I25: =VLOOKUP(B25,'Orçamento Analítico - PB - T'!B:G,6,0)*(1-$M$2) -> 263.27 | J25: 325.88 | K25: 195528 | L25: 0.04319681397
A26: 5 | E26: Reservação. | K26: =SUM(K27:K28) -> 489156.35 | L26: 0.1080663427
A27: 5.1 | B27: COMPOSIÇÃO - 12 | C27: Próprio | D27: Serviço | E27: Fornecimento e instalação de reservatório e base elevada 10 m³. | F27: un. | G27: 0.8 | H27: =ROUND(G27*$H$2,2) -> 20 | I27: =VLOOKUP(B27,'Orçamento Analítico - PB - T'!B:G,6,0)*(1-$M$2) -> 17856.27263 | J27: =ROUND(I27*(1+$I$2),2) -> 22102.49 | K27: =ROUND(J27*H27,2) -> 442049.8 | L27: 0.09765937858
A28: 5.2 | B28: COMPOSIÇÃO - 13 | C28: Próprio | D28: Serviço | E28: Fornecimento e execução de reservatório apoiado de 5 m³. | F28: un. | G28: 0.2 | H28: 5 | I28: =VLOOKUP(B28,'Orçamento Analítico - PB - T'!B:G,6,0)*(1-$M$2) -> 7611.333375 | J28: 9421.31 | K28: 47106.55 | L28: 0.0104069641
A29: 6 | E29: Bebedouro. | K29: =K30 -> 49452.5 | L29: 0.01092524059
A30: 6.1 | B30: COMPOSIÇÃO - 14 | C30: Próprio | D30: Serviço | E30: Serviço de execução do bebedouro em concreto armado, incluso materiais. | F30: un. | G30: 1 | H30: =ROUND(G30*$H$2,2) -> 25 | I30: =VLOOKUP(B30,'Orçamento Analítico - PB - T'!B:G,6,0)*(1-$M$2) -> 1598.07602 | J30: =ROUND(I30*(1+$I$2),2) -> 1978.1 | K30: =ROUND(J30*H30,2) -> 49452.5 | L30: 0.01092524059
A31: 7 | E31: Chafariz. | K31: =K32 -> 28324 | L31: 0.006257449362
A32: 7.1 | B32: COMPOSIÇÃO - 15 | C32: Próprio | D32: Serviço | E32: Fornecimento de material e instalação do chafariz. | F32: un. | G32: 1 | H32: =ROUND(G32*$H$2,2) -> 25 | I32: =VLOOKUP(B32,'Orçamento Analítico - PB - T'!B:G,6,0)*(1-$M$2) -> 915.3001162 | J32: =ROUND(I32*(1+$I$2),2) -> 1132.96 | K32: =ROUND(J32*H32,2) -> 28324 | L32: 0.006257449362
A33: 8 | E33: Cavalete. | K33: =K34 -> 72087 | L33: 0.01592574326
A34: 8.1 | B34: COMPOSIÇÃO - 16 | C34: Próprio | D34: Serviço | E34: Fornecimento de conexões e instalação do cavalete com hidrômetro e clorador de pastilhas. | F34: un. | G34: 1 | H34: =ROUND(G34*$H$2,2) -> 25 | I34: =VLOOKUP(B34,'Orçamento Analítico - PB - T'!B:G,6,0)*(1-$M$2) -> 2329.52 | J34: =ROUND(I34*(1+$I$2),2) -> 2883.48 | K34: =ROUND(J34*H34,2) -> 72087 | L34: 0.01592574326
A35: 9 | E35: Instalações hidráulicas poço e adutora. | K35: =SUM(K36:K42) -> 397785.55 | L35: 0.08788034656
A36: 9.1 | B36: COMPOSIÇÃO - 17 | C36: Próprio | D36: Serviço | E36: Instalação da rede adutora poço-reservatório-bebedouro em pn80 e dn50mm. | F36: m | G36: 400 | H36: =ROUND(G36*$H$2,2) -> 10000 | I36: =VLOOKUP(B36,'Orçamento Analítico - PB - T'!B:G,6,0)*(1-$M$2) -> 5.6725 | J36: =ROUND(I36*(1+$I$2),2) -> 7.02 | K36: =ROUND(J36*H36,2) -> 70200 | L36: 0.01550885981
A37: 9.2 | B37: 9875 | C37: SINAPI | D37: Insumo | E37: TUBO PVC, SOLDAVEL, DE 50 MM, AGUA FRIA (NBR-5648) | F37: m | G37: 400 | H37: =G37*H2 -> 10000 | I37: =VLOOKUP(B37,'Orçamento Analítico - PB - T'!B:G,6,0)*(1-$M$2) -> 15.31 | J37: =ROUND(I37*(1+$J$2),2) -> 17.56 | K37: 175600 | L37: 0.03879424191
A38: 9.2 | B38: COMPOSIÇÃO - 18 | C38: Próprio | D38: Serviço | E38: Montagem hidráulica do equipamento de bombeamento. | F38: un. | G38: 1 | H38: 25 | I38: =VLOOKUP(B38,'Orçamento Analítico - PB - T'!B:G,6,0)*(1-$M$2) -> 134.1 | J38: 165.99 | K38: 4149.75 | L38: 0.0009167790739
A39: 9.3 | B39: 38200 | C39: Sinapi | D39: Insumo | E39: Corda de poliamida 12 mm tipo bombeiro, para trabalho em altura. | F39: 100m | G39: 0.93 | H39: 23.25 | I39: =VLOOKUP(B39,'Orçamento Analítico - PB - T'!B:G,6,0)*(1-$M$2) -> 493.84 | J39: =ROUND(I39*(1+$J$2),2) -> 566.4 | K39: 13168.8 | L39: 0.002909303035
A40: 9.4 | B40: 9860 | C40: Sinapi | D40: Insumo | E40: Tubo pvc, roscavel, 2", para agua fria predial. | F40: m | G40: 90 | H40: 2250 | I40: =VLOOKUP(B40,'Orçamento Analítico - PB - T'!B:G,6,0)*(1-$M$2) -> 44.48 | J40: 51.02 | K40: 114795 | L40: 0.02536096242
A41: 9.5 | B41: 3912 | C41: Sinapi | D41: Insumo | E41: Luva de ferro galvanizado, com rosca bsp, de 2". | F41: un. | G41: 16 | H41: 400 | I41: =VLOOKUP(B41,'Orçamento Analítico - PB - T'!B:G,6,0)*(1-$M$2) -> 36.61 | J41: 41.99 | K41: 16796 | L41: 0.003710638309
A42: 9.6 | B42: 5128 | C42: Orse | D42: Insumo | E42: Tampa de poço galvanizada em 6" un. | F42: un. | G42: 1 | H42: 25 | I42: =VLOOKUP(B42,'Orçamento Analítico - PB - T'!B:G,6,0)*(1-$M$2) -> 107.28 | J42: 123.04 | K42: 3076 | L42: 0.0006795620052
A43: 10 | E43: Estrutura de fixação para módulos fotovoltáicos. | K43: =K44 -> 27012.81 | L43: 0.005967776115
A44: 10.1 | B44: COMPOSIÇÃO - 19 | C44: Próprio | D44: Serviço | E44: Serviço de fixação de estruturas para os módulos fotovoltaicos e suportes de concreto, incluso materiais. | F44: m² | G44: 15.18 | H44: =ROUND(G44*$H$2,2) -> 379.5 | I44: =VLOOKUP(B44,'Orçamento Analítico - PB - T'!B:G,6,0)*(1-$M$2) -> 57.5074 | J44: =ROUND(I44*(1+$I$2),2) -> 71.18 | K44: =ROUND(J44*H44,2) -> 27012.81 | L44: 0.005967776115
A45: 11 | E45: Instalações elétricas. | K45: =SUM(K46:K50) -> 426408.75 | L45: 0.09420389636
A46: 11.1 | B46: COMPOSIÇÃO - 20 | C46: Próprio | D46: Serviço | E46: Montagem e instalação elétrica do kit de bombeamento e sistema fotovoltaico inclusive sistema de aterramento. | F46: un. | G46: 1 | H46: =ROUND(G46*$H$2,2) -> 25 | I46: =VLOOKUP(B46,'Orçamento Analítico - PB - T'!B:G,6,0)*(1-$M$2) -> 1024.8274 | J46: =ROUND(I46*(1+$I$2),2) -> 1268.53 | K46: =ROUND(J46*H46,2) -> 31713.25 | L46: 0.007006215788
A47: 11.2 | B47: 34622 | C47: Sinapi | D47: Insumo | E47: Fornecimento de cabo flexivel pvc 750 v, 3 condutores de 6,0 mm2. | F47: m | G47: 105 | H47: 2625 | I47: =VLOOKUP(B47,'Orçamento Analítico - PB - T'!B:G,6,0)*(1-$M$2) -> 24.58 | J47: =ROUND(I47*(1+$J$2),2) -> 28.19 | K47: 73998.75 | L47: 0.01634809458
A48: 11.3 | B48: COMPOSIÇÃO - 21 | C48: Próprio | D48: Serviço | E48: Fornecimento e instalação de automático de bóia superior e inferior. | F48: un. | G48: 1 | H48: 25 | I48: =VLOOKUP(B48,'Orçamento Analítico - PB - T'!B:G,6,0)*(1-$M$2) -> 49.031 | J48: =ROUND(I48*(1+$I$2),2) -> 60.69 | K48: 1517.25 | L48: 0.0003351968311
A49: 11.4 | B49: 39257 | C49: Sinapi | D49: Insumo | E49: Cabo multipolar de cobre, flexivel, classe 4 ou 5, isolacao em hepr, cobertura em pvc-st2, antichama bwf-b, 0,6/1 kv, 3 condutores de 1,5 mm2. | F49: m | G49: 200 | H49: 5000 | I49: =VLOOKUP(B49,'Orçamento Analítico - PB - T'!B:G,6,0)*(1-$M$2) -> 6.68 | J49: =ROUND(I49*(1+$J$2),2) -> 7.66 | K49: 38300 | L49: 0.008461386476
A50: 11.5 | B50: Cotação-002 | C50: Próprio | D50: Insumo | E50: Fornecimento de kit de bombeamento fotovoltaico, incluindo uma bomba cc de 2200w com controladora de carga externa, caixa de proteção metálica, módulos fotovoltaicos compatíveis com a geração de 3300wp além de componentes elétricos necessários para interligação dos painéis, como cabos, conectores mc4 e presilhas de fixação. | F50: un. | G50: 1 | H50: 25 | I50: =VLOOKUP(B50,'Orçamento Analítico - PB - T'!B:G,6,0)*(1-$M$2) -> 9795.96 | J50: =ROUND(I50*(1+$J$2),2) -> 11235.18 | K50: 280879.5 | L50: 0.06205300268
A51: 12 | E51: Urbanização. | K51: =SUM(K52:K53) -> 101597.75 | L51: 0.0224453741
A52: 12.1 | B52: COMPOSIÇÃO - 22 | C52: Próprio | D52: Serviço | E52: Cerca com mourões de concreto de 15x15cm, espaçados de 3m e cravados a 0,5m, escoras de 10x10cm nos cantos, e 9 fios de arame de aço ovalado 15x17. | F52: m | G52: 28 | H52: =ROUND(G52*$H$2,2) -> 700 | I52: =VLOOKUP(B52,'Orçamento Analítico - PB - T'!B:G,6,0)*(1-$M$2) -> 76.697166 | J52: =ROUND(I52*(1+$I$2),2) -> 94.94 | K52: =ROUND(J52*H52,2) -> 66458 | L52: 0.01468216247
A53: 12.2 | B53: COMPOSIÇÃO - 23 | C53: Próprio | D53: Serviço | E53: Serviço de instalação de portão de ferro com suporte e batedor conforme projeto, incluso material. | F53: m² | G53: 1.5 | H53: 37.5 | I53: =VLOOKUP(B53,'Orçamento Analítico - PB - T'!B:G,6,0)*(1-$M$2) -> 757.03789 | J53: 937.06 | K53: 35139.75 | L53: 0.00776321163
A54: 13 | E54: Outros serviços e insumos excepcionais. | K54: =SUM(K55:K61) -> 226196.57 | L54: 0.04997223494
A55: 13.1 | B55: COMPOSIÇÃO - 24 | C55: Próprio | D55: Serviço | E55: Execução de tamponamento conforme especificação. | F55: m³ | G55: 0.08 | H55: =ROUND(G55*$H$2,2) -> 2 | I55: =VLOOKUP(B55,'Orçamento Analítico - PB - T'!B:G,6,0)*(1-$M$2) -> 597.22 | J55: =ROUND(I55*(1+$I$2),2) -> 739.24 | K55: =ROUND(J55*H55,2) -> 1478.48 | L55: 0.0003266316104
A56: 13.2 | B56: 13747 | C56: Orse | D56: Insumo | E56: Revestimento tubo liso aço sch-40 em 12". | F56: m | G56: 6 | H56: 150 | I56: =VLOOKUP(B56,'Orçamento Analítico - PB - T'!B:G,6,0)*(1-$M$2) -> 921.04 | J56: =ROUND(I56*(1+$J$2),2) -> 1056.36 | K56: 158454 | L56: 0.03500628023
A57: 13.3 | B57: M3929 | C57: Sicro3 | D57: Insumo | E57: Tubo em aço-carbono - e = 3,00 mm e d = 150 mm (6"). | F57: m | G57: 1.44 | H57: 36 | I57: =VLOOKUP(B57,'Orçamento Analítico - PB - T'!B:G,6,0)*(1-$M$2) -> 148.57 | J57: 170.4 | K57: 6134.4 | L57: 0.001355235749
A58: 13.4 | B58: M039706073 | C58: Embasa | D58: Insumo | E58: Filtro nold em aço galvanizado dn 6". | F58: m | G58: 0.06 | H58: 1.5 | I58: =VLOOKUP(B58,'Orçamento Analítico - PB - T'!B:G,6,0)*(1-$M$2) -> 835.86 | J58: 958.66 | K58: 1437.99 | L58: 0.0003176864005
A59: 13.5 | B59: COMPOSIÇÃO - 25 | C59: Próprio | D59: Serviço | E59: Limpeza manual , remoção de cerca, capina e instalação dos equipamentos (área do poço, painéis solares, bebedouro e reservatório). | F59: m² | G59: 70 | H59: 1750 | I59: =VLOOKUP(B59,'Orçamento Analítico - PB - T'!B:G,6,0)*(1-$M$2) -> 1.6216 | J59: =ROUND(I59*(1+$I$2),2) -> 2.01 | K59: 3517.5 | L59: 0.0007770999198
A60: 13.6 | B60: COMPOSIÇÃO - 26 | C60: Próprio | D60: Serviço | E60: Fornecimento e instalação do filtro para revestimento interno ø 4 1/2". | F60: m | G60: 0.6 | H60: 15 | I60: =VLOOKUP(B60,'Orçamento Analítico - PB - T'!B:G,6,0)*(1-$M$2) -> 107.4705 | J60: =ROUND(I60*(1+$I$2),2) -> 133.03 | K60: 1995.45 | L60: 0.0004408426539
A61: 13.7 | B61: COMPOSIÇÃO - 27 | C61: Próprio | D61: Serviço | E61: Fornecimento e instalação do revestimento interno ø 4 1/2". | F61: m | G61: 17.4 | H61: 435 | I61: =VLOOKUP(B61,'Orçamento Analítico - PB - T'!B:G,6,0)*(1-$M$2) -> 98.7605 | J61: 122.25 | K61: 53178.75 | L61: 0.01174845838

Sheet Orçamento Analítico - PB - T
A1: OBJETO: EXECUÇÃO DE SERVIÇOS DE PERFURAÇÃO E INSTALAÇÃO DE POÇOS TUBULARES EM MUNICÍPIOS LOCALIZADOS NO ESTADO DA PARAÍBA, NA ÁREA DE ATUAÇÃO DA CODEVASF | H1: SBC 09/2025 SINAPI 08/2025 SICRO 04/2025 ORSE 06/2025 CPOS/CDHU 06/2025 EMBASA 06/2025 SEINFRA 028 SIURB 01/2025
D4: PLANILHA ANALÍTICA - POÇO TOTALMENTE REVESTIDO - PARAÍBA
A5: 1 | D5: Serviços preliminares.
A6: 1 | D6: SERVIÇOS PRELIMINARES
A7: 1.1 | B7: Código | C7: Banco | D7: Descrição | E7: Und | F7: Quant. | G7: Valor Unit | H7: Total
A8: Composição | B8: COMPOSIÇÃO - 1 | C8: Próprio | D8: Administração Local da Obra - Poço Totalmente Revestido | E8: un | F8: 1 | G8: =SUM(H9:H10) -> 824.76226 | H8: =G8 -> 824.76226
A9: Composição Auxiliar | B9: 12710 | C9: SBC | D9: DESPESAS GERAIS DE MANUTENCAO CANTEIRO DE OBRAS | E9: MES | F9: 0.133 | G9: =IF(C9="SINAPI", IF( IF(A9="Insumo", VLOOKUP(B9,'SINAPI INSUMOS'!B:F,5,0), VLOOKUP(B9,'SINAPI COMP'!B:F,4,0))=0,VLOOKUP(B9,'OUTRAS BASES'!C:D,2,0),IF(A9="Insumo", VLOOKUP(B9,'SINAPI INSUMOS'!B:F,5,0),VLOOKUP(B9,'SINAPI COMP'!B:F,4,0))), VLOOKUP(B9,'OUTRAS BASES'!C:D,2,0)) -> 910.61 | H9: =(G9*F9) -> 121.11113
A10: Composição Auxiliar | B10: 100321 | C10: SINAPI | D10: TÉCNICO EM SEGURANÇA DO TRABALHO COM ENCARGOS COMPLEMENTARES | E10: MES | F10: 0.133 | G10: =IF(C10="SINAPI", IF( IF(A10="Insumo", VLOOKUP(B10,'SINAPI INSUMOS'!B:F,5,0), VLOOKUP(B10,'SINAPI COMP'!B:F,4,0))=0,VLOOKUP(B10,'OUTRAS BASES'!C:D,2,0),IF(A10="Insumo", VLOOKUP(B10,'SINAPI INSUMOS'!B:F,5,0),VLOOKUP(B10,'SINAPI COMP'!B:F,4,0))), VLOOKUP(B10,'OUTRAS BASES'!C:D,2,0)) -> 5290.61 | H10: =(G10*F10) -> 703.65113
A11: 1.2 | B11: Código | C11: Banco | D11: Descrição | E11: Und | F11: Quant. | G11: Valor Unit | H11: Total
A12: Composição | B12: COMPOSIÇÃO - 2 | C12: Próprio | D12: Serviço de locação Geológica de campo com relatório hidro geológico e perfil construtivo e geológico esperado. Relatório de Viabilidade de implantação das estruturas e vistorias preliminares | E12: un | F12: 1 | G12: =SUM(H13:H15) -> 601.45 | H12: =G12 -> 601.45
A13: Composição Auxiliar | B13: 30.01.45 | C13: EMBASA | D13: GEOLOGO SENIOR | E13: hora | F13: 5 | G13: =IF(C13="SINAPI", IF( IF(A13="Insumo", VLOOKUP(B13,'SINAPI INSUMOS'!B:F,5,0), VLOOKUP(B13,'SINAPI COMP'!B:F,4,0))=0,VLOOKUP(B13,'OUTRAS BASES'!C:D,2,0),IF(A13="Insumo", VLOOKUP(B13,'SINAPI INSUMOS'!B:F,5,0),VLOOKUP(B13,'SINAPI COMP'!B:F,4,0))), VLOOKUP(B13,'OUTRAS BASES'!C:D,2,0)) -> 99.88 | H13: =(G13*F13) -> 499.4
A14: Insumo | B14: 5896 | C14: ORSE | D14: Veículo tipo sedan ou pick-up capacidade 0,6 ton h | E14: h | F14: 5 | G14: =IF(C14="SINAPI", IF( IF(A14="Insumo", VLOOKUP(B14,'SINAPI INSUMOS'!B:F,5,0), VLOOKUP(B14,'SINAPI COMP'!B:F,4,0))=0,VLOOKUP(B14,'OUTRAS BASES'!C:D,2,0),IF(A14="Insumo", VLOOKUP(B14,'SINAPI INSUMOS'!B:F,5,0),VLOOKUP(B14,'SINAPI COMP'!B:F,4,0))), VLOOKUP(B14,'OUTRAS BASES'!C:D,2,0)) -> 8.33 | H14: =F14*G14 -> 41.65
A15: Insumo | B15: 4222 | C15: SINAPI | D15: GASOLINA COMUM | E15: L | F15: 10 | G15: =IF(C15="SINAPI", IF( IF(A15="Insumo", VLOOKUP(B15,'SINAPI INSUMOS'!B:F,5,0), VLOOKUP(B15,'SINAPI COMP'!B:F,4,0))=0,VLOOKUP(B15,'OUTRAS BASES'!C:D,2,0),IF(A15="Insumo", VLOOKUP(B15,'SINAPI INSUMOS'!B:F,5,0),VLOOKUP(B15,'SINAPI COMP'!B:F,4,0))), VLOOKUP(B15,'OUTRAS BASES'!C:D,2,0)) -> 6.04 | H15: =F15*G15 -> 60.4
A16: 1.3 | B16: Código | C16: Banco | D16: Descrição | E16: Und | F16: Quant. | G16: Valor Unit | H16: Total
A17: Composição | B17: 103689 | C17: SINAPI | D17: FORNECIMENTO E INSTALAÇÃO DE PLACA DE OBRA COM CHAPA GALVANIZADA E ESTRUTURA DE MADEIRA. AF_03/2022_PS | E17: m² | F17: 1 | G17: =IF(C17="SINAPI", IF( IF(A17="Insumo", VLOOKUP(B17,'SINAPI INSUMOS'!B:F,5,0), VLOOKUP(B17,'SINAPI COMP'!B:F,4,0))=0,VLOOKUP(B17,'OUTRAS BASES'!C:D,2,0),IF(A17="Insumo", VLOOKUP(B17,'SINAPI INSUMOS'!B:F,5,0),VLOOKUP(B17,'SINAPI COMP'!B:F,4,0))), VLOOKUP(B17,'OUTRAS BASES'!C:D,2,0)) -> 464.57 | H17: =G17 -> 464.57
A18: Composição Auxiliar | B18: 102234 | C18: SINAPI | D18: PINTURA IMUNIZANTE PARA MADEIRA, 2 DEMÃOS. AF_01/2021 | E18: m² | F18: 0.5 | G18: =IF(C18="SINAPI", IF( IF(A18="Insumo", VLOOKUP(B18,'SINAPI INSUMOS'!B:F,5,0), VLOOKUP(B18,'SINAPI COMP'!B:F,4,0))=0,VLOOKUP(B18,'OUTRAS BASES'!C:D,2,0),IF(A18="Insumo", VLOOKUP(B18,'SINAPI INSUMOS'!B:F,5,0),VLOOKUP(B18,'SINAPI COMP'!B:F,4,0))), VLOOKUP(B18,'OUTRAS BASES'!C:D,2,0)) -> 24.79 | H18: =(G18*F18) -> 12.395
A19: Composição Auxiliar | B19: 88262 | C19: SINAPI | D19: CARPINTEIRO DE FORMAS COM ENCARGOS COMPLEMENTARES | E19: H | F19: 0.3729 | G19: =IF(C19="SINAPI", IF( IF(A19="Insumo", VLOOKUP(B19,'SINAPI INSUMOS'!B:F,5,0), VLOOKUP(B19,'SINAPI COMP'!B:F,4,0))=0,VLOOKUP(B19,'OUTRAS BASES'!C:D,2,0),IF(A19="Insumo", VLOOKUP(B19,'SINAPI INSUMOS'!B:F,5,0),VLOOKUP(B19,'SINAPI COMP'!B:F,4,0))), VLOOKUP(B19,'OUTRAS BASES'!C:D,2,0)) -> 24.58 | H19: 9.165882
A20: Composição Auxiliar | B20: 88316 | C20: SINAPI | D20: SERVENTE COM ENCARGOS COMPLEMENTARES | E20: H | F20: 1.1186 | G20: =IF(C20="SINAPI", IF( IF(A20="Insumo", VLOOKUP(B20,'SINAPI INSUMOS'!B:F,5,0), VLOOKUP(B20,'SINAPI COMP'!B:F,4,0))=0,VLOOKUP(B20,'OUTRAS BASES'!C:D,2,0),IF(A20="Insumo", VLOOKUP(B20,'SINAPI INSUMOS'!B:F,5,0),VLOOKUP(B20,'SINAPI COMP'!B:F,4,0))), VLOOKUP(B20,'OUTRAS BASES'!C:D,2,0)) -> 20.27 | H20: 22.674022
A21: Insumo | B21: 4509 | C21: SINAPI | D21: SARRAFO *2,5 X 10* CM EM PINUS, MISTA OU EQUIVALENTE DA REGIAO - BRUTA | E21: M | F21: 3.2083 | G21: =IF(C21="SINAPI", IF( IF(A21="Insumo", VLOOKUP(B21,'SINAPI INSUMOS'!B:F,5,0), VLOOKUP(B21,'SINAPI COMP'!B:F,4,0))=0,VLOOKUP(B21,'OUTRAS BASES'!C:D,2,0),IF(A21="Insumo", VLOOKUP(B21,'SINAPI INSUMOS'!B:F,5,0),VLOOKUP(B21,'SINAPI COMP'!B:F,4,0))), VLOOKUP(B21,'OUTRAS BASES'!C:D,2,0)) -> 6.1 | H21: =F21*G21 -> 19.57063
A22: Insumo | B22: 4813 | C22: SINAPI | D22: PLACA DE OBRA (PARA CONSTRUCAO CIVIL) EM CHAPA GALVANIZADA *N. 22*, ADESIVADA, DE *2,4 X 1,2* M (SEM POSTES PARA FIXACAO) | E22: m² | F22: 1 | G22: =IF(C22="SINAPI", IF( IF(A22="Insumo", VLOOKUP(B22,'SINAPI INSUMOS'!B:F,5,0), VLOOKUP(B22,'SINAPI COMP'!B:F,4,0))=0,VLOOKUP(B22,'OUTRAS BASES'!C:D,2,0),IF(A22="Insumo", VLOOKUP(B22,'SINAPI INSUMOS'!B:F,5,0),VLOOKUP(B22,'SINAPI COMP'!B:F,4,0))), VLOOKUP(B22,'OUTRAS BASES'!C:D,2,0)) -> 400 | H22: 400
A23: Insumo | B23: 5065 | C23: SINAPI | D23: PREGO DE ACO POLIDO COM CABECA 10 X 10 (7/8 X 17) | E23: KG | F23: 0.0113 | G23: =IF(C23="SINAPI", IF( IF(A23="Insumo", VLOOKUP(B23,'SINAPI INSUMOS'!B:F,5,0), VLOOKUP(B23,'SINAPI COMP'!B:F,4,0))=0,VLOOKUP(B23,'OUTRAS BASES'!C:D,2,0),IF(A23="Insumo", VLOOKUP(B23,'SINAPI INSUMOS'!B:F,5,0),VLOOKUP(B23,'SINAPI COMP'!B:F,4,0))), VLOOKUP(B23,'OUTRAS BASES'!C:D,2,0)) -> 42.57 | H23: 0.481041
A24: Insumo | B24: 5069 | C24: SINAPI | D24: PREGO DE ACO POLIDO COM CABECA 17 X 27 (2 1/2 X 11) | E24: KG | F24: 0.0132 | G24: =IF(C24="SINAPI", IF( IF(A24="Insumo", VLOOKUP(B24,'SINAPI INSUMOS'!B:F,5,0), VLOOKUP(B24,'SINAPI COMP'!B:F,4,0))=0,VLOOKUP(B24,'OUTRAS BASES'!C:D,2,0),IF(A24="Insumo", VLOOKUP(B24,'SINAPI INSUMOS'!B:F,5,0),VLOOKUP(B24,'SINAPI COMP'!B:F,4,0))), VLOOKUP(B24,'OUTRAS BASES'!C:D,2,0)) -> 22.81 | H24: 0.301092
A25: 1.4 | B25: Código | C25: Banco | D25: Descrição | E25: Und | F25: Quant. | G25: Valor Unit | H25: Total
A26: Composição | B26: COMPOSIÇÃO - 3 | C26: Próprio | D26: Taxas e emolumentos fiscais , administrativos para obtenção outorga e outros | E26: un | F26: 1 | G26: =SUM(H27:H27) -> 600 | H26: =G26 -> 600
A27: Insumo | B27: A.09.000.020507 | C27: CPOS/CDHU | D27: Outorga de direito de uso para poço profundo conforme Portaria DAEE nº 1.630 de 30/05/2017 e suas complementares 1.631 a 1.635 e Instrução Técnica DPO nº 10 de 30/05/2017 do DAEE | E27: UN | F27: 1 | G27: =IF(C27="SINAPI", IF( IF(A27="Insumo", VLOOKUP(B27,'SINAPI INSUMOS'!B:F,5,0), VLOOKUP(B27,'SINAPI COMP'!B:F,4,0))=0,VLOOKUP(B27,'OUTRAS BASES'!C:D,2,0),IF(A27="Insumo", VLOOKUP(B27,'SINAPI INSUMOS'!B:F,5,0),VLOOKUP(B27,'SINAPI COMP'!B:F,4,0))), VLOOKUP(B27,'OUTRAS BASES'!C:D,2,0)) -> 600 | H27: =F27*G27 -> 600
A28: 2 | D28: MOBILIZAÇÂO E DESMOBILIZAÇÂO EQUIPE CAMPO | H28: 2397
A29: 2.1 | B29: Código | C29: Banco | D29: Descrição | E29: Und | F29: Quant. | G29: Valor Unit | H29: Total
A30: Composição | B30: COMPOSIÇÃO - 4 | C30: Próprio | D30: Transporte de Comboio Perfuração | E30: km | F30: 1 | G30: =SUM(H31:H32) -> 4.4335592 | H30: =G30 -> 4.4335592
A31: Composição Auxiliar | B31: 5824 | C31: SINAPI | D31: CAMINHÃO TOCO, PBT 16.000 KG, CARGA ÚTIL MÁX. 10.685 KG, DIST. ENTRE EIXOS 4,8 M, POTÊNCIA 189 CV, INCLUSIVE CARROCERIA FIXA ABERTA DE MADEIRA P/ TRANSPORTE GERAL DE CARGA SECA, DIMEN. APROX. 2,5 X 7,00 X 0,50 M - CHP DIURNO. AF_06/2014 | E31: CHP | F31: 0.01666 | G31: =IF(C31="SINAPI", IF( IF(A31="Insumo", VLOOKUP(B31,'SINAPI INSUMOS'!B:F,5,0), VLOOKUP(B31,'SINAPI COMP'!B:F,4,0))=0,VLOOKUP(B31,'OUTRAS BASES'!C:D,2,0),IF(A31="Insumo", VLOOKUP(B31,'SINAPI INSUMOS'!B:F,5,0),VLOOKUP(B31,'SINAPI COMP'!B:F,4,0))), VLOOKUP(B31,'OUTRAS BASES'!C:D,2,0)) -> 207.25 | H31: =(G31*F31) -> 3.452785
A32: Composição Auxiliar | B32: 5826 | C32: SINAPI | D32: CAMINHÃO TOCO, PBT 16.000 KG, CARGA ÚTIL MÁX. 10.685 KG, DIST. ENTRE EIXOS 4,8 M, POTÊNCIA 189 CV, INCLUSIVE CARROCERIA FIXA ABERTA DE MADEIRA P/ TRANSPORTE GERAL DE CARGA SECA, DIMEN. APROX. 2,5 X 7,00 X 0,50 M - CHI DIURNO. AF_06/2014 | E32: CHI | F32: 0.01666 | G32: =IF(C32="SINAPI", IF( IF(A32="Insumo", VLOOKUP(B32,'SINAPI INSUMOS'!B:F,5,0), VLOOKUP(B32,'SINAPI COMP'!B:F,4,0))=0,VLOOKUP(B32,'OUTRAS BASES'!C:D,2,0),IF(A32="Insumo", VLOOKUP(B32,'SINAPI INSUMOS'!B:F,5,0),VLOOKUP(B32,'SINAPI COMP'!B:F,4,0))), VLOOKUP(B32,'OUTRAS BASES'!C:D,2,0)) -> 58.87 | H32: 0.9807742
A33: 2.2 | B33: Código | C33: Banco | D33: Descrição | E33: Und | F33: Quant. | G33: Valor Unit | H33: Total
A34: Composição | B34: COMPOSIÇÃO - 5 | C34: Próprio | D34: Transporte de Comboio Instalação | E34: km | F34: 1 | G34: =SUM(H35:H36) -> 5.5892634 | H34: =G34 -> 5.5892634
A35: Composição Auxiliar | B35: 5928 | C35: SINAPI | D35: GUINDAUTO HIDRÁULICO, CAPACIDADE MÁXIMA DE CARGA 6200 KG, MOMENTO MÁXIMO DE CARGA 11,7 TM, ALCANCE MÁXIMO HORIZONTAL 9,70 M, INCLUSIVE CAMINHÃO TOCO PBT 16.000 KG, POTÊNCIA DE 189 CV - CHP DIURNO. AF_06/2014 | E35: CHP | F35: 0.01666 | G35: =IF(C35="SINAPI", IF( IF(A35="Insumo", VLOOKUP(B35,'SINAPI INSUMOS'!B:F,5,0), VLOOKUP(B35,'SINAPI COMP'!B:F,4,0))=0,VLOOKUP(B35,'OUTRAS BASES'!C:D,2,0),IF(A35="Insumo", VLOOKUP(B35,'SINAPI INSUMOS'!B:F,5,0),VLOOKUP(B35,'SINAPI COMP'!B:F,4,0))), VLOOKUP(B35,'OUTRAS BASES'!C:D,2,0)) -> 265.33 | H35: =(G35*F35) -> 4.4203978
A36: Composição Auxiliar | B36: 5930 | C36: SINAPI | D36: GUINDAUTO HIDRÁULICO, CAPACIDADE MÁXIMA DE CARGA 6200 KG, MOMENTO MÁXIMO DE CARGA 11,7 TM, ALCANCE MÁXIMO HORIZONTAL 9,70 M, INCLUSIVE CAMINHÃO TOCO PBT 16.000 KG, POTÊNCIA DE 189 CV - CHI DIURNO. AF_06/2014 | E36: CHI | F36: 0.01666 | G36: =IF(C36="SINAPI", IF( IF(A36="Insumo", VLOOKUP(B36,'SINAPI INSUMOS'!B:F,5,0), VLOOKUP(B36,'SINAPI COMP'!B:F,4,0))=0,VLOOKUP(B36,'OUTRAS BASES'!C:D,2,0),IF(A36="Insumo", VLOOKUP(B36,'SINAPI INSUMOS'!B:F,5,0),VLOOKUP(B36,'SINAPI COMP'!B:F,4,0))), VLOOKUP(B36,'OUTRAS BASES'!C:D,2,0)) -> 70.16 | H36: 1.1688656
A37: 2.3 | B37: Código | C37: Banco | D37: Descrição | E37: Und | F37: Quant. | G37: Valor Unit | H37: Total
A38: Composição | B38: COMPOSIÇÃO - 6 | C38: Próprio | D38: Transporte de Equipe Teste de Vazão | E38: km | F38: 1 | G38: =SUM(H39:H40) -> 2.430323 | H38: =G38 -> 2.430323
A39: Composição Auxiliar | B39: 73467 | C39: SINAPI | D39: CAMINHÃO TOCO, PBT 14.300 KG, CARGA ÚTIL MÁX. 9.710 KG, DIST. ENTRE EIXOS 3,56 M, POTÊNCIA 185 CV, INCLUSIVE CARROCERIA FIXA ABERTA DE MADEIRA P/ TRANSPORTE GERAL DE CARGA SECA, DIMEN. APROX. 2,50 X 6,50 X 0,50 M - CHP DIURNO. AF_06/2014 | E39: CHP | F39: 0.0083 | G39: =IF(C39="SINAPI", IF( IF(A39="Insumo", VLOOKUP(B39,'SINAPI INSUMOS'!B:F,5,0), VLOOKUP(B39,'SINAPI COMP'!B:F,4,0))=0,VLOOKUP(B39,'OUTRAS BASES'!C:D,2,0),IF(A39="Insumo", VLOOKUP(B39,'SINAPI INSUMOS'!B:F,5,0),VLOOKUP(B39,'SINAPI COMP'!B:F,4,0))), VLOOKUP(B39,'OUTRAS BASES'!C:D,2,0)) -> 236.86 | H39: =(G39*F39) -> 1.965938
A40: Composição Auxiliar | B40: 91395 | C40: SINAPI | D40: CAMINHÃO TOCO, PBT 14.300 KG, CARGA ÚTIL MÁX. 9.710 KG, DIST. ENTRE EIXOS 3,56 M, POTÊNCIA 185 CV, INCLUSIVE CARROCERIA FIXA ABERTA DE MADEIRA P/ TRANSPORTE GERAL DE CARGA SECA, DIMEN. APROX. 2,50 X 6,50 X 0,50 M - CHI DIURNO. AF_06/2014 | E40: CHI | F40: 0.0083 | G40: =IF(C40="SINAPI", IF( IF(A40="Insumo", VLOOKUP(B40,'SINAPI INSUMOS'!B:F,5,0), VLOOKUP(B40,'SINAPI COMP'!B:F,4,0))=0,VLOOKUP(B40,'OUTRAS BASES'!C:D,2,0),IF(A40="Insumo", VLOOKUP(B40,'SINAPI INSUMOS'!B:F,5,0),VLOOKUP(B40,'SINAPI COMP'!B:F,4,0))), VLOOKUP(B40,'OUTRAS BASES'!C:D,2,0)) -> 55.95 | H40: 0.464385
A41: 3 | D41: PERFURAÇÃO E COMPLETAÇÃO DE POÇO TUBULAR
A42: 3.1 | B42: Código | C42: Banco | D42: Descrição | E42: Und | F42: Quant. | G42: Valor Unit | H42: Total
A43: Composição | B43: COMPOSIÇÃO - 7 | C43: Próprio | D43: Perfuração diâmetro de Ø 12 1/2" em sedimento/camadas inconsolidadas - incluso mão de obra para instalação do revestimento e completação anelar | E43: m | F43: 1 | G43: =SUM(H44:H45) -> 255.86 | H43: =G43 -> 255.86
A44: Composição Auxiliar | B44: 5057 | C44: ORSE | D44: Perfuração rocha sedimentar sedimento / Camadas inconsolidadas DN 12.1/2" - Poço até 150 m | E44: m | F44: 1 | G44: =IF(C44="SINAPI", IF( IF(A44="Insumo", VLOOKUP(B44,'SINAPI INSUMOS'!B:F,5,0), VLOOKUP(B44,'SINAPI COMP'!B:F,4,0))=0,VLOOKUP(B44,'OUTRAS BASES'!C:D,2,0),IF(A44="Insumo", VLOOKUP(B44,'SINAPI INSUMOS'!B:F,5,0),VLOOKUP(B44,'SINAPI COMP'!B:F,4,0))), VLOOKUP(B44,'OUTRAS BASES'!C:D,2,0)) -> 247.66 | H44: =(G44*F44) -> 247.66
A45: Insumo | B45: 43366 | C45: SINAPI | D45: BENTONITA, ARGILA CONSTITUIDA POR MONTMORILONITA | E45: KG | F45: 5 | G45: =IF(C45="SINAPI", IF( IF(A45="Insumo", VLOOKUP(B45,'SINAPI INSUMOS'!B:F,5,0), VLOOKUP(B45,'SINAPI COMP'!B:F,4,0))=0,VLOOKUP(B45,'OUTRAS BASES'!C:D,2,0),IF(A45="Insumo", VLOOKUP(B45,'SINAPI INSUMOS'!B:F,5,0),VLOOKUP(B45,'SINAPI COMP'!B:F,4,0))), VLOOKUP(B45,'OUTRAS BASES'!C:D,2,0)) -> 1.64 | H45: =F45*G45 -> 8.2
A46: 3.2 | B46: Código | C46: Banco | D46: Descrição | E46: Und | F46: Quant. | G46: Valor Unit | H46: Total
A47: Insumo | B47: 5073 | C47: ORSE | D47: Fornecimento de pré-filtro comum m3 | E47: m³ | F47: 1 | G47: =IF(C47="SINAPI", IF( IF(A47="Insumo", VLOOKUP(B47,'SINAPI INSUMOS'!B:F,5,0), VLOOKUP(B47,'SINAPI COMP'!B:F,4,0))=0,VLOOKUP(B47,'OUTRAS BASES'!C:D,2,0),IF(A47="Insumo", VLOOKUP(B47,'SINAPI INSUMOS'!B:F,5,0),VLOOKUP(B47,'SINAPI COMP'!B:F,4,0))), VLOOKUP(B47,'OUTRAS BASES'!C:D,2,0)) -> 1619.38 | H47: =G47 -> 1619.38
A48: 3.3 | B48: Código | C48: Banco | D48: Descrição | E48: Und | F48: Quant. | G48: Valor Unit | H48: Total
A49: Insumo | B49: 5091 | C49: ORSE | D49: Revestimento filtro pvc geomecânico reforçado dn 150mm | E49: m | F49: 1 | G49: =IF(C49="SINAPI", IF( IF(A49="Insumo", VLOOKUP(B49,'SINAPI INSUMOS'!B:F,5,0), VLOOKUP(B49,'SINAPI COMP'!B:F,4,0))=0,VLOOKUP(B49,'OUTRAS BASES'!C:D,2,0),IF(A49="Insumo", VLOOKUP(B49,'SINAPI INSUMOS'!B:F,5,0),VLOOKUP(B49,'SINAPI COMP'!B:F,4,0))), VLOOKUP(B49,'OUTRAS BASES'!C:D,2,0)) -> 221.38 | H49: =G49 -> 221.38
A50: 3.4 | B50: Código | C50: Banco | D50: Descrição | E50: Und | F50: Quant. | G50: Valor Unit | H50: Total
A51: Insumo | B51: 5024 | C51: ORSE | D51: Centralizador em 6" | E51: un | F51: 1 | G51: =IF(C51="SINAPI", IF( IF(A51="Insumo", VLOOKUP(B51,'SINAPI INSUMOS'!B:F,5,0), VLOOKUP(B51,'SINAPI COMP'!B:F,4,0))=0,VLOOKUP(B51,'OUTRAS BASES'!C:D,2,0),IF(A51="Insumo", VLOOKUP(B51,'SINAPI INSUMOS'!B:F,5,0),VLOOKUP(B51,'SINAPI COMP'!B:F,4,0))), VLOOKUP(B51,'OUTRAS BASES'!C:D,2,0)) -> 267.02 | H51: =G51 -> 267.02
A52: 3.5 | B52: Código | C52: Banco | D52: Descrição | E52: Und | F52: Quant. | G52: Valor Unit | H52: Total
A53: Insumo | B53: 9850 | C53: SINAPI | D53: TUBO PVC DE REVESTIMENTO GEOMECANICO NERVURADO REFORCADO, DN = 150 MM, COMPRIMENTO = 2 M | E53: M | F53: 1 | G53: =IF(C53="SINAPI", IF( IF(A53="Insumo", VLOOKUP(B53,'SINAPI INSUMOS'!B:F,5,0), VLOOKUP(B53,'SINAPI COMP'!B:F,4,0))=0,VLOOKUP(B53,'OUTRAS BASES'!C:D,2,0),IF(A53="Insumo", VLOOKUP(B53,'SINAPI INSUMOS'!B:F,5,0),VLOOKUP(B53,'SINAPI COMP'!B:F,4,0))), VLOOKUP(B53,'OUTRAS BASES'!C:D,2,0)) -> 147.75 | H53: =G53 -> 147.75
A54: 3.6 | B54: Código | C54: Banco | D54: Descrição | E54: Und | F54: Quant. | G54: Valor Unit | H54: Total
A55: Composição | B55: COMPOSIÇÃO - 8 | C55: Próprio | D55: Serviço de lançamento cimentação anelar, incluso materiais. | E55: m³ | F55: 1 | G55: =SUM(H56) -> 521.34 | H55: =G55 -> 521.34
A56: Composição Auxiliar | B56: 1903 | C56: ORSE | D56: Argamassa cimento e areia traço t-1 (1:3) - 1 saco cimento 50kg / 3 padiolas areia dim. 0.35 x 0.45 x 0.23 m - Confecção mecânica e transporte | E56: m³ | F56: 1 | G56: =IF(C56="SINAPI", IF( IF(A56="Insumo", VLOOKUP(B56,'SINAPI INSUMOS'!B:F,5,0), VLOOKUP(B56,'SINAPI COMP'!B:F,4,0))=0,VLOOKUP(B56,'OUTRAS BASES'!C:D,2,0),IF(A56="Insumo", VLOOKUP(B56,'SINAPI INSUMOS'!B:F,5,0),VLOOKUP(B56,'SINAPI COMP'!B:F,4,0))), VLOOKUP(B56,'OUTRAS BASES'!C:D,2,0)) -> 521.34 | H56: =(G56*F56) -> 521.34
A57: 4 | D57: PÓS PERFURAÇÃO | H57: 12083.37
A58: 4.1 | B58: Código | C58: Banco | D58: Descrição | E58: Und | F58: Quant. | G58: Valor Unit | H58: Total
A59: Composição | B59: 6305 | C59: ORSE | D59: Desenvolvimento com Compressor 250psi / 750cfm | E59: h | F59: 1 | G59: =IF(C59="SINAPI", IF( IF(A59="Insumo", VLOOKUP(B59,'SINAPI INSUMOS'!B:F,5,0), VLOOKUP(B59,'SINAPI COMP'!B:F,4,0))=0,VLOOKUP(B59,'OUTRAS BASES'!C:D,2,0),IF(A59="Insumo", VLOOKUP(B59,'SINAPI INSUMOS'!B:F,5,0),VLOOKUP(B59,'SINAPI COMP'!B:F,4,0))), VLOOKUP(B59,'OUTRAS BASES'!C:D,2,0)) -> 411.16 | H59: =G59 -> 411.16
A60: Insumo | B60: 5030 | C60: ORSE | D60: Desenvolvimento com compressor 250psi - 750cfm h | E60: h | F60: 1 | G60: =IF(C60="SINAPI", IF( IF(A60="Insumo", VLOOKUP(B60,'SINAPI INSUMOS'!B:F,5,0), VLOOKUP(B60,'SINAPI COMP'!B:F,4,0))=0,VLOOKUP(B60,'OUTRAS BASES'!C:D,2,0),IF(A60="Insumo", VLOOKUP(B60,'SINAPI INSUMOS'!B:F,5,0),VLOOKUP(B60,'SINAPI COMP'!B:F,4,0))), VLOOKUP(B60,'OUTRAS BASES'!C:D,2,0)) -> 411.16 | H60: =F60*G60 -> 411.16
A61: 4.2 | B61: Código | C61: Banco | D61: Descrição | E61: Und | F61: Quant. | G61: Valor Unit | H61: Total
A62: Composição | B62: COMPOSIÇÃO - 9 | C62: Próprio | D62: Inspeção ótica em poço tubular câmera com rotação de 360º, visada lateral, com fonte própria de luz, entregue vídeo em cores e marcação de profundidades. | E62: m | F62: 1 | G62: =SUM(H63:H64) -> 9.64046 | H62: =G62 -> 9.64046
A63: Insumo | B63: H020050004 | C63: EMBASA | D63: APARELHO DE PERFILAGEM OPTICA | E63: M | F63: 1 | G63: =IF(C63="SINAPI", IF( IF(A63="Insumo", VLOOKUP(B63,'SINAPI INSUMOS'!B:F,5,0), VLOOKUP(B63,'SINAPI COMP'!B:F,4,0))=0,VLOOKUP(B63,'OUTRAS BASES'!C:D,2,0),IF(A63="Insumo", VLOOKUP(B63,'SINAPI INSUMOS'!B:F,5,0),VLOOKUP(B63,'SINAPI COMP'!B:F,4,0))), VLOOKUP(B63,'OUTRAS BASES'!C:D,2,0)) -> 4.4 | H63: =F63*G63 -> 4.4
A64: Insumo | B64: B590000022 | C64: EMBASA | D64: TECNICO MEDIO | E64: H | F64: 0.0835 | G64: =IF(C64="SINAPI", IF( IF(A64="Insumo", VLOOKUP(B64,'SINAPI INSUMOS'!B:F,5,0), VLOOKUP(B64,'SINAPI COMP'!B:F,4,0))=0,VLOOKUP(B64,'OUTRAS BASES'!C:D,2,0),IF(A64="Insumo", VLOOKUP(B64,'SINAPI INSUMOS'!B:F,5,0),VLOOKUP(B64,'SINAPI COMP'!B:F,4,0))), VLOOKUP(B64,'OUTRAS BASES'!C:D,2,0)) -> 62.76 | H64: 5.24046
A65: 4.3 | B65: Código | C65: Banco | D65: Descrição | E65: Und | F65: Quant. | G65: Valor Unit | H65: Total
A66: Composição | B66: COMPOSIÇÃO - 10 | C66: Próprio | D66: Serviço de coleta e Análise Físico-Química e Bacteriológica | E66: un | F66: 1 | G66: =SUM(H67:H68) -> 621.19 | H66: =G66 -> 621.19
A67: Composição Auxiliar | B67: 6312 | C67: ORSE | D67: Análise Físico-química da Água | E67: un | F67: 1 | G67: =IF(C67="SINAPI", IF( IF(A67="Insumo", VLOOKUP(B67,'SINAPI INSUMOS'!B:F,5,0), VLOOKUP(B67,'SINAPI COMP'!B:F,4,0))=0,VLOOKUP(B67,'OUTRAS BASES'!C:D,2,0),IF(A67="Insumo", VLOOKUP(B67,'SINAPI INSUMOS'!B:F,5,0),VLOOKUP(B67,'SINAPI COMP'!B:F,4,0))), VLOOKUP(B67,'OUTRAS BASES'!C:D,2,0)) -> 565.21 | H67: =(G67*F67) -> 565.21
A68: Composição Auxiliar | B68: 6313 | C68: ORSE | D68: Análise Bacteriológica da Água | E68: un | F68: 1 | G68: =IF(C68="SINAPI", IF( IF(A68="Insumo", VLOOKUP(B68,'SINAPI INSUMOS'!B:F,5,0), VLOOKUP(B68,'SINAPI COMP'!B:F,4,0))=0,VLOOKUP(B68,'OUTRAS BASES'!C:D,2,0),IF(A68="Insumo", VLOOKUP(B68,'SINAPI INSUMOS'!B:F,5,0),VLOOKUP(B68,'SINAPI COMP'!B:F,4,0))), VLOOKUP(B68,'OUTRAS BASES'!C:D,2,0)) -> 55.98 | H68: 55.98
A69: 4.4 | B69: Código | C69: Banco | D69: Descrição | E69: Und | F69: Quant. | G69: Valor Unit | H69: Total
A70: Composição | B70: COMPOSIÇÃO - 11 | C70: Próprio | D70: Serviço de instalação de laje sanitária com dimensões (1,5x1,5x0,3) , incluso material. | E70: un | F70: 1 | G70: =SUM(H71:H74) -> 602.6445 | H70: =G70 -> 602.6445
A71: Composição Auxiliar | B71: 92522 | C71: SINAPI | D71: MONTAGEM E DESMONTAGEM DE FÔRMA DE LAJE MACIÇA, PÉ-DIREITO SIMPLES, EM CHAPA DE MADEIRA COMPENSADA RESINADA, 8 UTILIZAÇÕES. AF_09/2020 | E71: m² | F71: 1.8 | G71: =IF(C71="SINAPI", IF( IF(A71="Insumo", VLOOKUP(B71,'SINAPI INSUMOS'!B:F,5,0), VLOOKUP(B71,'SINAPI COMP'!B:F,4,0))=0,VLOOKUP(B71,'OUTRAS BASES'!C:D,2,0),IF(A71="Insumo", VLOOKUP(B71,'SINAPI INSUMOS'!B:F,5,0),VLOOKUP(B71,'SINAPI COMP'!B:F,4,0))), VLOOKUP(B71,'OUTRAS BASES'!C:D,2,0)) -> 33.3 | H71: =(G71*F71) -> 59.94
A72: Composição Auxiliar | B72: 93358 | C72: SINAPI | D72: ESCAVAÇÃO MANUAL DE VALA COM PROFUNDIDADE MENOR OU IGUAL A 1,30 M. AF_02/2021 | E72: m³ | F72: 0.225 | G72: =IF(C72="SINAPI", IF( IF(A72="Insumo", VLOOKUP(B72,'SINAPI INSUMOS'!B:F,5,0), VLOOKUP(B72,'SINAPI COMP'!B:F,4,0))=0,VLOOKUP(B72,'OUTRAS BASES'!C:D,2,0),IF(A72="Insumo", VLOOKUP(B72,'SINAPI INSUMOS'!B:F,5,0),VLOOKUP(B72,'SINAPI COMP'!B:F,4,0))), VLOOKUP(B72,'OUTRAS BASES'!C:D,2,0)) -> 80.18 | H72: 18.0405
A73: Composição Auxiliar | B73: 94975 | C73: SINAPI | D73: CONCRETO FCK = 15MPA, TRAÇO 1:3,4:3,5 (EM MASSA SECA DE CIMENTO/ AREIA MÉDIA/ BRITA 1) - PREPARO MANUAL. AF_05/2021 | E73: m³ | F73: 0.675 | G73: =IF(C73="SINAPI", IF( IF(A73="Insumo", VLOOKUP(B73,'SINAPI INSUMOS'!B:F,5,0), VLOOKUP(B73,'SINAPI COMP'!B:F,4,0))=0,VLOOKUP(B73,'OUTRAS BASES'!C:D,2,0),IF(A73="Insumo", VLOOKUP(B73,'SINAPI INSUMOS'!B:F,5,0),VLOOKUP(B73,'SINAPI COMP'!B:F,4,0))), VLOOKUP(B73,'OUTRAS BASES'!C:D,2,0)) -> 503.17 | H73: 339.63975
A74: Composição Auxiliar | B74: 103670 | C74: SINAPI | D74: LANÇAMENTO COM USO DE BALDES, ADENSAMENTO E ACABAMENTO DE CONCRETO EM ESTRUTURAS. AF_02/2022 | E74: m³ | F74: 0.675 | G74: =IF(C74="SINAPI", IF( IF(A74="Insumo", VLOOKUP(B74,'SINAPI INSUMOS'!B:F,5,0), VLOOKUP(B74,'SINAPI COMP'!B:F,4,0))=0,VLOOKUP(B74,'OUTRAS BASES'!C:D,2,0),IF(A74="Insumo", VLOOKUP(B74,'SINAPI INSUMOS'!B:F,5,0),VLOOKUP(B74,'SINAPI COMP'!B:F,4,0))), VLOOKUP(B74,'OUTRAS BASES'!C:D,2,0)) -> 274.11 | H74: 185.02425
A75: 4.5 | B75: Código | C75: Banco | D75: Descrição | E75: Und | F75: Quant. | G75: Valor Unit | H75: Total
A76: Composição | B76: 24.80.22 | C76: EMBASA | D76: (REVISADA) DESENVOLVIMENTO OU TESTE COM BOMBA SUBMERSA - UEB1 NO SEDIMENTO COM VAZAO < 60M3 (Ensaio de bombeamento poço tubular incluso materiais e grupo gerador) | E76: H | F76: 1 | G76: =IF(C76="SINAPI", IF( IF(A76="Insumo", VLOOKUP(B76,'SINAPI INSUMOS'!B:F,5,0), VLOOKUP(B76,'SINAPI COMP'!B:F,4,0))=0,VLOOKUP(B76,'OUTRAS BASES'!C:D,2,0),IF(A76="Insumo", VLOOKUP(B76,'SINAPI INSUMOS'!B:F,5,0),VLOOKUP(B76,'SINAPI COMP'!B:F,4,0))), VLOOKUP(B76,'OUTRAS BASES'!C:D,2,0)) -> 263.27 | H76: =G76 -> 263.27
A77: Composição Auxiliar | B77: 24.00.15 | C77: EMBASA | D77: EQUIPE (3 PROFISSIONAIS CAMPO) - BOMBEIO | E77: H | F77: 1 | G77: =IF(C77="SINAPI", IF( IF(A77="Insumo", VLOOKUP(B77,'SINAPI INSUMOS'!B:F,5,0), VLOOKUP(B77,'SINAPI COMP'!B:F,4,0))=0,VLOOKUP(B77,'OUTRAS BASES'!C:D,2,0),IF(A77="Insumo", VLOOKUP(B77,'SINAPI INSUMOS'!B:F,5,0),VLOOKUP(B77,'SINAPI COMP'!B:F,4,0))), VLOOKUP(B77,'OUTRAS BASES'!C:D,2,0)) -> 198.35 | H77: =(G77*F77) -> 198.35
A78: Insumo | B78: H020050001 | C78: EMBASA | D78: UNIDADE DE ENSAIO E BOMBEAMENTO - UEB1 ATE 150M3 NO SEDIMENTO | E78: H | F78: 1 | G78: =IF(C78="SINAPI", IF( IF(A78="Insumo", VLOOKUP(B78,'SINAPI INSUMOS'!B:F,5,0), VLOOKUP(B78,'SINAPI COMP'!B:F,4,0))=0,VLOOKUP(B78,'OUTRAS BASES'!C:D,2,0),IF(A78="Insumo", VLOOKUP(B78,'SINAPI INSUMOS'!B:F,5,0),VLOOKUP(B78,'SINAPI COMP'!B:F,4,0))), VLOOKUP(B78,'OUTRAS BASES'!C:D,2,0)) -> 64.92 | H78: =F78*G78 -> 64.92
A79: 5 | D79: RESERVAÇÃO | H79: 26343.85
A80: 5.1 | B80: Código | C80: Banco | D80: Descrição | E80: Und | F80: Quant. | G80: Valor Unit | H80: Total
A81: Composição | B81: COMPOSIÇÃO - 12 | C81: Próprio | D81: Fornecimento e instalação de reservatório e base elevada 10 m³ | E81: un | F81: 1 | G81: =SUM(H82:H103) -> 17856.27263 | H81: =G81 -> 17856.27263
A82: Composição Auxiliar | B82: 92759 | C82: SINAPI | D82: ARMAÇÃO DE PILAR OU VIGA DE ESTRUTURA CONVENCIONAL DE CONCRETO ARMADO UTILIZANDO AÇO CA-60 DE 5,0 MM - MONTAGEM. AF_06/2022 | E82: KG | F82: 17.2 | G82: =IF(C82="SINAPI", IF( IF(A82="Insumo", VLOOKUP(B82,'SINAPI INSUMOS'!B:F,5,0), VLOOKUP(B82,'SINAPI COMP'!B:F,4,0))=0,VLOOKUP(B82,'OUTRAS BASES'!C:D,2,0),IF(A82="Insumo", VLOOKUP(B82,'SINAPI INSUMOS'!B:F,5,0),VLOOKUP(B82,'SINAPI COMP'!B:F,4,0))), VLOOKUP(B82,'OUTRAS BASES'!C:D,2,0)) -> 13.2 | H82: =(G82*F82) -> 227.04
A83: Composição Auxiliar | B83: 92761 | C83: SINAPI | D83: ARMAÇÃO DE PILAR OU VIGA DE ESTRUTURA CONVENCIONAL DE CONCRETO ARMADO UTILIZANDO AÇO CA-50 DE 8,0 MM - MONTAGEM. AF_06/2022 | E83: KG | F83: 30.4 | G83: =IF(C83="SINAPI", IF( IF(A83="Insumo", VLOOKUP(B83,'SINAPI INSUMOS'!B:F,5,0), VLOOKUP(B83,'SINAPI COMP'!B:F,4,0))=0,VLOOKUP(B83,'OUTRAS BASES'!C:D,2,0),IF(A83="Insumo", VLOOKUP(B83,'SINAPI INSUMOS'!B:F,5,0),VLOOKUP(B83,'SINAPI COMP'!B:F,4,0))), VLOOKUP(B83,'OUTRAS BASES'!C:D,2,0)) -> 11.71 | H83: 355.984
A84: Composição Auxiliar | B84: 92768 | C84: SINAPI | D84: ARMAÇÃO DE LAJE DE ESTRUTURA CONVENCIONAL DE CONCRETO ARMADO UTILIZANDO AÇO CA-60 DE 5,0 MM - MONTAGEM. AF_06/2022 | E84: KG | F84: 11.9 | G84: =IF(C84="SINAPI", IF( IF(A84="Insumo", VLOOKUP(B84,'SINAPI INSUMOS'!B:F,5,0), VLOOKUP(B84,'SINAPI COMP'!B:F,4,0))=0,VLOOKUP(B84,'OUTRAS BASES'!C:D,2,0),IF(A84="Insumo", VLOOKUP(B84,'SINAPI INSUMOS'!B:F,5,0),VLOOKUP(B84,'SINAPI COMP'!B:F,4,0))), VLOOKUP(B84,'OUTRAS BASES'!C:D,2,0)) -> 12.74 | H84: 151.606
A85: Composição Auxiliar | B85: 92770 | C85: SINAPI | D85: ARMAÇÃO DE LAJE DE ESTRUTURA CONVENCIONAL DE CONCRETO ARMADO UTILIZANDO AÇO CA-50 DE 8,0 MM - MONTAGEM. AF_06/2022 | E85: KG | F85: 48 | G85: =IF(C85="SINAPI", IF( IF(A85="Insumo", VLOOKUP(B85,'SINAPI INSUMOS'!B:F,5,0), VLOOKUP(B85,'SINAPI COMP'!B:F,4,0))=0,VLOOKUP(B85,'OUTRAS BASES'!C:D,2,0),IF(A85="Insumo", VLOOKUP(B85,'SINAPI INSUMOS'!B:F,5,0),VLOOKUP(B85,'SINAPI COMP'!B:F,4,0))), VLOOKUP(B85,'OUTRAS BASES'!C:D,2,0)) -> 11.25 | H85: 540
A86: Composição Auxiliar | B86: 93358 | C86: SINAPI | D86: ESCAVAÇÃO MANUAL DE VALA COM PROFUNDIDADE MENOR OU IGUAL A 1,30 M. AF_02/2021 | E86: m³ | F86: 5.2 | G86: =IF(C86="SINAPI", IF( IF(A86="Insumo", VLOOKUP(B86,'SINAPI INSUMOS'!B:F,5,0), VLOOKUP(B86,'SINAPI COMP'!B:F,4,0))=0,VLOOKUP(B86,'OUTRAS BASES'!C:D,2,0),IF(A86="Insumo", VLOOKUP(B86,'SINAPI INSUMOS'!B:F,5,0),VLOOKUP(B86,'SINAPI COMP'!B:F,4,0))), VLOOKUP(B86,'OUTRAS BASES'!C:D,2,0)) -> 80.18 | H86: 416.936
A87: Composição Auxiliar | B87: 92763 | C87: SINAPI | D87: ARMAÇÃO DE PILAR OU VIGA DE ESTRUTURA CONVENCIONAL DE CONCRETO ARMADO UTILIZANDO AÇO CA-50 DE 12,5 MM - MONTAGEM. AF_06/2022 | E87: KG | F87: 118.4 | G87: =IF(C87="SINAPI", IF( IF(A87="Insumo", VLOOKUP(B87,'SINAPI INSUMOS'!B:F,5,0), VLOOKUP(B87,'SINAPI COMP'!B:F,4,0))=0,VLOOKUP(B87,'OUTRAS BASES'!C:D,2,0),IF(A87="Insumo", VLOOKUP(B87,'SINAPI INSUMOS'!B:F,5,0),VLOOKUP(B87,'SINAPI COMP'!B:F,4,0))), VLOOKUP(B87,'OUTRAS BASES'!C:D,2,0)) -> 8.81 | H87: 1043.104
A88: Composição Auxiliar | B88: 94970 | C88: SINAPI | D88: CONCRETO FCK = 20MPA, TRAÇO 1:2,7:3 (EM MASSA SECA DE CIMENTO/ AREIA MÉDIA/ BRITA 1) - PREPARO MECÂNICO COM BETONEIRA 600 L. AF_05/2021 | E88: m³ | F88: 4.89 | G88: =IF(C88="SINAPI", IF( IF(A88="Insumo", VLOOKUP(B88,'SINAPI INSUMOS'!B:F,5,0), VLOOKUP(B88,'SINAPI COMP'!B:F,4,0))=0,VLOOKUP(B88,'OUTRAS BASES'!C:D,2,0),IF(A88="Insumo", VLOOKUP(B88,'SINAPI INSUMOS'!B:F,5,0),VLOOKUP(B88,'SINAPI COMP'!B:F,4,0))), VLOOKUP(B88,'OUTRAS BASES'!C:D,2,0)) -> 469.68 | H88: 2296.7352
A89: Composição Auxiliar | B89: 103670 | C89: SINAPI | D89: LANÇAMENTO COM USO DE BALDES, ADENSAMENTO E ACABAMENTO DE CONCRETO EM ESTRUTURAS. AF_02/2022 | E89: m³ | F89: 6.85 | G89: =IF(C89="SINAPI", IF( IF(A89="Insumo", VLOOKUP(B89,'SINAPI INSUMOS'!B:F,5,0), VLOOKUP(B89,'SINAPI COMP'!B:F,4,0))=0,VLOOKUP(B89,'OUTRAS BASES'!C:D,2,0),IF(A89="Insumo", VLOOKUP(B89,'SINAPI INSUMOS'!B:F,5,0),VLOOKUP(B89,'SINAPI COMP'!B:F,4,0))), VLOOKUP(B89,'OUTRAS BASES'!C:D,2,0)) -> 274.11 | H89: 1877.6535
A90: Composição Auxiliar | B90: 84651 | C90: SINAPI | D90: PINTURA COM TINTA IMPERMEAVEL MINERAL EM PO, DUAS DEMAOS | E90: m² | F90: 28.27 | G90: =IF(C90="SINAPI", IF( IF(A90="Insumo", VLOOKUP(B90,'SINAPI INSUMOS'!B:F,5,0), VLOOKUP(B90,'SINAPI COMP'!B:F,4,0))=0,VLOOKUP(B90,'OUTRAS BASES'!C:D,2,0),IF(A90="Insumo", VLOOKUP(B90,'SINAPI INSUMOS'!B:F,5,0),VLOOKUP(B90,'SINAPI COMP'!B:F,4,0))), VLOOKUP(B90,'OUTRAS BASES'!C:D,2,0)) -> 12.5975 | H90: 356.131325
A91: Composição Auxiliar | B91: 90776 | C91: SINAPI | D91: ENCARREGADO GERAL COM ENCARGOS COMPLEMENTARES | E91: H | F91: 1 | G91: =IF(C91="SINAPI", IF( IF(A91="Insumo", VLOOKUP(B91,'SINAPI INSUMOS'!B:F,5,0), VLOOKUP(B91,'SINAPI COMP'!B:F,4,0))=0,VLOOKUP(B91,'OUTRAS BASES'!C:D,2,0),IF(A91="Insumo", VLOOKUP(B91,'SINAPI INSUMOS'!B:F,5,0),VLOOKUP(B91,'SINAPI COMP'!B:F,4,0))), VLOOKUP(B91,'OUTRAS BASES'!C:D,2,0)) -> 24.3 | H91: 24.3
A92: Composição Auxiliar | B92: 102482 | C92: SINAPI | D92: CONCRETO FCK = 25MPA, TRAÇO 1:2,2:2,5 (EM MASSA SECA DE CIMENTO/ AREIA MÉDIA/ SEIXO ROLADO) - PREPARO MECÂNICO COM BETONEIRA 600 L. AF_05/2021 | E92: m³ | F92: 1.96 | G92: =IF(C92="SINAPI", IF( IF(A92="Insumo", VLOOKUP(B92,'SINAPI INSUMOS'!B:F,5,0), VLOOKUP(B92,'SINAPI COMP'!B:F,4,0))=0,VLOOKUP(B92,'OUTRAS BASES'!C:D,2,0),IF(A92="Insumo", VLOOKUP(B92,'SINAPI INSUMOS'!B:F,5,0),VLOOKUP(B92,'SINAPI COMP'!B:F,4,0))), VLOOKUP(B92,'OUTRAS BASES'!C:D,2,0)) -> 642.22 | H92: 1258.7512
A93: Composição Auxiliar | B93: 92263 | C93: SINAPI | D93: FABRICAÇÃO DE FÔRMA PARA PILARES E ESTRUTURAS SIMILARES, EM CHAPA DE MADEIRA COMPENSADA RESINADA, E = 17 MM. AF_09/2020 | E93: m² | F93: 25.19 | G93: =IF(C93="SINAPI", IF( IF(A93="Insumo", VLOOKUP(B93,'SINAPI INSUMOS'!B:F,5,0), VLOOKUP(B93,'SINAPI COMP'!B:F,4,0))=0,VLOOKUP(B93,'OUTRAS BASES'!C:D,2,0),IF(A93="Insumo", VLOOKUP(B93,'SINAPI INSUMOS'!B:F,5,0),VLOOKUP(B93,'SINAPI COMP'!B:F,4,0))), VLOOKUP(B93,'OUTRAS BASES'!C:D,2,0)) -> 149.96 | H93: 3777.4924
A94: Composição Auxiliar | B94: 88267 | C94: SINAPI | D94: ENCANADOR OU BOMBEIRO HIDRÁULICO COM ENCARGOS COMPLEMENTARES | E94: H | F94: 4 | G94: =IF(C94="SINAPI", IF( IF(A94="Insumo", VLOOKUP(B94,'SINAPI INSUMOS'!B:F,5,0), VLOOKUP(B94,'SINAPI COMP'!B:F,4,0))=0,VLOOKUP(B94,'OUTRAS BASES'!C:D,2,0),IF(A94="Insumo", VLOOKUP(B94,'SINAPI INSUMOS'!B:F,5,0),VLOOKUP(B94,'SINAPI COMP'!B:F,4,0))), VLOOKUP(B94,'OUTRAS BASES'!C:D,2,0)) -> 24.19 | H94: 96.76
A95: Composição Auxiliar | B95: 88248 | C95: SINAPI | D95: AUXILIAR DE ENCANADOR OU BOMBEIRO HIDRÁULICO COM ENCARGOS COMPLEMENTARES | E95: H | F95: 4 | G95: =IF(C95="SINAPI", IF( IF(A95="Insumo", VLOOKUP(B95,'SINAPI INSUMOS'!B:F,5,0), VLOOKUP(B95,'SINAPI COMP'!B:F,4,0))=0,VLOOKUP(B95,'OUTRAS BASES'!C:D,2,0),IF(A95="Insumo", VLOOKUP(B95,'SINAPI INSUMOS'!B:F,5,0),VLOOKUP(B95,'SINAPI COMP'!B:F,4,0))), VLOOKUP(B95,'OUTRAS BASES'!C:D,2,0)) -> 20.51 | H95: 82.04
A96: Insumo | B96: 3146 | C96: SINAPI | D96: FITA VEDA ROSCA EM ROLOS DE 18 MM X 10 M (L X C) | E96: UN | F96: 0.18 | G96: =IF(C96="SINAPI", IF( IF(A96="Insumo", VLOOKUP(B96,'SINAPI INSUMOS'!B:F,5,0), VLOOKUP(B96,'SINAPI COMP'!B:F,4,0))=0,VLOOKUP(B96,'OUTRAS BASES'!C:D,2,0),IF(A96="Insumo", VLOOKUP(B96,'SINAPI INSUMOS'!B:F,5,0),VLOOKUP(B96,'SINAPI COMP'!B:F,4,0))), VLOOKUP(B96,'OUTRAS BASES'!C:D,2,0)) -> 2 | H96: =F96*G96 -> 0.36
A97: Insumo | B97: 37106 | C97: SINAPI | D97: CAIXA D'AGUA / RESERVATORIO EM POLIESTER REFORCADO COM FIBRA DE VIDRO, 10000 LITROS, COM TAMPA | E97: UN | F97: 1 | G97: =IF(C97="SINAPI", IF( IF(A97="Insumo", VLOOKUP(B97,'SINAPI INSUMOS'!B:F,5,0), VLOOKUP(B97,'SINAPI COMP'!B:F,4,0))=0,VLOOKUP(B97,'OUTRAS BASES'!C:D,2,0),IF(A97="Insumo", VLOOKUP(B97,'SINAPI INSUMOS'!B:F,5,0),VLOOKUP(B97,'SINAPI COMP'!B:F,4,0))), VLOOKUP(B97,'OUTRAS BASES'!C:D,2,0)) -> 5098.45 | H97: 5098.45
A98: Insumo | B98: 14073 | C98: ORSE | D98: CURVA 90º PVC D=50MM, LINHA IRRIGA-LF, TIGRE OU SIMILAR | E98: UM | F98: 3 | G98: =IF(C98="SINAPI", IF( IF(A98="Insumo", VLOOKUP(B98,'SINAPI INSUMOS'!B:F,5,0), VLOOKUP(B98,'SINAPI COMP'!B:F,4,0))=0,VLOOKUP(B98,'OUTRAS BASES'!C:D,2,0),IF(A98="Insumo", VLOOKUP(B98,'SINAPI INSUMOS'!B:F,5,0),VLOOKUP(B98,'SINAPI COMP'!B:F,4,0))), VLOOKUP(B98,'OUTRAS BASES'!C:D,2,0)) -> 8.1 | H98: 24.3
A99: Insumo | B99: 14068 | C99: ORSE | D99: Tubo PVC para irrigação LF PN 80 Ø 50mm, linha Irriga-LF, Tigre ou similar | E99: UN | F99: 15.2 | G99: =IF(C99="SINAPI", IF( IF(A99="Insumo", VLOOKUP(B99,'SINAPI INSUMOS'!B:F,5,0), VLOOKUP(B99,'SINAPI COMP'!B:F,4,0))=0,VLOOKUP(B99,'OUTRAS BASES'!C:D,2,0),IF(A99="Insumo", VLOOKUP(B99,'SINAPI INSUMOS'!B:F,5,0),VLOOKUP(B99,'SINAPI COMP'!B:F,4,0))), VLOOKUP(B99,'OUTRAS BASES'!C:D,2,0)) -> 9.27 | H99: 140.904
A100: Insumo | B100: 1434 | C100: ORSE | D100: Luva pvc rigido roscavel d=2 " | E100: UN | F100: 1 | G100: =IF(C100="SINAPI", IF( IF(A100="Insumo", VLOOKUP(B100,'SINAPI INSUMOS'!B:F,5,0), VLOOKUP(B100,'SINAPI COMP'!B:F,4,0))=0,VLOOKUP(B100,'OUTRAS BASES'!C:D,2,0),IF(A100="Insumo", VLOOKUP(B100,'SINAPI INSUMOS'!B:F,5,0),VLOOKUP(B100,'SINAPI COMP'!B:F,4,0))), VLOOKUP(B100,'OUTRAS BASES'!C:D,2,0)) -> 28.58 | H100: 28.58
A101: Insumo | B101: 90 | C101: ORSE | D101: Adaptador curto, pvc rigido soldavel, c/ bolsa e rosca p/ registro, d= 50mm x 1 1/2” | E101: UN | F101: 1 | G101: =IF(C101="SINAPI", IF( IF(A101="Insumo", VLOOKUP(B101,'SINAPI INSUMOS'!B:F,5,0), VLOOKUP(B101,'SINAPI COMP'!B:F,4,0))=0,VLOOKUP(B101,'OUTRAS BASES'!C:D,2,0),IF(A101="Insumo", VLOOKUP(B101,'SINAPI INSUMOS'!B:F,5,0),VLOOKUP(B101,'SINAPI COMP'!B:F,4,0))), VLOOKUP(B101,'OUTRAS BASES'!C:D,2,0)) -> 4.2 | H101: 4.2
A102: Insumo | B102: 99 | C102: SINAPI | D102: ADAPTADOR PVC SOLDAVEL, COM FLANGE E ANEL DE VEDACAO, 50 MM X 1 1/2", PARA CAIXA D'AGUA | E102: UN | F102: 2 | G102: =IF(C102="SINAPI", IF( IF(A102="Insumo", VLOOKUP(B102,'SINAPI INSUMOS'!B:F,5,0), VLOOKUP(B102,'SINAPI COMP'!B:F,4,0))=0,VLOOKUP(B102,'OUTRAS BASES'!C:D,2,0),IF(A102="Insumo", VLOOKUP(B102,'SINAPI INSUMOS'!B:F,5,0),VLOOKUP(B102,'SINAPI COMP'!B:F,4,0))), VLOOKUP(B102,'OUTRAS BASES'!C:D,2,0)) -> 26.01 | H102: 52.02
A103: Insumo | B103: 119 | C103: SINAPI | D103: ADESIVO PLASTICO PARA PVC, BISNAGA COM 75 GR | E103: UN | F103: 0.45 | G103: =IF(C103="SINAPI", IF( IF(A103="Insumo", VLOOKUP(B103,'SINAPI INSUMOS'!B:F,5,0), VLOOKUP(B103,'SINAPI COMP'!B:F,4,0))=0,VLOOKUP(B103,'OUTRAS BASES'!C:D,2,0),IF(A103="Insumo", VLOOKUP(B103,'SINAPI INSUMOS'!B:F,5,0),VLOOKUP(B103,'SINAPI COMP'!B:F,4,0))), VLOOKUP(B103,'OUTRAS BASES'!C:D,2,0)) -> 6.5 | H103: 2.925
A104: 5.2 | B104: Código | C104: Banco | D104: Descrição | E104: Und | F104: Quant. | G104: Valor Unit | H104: Total
A105: Composição | B105: COMPOSIÇÃO - 13 | C105: Próprio | D105: Fornecimento e execução de reservatório apoiado de 5 m³ | E105: un | F105: 1 | G105: =SUM(H106:H115) -> 7611.333375 | H105: =G105 -> 7611.333375
A106: Composição Auxiliar | B106: 88309 | C106: SINAPI | D106: PEDREIRO COM ENCARGOS COMPLEMENTARES | E106: H | F106: 3 | G106: =IF(C106="SINAPI", IF( IF(A106="Insumo", VLOOKUP(B106,'SINAPI INSUMOS'!B:F,5,0), VLOOKUP(B106,'SINAPI COMP'!B:F,4,0))=0,VLOOKUP(B106,'OUTRAS BASES'!C:D,2,0),IF(A106="Insumo", VLOOKUP(B106,'SINAPI INSUMOS'!B:F,5,0),VLOOKUP(B106,'SINAPI COMP'!B:F,4,0))), VLOOKUP(B106,'OUTRAS BASES'!C:D,2,0)) -> 25.21 | H106: =(G106*F106) -> 75.63
A107: Composição Auxiliar | B107: 88316 | C107: SINAPI | D107: SERVENTE COM ENCARGOS COMPLEMENTARES | E107: H | F107: 3 | G107: =IF(C107="SINAPI", IF( IF(A107="Insumo", VLOOKUP(B107,'SINAPI INSUMOS'!B:F,5,0), VLOOKUP(B107,'SINAPI COMP'!B:F,4,0))=0,VLOOKUP(B107,'OUTRAS BASES'!C:D,2,0),IF(A107="Insumo", VLOOKUP(B107,'SINAPI INSUMOS'!B:F,5,0),VLOOKUP(B107,'SINAPI COMP'!B:F,4,0))), VLOOKUP(B107,'OUTRAS BASES'!C:D,2,0)) -> 20.27 | H107: 60.81
A108: Composição Auxiliar | B108: 102617 | C108: SINAPI | D108: CAIXA D´ÁGUA EM POLIÉSTER REFORÇADO COM FIBRA DE VIDRO, 5000 LITROS - FORNECIMENTO E INSTALAÇÃO. AF_06/2021 | E108: UN | F108: 1 | G108: =IF(C108="SINAPI", IF( IF(A108="Insumo", VLOOKUP(B108,'SINAPI INSUMOS'!B:F,5,0), VLOOKUP(B108,'SINAPI COMP'!B:F,4,0))=0,VLOOKUP(B108,'OUTRAS BASES'!C:D,2,0),IF(A108="Insumo", VLOOKUP(B108,'SINAPI INSUMOS'!B:F,5,0),VLOOKUP(B108,'SINAPI COMP'!B:F,4,0))), VLOOKUP(B108,'OUTRAS BASES'!C:D,2,0)) -> 3503.76 | H108: 3503.76
A109: Composição Auxiliar | B109: 92767 | C109: SINAPI | D109: ARMAÇÃO DE LAJE DE UMA ESTRUTURA CONVENCIONAL DE CONCRETO ARMADO UTILIZANDO AÇO CA-60 DE 4,2 MM - MONTAGEM. AF_12/2015 | E109: KG | F109: 3.04 | G109: =IF(C109="SINAPI", IF( IF(A109="Insumo", VLOOKUP(B109,'SINAPI INSUMOS'!B:F,5,0), VLOOKUP(B109,'SINAPI COMP'!B:F,4,0))=0,VLOOKUP(B109,'OUTRAS BASES'!C:D,2,0),IF(A109="Insumo", VLOOKUP(B109,'SINAPI INSUMOS'!B:F,5,0),VLOOKUP(B109,'SINAPI COMP'!B:F,4,0))), VLOOKUP(B109,'OUTRAS BASES'!C:D,2,0)) -> 14.51 | H109: 44.1104
A110: Composição Auxiliar | B110: 104917 | C110: SINAPI | D110: ARMAÇAO DE SAPATA ISOLADA, VIGA BALDRAME E SAPATA CORRIDA UTILIZANDO AÇO CA-50 DE 6,3 MM - MONTAGEM AD_01/2024 | E110: KG | F110: 9.3 | G110: =IF(C110="SINAPI", IF( IF(A110="Insumo", VLOOKUP(B110,'SINAPI INSUMOS'!B:F,5,0), VLOOKUP(B110,'SINAPI COMP'!B:F,4,0))=0,VLOOKUP(B110,'OUTRAS BASES'!C:D,2,0),IF(A110="Insumo", VLOOKUP(B110,'SINAPI INSUMOS'!B:F,5,0),VLOOKUP(B110,'SINAPI COMP'!B:F,4,0))), VLOOKUP(B110,'OUTRAS BASES'!C:D,2,0)) -> 14.47 | H110: 134.571
A111: Composição Auxiliar | B111: 92760 | C111: SINAPI | D111: ARMAÇÃO DE PILAR OU VIGA DE ESTRTURA CONVENCIONAL DE CONCRETO ARMADO UTILIZANDO AÇO CA-50 DE 6,3 MM - MONTAGEM. AF_12/2015 | E111: KG | F111: 16.3 | G111: =IF(C111="SINAPI", IF( IF(A111="Insumo", VLOOKUP(B111,'SINAPI INSUMOS'!B:F,5,0), VLOOKUP(B111,'SINAPI COMP'!B:F,4,0))=0,VLOOKUP(B111,'OUTRAS BASES'!C:D,2,0),IF(A111="Insumo", VLOOKUP(B111,'SINAPI INSUMOS'!B:F,5,0),VLOOKUP(B111,'SINAPI COMP'!B:F,4,0))), VLOOKUP(B111,'OUTRAS BASES'!C:D,2,0)) -> 12.46 | H111: 203.098
A112: Composição Auxiliar | B112: 94964 | C112: SINAPI | D112: CONCRETO FCK = 20MPA, TRAÇO 1:2,7:3 (EM MASSA SECA DE CIMENTO/ AREIA MÉDIA/ BRITA 1) - PREPARO MECÂNICO COM BETONEIRA 400 L. AF_05/2021 | E112: m³ | F112: 1.56 | G112: =IF(C112="SINAPI", IF( IF(A112="Insumo", VLOOKUP(B112,'SINAPI INSUMOS'!B:F,5,0), VLOOKUP(B112,'SINAPI COMP'!B:F,4,0))=0,VLOOKUP(B112,'OUTRAS BASES'!C:D,2,0),IF(A112="Insumo", VLOOKUP(B112,'SINAPI INSUMOS'!B:F,5,0),VLOOKUP(B112,'SINAPI COMP'!B:F,4,0))), VLOOKUP(B112,'OUTRAS BASES'!C:D,2,0)) -> 480.22 | H112: 749.1432
A113: Composição Auxiliar | B113: 84651 | C113: SINAPI | D113: PINTURA COM TINTA IMPERMEAVEL MINERAL EM PO, DUAS DEMAOS | E113: m² | F113: 7.85 | G113: =IF(C113="SINAPI", IF( IF(A113="Insumo", VLOOKUP(B113,'SINAPI INSUMOS'!B:F,5,0), VLOOKUP(B113,'SINAPI COMP'!B:F,4,0))=0,VLOOKUP(B113,'OUTRAS BASES'!C:D,2,0),IF(A113="Insumo", VLOOKUP(B113,'SINAPI INSUMOS'!B:F,5,0),VLOOKUP(B113,'SINAPI COMP'!B:F,4,0))), VLOOKUP(B113,'OUTRAS BASES'!C:D,2,0)) -> 12.5975 | H113: 98.890375
A114: Composição Auxiliar | B114: 92263 | C114: SINAPI | D114: FABRICAÇÃO DE FÔRMA PARA PILARES E ESTRUTURAS SIMILARES, EM CHAPA DE MADEIRA COMPENSADA RESINADA, E = 17 MM. AF_09/2020 | E114: KG | F114: 16.99 | G114: =IF(C114="SINAPI", IF( IF(A114="Insumo", VLOOKUP(B114,'SINAPI INSUMOS'!B:F,5,0), VLOOKUP(B114,'SINAPI COMP'!B:F,4,0))=0,VLOOKUP(B114,'OUTRAS BASES'!C:D,2,0),IF(A114="Insumo", VLOOKUP(B114,'SINAPI INSUMOS'!B:F,5,0),VLOOKUP(B114,'SINAPI COMP'!B:F,4,0))), VLOOKUP(B114,'OUTRAS BASES'!C:D,2,0)) -> 149.96 | H114: 2547.8204
A115: Composição Auxiliar | B115: 92770 | C115: SINAPI | D115: ARMAÇÃO DE LAJE DE UMA ESTRUTURA CONVENCIONAL DE CONCRETO ARMADO UTILIZANDO AÇO CA-50 DE 8,0 MM - MONTAGEM. AF_06/2022 | E115: KG | F115: 17.2 | G115: =IF(C115="SINAPI", IF( IF(A115="Insumo", VLOOKUP(B115,'SINAPI INSUMOS'!B:F,5,0), VLOOKUP(B115,'SINAPI COMP'!B:F,4,0))=0,VLOOKUP(B115,'OUTRAS BASES'!C:D,2,0),IF(A115="Insumo", VLOOKUP(B115,'SINAPI INSUMOS'!B:F,5,0),VLOOKUP(B115,'SINAPI COMP'!B:F,4,0))), VLOOKUP(B115,'OUTRAS BASES'!C:D,2,0)) -> 11.25 | H115: 193.5
A116: 6 | D116: BEBEDOURO | H116: 1803.29
A117: 6.1 | B117: Código | C117: Banco | D117: Descrição | E117: Und | F117: Quant. | G117: Valor Unit | H117: Total
A118: Composição | B118: COMPOSIÇÃO - 14 | C118: Próprio | D118: Serviço de execução do bebedouro em concreto armado, incluso materiais. | E118: un | F118: 1 | G118: =SUM(H119:H124) -> 1598.07602 | H118: =G118 -> 1598.07602
A119: Composição Auxiliar | B119: 92916 | C119: SINAPI | D119: ARMAÇÃODE ESTRUTURAS DIVERSAS DE CONCRETO ARMADO, EXCETO VIGA, PILARES, LAJES E FUNDAÇÕES, UTILIZANDO AÇO CA-50 DE 6,3 MM - MONTAGEM. AF_06/2022 | E119: KG | F119: 6 | G119: =IF(C119="SINAPI", IF( IF(A119="Insumo", VLOOKUP(B119,'SINAPI INSUMOS'!B:F,5,0), VLOOKUP(B119,'SINAPI COMP'!B:F,4,0))=0,VLOOKUP(B119,'OUTRAS BASES'!C:D,2,0),IF(A119="Insumo", VLOOKUP(B119,'SINAPI INSUMOS'!B:F,5,0),VLOOKUP(B119,'SINAPI COMP'!B:F,4,0))), VLOOKUP(B119,'OUTRAS BASES'!C:D,2,0)) -> 14.28 | H119: =(G119*F119) -> 85.68
A120: Composição Auxiliar | B120: 92915 | C120: SINAPI | D120: ARMAÇÃODE ESTRUTURAS DIVERSAS DE CONCRETO ARMADO, EXCETO VIGA, PILARES, LAJES E FUNDAÇÕES, UTILIZANDO AÇO CA-60 DE 5,0 MM - MONTAGEM. AF_06/2022 | E120: KG | F120: 13 | G120: =IF(C120="SINAPI", IF( IF(A120="Insumo", VLOOKUP(B120,'SINAPI INSUMOS'!B:F,5,0), VLOOKUP(B120,'SINAPI COMP'!B:F,4,0))=0,VLOOKUP(B120,'OUTRAS BASES'!C:D,2,0),IF(A120="Insumo", VLOOKUP(B120,'SINAPI INSUMOS'!B:F,5,0),VLOOKUP(B120,'SINAPI COMP'!B:F,4,0))), VLOOKUP(B120,'OUTRAS BASES'!C:D,2,0)) -> 15.66 | H120: 203.58
A121: Composição Auxiliar | B121: 92921 | C121: SINAPI | D121: ARMAÇÃODE ESTRUTURAS DIVERSAS DE CONCRETO ARMADO, EXCETO VIGA, PILARES, LAJES E FUNDAÇÕES, UTILIZANDO AÇO CA-50 DE 12,5 MM - MONTAGEM. AF_06/2022 | E121: KG | F121: 12 | G121: =IF(C121="SINAPI", IF( IF(A121="Insumo", VLOOKUP(B121,'SINAPI INSUMOS'!B:F,5,0), VLOOKUP(B121,'SINAPI COMP'!B:F,4,0))=0,VLOOKUP(B121,'OUTRAS BASES'!C:D,2,0),IF(A121="Insumo", VLOOKUP(B121,'SINAPI INSUMOS'!B:F,5,0),VLOOKUP(B121,'SINAPI COMP'!B:F,4,0))), VLOOKUP(B121,'OUTRAS BASES'!C:D,2,0)) -> 9.41 | H121: 112.92
A122: Composição Auxiliar | B122: 94971 | C122: SINAPI | D122: CONCRETO FCK = 25MPA, TRAÇO 1:2,3:2:2,7(EM MASSA SECA DE CIMENTO, AREIA MÉDIA, BRITA 1) - PREPARO MECÂNICO COM BETONEIRA 600l. AF_05/2021 | E122: m³ | F122: 0.374 | G122: =IF(C122="SINAPI", IF( IF(A122="Insumo", VLOOKUP(B122,'SINAPI INSUMOS'!B:F,5,0), VLOOKUP(B122,'SINAPI COMP'!B:F,4,0))=0,VLOOKUP(B122,'OUTRAS BASES'!C:D,2,0),IF(A122="Insumo", VLOOKUP(B122,'SINAPI INSUMOS'!B:F,5,0),VLOOKUP(B122,'SINAPI COMP'!B:F,4,0))), VLOOKUP(B122,'OUTRAS BASES'!C:D,2,0)) -> 492.58 | H122: 184.22492
A123: Composição Auxiliar | B123: 92263 | C123: SINAPI | D123: FABRICAÇÃO DE FÔRMA PARA PILARES E ESTRUTURAS SIMILARES, EM CHAPA DE MADEIRA COMPENSADA RESINADA, E = 17 MM. AF_09/2020 | E123: m² | F123: 6.21 | G123: =IF(C123="SINAPI", IF( IF(A123="Insumo", VLOOKUP(B123,'SINAPI INSUMOS'!B:F,5,0), VLOOKUP(B123,'SINAPI COMP'!B:F,4,0))=0,VLOOKUP(B123,'OUTRAS BASES'!C:D,2,0),IF(A123="Insumo", VLOOKUP(B123,'SINAPI INSUMOS'!B:F,5,0),VLOOKUP(B123,'SINAPI COMP'!B:F,4,0))), VLOOKUP(B123,'OUTRAS BASES'!C:D,2,0)) -> 149.96 | H123: 931.2516
A124: Composição Auxiliar | B124: 15.07.09 | C124: EMBASA | D124: PINTURA LÁTEX ACRÍLICA, APLICAÇÃO MANUAL EM DUAS DEMÃOS | E124: m² | F124: 6.21 | G124: =IF(C124="SINAPI", IF( IF(A124="Insumo", VLOOKUP(B124,'SINAPI INSUMOS'!B:F,5,0), VLOOKUP(B124,'SINAPI COMP'!B:F,4,0))=0,VLOOKUP(B124,'OUTRAS BASES'!C:D,2,0),IF(A124="Insumo", VLOOKUP(B124,'SINAPI INSUMOS'!B:F,5,0),VLOOKUP(B124,'SINAPI COMP'!B:F,4,0))), VLOOKUP(B124,'OUTRAS BASES'!C:D,2,0)) -> 12.95 | H124: 80.4195
A125: 7 | D125: CHAFARIZ | H125: 1295.57
A126: 7.1 | B126: Código | C126: Banco | D126: Descrição | E126: Und | F126: Quant. | G126: Valor Unit | H126: Total
A127: Composição | B127: COMPOSIÇÃO - 15 | C127: Próprio | D127: Fornecimento de material e instalação do chafariz | E127: un | F127: 1 | G127: =SUM(H128:H146) -> 915.3001162 | H127: =G127 -> 915.3001162
A128: Composição Auxiliar | B128: 88267 | C128: SINAPI | D128: ENCANADOR OU BOMBEIRO HIDRÁULICO COM ENCARGOS COMPLEMENTARES | E128: H | F128: 2 | G128: =IF(C128="SINAPI", IF( IF(A128="Insumo", VLOOKUP(B128,'SINAPI INSUMOS'!B:F,5,0), VLOOKUP(B128,'SINAPI COMP'!B:F,4,0))=0,VLOOKUP(B128,'OUTRAS BASES'!C:D,2,0),IF(A128="Insumo", VLOOKUP(B128,'SINAPI INSUMOS'!B:F,5,0),VLOOKUP(B128,'SINAPI COMP'!B:F,4,0))), VLOOKUP(B128,'OUTRAS BASES'!C:D,2,0)) -> 24.19 | H128: =(G128*F128) -> 48.38
A129: Composição Auxiliar | B129: 88248 | C129: SINAPI | D129: AUXILIAR DE ENCANADOR OU BOMBEIRO HIDRÁULICO COM ENCARGOS COMPLEMENTARES | E129: H | F129: 2 | G129: =IF(C129="SINAPI", IF( IF(A129="Insumo", VLOOKUP(B129,'SINAPI INSUMOS'!B:F,5,0), VLOOKUP(B129,'SINAPI COMP'!B:F,4,0))=0,VLOOKUP(B129,'OUTRAS BASES'!C:D,2,0),IF(A129="Insumo", VLOOKUP(B129,'SINAPI INSUMOS'!B:F,5,0),VLOOKUP(B129,'SINAPI COMP'!B:F,4,0))), VLOOKUP(B129,'OUTRAS BASES'!C:D,2,0)) -> 20.51 | H129: 41.02
A130: Composição Auxiliar | B130: 93358 | C130: SINAPI | D130: ESCAVAÇÃO MANUAL DE VALA COM PROFUNDIDADE MENOR OU IGUAL A 1,30 M. AF_02/2021 | E130: m³ | F130: 0.0785398 | G130: =IF(C130="SINAPI", IF( IF(A130="Insumo", VLOOKUP(B130,'SINAPI INSUMOS'!B:F,5,0), VLOOKUP(B130,'SINAPI COMP'!B:F,4,0))=0,VLOOKUP(B130,'OUTRAS BASES'!C:D,2,0),IF(A130="Insumo", VLOOKUP(B130,'SINAPI INSUMOS'!B:F,5,0),VLOOKUP(B130,'SINAPI COMP'!B:F,4,0))), VLOOKUP(B130,'OUTRAS BASES'!C:D,2,0)) -> 80.18 | H130: 6.297321164
A131: Composição Auxiliar | B131: 96533 | C131: SINAPI | D131: FABRICAÇÃO, MONTAGEM E DESMONTAGEM DE FÔRMA PARA VIGA BALDRAME, EM MADEIRA SERRADA, E=25 MM, 2 UTILIZAÇÕES. AF_01/2024 | E131: m² | F131: 0.628 | G131: =IF(C131="SINAPI", IF( IF(A131="Insumo", VLOOKUP(B131,'SINAPI INSUMOS'!B:F,5,0), VLOOKUP(B131,'SINAPI COMP'!B:F,4,0))=0,VLOOKUP(B131,'OUTRAS BASES'!C:D,2,0),IF(A131="Insumo", VLOOKUP(B131,'SINAPI INSUMOS'!B:F,5,0),VLOOKUP(B131,'SINAPI COMP'!B:F,4,0))), VLOOKUP(B131,'OUTRAS BASES'!C:D,2,0)) -> 107.32 | H131: 67.39696
A132: Composição Auxiliar | B132: 94963 | C132: SINAPI | D132: CONCRETO FCK = 15MPA, TRAÇO 1:3,4:3,5 (EM MASSA SECA DE CIMENTO/AREIA/MÉDIA/BRITA 1) - PREPARO MECÂNICO COM BETONEIRA 400 L. AF_05/2021 | E132: m³ | F132: 0.157 | G132: =IF(C132="SINAPI", IF( IF(A132="Insumo", VLOOKUP(B132,'SINAPI INSUMOS'!B:F,5,0), VLOOKUP(B132,'SINAPI COMP'!B:F,4,0))=0,VLOOKUP(B132,'OUTRAS BASES'!C:D,2,0),IF(A132="Insumo", VLOOKUP(B132,'SINAPI INSUMOS'!B:F,5,0),VLOOKUP(B132,'SINAPI COMP'!B:F,4,0))), VLOOKUP(B132,'OUTRAS BASES'!C:D,2,0)) -> 444 | H132: 69.708
A133: Composição Auxiliar | B133: 87904 | C133: SINAPI | D133: CHAPISCO APLICADO EM ALVENARIA (COM PRESENÇA DE VÃOS) E ESTRUTURAS DE CONCRETO DE FACHADA, COM COLHER DE PEDREIRO. ARGAMASSA TRAÇO 1:3 COM PREPARO MANUAL. AF_10/2022 | E133: m² | F133: 0.314 | G133: =IF(C133="SINAPI", IF( IF(A133="Insumo", VLOOKUP(B133,'SINAPI INSUMOS'!B:F,5,0), VLOOKUP(B133,'SINAPI COMP'!B:F,4,0))=0,VLOOKUP(B133,'OUTRAS BASES'!C:D,2,0),IF(A133="Insumo", VLOOKUP(B133,'SINAPI INSUMOS'!B:F,5,0),VLOOKUP(B133,'SINAPI COMP'!B:F,4,0))), VLOOKUP(B133,'OUTRAS BASES'!C:D,2,0)) -> 7.96 | H133: 2.49944
A134: Composição Auxiliar | B134: 87529 | C134: SINAPI | D134: MASSA ÚNICA, EM ARGAMASSA TRAÇO 1:2:8, PREPARO MECÂNICO, APLICADA MANUALMENTE EM PAREDES INTERNAS DE AMBIENTES COM ÁREA ENTRE 5M² E 10M², E = 17,5MM, COM TALISCAS. AF_03/2024 | E134: m² | F134: 0.314 | G134: =IF(C134="SINAPI", IF( IF(A134="Insumo", VLOOKUP(B134,'SINAPI INSUMOS'!B:F,5,0), VLOOKUP(B134,'SINAPI COMP'!B:F,4,0))=0,VLOOKUP(B134,'OUTRAS BASES'!C:D,2,0),IF(A134="Insumo", VLOOKUP(B134,'SINAPI INSUMOS'!B:F,5,0),VLOOKUP(B134,'SINAPI COMP'!B:F,4,0))), VLOOKUP(B134,'OUTRAS BASES'!C:D,2,0)) -> 34.27 | H134: 10.76078
A135: Composição Auxiliar | B135: 84651 | C135: SINAPI | D135: PINTURA COM TINTA IMPERMEAVEL MINERAL EM PO, DUAS DEMAOS | E135: m² | F135: 0.314 | G135: =IF(C135="SINAPI", IF( IF(A135="Insumo", VLOOKUP(B135,'SINAPI INSUMOS'!B:F,5,0), VLOOKUP(B135,'SINAPI COMP'!B:F,4,0))=0,VLOOKUP(B135,'OUTRAS BASES'!C:D,2,0),IF(A135="Insumo", VLOOKUP(B135,'SINAPI INSUMOS'!B:F,5,0),VLOOKUP(B135,'SINAPI COMP'!B:F,4,0))), VLOOKUP(B135,'OUTRAS BASES'!C:D,2,0)) -> 12.5975 | H135: 3.955615
A136: Insumo | B136: 765 | C136: SINAPI | D136: BUCHA DE REDUCAO DE FERRO GALVANIZADO, COM ROSCA BSP, DE 1" X 3/4" | E136: UN | F136: 2 | G136: =IF(C136="SINAPI", IF( IF(A136="Insumo", VLOOKUP(B136,'SINAPI INSUMOS'!B:F,5,0), VLOOKUP(B136,'SINAPI COMP'!B:F,4,0))=0,VLOOKUP(B136,'OUTRAS BASES'!C:D,2,0),IF(A136="Insumo", VLOOKUP(B136,'SINAPI INSUMOS'!B:F,5,0),VLOOKUP(B136,'SINAPI COMP'!B:F,4,0))), VLOOKUP(B136,'OUTRAS BASES'!C:D,2,0)) -> 10.43 | H136: 20.86
A137: Insumo | B137: 9887 | C137: SINAPI | D137: UNIAO DE FERRO GALVANIZADO, COM ROSCA BSP, COM ASSENTO PLANO, DE 2" | E137: UN | F137: 2 | G137: =IF(C137="SINAPI", IF( IF(A137="Insumo", VLOOKUP(B137,'SINAPI INSUMOS'!B:F,5,0), VLOOKUP(B137,'SINAPI COMP'!B:F,4,0))=0,VLOOKUP(B137,'OUTRAS BASES'!C:D,2,0),IF(A137="Insumo", VLOOKUP(B137,'SINAPI INSUMOS'!B:F,5,0),VLOOKUP(B137,'SINAPI COMP'!B:F,4,0))), VLOOKUP(B137,'OUTRAS BASES'!C:D,2,0)) -> 106.17 | H137: =F137*G137 -> 212.34
A138: Insumo | B138: 21013 | C138: SINAPI | D138: TUBO ACO GALVANIZADO COM COSTURA, CLASSE LEVE, DN 50 MM ( 2"), E = 3,00 MM, *4,40* KG/M (NBR 5580) | E138: M | F138: 1.8 | G138: =IF(C138="SINAPI", IF( IF(A138="Insumo", VLOOKUP(B138,'SINAPI INSUMOS'!B:F,5,0), VLOOKUP(B138,'SINAPI COMP'!B:F,4,0))=0,VLOOKUP(B138,'OUTRAS BASES'!C:D,2,0),IF(A138="Insumo", VLOOKUP(B138,'SINAPI INSUMOS'!B:F,5,0),VLOOKUP(B138,'SINAPI COMP'!B:F,4,0))), VLOOKUP(B138,'OUTRAS BASES'!C:D,2,0)) -> 67.19 | H138: 120.942
A139: Insumo | B139: 6298 | C139: SINAPI | D139: TE DE FERRO GALVANIZADO, DE 2" | E139: UN | F139: 1 | G139: =IF(C139="SINAPI", IF( IF(A139="Insumo", VLOOKUP(B139,'SINAPI INSUMOS'!B:F,5,0), VLOOKUP(B139,'SINAPI COMP'!B:F,4,0))=0,VLOOKUP(B139,'OUTRAS BASES'!C:D,2,0),IF(A139="Insumo", VLOOKUP(B139,'SINAPI INSUMOS'!B:F,5,0),VLOOKUP(B139,'SINAPI COMP'!B:F,4,0))), VLOOKUP(B139,'OUTRAS BASES'!C:D,2,0)) -> 69.15 | H139: 69.15
A140: Insumo | B140: 3471 | C140: SINAPI | D140: COTOVELO 90 GRAUS DE FERRO GALVANIZADO, COM ROSCA BSP, DE 2" | E140: UN | F140: 1 | G140: =IF(C140="SINAPI", IF( IF(A140="Insumo", VLOOKUP(B140,'SINAPI INSUMOS'!B:F,5,0), VLOOKUP(B140,'SINAPI COMP'!B:F,4,0))=0,VLOOKUP(B140,'OUTRAS BASES'!C:D,2,0),IF(A140="Insumo", VLOOKUP(B140,'SINAPI INSUMOS'!B:F,5,0),VLOOKUP(B140,'SINAPI COMP'!B:F,4,0))), VLOOKUP(B140,'OUTRAS BASES'!C:D,2,0)) -> 52.01 | H140: 52.01
A141: Insumo | B141: 113 | C141: SINAPI | D141: ADAPTADOR PVC SOLDAVEL CURTO COM BOLSA E ROSCA, 60 MM X 2", PARA AGUA FRIA | E141: UN | F141: 1 | G141: =IF(C141="SINAPI", IF( IF(A141="Insumo", VLOOKUP(B141,'SINAPI INSUMOS'!B:F,5,0), VLOOKUP(B141,'SINAPI COMP'!B:F,4,0))=0,VLOOKUP(B141,'OUTRAS BASES'!C:D,2,0),IF(A141="Insumo", VLOOKUP(B141,'SINAPI INSUMOS'!B:F,5,0),VLOOKUP(B141,'SINAPI COMP'!B:F,4,0))), VLOOKUP(B141,'OUTRAS BASES'!C:D,2,0)) -> 11.08 | H141: 11.08
A142: Insumo | B142: 818 | C142: SINAPI | D142: BUCHA DE REDUCAO DE PVC, SOLDAVEL, CURTA, COM 60 X 50 MM, PARA AGUA FRIA PREDIAL | E142: UN | F142: 1 | G142: =IF(C142="SINAPI", IF( IF(A142="Insumo", VLOOKUP(B142,'SINAPI INSUMOS'!B:F,5,0), VLOOKUP(B142,'SINAPI COMP'!B:F,4,0))=0,VLOOKUP(B142,'OUTRAS BASES'!C:D,2,0),IF(A142="Insumo", VLOOKUP(B142,'SINAPI INSUMOS'!B:F,5,0),VLOOKUP(B142,'SINAPI COMP'!B:F,4,0))), VLOOKUP(B142,'OUTRAS BASES'!C:D,2,0)) -> 6.76 | H142: 6.76
A143: Insumo | B143: 7604 | C143: SINAPI | D143: TORNEIRA METALICA CROMADA PARA TANQUE / JARDIM, SEM BICO , CANO LONGO, DE PAREDE, PADRAO POPULAR / USO GERAL, 1/2 " OU 3/4 " (REF 1126) | E143: UN | F143: 2 | G143: =IF(C143="SINAPI", IF( IF(A143="Insumo", VLOOKUP(B143,'SINAPI INSUMOS'!B:F,5,0), VLOOKUP(B143,'SINAPI COMP'!B:F,4,0))=0,VLOOKUP(B143,'OUTRAS BASES'!C:D,2,0),IF(A143="Insumo", VLOOKUP(B143,'SINAPI INSUMOS'!B:F,5,0),VLOOKUP(B143,'SINAPI COMP'!B:F,4,0))), VLOOKUP(B143,'OUTRAS BASES'!C:D,2,0)) -> 52.86 | H143: 105.72
A144: Insumo | B144: 119 | C144: SINAPI | D144: ADESIVO PLASTICO PARA PVC, BISNAGA COM 75 GR | E144: UN | F144: 1 | G144: =IF(C144="SINAPI", IF( IF(A144="Insumo", VLOOKUP(B144,'SINAPI INSUMOS'!B:F,5,0), VLOOKUP(B144,'SINAPI COMP'!B:F,4,0))=0,VLOOKUP(B144,'OUTRAS BASES'!C:D,2,0),IF(A144="Insumo", VLOOKUP(B144,'SINAPI INSUMOS'!B:F,5,0),VLOOKUP(B144,'SINAPI COMP'!B:F,4,0))), VLOOKUP(B144,'OUTRAS BASES'!C:D,2,0)) -> 6.5 | H144: 6.5
A145: Insumo | B145: 3146 | C145: SINAPI | D145: FITA VEDA ROSCA EM ROLOS DE 18 MM X 10 M (L X C) | E145: UN | F145: 1 | G145: =IF(C145="SINAPI", IF( IF(A145="Insumo", VLOOKUP(B145,'SINAPI INSUMOS'!B:F,5,0), VLOOKUP(B145,'SINAPI COMP'!B:F,4,0))=0,VLOOKUP(B145,'OUTRAS BASES'!C:D,2,0),IF(A145="Insumo", VLOOKUP(B145,'SINAPI INSUMOS'!B:F,5,0),VLOOKUP(B145,'SINAPI COMP'!B:F,4,0))), VLOOKUP(B145,'OUTRAS BASES'!C:D,2,0)) -> 2 | H145: 2
A146: Insumo | B146: 771 | C146: SINAPI | D146: BUCHA DE REDUCAO DE FERRO GALVANIZADO, COM ROSCA BSP, DE 2" X 1" | E146: UN | F146: 2 | G146: =IF(C146="SINAPI", IF( IF(A146="Insumo", VLOOKUP(B146,'SINAPI INSUMOS'!B:F,5,0), VLOOKUP(B146,'SINAPI COMP'!B:F,4,0))=0,VLOOKUP(B146,'OUTRAS BASES'!C:D,2,0),IF(A146="Insumo", VLOOKUP(B146,'SINAPI INSUMOS'!B:F,5,0),VLOOKUP(B146,'SINAPI COMP'!B:F,4,0))), VLOOKUP(B146,'OUTRAS BASES'!C:D,2,0)) -> 28.96 | H146: 57.92
A147: 8 | D147: CAVALETE | H147: 2002.68
A148: 8.1 | B148: Código | C148: Banco | D148: Descrição | E148: Und | F148: Quant. | G148: Valor Unit | H148: Total
A149: Composição | B149: COMPOSIÇÃO - 16 | C149: Próprio | D149: Fornecimento de conexões e Instalação do Cavalete com hidrômetro e clorador de pastilhas | E149: un | F149: 1 | G149: =SUM(H150:H167) -> 2329.52 | H149: =G149 -> 2329.52
A150: Composição Auxiliar | B150: 88248 | C150: SINAPI | D150: AUXILIAR DE ENCANADOR OU BOMBEIRO HIDRÁULICO COM ENCARGOS COMPLEMENTARES | E150: H | F150: 3 | G150: =IF(C150="SINAPI", IF( IF(A150="Insumo", VLOOKUP(B150,'SINAPI INSUMOS'!B:F,5,0), VLOOKUP(B150,'SINAPI COMP'!B:F,4,0))=0,VLOOKUP(B150,'OUTRAS BASES'!C:D,2,0),IF(A150="Insumo", VLOOKUP(B150,'SINAPI INSUMOS'!B:F,5,0),VLOOKUP(B150,'SINAPI COMP'!B:F,4,0))), VLOOKUP(B150,'OUTRAS BASES'!C:D,2,0)) -> 20.51 | H150: =(G150*F150) -> 61.53
A151: Insumo | B151: 9860 | C151: SINAPI | D151: TUBO PVC, ROSCAVEL, 2", PARA AGUA FRIA PREDIAL | E151: m | F151: 1.5 | G151: =IF(C151="SINAPI", IF( IF(A151="Insumo", VLOOKUP(B151,'SINAPI INSUMOS'!B:F,5,0), VLOOKUP(B151,'SINAPI COMP'!B:F,4,0))=0,VLOOKUP(B151,'OUTRAS BASES'!C:D,2,0),IF(A151="Insumo", VLOOKUP(B151,'SINAPI INSUMOS'!B:F,5,0),VLOOKUP(B151,'SINAPI COMP'!B:F,4,0))), VLOOKUP(B151,'OUTRAS BASES'!C:D,2,0)) -> 44.48 | H151: =F151*G151 -> 66.72
A152: Insumo | B152: 11831 | C152: SINAPI | D152: TORNEIRA PLASTICA PARA TANQUE 1/2 " OU 3/4 " COM BICO PARA MANGUEIRA | E152: UN | F152: 1 | G152: =IF(C152="SINAPI", IF( IF(A152="Insumo", VLOOKUP(B152,'SINAPI INSUMOS'!B:F,5,0), VLOOKUP(B152,'SINAPI COMP'!B:F,4,0))=0,VLOOKUP(B152,'OUTRAS BASES'!C:D,2,0),IF(A152="Insumo", VLOOKUP(B152,'SINAPI INSUMOS'!B:F,5,0),VLOOKUP(B152,'SINAPI COMP'!B:F,4,0))), VLOOKUP(B152,'OUTRAS BASES'!C:D,2,0)) -> 16.64 | H152: 16.64
A153: Insumo | B153: 9569 | C153: ORSE | D153: Adaptador pvc BSxRM d= 35mm x 1 1/2", linha Irriga-LF, Tigre ou similar un | E153: un | F153: 1 | G153: =IF(C153="SINAPI", IF( IF(A153="Insumo", VLOOKUP(B153,'SINAPI INSUMOS'!B:F,5,0), VLOOKUP(B153,'SINAPI COMP'!B:F,4,0))=0,VLOOKUP(B153,'OUTRAS BASES'!C:D,2,0),IF(A153="Insumo", VLOOKUP(B153,'SINAPI INSUMOS'!B:F,5,0),VLOOKUP(B153,'SINAPI COMP'!B:F,4,0))), VLOOKUP(B153,'OUTRAS BASES'!C:D,2,0)) -> 3.04 | H153: 3.04
A154: Insumo | B154: 3939 | C154: SINAPI | D154: LUVA DE FERRO GALVANIZADO, COM ROSCA BSP, DE 1 1/2" | E154: UN | F154: 1 | G154: =IF(C154="SINAPI", IF( IF(A154="Insumo", VLOOKUP(B154,'SINAPI INSUMOS'!B:F,5,0), VLOOKUP(B154,'SINAPI COMP'!B:F,4,0))=0,VLOOKUP(B154,'OUTRAS BASES'!C:D,2,0),IF(A154="Insumo", VLOOKUP(B154,'SINAPI INSUMOS'!B:F,5,0),VLOOKUP(B154,'SINAPI COMP'!B:F,4,0))), VLOOKUP(B154,'OUTRAS BASES'!C:D,2,0)) -> 23.91 | H154: 23.91
A155: Insumo | B155: 1798 | C155: SINAPI | D155: CURVA 90 GRAUS DE FERRO GALVANIZADO, COM ROSCA BSP MACHO, DE 2" | E155: UN | F155: 1 | G155: =IF(C155="SINAPI", IF( IF(A155="Insumo", VLOOKUP(B155,'SINAPI INSUMOS'!B:F,5,0), VLOOKUP(B155,'SINAPI COMP'!B:F,4,0))=0,VLOOKUP(B155,'OUTRAS BASES'!C:D,2,0),IF(A155="Insumo", VLOOKUP(B155,'SINAPI INSUMOS'!B:F,5,0),VLOOKUP(B155,'SINAPI COMP'!B:F,4,0))), VLOOKUP(B155,'OUTRAS BASES'!C:D,2,0)) -> 133.27 | H155: 133.27
A156: Insumo | B156: 9887 | C156: SINAPI | D156: UNIAO DE FERRO GALVANIZADO, COM ROSCA BSP, COM ASSENTO PLANO, DE 2" | E156: UN | F156: 1 | G156: =IF(C156="SINAPI", IF( IF(A156="Insumo", VLOOKUP(B156,'SINAPI INSUMOS'!B:F,5,0), VLOOKUP(B156,'SINAPI COMP'!B:F,4,0))=0,VLOOKUP(B156,'OUTRAS BASES'!C:D,2,0),IF(A156="Insumo", VLOOKUP(B156,'SINAPI INSUMOS'!B:F,5,0),VLOOKUP(B156,'SINAPI COMP'!B:F,4,0))), VLOOKUP(B156,'OUTRAS BASES'!C:D,2,0)) -> 106.17 | H156: 106.17
A157: Insumo | B157: 00004181/SINAPI | C157: ORSE | D157: Niple de ferro galvanizado, com rosca bsp, de 2" | E157: un | F157: 2 | G157: =IF(C157="SINAPI", IF( IF(A157="Insumo", VLOOKUP(B157,'SINAPI INSUMOS'!B:F,5,0), VLOOKUP(B157,'SINAPI COMP'!B:F,4,0))=0,VLOOKUP(B157,'OUTRAS BASES'!C:D,2,0),IF(A157="Insumo", VLOOKUP(B157,'SINAPI INSUMOS'!B:F,5,0),VLOOKUP(B157,'SINAPI COMP'!B:F,4,0))), VLOOKUP(B157,'OUTRAS BASES'!C:D,2,0)) -> 36.64 | H157: 73.28
A158: Insumo | B158: 6028 | C158: SINAPI | D158: REGISTRO GAVETA BRUTO EM LATAO FORJADO, BITOLA 2 " (REF 1509) | E158: UN | F158: 1 | G158: =IF(C158="SINAPI", IF( IF(A158="Insumo", VLOOKUP(B158,'SINAPI INSUMOS'!B:F,5,0), VLOOKUP(B158,'SINAPI COMP'!B:F,4,0))=0,VLOOKUP(B158,'OUTRAS BASES'!C:D,2,0),IF(A158="Insumo", VLOOKUP(B158,'SINAPI INSUMOS'!B:F,5,0),VLOOKUP(B158,'SINAPI COMP'!B:F,4,0))), VLOOKUP(B158,'OUTRAS BASES'!C:D,2,0)) -> 138.78 | H158: 138.78
A159: Insumo | B159: 12775 | C159: SINAPI | D159: HIDROMETRO MULTIJATO / MEDIDOR DE AGUA, DN 1", VAZAO MAXIMA DE 7 M3/H, PARA AGUA POTAVEL FRIA, RELOJOARIA PLANA, CLASSE B, HORIZONTAL (SEM CONEXOES) | E159: UN | F159: 1 | G159: =IF(C159="SINAPI", IF( IF(A159="Insumo", VLOOKUP(B159,'SINAPI INSUMOS'!B:F,5,0), VLOOKUP(B159,'SINAPI COMP'!B:F,4,0))=0,VLOOKUP(B159,'OUTRAS BASES'!C:D,2,0),IF(A159="Insumo", VLOOKUP(B159,'SINAPI INSUMOS'!B:F,5,0),VLOOKUP(B159,'SINAPI COMP'!B:F,4,0))), VLOOKUP(B159,'OUTRAS BASES'!C:D,2,0)) -> 420.58 | H159: 420.58
A160: Insumo | B160: 771 | C160: SINAPI | D160: BUCHA DE REDUCAO DE FERRO GALVANIZADO, COM ROSCA BSP, DE 2" X 1" | E160: UN | F160: 2 | G160: =IF(C160="SINAPI", IF( IF(A160="Insumo", VLOOKUP(B160,'SINAPI INSUMOS'!B:F,5,0), VLOOKUP(B160,'SINAPI COMP'!B:F,4,0))=0,VLOOKUP(B160,'OUTRAS BASES'!C:D,2,0),IF(A160="Insumo", VLOOKUP(B160,'SINAPI INSUMOS'!B:F,5,0),VLOOKUP(B160,'SINAPI COMP'!B:F,4,0))), VLOOKUP(B160,'OUTRAS BASES'!C:D,2,0)) -> 28.96 | H160: 57.92
A161: Insumo | B161: 6305 | C161: SINAPI | D161: TE DE REDUCAO DE FERRO GALVANIZADO, COM ROSCA BSP, DE 2" X 1" | E161: UN | F161: 1 | G161: =IF(C161="SINAPI", IF( IF(A161="Insumo", VLOOKUP(B161,'SINAPI INSUMOS'!B:F,5,0), VLOOKUP(B161,'SINAPI COMP'!B:F,4,0))=0,VLOOKUP(B161,'OUTRAS BASES'!C:D,2,0),IF(A161="Insumo", VLOOKUP(B161,'SINAPI INSUMOS'!B:F,5,0),VLOOKUP(B161,'SINAPI COMP'!B:F,4,0))), VLOOKUP(B161,'OUTRAS BASES'!C:D,2,0)) -> 411.16 | H161: 411.16
A162: Insumo | B162: 764 | C162: SINAPI | D162: BUCHA DE REDUCAO DE FERRO GALVANIZADO, COM ROSCA BSP, DE 1" X 1/2" | E162: UN | F162: 1 | G162: =IF(C162="SINAPI", IF( IF(A162="Insumo", VLOOKUP(B162,'SINAPI INSUMOS'!B:F,5,0), VLOOKUP(B162,'SINAPI COMP'!B:F,4,0))=0,VLOOKUP(B162,'OUTRAS BASES'!C:D,2,0),IF(A162="Insumo", VLOOKUP(B162,'SINAPI INSUMOS'!B:F,5,0),VLOOKUP(B162,'SINAPI COMP'!B:F,4,0))), VLOOKUP(B162,'OUTRAS BASES'!C:D,2,0)) -> 109.89 | H162: 109.89
A163: Insumo | B163: 5128 | C163: ORSE | D163: Tampa de poço galvanizada em 6" | E163: UN | F163: 1 | G163: =IF(C163="SINAPI", IF( IF(A163="Insumo", VLOOKUP(B163,'SINAPI INSUMOS'!B:F,5,0), VLOOKUP(B163,'SINAPI COMP'!B:F,4,0))=0,VLOOKUP(B163,'OUTRAS BASES'!C:D,2,0),IF(A163="Insumo", VLOOKUP(B163,'SINAPI INSUMOS'!B:F,5,0),VLOOKUP(B163,'SINAPI COMP'!B:F,4,0))), VLOOKUP(B163,'OUTRAS BASES'!C:D,2,0)) -> 107.28 | H163: 107.28
A164: Insumo | B164: 1160 | C164: ORSE | D164: Joelho 45° ferro galvanizado d=2" | E164: UN | F164: 2 | G164: =IF(C164="SINAPI", IF( IF(A164="Insumo", VLOOKUP(B164,'SINAPI INSUMOS'!B:F,5,0), VLOOKUP(B164,'SINAPI COMP'!B:F,4,0))=0,VLOOKUP(B164,'OUTRAS BASES'!C:D,2,0),IF(A164="Insumo", VLOOKUP(B164,'SINAPI INSUMOS'!B:F,5,0),VLOOKUP(B164,'SINAPI COMP'!B:F,4,0))), VLOOKUP(B164,'OUTRAS BASES'!C:D,2,0)) -> 54.39 | H164: 108.78
A165: Insumo | B165: 53688 | C165: SBC | D165: VALVULA DE RETENCAO HORIZONTAL EM LATAO, ROSCA BSP 2" | E165: UN | F165: 1 | G165: =IF(C165="SINAPI", IF( IF(A165="Insumo", VLOOKUP(B165,'SINAPI INSUMOS'!B:F,5,0), VLOOKUP(B165,'SINAPI COMP'!B:F,4,0))=0,VLOOKUP(B165,'OUTRAS BASES'!C:D,2,0),IF(A165="Insumo", VLOOKUP(B165,'SINAPI INSUMOS'!B:F,5,0),VLOOKUP(B165,'SINAPI COMP'!B:F,4,0))), VLOOKUP(B165,'OUTRAS BASES'!C:D,2,0)) -> 192.66 | H165: =(G165*F165) -> 192.66
A166: Insumo | B166: 4194 | C166: SINAPI | D166: NIPLE DE REDUCAO DE FERRO GALVANIZADO, COM ROSCA BSP, DE 2" X 1 1/2" | E166: UN | F166: 1 | G166: =IF(C166="SINAPI", IF( IF(A166="Insumo", VLOOKUP(B166,'SINAPI INSUMOS'!B:F,5,0), VLOOKUP(B166,'SINAPI COMP'!B:F,4,0))=0,VLOOKUP(B166,'OUTRAS BASES'!C:D,2,0),IF(A166="Insumo", VLOOKUP(B166,'SINAPI INSUMOS'!B:F,5,0),VLOOKUP(B166,'SINAPI COMP'!B:F,4,0))), VLOOKUP(B166,'OUTRAS BASES'!C:D,2,0)) -> 46.94 | H166: =(G166*F166) -> 46.94
A167: Insumo | B167: 12464 | C167: ORSE | D167: Clorador dosador de cloro de pastilhas automático | E167: un | F167: 1 | G167: =IF(C167="SINAPI", IF( IF(A167="Insumo", VLOOKUP(B167,'SINAPI INSUMOS'!B:F,5,0), VLOOKUP(B167,'SINAPI COMP'!B:F,4,0))=0,VLOOKUP(B167,'OUTRAS BASES'!C:D,2,0),IF(A167="Insumo", VLOOKUP(B167,'SINAPI INSUMOS'!B:F,5,0),VLOOKUP(B167,'SINAPI COMP'!B:F,4,0))), VLOOKUP(B167,'OUTRAS BASES'!C:D,2,0)) -> 250.97 | H167: =(G167*F167) -> 250.97
A168: 9 | D168: INSTALAÇÕES HIDRÁULICAS POÇO E ADUTORA | H168: 20033.75
A169: 9.1 | B169: Código | C169: Banco | D169: Descrição | F169: Quant. | G169: Valor Unit | H169: Total
A170: Composição | B170: COMPOSIÇÃO - 17 | C170: Próprio | D170: Instalação da rede adutora poço-reservatório-bebedouro em PN80 e DN50MM | E170: Und | F170: 1 | G170: =SUM(H171:H173) -> 5.6725 | H170: =G170 -> 5.6725
A171: Composição Auxiliar | B171: 88316 | C171: SINAPI | D171: SERVENTE COM ENCARGOS COMPLEMENTARES | E171: m | F171: 0.05 | G171: =IF(C171="SINAPI", IF( IF(A171="Insumo", VLOOKUP(B171,'SINAPI INSUMOS'!B:F,5,0), VLOOKUP(B171,'SINAPI COMP'!B:F,4,0))=0,VLOOKUP(B171,'OUTRAS BASES'!C:D,2,0),IF(A171="Insumo", VLOOKUP(B171,'SINAPI INSUMOS'!B:F,5,0),VLOOKUP(B171,'SINAPI COMP'!B:F,4,0))), VLOOKUP(B171,'OUTRAS BASES'!C:D,2,0)) -> 20.27 | H171: =(G171*F171) -> 1.0135
A172: Composição Auxiliar | B172: 93358 | C172: SINAPI | D172: ESCAVAÇÃO MANUAL DE VALA COM PROFUNDIDADE MENOR OU IGUAL A 1,30 M. AF_02/2021 | E172: H | F172: 0.05 | G172: =IF(C172="SINAPI", IF( IF(A172="Insumo", VLOOKUP(B172,'SINAPI INSUMOS'!B:F,5,0), VLOOKUP(B172,'SINAPI COMP'!B:F,4,0))=0,VLOOKUP(B172,'OUTRAS BASES'!C:D,2,0),IF(A172="Insumo", VLOOKUP(B172,'SINAPI INSUMOS'!B:F,5,0),VLOOKUP(B172,'SINAPI COMP'!B:F,4,0))), VLOOKUP(B172,'OUTRAS BASES'!C:D,2,0)) -> 80.18 | H172: 4.009
A173: Insumo | B173: 119 | C173: SINAPI | D173: ADESIVO PLASTICO PARA PVC, BISNAGA COM 75 GR | E173: m³ | F173: 0.1 | G173: =IF(C173="SINAPI", IF( IF(A173="Insumo", VLOOKUP(B173,'SINAPI INSUMOS'!B:F,5,0), VLOOKUP(B173,'SINAPI COMP'!B:F,4,0))=0,VLOOKUP(B173,'OUTRAS BASES'!C:D,2,0),IF(A173="Insumo", VLOOKUP(B173,'SINAPI INSUMOS'!B:F,5,0),VLOOKUP(B173,'SINAPI COMP'!B:F,4,0))), VLOOKUP(B173,'OUTRAS BASES'!C:D,2,0)) -> 6.5 | H173: =F173*G173 -> 0.65
E174: UN
A175: 9.2 | B175: Código | C175: Banco | D175: Descrição | E175: Und
A176: Insumo | B176: 9875 | C176: SINAPI | D176: TUBO PVC, SOLDAVEL, DE 50 MM, AGUA FRIA (NBR-5648) | E176: un | F176: 1 | G176: =IF(C176="SINAPI", IF( IF(A176="Insumo", VLOOKUP(B176,'SINAPI INSUMOS'!B:F,5,0), VLOOKUP(B176,'SINAPI COMP'!B:F,4,0))=0,VLOOKUP(B176,'OUTRAS BASES'!C:D,2,0),IF(A176="Insumo", VLOOKUP(B176,'SINAPI INSUMOS'!B:F,5,0),VLOOKUP(B176,'SINAPI COMP'!B:F,4,0))), VLOOKUP(B176,'OUTRAS BASES'!C:D,2,0)) -> 15.31 | H176: =G176*F176 -> 15.31
A177: 9.3 | B177: Código | C177: Banco | D177: Descrição | E177: Und | F177: Quant. | G177: Valor Unit | H177: Total
A178: Composição | B178: COMPOSIÇÃO - 18 | C178: Próprio | D178: Montagem hidráulica do equipamento de bombeamento | E178: un | F178: 1 | G178: =SUM(H179:H180) -> 134.1 | H178: =G178 -> 134.1
A179: Composição Auxiliar | B179: 88267 | C179: SINAPI | D179: ENCANADOR OU BOMBEIRO HIDRÁULICO COM ENCARGOS COMPLEMENTARES | E179: H | F179: 3 | G179: =IF(C179="SINAPI", IF( IF(A179="Insumo", VLOOKUP(B179,'SINAPI INSUMOS'!B:F,5,0), VLOOKUP(B179,'SINAPI COMP'!B:F,4,0))=0,VLOOKUP(B179,'OUTRAS BASES'!C:D,2,0),IF(A179="Insumo", VLOOKUP(B179,'SINAPI INSUMOS'!B:F,5,0),VLOOKUP(B179,'SINAPI COMP'!B:F,4,0))), VLOOKUP(B179,'OUTRAS BASES'!C:D,2,0)) -> 24.19 | H179: =(G179*F179) -> 72.57
A180: Composição Auxiliar | B180: 88248 | C180: SINAPI | D180: AUXILIAR DE ENCANADOR OU BOMBEIRO HIDRÁULICO COM ENCARGOS COMPLEMENTARES | E180: H | F180: 3 | G180: =IF(C180="SINAPI", IF( IF(A180="Insumo", VLOOKUP(B180,'SINAPI INSUMOS'!B:F,5,0), VLOOKUP(B180,'SINAPI COMP'!B:F,4,0))=0,VLOOKUP(B180,'OUTRAS BASES'!C:D,2,0),IF(A180="Insumo", VLOOKUP(B180,'SINAPI INSUMOS'!B:F,5,0),VLOOKUP(B180,'SINAPI COMP'!B:F,4,0))), VLOOKUP(B180,'OUTRAS BASES'!C:D,2,0)) -> 20.51 | H180: 61.53
A181: 9.4 | B181: Código | C181: Banco | D181: Descrição | E181: Und | F181: Quant. | G181: Valor Unit | H181: Total
A182: Insumo | B182: 38200 | C182: SINAPI | D182: CORDA DE POLIAMIDA 12 MM TIPO BOMBEIRO, PARA TRABALHO EM ALTURA | E182: 100M | F182: 1 | G182: =IF(C182="SINAPI", IF( IF(A182="Insumo", VLOOKUP(B182,'SINAPI INSUMOS'!B:F,5,0), VLOOKUP(B182,'SINAPI COMP'!B:F,4,0))=0,VLOOKUP(B182,'OUTRAS BASES'!C:D,2,0),IF(A182="Insumo", VLOOKUP(B182,'SINAPI INSUMOS'!B:F,5,0),VLOOKUP(B182,'SINAPI COMP'!B:F,4,0))), VLOOKUP(B182,'OUTRAS BASES'!C:D,2,0)) -> 493.84 | H182: =G182 -> 493.84
A183: 9.5 | B183: Código | C183: Banco | D183: Descrição | E183: Und | F183: Quant. | G183: Valor Unit | H183: Total
A184: Insumo | B184: 9860 | C184: SINAPI | D184: TUBO PVC, ROSCAVEL, 2", PARA AGUA FRIA PREDIAL | E184: M | F184: 1 | G184: =IF(C184="SINAPI", IF( IF(A184="Insumo", VLOOKUP(B184,'SINAPI INSUMOS'!B:F,5,0), VLOOKUP(B184,'SINAPI COMP'!B:F,4,0))=0,VLOOKUP(B184,'OUTRAS BASES'!C:D,2,0),IF(A184="Insumo", VLOOKUP(B184,'SINAPI INSUMOS'!B:F,5,0),VLOOKUP(B184,'SINAPI COMP'!B:F,4,0))), VLOOKUP(B184,'OUTRAS BASES'!C:D,2,0)) -> 44.48 | H184: =G184 -> 44.48
A185: 9.6 | B185: Código | C185: Banco | D185: Descrição | E185: Und | F185: Quant. | G185: Valor Unit | H185: Total
A186: Insumo | B186: 3912 | C186: SINAPI | D186: LUVA DE FERRO GALVANIZADO, COM ROSCA BSP, DE 2" | E186: UN | F186: 1 | G186: =IF(C186="SINAPI", IF( IF(A186="Insumo", VLOOKUP(B186,'SINAPI INSUMOS'!B:F,5,0), VLOOKUP(B186,'SINAPI COMP'!B:F,4,0))=0,VLOOKUP(B186,'OUTRAS BASES'!C:D,2,0),IF(A186="Insumo", VLOOKUP(B186,'SINAPI INSUMOS'!B:F,5,0),VLOOKUP(B186,'SINAPI COMP'!B:F,4,0))), VLOOKUP(B186,'OUTRAS BASES'!C:D,2,0)) -> 36.61 | H186: =G186 -> 36.61
A187: 9.7 | B187: Código | C187: Banco | D187: Descrição | E187: Und | F187: Quant. | G187: Valor Unit | H187: Total
A188: Insumo | B188: 5128 | C188: ORSE | D188: Tampa de poço galvanizada em 6" un | E188: un | F188: 1 | G188: =IF(C188="SINAPI", IF( IF(A188="Insumo", VLOOKUP(B188,'SINAPI INSUMOS'!B:F,5,0), VLOOKUP(B188,'SINAPI COMP'!B:F,4,0))=0,VLOOKUP(B188,'OUTRAS BASES'!C:D,2,0),IF(A188="Insumo", VLOOKUP(B188,'SINAPI INSUMOS'!B:F,5,0),VLOOKUP(B188,'SINAPI COMP'!B:F,4,0))), VLOOKUP(B188,'OUTRAS BASES'!C:D,2,0)) -> 107.28 | H188: =G188 -> 107.28
A189: 10 | D189: ESTRUTURA DE FIXAÇÃO PARA MÓDULOS FOTOVOLTÁICOS | H189: 4772.48
A190: 10.1 | B190: Código | C190: Banco | D190: Descrição | E190: Und | F190: Quant. | G190: Valor Unit | H190: Total
A191: Composição | B191: COMPOSIÇÃO - 19 | C191: Próprio | D191: Serviço de fixação de estruturas para os módulos fotovoltaicos e suportes de concreto, incluso materiais. | E191: m² | F191: 1 | G191: =SUM(H192:H194) -> 57.5074 | H191: =G191 -> 57.5074
A192: Composição Auxiliar | B192: 94975 | C192: SINAPI | D192: CONCRETO FCK = 15MPA, TRAÇO 1:3,4:3,5 (EM MASSA SECA DE CIMENTO/ AREIA MÉDIA/ BRITA 1) - PREPARO MANUAL. AF_05/2021 | E192: m³ | F192: 0.0945 | G192: =IF(C192="SINAPI", IF( IF(A192="Insumo", VLOOKUP(B192,'SINAPI INSUMOS'!B:F,5,0), VLOOKUP(B192,'SINAPI COMP'!B:F,4,0))=0,VLOOKUP(B192,'OUTRAS BASES'!C:D,2,0),IF(A192="Insumo", VLOOKUP(B192,'SINAPI INSUMOS'!B:F,5,0),VLOOKUP(B192,'SINAPI COMP'!B:F,4,0))), VLOOKUP(B192,'OUTRAS BASES'!C:D,2,0)) -> 503.17 | H192: =(G192*F192) -> 47.549565
A193: Composição Auxiliar | B193: 96522 | C193: SINAPI | D193: ESCAVAÇÃO MANUAL PARA BLOCO DE COROAMENTO OU SAPATA (SEM ESCAVAÇÃO PARA COLOCAÇÃO DE FÔRMAS). AF_01/2024 | E193: m³ | F193: 0.0625 | G193: =IF(C193="SINAPI", IF( IF(A193="Insumo", VLOOKUP(B193,'SINAPI INSUMOS'!B:F,5,0), VLOOKUP(B193,'SINAPI COMP'!B:F,4,0))=0,VLOOKUP(B193,'OUTRAS BASES'!C:D,2,0),IF(A193="Insumo", VLOOKUP(B193,'SINAPI INSUMOS'!B:F,5,0),VLOOKUP(B193,'SINAPI COMP'!B:F,4,0))), VLOOKUP(B193,'OUTRAS BASES'!C:D,2,0)) -> 132.43 | H193: 8.276875
A194: Insumo | B194: 4183 | C194: SBC | D194: ESTRUTURA METALICA EM TESOURAS OU TRELICAS, VÃO LIVRE DE 12M, FORNECIMENTO E MONTAGEM | E194: m² | F194: 0.032 | G194: =IF(C194="SINAPI", IF( IF(A194="Insumo", VLOOKUP(B194,'SINAPI INSUMOS'!B:F,5,0), VLOOKUP(B194,'SINAPI COMP'!B:F,4,0))=0,VLOOKUP(B194,'OUTRAS BASES'!C:D,2,0),IF(A194="Insumo", VLOOKUP(B194,'SINAPI INSUMOS'!B:F,5,0),VLOOKUP(B194,'SINAPI COMP'!B:F,4,0))), VLOOKUP(B194,'OUTRAS BASES'!C:D,2,0)) -> 52.53 | H194: 1.68096
A195: 11 | D195: INSTALAÇÕES ELÉTRICAS | H195: 20791.07
A196: 11.1 | B196: Código | C196: Banco | D196: Descrição | E196: Und | F196: Quant. | G196: Valor Unit | H196: Total
A197: Composição | B197: COMPOSIÇÃO - 20 | C197: Próprio | D197: Montagem e instalação elétrica do kit de bombeamento e sistema fotovoltaico inclusive sistema de aterramento. | E197: un | F197: 1 | G197: =SUM(H198:H208) -> 1024.8274 | H197: =G197 -> 1024.8274
A198: Composição Auxiliar | B198: 88247 | C198: SINAPI | D198: AUXILIAR DE ELETRICISTA COM ENCARGOS COMPLEMENTARES | E198: H | F198: 8 | G198: =IF(C198="SINAPI", IF( IF(A198="Insumo", VLOOKUP(B198,'SINAPI INSUMOS'!B:F,5,0), VLOOKUP(B198,'SINAPI COMP'!B:F,4,0))=0,VLOOKUP(B198,'OUTRAS BASES'!C:D,2,0),IF(A198="Insumo", VLOOKUP(B198,'SINAPI INSUMOS'!B:F,5,0),VLOOKUP(B198,'SINAPI COMP'!B:F,4,0))), VLOOKUP(B198,'OUTRAS BASES'!C:D,2,0)) -> 21.5 | H198: =(G198*F198) -> 172
A199: Insumo | B199: 20111 | C199: SINAPI | D199: FITA ISOLANTE ADESIVA ANTICHAMA, USO ATE 750 V, EM ROLO DE 19 MM X 20 M | E199: UN | F199: 1 | G199: =IF(C199="SINAPI", IF( IF(A199="Insumo", VLOOKUP(B199,'SINAPI INSUMOS'!B:F,5,0), VLOOKUP(B199,'SINAPI COMP'!B:F,4,0))=0,VLOOKUP(B199,'OUTRAS BASES'!C:D,2,0),IF(A199="Insumo", VLOOKUP(B199,'SINAPI INSUMOS'!B:F,5,0),VLOOKUP(B199,'SINAPI COMP'!B:F,4,0))), VLOOKUP(B199,'OUTRAS BASES'!C:D,2,0)) -> 8.51 | H199: =F199*G199 -> 8.51
A200: Insumo | B200: 2674 | C200: SINAPI | D200: FORNECIMENTO DE ELETRODUTO DE PVC RIGIDO ROSCAVEL DE 3/4 ", SEM LUVA | E200: M | F200: 15 | G200: =IF(C200="SINAPI", IF( IF(A200="Insumo", VLOOKUP(B200,'SINAPI INSUMOS'!B:F,5,0), VLOOKUP(B200,'SINAPI COMP'!B:F,4,0))=0,VLOOKUP(B200,'OUTRAS BASES'!C:D,2,0),IF(A200="Insumo", VLOOKUP(B200,'SINAPI INSUMOS'!B:F,5,0),VLOOKUP(B200,'SINAPI COMP'!B:F,4,0))), VLOOKUP(B200,'OUTRAS BASES'!C:D,2,0)) -> 5.19 | H200: 77.85
A201: Insumo | B201: 12034 | C201: SINAPI | D201: FORNECIMENTO DE CURVA 180 GRAUS, DE PVC RIGIDO ROSCAVEL, DE 3/4", PARA ELETRODUTO | E201: UN | F201: 1 | G201: =IF(C201="SINAPI", IF( IF(A201="Insumo", VLOOKUP(B201,'SINAPI INSUMOS'!B:F,5,0), VLOOKUP(B201,'SINAPI COMP'!B:F,4,0))=0,VLOOKUP(B201,'OUTRAS BASES'!C:D,2,0),IF(A201="Insumo", VLOOKUP(B201,'SINAPI INSUMOS'!B:F,5,0),VLOOKUP(B201,'SINAPI COMP'!B:F,4,0))), VLOOKUP(B201,'OUTRAS BASES'!C:D,2,0)) -> 2.67 | H201: 2.67
A202: Insumo | B202: 39272 | C202: SINAPI | D202: FORNECIMENTO DE CURVA 90 GRAUS, CURTA, DE PVC RIGIDO ROSCAVEL, DE 3/4", PARA ELETRODUTO | E202: UN | F202: 2 | G202: =IF(C202="SINAPI", IF( IF(A202="Insumo", VLOOKUP(B202,'SINAPI INSUMOS'!B:F,5,0), VLOOKUP(B202,'SINAPI COMP'!B:F,4,0))=0,VLOOKUP(B202,'OUTRAS BASES'!C:D,2,0),IF(A202="Insumo", VLOOKUP(B202,'SINAPI INSUMOS'!B:F,5,0),VLOOKUP(B202,'SINAPI COMP'!B:F,4,0))), VLOOKUP(B202,'OUTRAS BASES'!C:D,2,0)) -> 1.46 | H202: 2.92
... 61 more rows

Sheet Crono. - PB - T
A1: OBJETO: EXECUÇÃO DE SERVIÇOS DE PERFURAÇÃO E INSTALAÇÃO DE POÇOS TUBULARES EM MUNICÍPIOS LOCALIZADOS NO ESTADO DA PARAÍBA, NA ÁREA DE ATUAÇÃO DA CODEVASF
A8: CRONOGRAMA FÍSICO-FINANCEIRO POÇO TOTALMENTE REVESTIDO
A10: ITEM | B10: ESPECIFICAÇÃO DOS SERVIÇOS | C10: VALOR TOTAL (R$) | D10: Mês 01 | E10: Mês 02 | F10: Mês 03 | G10: Mês 04 | H10: Mês 05 | I10: Mês 06 | J10: Mês 07 | K10: Mês 08 | L10: Mês 09 | M10: Mês 10 | N10: Mês 11 | O10: Mês 12
A11: 1 | B11: Serviços preliminares. | C11: ='Orçamento Sintético - PB - T'!K4 -> 71688.47 | D11: =$C11/12 -> 5974.039167 | E11: =$C11/12 -> 5974.039167 | F11: 5974.039167 | G11: 5974.039167 | H11: 5974.039167 | I11: 5974.039167 | J11: 5974.039167 | K11: 5974.039167 | L11: 5974.039167 | M11: 5974.039167 | N11: 5974.039167 | O11: 5974.039167
A12: 2 | B12: Mobilizaçâo e desmobilizaçâo equipe campo. | C12: ='Orçamento Sintético - PB - T'!K9 -> 57825 | D12: =$C12/12 -> 4818.75 | E12: 4818.75 | F12: 4818.75 | G12: 4818.75 | H12: 4818.75 | I12: 4818.75 | J12: 4818.75 | K12: 4818.75 | L12: 4818.75 | M12: 4818.75 | N12: 4818.75 | O12: 4818.75
A13: 3 | B13: Perfuração e completação de poço tubular. | C13: ='Orçamento Sintético - PB - T'!K13 -> 2275326.69 | D13: 189610.5575 | E13: 189610.5575 | F13: 189610.5575 | G13: 189610.5575 | H13: 189610.5575 | I13: 189610.5575 | J13: 189610.5575 | K13: 189610.5575 | L13: 189610.5575 | M13: 189610.5575 | N13: 189610.5575 | O13: 189610.5575
A14: 4 | B14: Pós perfuração. | C14: ='Orçamento Sintético - PB - T'!K20 -> 303583.5 | D14: 25298.625 | E14: 25298.625 | F14: 25298.625 | G14: 25298.625 | H14: 25298.625 | I14: 25298.625 | J14: 25298.625 | K14: 25298.625 | L14: 25298.625 | M14: 25298.625 | N14: 25298.625 | O14: 25298.625
A15: 5 | B15: Reservação. | C15: ='Orçamento Sintético - PB - T'!K26 -> 489156.35 | D15: 40763.02917 | E15: 40763.02917 | F15: 40763.02917 | G15: 40763.02917 | H15: 40763.02917 | I15: 40763.02917 | J15: 40763.02917 | K15: 40763.02917 | L15: 40763.02917 | M15: 40763.02917 | N15: 40763.02917 | O15: 40763.02917
A16: 6 | B16: Bebedouro. | C16: ='Orçamento Sintético - PB - T'!K29 -> 49452.5 | D16: 4121.041667 | E16: 4121.041667 | F16: 4121.041667 | G16: 4121.041667 | H16: 4121.041667 | I16: 4121.041667 | J16: 4121.041667 | K16: 4121.041667 | L16: 4121.041667 | M16: 4121.041667 | N16: 4121.041667 | O16: 4121.041667
A17: 7 | B17: Chafariz. | C17: ='Orçamento Sintético - PB - T'!K31 -> 28324 | D17: 2360.333333 | E17: 2360.333333 | F17: 2360.333333 | G17: 2360.333333 | H17: 2360.333333 | I17: 2360.333333 | J17: 2360.333333 | K17: 2360.333333 | L17: 2360.333333 | M17: 2360.333333 | N17: 2360.333333 | O17: 2360.333333
A18: 8 | B18: Cavalete. | C18: ='Orçamento Sintético - PB - T'!K33 -> 72087 | D18: 6007.25 | E18: 6007.25 | F18: 6007.25 | G18: 6007.25 | H18: 6007.25 | I18: 6007.25 | J18: 6007.25 | K18: 6007.25 | L18: 6007.25 | M18: 6007.25 | N18: 6007.25 | O18: 6007.25
A19: 9 | B19: Instalações hidráulicas poço e adutora. | C19: ='Orçamento Sintético - PB - T'!K35 -> 397785.55 | D19: 33148.79583 | E19: 33148.79583 | F19: 33148.79583 | G19: 33148.79583 | H19: 33148.79583 | I19: 33148.79583 | J19: 33148.79583 | K19: 33148.79583 | L19: 33148.79583 | M19: 33148.79583 | N19: 33148.79583 | O19: 33148.79583
A20: 10 | B20: Estrutura de fixação para módulos fotovoltáicos. | C20: ='Orçamento Sintético - PB - T'!K43 -> 27012.81 | D20: 2251.0675 | E20: 2251.0675 | F20: 2251.0675 | G20: 2251.0675 | H20: 2251.0675 | I20: 2251.0675 | J20: 2251.0675 | K20: 2251.0675 | L20: 2251.0675 | M20: 2251.0675 | N20: 2251.0675 | O20: 2251.0675
A21: 11 | B21: Instalações elétricas. | C21: ='Orçamento Sintético - PB - T'!K45 -> 426408.75 | D21: 35534.0625 | E21: 35534.0625 | F21: 35534.0625 | G21: 35534.0625 | H21: 35534.0625 | I21: 35534.0625 | J21: 35534.0625 | K21: 35534.0625 | L21: 35534.0625 | M21: 35534.0625 | N21: 35534.0625 | O21: 35534.0625
A22: 12 | B22: Urbanização. | C22: ='Orçamento Sintético - PB - T'!K51 -> 101597.75 | D22: 8466.479167 | E22: 8466.479167 | F22: 8466.479167 | G22: 8466.479167 | H22: 8466.479167 | I22: 8466.479167 | J22: 8466.479167 | K22: 8466.479167 | L22: 8466.479167 | M22: 8466.479167 | N22: 8466.479167 | O22: 8466.479167
A23: 13 | B23: Outros serviços e insumos excepcionais. | C23: ='Orçamento Sintético - PB - T'!K54 -> 226196.57 | D23: 18849.71417 | E23: 18849.71417 | F23: 18849.71417 | G23: 18849.71417 | H23: 18849.71417 | I23: 18849.71417 | J23: 18849.71417 | K23: 18849.71417 | L23: 18849.71417 | M23: 18849.71417 | N23: 18849.71417 | O23: 18849.71417
A24: TOTAL | C24: =SUM(C11:C23) -> 4526444.94 | D24: =SUM(D11:D23) -> 377203.745 | E24: =SUM(E11:E23) -> 377203.745 | F24: 377203.745 | G24: 377203.745 | H24: 377203.745 | I24: 377203.745 | J24: 377203.745 | K24: 377203.745 | L24: 377203.745 | M24: 377203.745 | N24: 377203.745 | O24: 377203.745
A25: PERCENTUAL | D25: 0.08333333333 | E25: 0.08333333333 | F25: 0.08333333333 | G25: 0.08333333333 | H25: 0.08333333333 | I25: 0.08333333333 | J25: 0.08333333333 | K25: 0.08333333333 | L25: 0.08333333333 | M25: 0.08333333333 | N25: 0.08333333333 | O25: 0.08333333333
A26: CUSTO ACUMULADO | D26: =D24 -> 377203.745 | E26: =D26+E24 -> 754407.49 | F26: =E26+F24 -> 1131611.235 | G26: 1508814.98 | H26: 1886018.725 | I26: 2263222.47 | J26: 2640426.215 | K26: 3017629.96 | L26: 3394833.705 | M26: 3772037.45 | N26: 4149241.195 | O26: 4526444.94
A27: PERCENTUAL ACUMULADO | D27: =D25 -> 0.08333333333 | E27: =D27+E25 -> 0.1666666667 | F27: 0.25 | G27: 0.3333333333 | H27: 0.4166666667 | I27: 0.5 | J27: 0.5833333333 | K27: 0.6666666667 | L27: 0.75 | M27: 0.8333333333 | N27: 0.9166666667 | O27: 1

Sheet CAPA PE
B7: EXECUÇÃO DE SERVIÇOS DE PERFURAÇÃO E INSTALAÇÃO DE POÇOS TUBULARES NO ESTADO DO PERNAMBUCO ÁREA DE ATUAÇÃO 15ª SUPERINTENDÊNCIA REGIONAL

Sheet Planilha Resumo PE
B2: OBJETO: EXECUÇÃO DE SERVIÇOS DE PERFURAÇÃO E INSTALAÇÃO DE POÇOS TUBULARES EM MUNICÍPIOS LOCALIZADOS NO ESTADO DO PERNAMBUCO ÁREA DE ATUAÇÃO 15ª SUPERINTENDÊNCIA REGIONAL
B3: PLANILHA ORÇAMENTÁRIA ESTIMATIVA GERAL
B4: DATABASE DO ORÇAMENTO: SETEMBRO/2025 - NÃO DESONERADO
B5: PLANILHA RESUMIDA - GRUPO 2 - PERNAMBUCO ÁREA DE ATUAÇÃO 15ª SUPERINTENDÊNCIA REGIONAL
B6: ITEM | C6: DISCRIMINAÇÃO | D6: UND | E6: Quantidade de Poços | F6: PREÇO UNITÁRIO | G6: TOTAL
B7: 3 | C7: Perfuração e instalação de poço tubular parcialmente revestido, instalado com sistema fotovoltaico, bomba submersa, reservatório e bebedouro para animais. | D7: un | E7: ='Orçamento Sintético - PE - P'!H2 -> 200 | F7: ='Orçamento Sintético - PE - P'!L2 -> 118535.6259 | G7: =F7*E7 -> 23707125.18
B8: 4 | C8: Perfuração e instalação de poços poço tubular totalmente revestido, instalado com sistema fotovoltaico, bomba submersa, reservatório e bebedouro para animais. | D8: un | E8: ='Orçamento Sintético - PE - T'!H2 -> 50 | F8: ='Orçamento Sintético - PE - T'!L2 -> 185987.1066 | G8: =F8*E8 -> 9299355.33
B9: TOTAL GERAL ESTIMADO GRUPO | D9: un | E9: =E7+E8 -> 250 | G9: =G7+G8 -> 33006480.51
B13: Base de Preços Consultados | E13: SBC 09/2025 SINAPI 08/2025 SICRO 04/2025 ORSE 06/2025 CPOS/CDHU 06/2025 EMBASA 06/2025 SEINFRA 028 SIURB 01/2025
B15: Encargos Sociais | E15: Não Desonerado: Horista: 113,98% Mensalista: 70,00%

Sheet Orçamento Sintético - PE - P
A1: OBJETO: EXECUÇÃO DE SERVIÇOS DE PERFURAÇÃO E INSTALAÇÃO DE POÇOS TUBULARES EM MUNICÍPIOS LOCALIZADOS NO ESTADO DO PERNAMBUCO ÁREA DE ATUAÇÃO 15ª SUPERINTENDÊNCIA REGIONAL | F1: BANCOS: SBC 07/2025 SINAPI 06/2025 SICRO 04/2025 ORSE 05/2025 CPOS/CDHU 06/2025 EMBASA 01/2025 SEINFRA 028 SIURB 01/2025 | H1: Quantidade de Poços | I1: BDI SERVIÇO | J1: BDI INSUMO | K1: Total | L1: Preço Unitário Por Poço | M1: DESCONTO
A2: PLANILHA SINTÉTICA - POÇO PARCIALMENTE REVESTIDO - PERNAMBUCO 15ª - SR | H2: 200 | I2: ='BDI-SERVICOS'!D22 -> 0.2378 | J2: ='BDI-FORNECIMENTO'!C28 -> 0.146920122 | K2: =SUM(K4,K8,K12,K17,K23,K26,K28,K30,K32,K40,K42,K48,K51) -> 23707125.18 | L2: =K2/H2 -> 118535.6259 | M2: 0
A3: Item | B3: Código | C3: Banco | D3: Tipo | E3: Descrição. | F3: un. | G3: Mem. calc. | H3: Quant. | I3: Valor Unit | J3: Valor Unit com BDI | K3: Total | L3: Peso (%)
A4: 1 | E4: Serviços preliminares. | K4: =SUM(K5:K7) -> 280410.56 | L4: =K4/$K$2 -> 0.01182811319
A5: 1.1 | B5: COMPOSIÇÃO - 1 | C5: Próprio | D5: Serviço | E5: Administração local da obra - poço parcialmente revestido. | F5: un. | G5: 1 | H5: =ROUND(G5*$H$2,2) -> 200 | I5: =VLOOKUP(B5,'Orçamento Analítico - PE - P'!B:H,7,0)*(1-$M$2) -> 191.073 | J5: =ROUND(I5*(1+$I$2),2) -> 236.51 | K5: =ROUND(J5*H5,2) -> 47302 | L5: =K5/$K$2 -> 0.001995265121
A6: 1.2 | B6: COMPOSIÇÃO - 2 | C6: Próprio | D6: Serviço | E6: Serviço de locação geológica de campo com relatório hidro geológico e perfil construtivo e geológico esperado. relatório de viabilidade de implantação das estruturas e vistorias preliminares. | F6: un. | G6: 1 | H6: =ROUND(G6*$H$2,2) -> 200 | I6: =VLOOKUP(B6,'Orçamento Analítico - PE - P'!B:H,7,0)*(1-$M$2) -> 604.55 | J6: =ROUND(I6*(1+$I$2),2) -> 748.31 | K6: =ROUND(J6*H6,2) -> 149662 | L6: 0.006312954391
A7: 1.3 | B7: 103689 | C7: Sinapi | D7: Serviço | E7: Fornecimento e instalação de placa de obra com chapa galvanizada e estrutura de madeira. | F7: m² | G7: 0.72 | H7: 144 | I7: =VLOOKUP(B7,'Orçamento Analítico - PE - P'!B:H,7,0)*(1-$M$2) -> 468.16 | J7: =ROUND(I7*(1+$I$2),2) -> 579.49 | K7: 83446.56 | L7: 0.003519893676
A8: 2 | E8: Mobilizaçâo e desmobilizaçâo equipes perfuraçâo e instalação. | K8: =SUM(K9:K11) -> 479400 | L8: 0.02022176862
A9: 2.1 | B9: COMPOSIÇÃO - 3 | C9: Próprio | D9: Serviço | E9: Transporte de comboio perfuração. | F9: km | G9: 150 | H9: =ROUND(G9*$H$2,2) -> 30000 | I9: =VLOOKUP(B9,'Orçamento Analítico - PE - P'!B:H,7,0)*(1-$M$2) -> 4.6183186 | J9: =ROUND(I9*(1+$I$2),2) -> 5.72 | K9: =ROUND(J9*H9,2) -> 171600 | L9: 0.007238330194
A10: 2.2 | B10: COMPOSIÇÃO - 4 | C10: Próprio | D10: Serviço | E10: Transporte de comboio instalação. | F10: km | G10: 150 | H10: 30000 | I10: =VLOOKUP(B10,'Orçamento Analítico - PE - P'!B:H,7,0)*(1-$M$2) -> 5.7750224 | J10: 7.15 | K10: 214500 | L10: 0.009047912742
A11: 2.3 | B11: COMPOSIÇÃO - 5 | C11: Próprio | D11: Serviço | E11: Transporte de equipe teste de vazão. | F11: km | G11: 150 | H11: 30000 | I11: =VLOOKUP(B11,'Orçamento Analítico - PE - P'!B:H,7,0)*(1-$M$2) -> 2.516228 | J11: 3.11 | K11: 93300 | L11: 0.003935525682
A12: 3 | E12: Perfuração e completação de poço tubular. | K12: =SUM(K13:K16) -> 5646227.88 | L12: 0.238165861
A13: 3.1 | B13: 5048 | C13: Orse | D13: Serviço | E13: Perfuraçao em rocha cristalina - rocha cristalina alterada / compacta dn 6" (poço até 120m). | F13: m | G13: 90 | H13: =ROUND(G13*$H$2,2) -> 18000 | I13: =VLOOKUP(B13,'Orçamento Analítico - PE - P'!B:H,7,0)*(1-$M$2) -> 125.23 | J13: =ROUND(I13*(1+$I$2),2) -> 155.01 | K13: =ROUND(J13*H13,2) -> 2790180 | L13: 0.1176937304
A14: 3.2 | B14: 5057 | C14: Orse | D14: Serviço | E14: Perfuração rocha sedimentar sedimento / Camadas inconsolidadas DN 12.1/2" - Poço até 150 m (Perfuração rotopneumática Ø 12 1/2" | F14: m | G14: 30 | H14: 6000 | I14: =VLOOKUP(B14,'Orçamento Analítico - PE - P'!B:H,7,0)*(1-$M$2) -> 247.66 | J14: =ROUND(I14*(1+$I$2),2) -> 306.55 | K14: 1839300 | L14: 0.07758426996
A15: 3.3 | B15: COMPOSIÇÃO - 6 | C15: Próprio | D15: Serviço | E15: Serviço de lançamento cimentação anelar, incluso materiais. | F15: m³ | G15: 1.74 | H15: 348 | I15: =VLOOKUP(B15,'Orçamento Analítico - PE - P'!B:H,7,0)*(1-$M$2) -> 521.34 | J15: =ROUND(I15*(1+$I$2),2) -> 645.31 | K15: 224567.88 | L15: 0.00947259013
A16: 3.4 | B16: 9854 | C16: Sinapi | D16: Insumo | E16: Tubo pvc de revestimento geomecanico nervurado standard, dn = 154 mm, comprimento = 2 m. | F16: m | G16: 30 | H16: 6000 | I16: =VLOOKUP(B16,'Orçamento Analítico - PE - P'!B:H,7,0)*(1-$M$2) -> 115.12 | J16: =ROUND(I16*(1+$J$2),2) -> 132.03 | K16: 792180 | L16: 0.03341527047
A17: 4 | E17: Pós perfuração. | K17: =SUM(K18:K22) -> 2373412 | L17: 0.100113868
A18: 4.1 | B18: 6305 | C18: Orse | D18: Serviço | E18: Desenvolvimento com compressor 250psi / 750cfm. | F18: h | G18: 2 | H18: =ROUND(G18*$H$2,2) -> 400 | I18: =VLOOKUP(B18,'Orçamento Analítico - PE - P'!B:H,7,0)*(1-$M$2) -> 411.16 | J18: =ROUND(I18*(1+$I$2),2) -> 508.93 | K18: =ROUND(J18*H18,2) -> 203572 | L18: 0.008586954279
A19: 4.2 | B19: COMPOSIÇÃO - 7 | C19: Próprio | D19: Serviço | E19: Inspeção ótica em poço tubular câmera com rotação de 360º, visada lateral, com fonte própria de luz, entregue vídeo em cores e marcação de profundidades. | F19: m | G19: 120 | H19: 24000 | I19: =VLOOKUP(B19,'Orçamento Analítico - PE - P'!B:H,7,0)*(1-$M$2) -> 9.64046 | J19: 11.93 | K19: 286320 | L19: 0.01207738171
A20: 4.3 | B20: COMPOSIÇÃO - 8 | C20: Próprio | D20: Serviço | E20: Serviço de coleta e análise físico-química e bacteriológica. | F20: un. | G20: 1 | H20: 200 | I20: =VLOOKUP(B20,'Orçamento Analítico - PE - P'!B:H,7,0)*(1-$M$2) -> 621.19 | J20: 768.91 | K20: 153782 | L20: 0.006486741806
A21: 4.4 | B21: 24.80.22 | C21: Embasa | D21: Serviço | E21: (REVISADA) DESENVOLVIMENTO OU TESTE COM BOMBA SUBMERSA - UEB1 NO SEDIMENTO COM VAZAO < 60M3 (Ensaio de bombeamento poço tubular incluso materiais e grupo gerador) | F21: h | G21: 24 | H21: 4800 | I21: =VLOOKUP(B21,'Orçamento Analítico - PE - P'!B:H,7,0)*(1-$M$2) -> 263.27 | J21: 325.88 | K21: 1564224 | L21: 0.06598117604
A22: 4.5 | B22: COMPOSIÇÃO - 9 | C22: Próprio | D22: Serviço | E22: ='Orçamento Analítico - PE - P'!D65 -> Serviço de instalação de laje sanitária com dimensões (1,5x1,5x0,3) metros , incluso material. | F22: un. | G22: 1 | H22: 200 | I22: =VLOOKUP(B22,'Orçamento Analítico - PE - P'!B:H,7,0)*(1-$M$2) -> 668.5785 | J22: 827.57 | K22: 165514 | L22: 0.006981614124
A23: 5 | E23: Reservação. | K23: =SUM(K24:K25) -> 4036722.8 | L23: 0.1702746651
A24: 5.1 | B24: COMPOSIÇÃO - 10 | C24: Próprio | D24: Serviço | E24: Fornecimento e instalação de reservatório e base elevada 10 m³. | F24: un. | G24: 0.8 | H24: =ROUND(G24*$H$2,2) -> 160 | I24: =VLOOKUP(B24,'Orçamento Analítico - PE - P'!B:H,7,0)*(1-$M$2) -> 18451.80904 | J24: =ROUND(I24*(1+$I$2),2) -> 22839.65 | K24: =ROUND(J24*H24,2) -> 3654344 | L24: 0.1541453876
A25: 5.2 | B25: COMPOSIÇÃO - 11 | C25: Próprio | D25: Serviço | E25: Fornecimento e execução de reservatório apoiado de 5 m³. | F25: un. | G25: 0.2 | H25: 40 | I25: =VLOOKUP(B25,'Orçamento Analítico - PE - P'!B:H,7,0)*(1-$M$2) -> 7722.949525 | J25: 9559.47 | K25: 382378.8 | L25: 0.01612927747
A26: 6 | E26: Bebedouro. | K26: =K27 -> 430072 | L26: 0.01814104396
A27: 6.1 | B27: COMPOSIÇÃO - 12 | C27: Próprio | D27: Serviço | E27: Serviço de execução do bebedouro em concreto armado, incluso materiais. | F27: un. | G27: 1 | H27: =ROUND(G27*$H$2,2) -> 200 | I27: =VLOOKUP(B27,'Orçamento Analítico - PE - P'!B:H,7,0)*(1-$M$2) -> 1737.24582 | J27: =ROUND(I27*(1+$I$2),2) -> 2150.36 | K27: =ROUND(J27*H27,2) -> 430072 | L27: 0.01814104396
A28: 7 | E28: Chafariz. | K28: =K29 -> 232984 | L28: 0.00982759395
A29: 7.1 | B29: COMPOSIÇÃO - 13 | C29: Próprio | D29: Serviço | E29: Fornecimento de material e instalação do chafariz. | F29: un. | G29: 1 | H29: =ROUND(G29*$H$2,2) -> 200 | I29: =VLOOKUP(B29,'Orçamento Analítico - PE - P'!B:H,7,0)*(1-$M$2) -> 941.120113 | J29: =ROUND(I29*(1+$I$2),2) -> 1164.92 | K29: =ROUND(J29*H29,2) -> 232984 | L29: 0.00982759395
A30: 8 | E30: Cavalete. | K30: =K31 -> 581434 | L30: 0.02452570675
A31: 8.1 | B31: COMPOSIÇÃO - 14 | C31: Próprio | D31: Serviço | E31: Fornecimento de conexões e instalação do cavalete com hidrômetro e clorador de pastilhas. | F31: un. | G31: 1 | H31: =ROUND(G31*$H$2,2) -> 200 | I31: =VLOOKUP(B31,'Orçamento Analítico - PE - P'!B:H,7,0)*(1-$M$2) -> 2348.66 | J31: =ROUND(I31*(1+$I$2),2) -> 2907.17 | K31: =ROUND(J31*H31,2) -> 581434 | L31: 0.02452570675
A32: 9 | E32: Instalações hidráulicas. | K32: =SUM(K33:K39) -> 3781338.36 | L32: 0.159502189
A33: 9.1 | B33: COMPOSIÇÃO - 15 | C33: Próprio | D33: Serviço | E33: Instalação da rede adutora poço-reservatório-bebedouro em pn80 e dn50mm. | F33: m | G33: 400 | H33: =ROUND(G33*$H$2,2) -> 80000 | I33: =VLOOKUP(B33,'Orçamento Analítico - PE - P'!B:H,7,0)*(1-$M$2) -> 6.8165 | J33: =ROUND(I33*(1+$I$2),2) -> 8.44 | K33: =ROUND(J33*H33,2) -> 675200 | L33: 0.02848088897
A34: 9.2 | B34: 9875 | C34: Sinapi | D34: Insumo | E34: TUBO PVC, SOLDAVEL, DE 50 MM, AGUA FRIA (NBR-5648) | F34: m | G34: 400 | H34: =G34*H2 -> 80000 | I34: =VLOOKUP(B34,'Orçamento Analítico - PE - P'!B:H,7,0)*(1-$M$2) -> 15.46 | J34: =ROUND(I34*(1+$J$2),2) -> 17.73 | K34: =J34*H34 -> 1418400 | L34: 0.05983011391
A35: 9.3 | B35: COMPOSIÇÃO - 16 | C35: Próprio | D35: Serviço | E35: Montagem hidráulica do equipamento de bombeamento. | F35: un. | G35: 1 | H35: 200 | I35: =VLOOKUP(B35,'Orçamento Analítico - PE - P'!B:H,7,0)*(1-$M$2) -> 160.92 | J35: 199.19 | K35: 39838 | L35: 0.001680423067
A36: 9.4 | B36: 38200 | C36: Sinapi | D36: Insumo | E36: Corda de poliamida 12 mm tipo bombeiro, para trabalho em altura. | F36: 100m | G36: 0.93 | H36: 186 | I36: =VLOOKUP(B36,'Orçamento Analítico - PE - P'!B:H,7,0)*(1-$M$2) -> 458.85 | J36: =ROUND(I36*(1+$J$2),2) -> 526.26 | K36: 97884.36 | L36: 0.004128900457
A37: 9.5 | B37: 9860 | C37: Sinapi | D37: Insumo | E37: Tubo pvc, roscavel, 2", para agua fria predial. | F37: m | G37: 90 | H37: 18000 | I37: =VLOOKUP(B37,'Orçamento Analítico - PE - P'!B:H,7,0)*(1-$M$2) -> 67.38 | J37: 77.28 | K37: 1391040 | L37: 0.05867603049
A38: 9.6 | B38: 3912 | C38: Sinapi | D38: Insumo | E38: Luva de ferro galvanizado, com rosca bsp, de 2". | F38: un. | G38: 16 | H38: 3200 | I38: =VLOOKUP(B38,'Orçamento Analítico - PE - P'!B:H,7,0)*(1-$M$2) -> 36.61 | J38: 41.99 | K38: 134368 | L38: 0.005667831885
A39: 9.7 | B39: 5128 | C39: Orse | D39: Insumo | E39: Tampa de poço galvanizada em 6" un. | F39: un. | G39: 1 | H39: 200 | I39: =VLOOKUP(B39,'Orçamento Analítico - PE - P'!B:H,7,0)*(1-$M$2) -> 107.28 | J39: 123.04 | K39: 24608 | L39: 0.001038000171
A40: 10 | E40: Estrutura de fixação para módulos fotovoltáicos. | K40: =K41 -> 251380.8 | L40: 0.01060359694
A41: 10.1 | B41: COMPOSIÇÃO - 17 | C41: Próprio | D41: Serviço | E41: Serviço de fixação de estruturas para os módulos fotovoltaicos e suportes de concreto, incluso materiais. | F41: m² | G41: 10.12 | H41: =ROUND(G41*$H$2,2) -> 2024 | I41: =VLOOKUP(B41,'Orçamento Analítico - PE - P'!B:H,7,0)*(1-$M$2) -> 100.336792 | J41: =ROUND(I41*(1+$I$2),2) -> 124.2 | K41: =ROUND(J41*H41,2) -> 251380.8 | L41: 0.01060359694
A42: 11 | E42: Instalações elétricas e bóia elétrica. | K42: =SUM(K43:K47) -> 2660702 | L42: 0.1122321656
A43: 11.1 | B43: COMPOSIÇÃO - 18 | C43: Próprio | D43: Serviço | E43: Montagem e instalação elétrica do kit de bombeamento e sistema fotovoltaico inclusive sistema de aterramento. | F43: un. | G43: 1 | H43: =ROUND(G43*$H$2,2) -> 200 | I43: =VLOOKUP(B43,'Orçamento Analítico - PE - P'!B:H,7,0)*(1-$M$2) -> 1056.7196 | J43: =ROUND(I43*(1+$I$2),2) -> 1308.01 | K43: =ROUND(J43*H43,2) -> 261602 | L43: 0.01103474158
A44: 11.2 | B44: 34622 | C44: Sinapi | D44: Insumo | E44: Fornecimento de cabo flexivel pvc 750 v, 3 condutores de 6,0 mm2. | F44: m | G44: 105 | H44: 21000 | I44: =VLOOKUP(B44,'Orçamento Analítico - PE - P'!B:H,7,0)*(1-$M$2) -> 21.9 | J44: =ROUND(I44*(1+$J$2),2) -> 25.12 | K44: 527520 | L44: 0.02225153813
A45: 11.3 | B45: COMPOSIÇÃO - 19 | C45: Próprio | D45: Serviço | E45: Fornecimento e instalação de automático de bóia superior e inferior. | F45: un. | G45: 1 | H45: 200 | I45: =VLOOKUP(B45,'Orçamento Analítico - PE - P'!B:H,7,0)*(1-$M$2) -> 69.2505 | J45: =ROUND(I45*(1+$I$2),2) -> 85.72 | K45: 17144 | L45: 0.0007231581168
A46: 11.4 | B46: 39257 | C46: Sinapi | D46: Insumo | E46: Cabo multipolar de cobre, flexivel, classe 4 ou 5, isolacao em hepr, cobertura em pvc-st2, antichama bwf-b, 0,6/1 kv, 3 condutores de 1,5 mm2. | F46: m | G46: 200 | H46: 40000 | I46: =VLOOKUP(B46,'Orçamento Analítico - PE - P'!B:H,7,0)*(1-$M$2) -> 5.92 | J46: =ROUND(I46*(1+$J$2),2) -> 6.79 | K46: 271600 | L46: 0.01145647133
A47: 11.5 | B47: Cotação-001 | C47: Próprio | D47: Insumo | E47: Fornecimento de kit de bombeamento fotovoltaico, incluindo uma bomba cc de 1500w com controladora de carga externa, caixa de proteção metálica, módulos fotovoltaicos compatíveis com a geração de 2200wp além de componentes elétricos necessários para interligação dos painéis, como cabos, conectores mc4 e presilhas de fixação. | F47: un. | G47: 1 | H47: 200 | I47: =VLOOKUP(B47,'Orçamento Analítico - PE - P'!B:H,7,0)*(1-$M$2) -> 6900.38 | J47: =ROUND(I47*(1+$J$2),2) -> 7914.18 | K47: 1582836 | L47: 0.06676625647
A48: 12 | E48: Urbanização. | K48: =SUM(K49:K50) -> 838562 | L48: 0.03537172869
A49: 12.1 | B49: COMPOSIÇÃO - 20 | C49: Próprio | D49: Serviço | E49: Cerca com mourões de concreto de 15x15cm, espaçados de 3m e cravados a 0,5m, escoras de 10x10cm nos cantos, e 9 fios de arame de aço ovalado 15x17. | F49: m | G49: 28 | H49: =ROUND(G49*$H$2,2) -> 5600 | I49: =VLOOKUP(B49,'Orçamento Analítico - PE - P'!B:H,7,0)*(1-$M$2) -> 79.774328 | J49: =ROUND(I49*(1+$I$2),2) -> 98.74 | K49: =ROUND(J49*H49,2) -> 552944 | L49: 0.02332395834
A50: 12.2 | B50: COMPOSIÇÃO - 21 | C50: Próprio | D50: Serviço | E50: Serviço de instalação de portão de ferro com suporte e batedor conforme projeto, incluso material. | F50: m² | G50: 1.5 | H50: 300 | I50: =VLOOKUP(B50,'Orçamento Analítico - PE - P'!B:H,7,0)*(1-$M$2) -> 769.15269 | J50: 952.06 | K50: 285618 | L50: 0.01204777036
A51: 13 | E51: Outros serviços e insumos excepcionais. | K51: =SUM(K52:K59) -> 2114478.78 | L51: 0.08919169929
A52: 13.1 | B52: COMPOSIÇÃO - 22 | C52: Próprio | D52: Serviço | E52: Fornecimento e instalação do pré filtro para revestimento interno. | F52: m³ | G52: 1.212 | H52: =ROUND(G52*$H$2,2) -> 242.4 | I52: =VLOOKUP(B52,'Orçamento Analítico - PE - P'!B:H,7,0)*(1-$M$2) -> 1659.604 | J52: =ROUND(I52*(1+$I$2),2) -> 2054.26 | K52: =ROUND(J52*H52,2) -> 497952.62 | L52: 0.02100434432
A53: 13.2 | B53: COMPOSIÇÃO - 23 | C53: Próprio | D53: Serviço | E53: Execução de tamponamento conforme especificação. | F53: m³ | G53: 0.24 | H53: 48 | I53: =VLOOKUP(B53,'Orçamento Analítico - PE - P'!B:H,7,0)*(1-$M$2) -> 623.29 | J53: 771.51 | K53: =ROUND(J53*H53,2) -> 37032.48 | L53: 0.001562082274
A54: 13.3 | B54: COMPOSIÇÃO - 24 | C54: Próprio | D54: Serviço | E54: Fornecimento e instalação do filtro para revestimento interno ø 4 1/2". | F54: m | G54: 0.6 | H54: 120 | I54: =VLOOKUP(B54,'Orçamento Analítico - PE - P'!B:H,7,0)*(1-$M$2) -> 123.2785 | J54: 152.59 | K54: 18310.8 | L54: 0.0007723753876
A55: 13.4 | B55: COMPOSIÇÃO - 25 | C55: Próprio | D55: Serviço | E55: Fornecimento e instalação do revestimento interno ø 4 1/2". | F55: m | G55: 34.8 | H55: 6960 | I55: =VLOOKUP(B55,'Orçamento Analítico - PE - P'!B:H,7,0)*(1-$M$2) -> 114.5685 | J55: 141.81 | K55: 986997.6 | L55: 0.0416329518
A56: 13.5 | B56: M3929 | C56: Sicro3 | D56: Insumo | E56: Tubo em aço-carbono - e = 3,00 mm e d = 150 mm (6"). | F56: m | G56: 9 | H56: 1800 | I56: =VLOOKUP(B56,'Orçamento Analítico - PE - P'!B:H,7,0)*(1-$M$2) -> 148.57 | J56: =ROUND(I56*(1+$J$2),2) -> 170.4 | K56: 306720 | L56: 0.0129378825
A57: 13.6 | B57: 5108 | C57: Orse | D57: Insumo | E57: Revestimento tubo liso aço sch-40 em 8" | F57: m | G57: 6 | H57: 1200 | I57: =VLOOKUP(B57,'Orçamento Analítico - PE - P'!B:H,7,0)*(1-$M$2) -> 164.55 | J57: 188.73 | K57: 226476 | L57: 0.009553077325
A58: 13.7 | B58: M039706073 | C58: Embasa | D58: Insumo | E58: Filtro nold em aço galvanizado dn 6". | F58: m | G58: 0.04 | H58: 8 | I58: =VLOOKUP(B58,'Orçamento Analítico - PE - P'!B:H,7,0)*(1-$M$2) -> 835.86 | J58: 958.66 | K58: 7669.28 | L58: 0.0003235010547
A59: 13.8 | B59: COMPOSIÇÃO - 26 | C59: Próprio | D59: Serviço | E59: Limpeza manual , remoção de cerca, capina e instalação dos equipamentos (área do poço, painéis solares, bebedouro e reservatório). | F59: m² | G59: 70 | H59: 14000 | I59: =VLOOKUP(B59,'Orçamento Analítico - PE - P'!B:H,7,0)*(1-$M$2) -> 1.9264 | J59: =ROUND(I59*(1+$I$2),2) -> 2.38 | K59: 33320 | L59: 0.001405484627

Sheet Orçamento Analítico - PE - P
G1: SBC 09/2025 SINAPI 08/2025 SICRO 04/2025 ORSE 06/2025 CPOS/CDHU 06/2025 EMBASA 06/2025 SEINFRA 028 SIURB 01/2025
D4: PLANILHA ANALÍTICA - POÇO PARCIALMENTE REVESTIDO - PERNAMBUCO - 15ª SR
A5: 1 | D5: Serviços preliminares.
A6: 1 | D6: SERVIÇOS PRELIMINARES | H6: 1447.58
A7: 1.1 | B7: Código | C7: Banco | D7: Descrição | E7: Und | F7: Quant. | G7: Valor Unit | H7: Total
A8: Composição | B8: COMPOSIÇÃO - 1 | C8: Próprio | D8: Administração Local da Obra - Poço Parcialmente Revestido | E8: un | F8: 1 | G8: =SUM(H9:H10) -> 191.073 | H8: =G8 -> 191.073
A9: Composição Auxiliar | B9: 12710 | C9: SBC | D9: DESPESAS GERAIS DE MANUTENCAO CANTEIRO DE OBRAS | E9: MES | F9: 0.03 | G9: =IF(C9="SINAPI", IF( IF(A9="Insumo", VLOOKUP(B9,'SINAPI INSUMOS'!B:H,6,0), VLOOKUP(B9,'SINAPI COMP'!B:H,6,0))=0,VLOOKUP(B9,'OUTRAS BASES'!C:D,2,0),IF(A9="Insumo", VLOOKUP(B9,'SINAPI INSUMOS'!B:H,6,0),VLOOKUP(B9,'SINAPI COMP'!B:H,6,0))), VLOOKUP(B9,'OUTRAS BASES'!C:D,2,0)) -> 910.61 | H9: =G9*F9 -> 27.3183
A10: Composição Auxiliar | B10: 100321 | C10: SINAPI | D10: TÉCNICO EM SEGURANÇA DO TRABALHO COM ENCARGOS COMPLEMENTARES | E10: MES | F10: 0.03 | G10: =IF(C10="SINAPI", IF( IF(A10="Insumo", VLOOKUP(B10,'SINAPI INSUMOS'!B:H,6,0), VLOOKUP(B10,'SINAPI COMP'!B:H,6,0))=0,VLOOKUP(B10,'OUTRAS BASES'!C:D,2,0),IF(A10="Insumo", VLOOKUP(B10,'SINAPI INSUMOS'!B:H,6,0),VLOOKUP(B10,'SINAPI COMP'!B:H,6,0))), VLOOKUP(B10,'OUTRAS BASES'!C:D,2,0)) -> 5458.49 | H10: =G10*F10 -> 163.7547
A11: 1.2 | B11: Código | C11: Banco | D11: Descrição | E11: Und | F11: Quant. | G11: Valor Unit | H11: Total
A12: Composição | B12: COMPOSIÇÃO - 2 | C12: Próprio | D12: Serviço de locação Geológica de campo com relatório hidro geológico e perfil construtivo e geológico esperado. Relatório de Viabilidade de implantação das estruturas e vistorias preliminares | E12: un | F12: 1 | G12: =SUM(H13:H15) -> 604.55 | H12: =G12 -> 604.55
A13: Composição Auxiliar | B13: 30.01.45 | C13: EMBASA | D13: GEOLOGO SENIOR | E13: hora | F13: 5 | G13: =IF(C13="SINAPI", IF( IF(A13="Insumo", VLOOKUP(B13,'SINAPI INSUMOS'!B:H,6,0), VLOOKUP(B13,'SINAPI COMP'!B:H,6,0))=0,VLOOKUP(B13,'OUTRAS BASES'!C:D,2,0),IF(A13="Insumo", VLOOKUP(B13,'SINAPI INSUMOS'!B:H,6,0),VLOOKUP(B13,'SINAPI COMP'!B:H,6,0))), VLOOKUP(B13,'OUTRAS BASES'!C:D,2,0)) -> 99.88 | H13: =G13*F13 -> 499.4
A14: Insumo | B14: 5896 | C14: ORSE | D14: Veículo tipo sedan ou pick-up capacidade 0,6 ton h | E14: h | F14: 5 | G14: =IF(C14="SINAPI", IF( IF(A14="Insumo", VLOOKUP(B14,'SINAPI INSUMOS'!B:H,6,0), VLOOKUP(B14,'SINAPI COMP'!B:H,6,0))=0,VLOOKUP(B14,'OUTRAS BASES'!C:D,2,0),IF(A14="Insumo", VLOOKUP(B14,'SINAPI INSUMOS'!B:H,6,0),VLOOKUP(B14,'SINAPI COMP'!B:H,6,0))), VLOOKUP(B14,'OUTRAS BASES'!C:D,2,0)) -> 8.33 | H14: =F14*G14 -> 41.65
A15: Insumo | B15: 4222 | C15: SINAPI | D15: GASOLINA COMUM | E15: L | F15: 10 | G15: =IF(C15="SINAPI", IF( IF(A15="Insumo", VLOOKUP(B15,'SINAPI INSUMOS'!B:H,6,0), VLOOKUP(B15,'SINAPI COMP'!B:H,6,0))=0,VLOOKUP(B15,'OUTRAS BASES'!C:D,2,0),IF(A15="Insumo", VLOOKUP(B15,'SINAPI INSUMOS'!B:H,6,0),VLOOKUP(B15,'SINAPI COMP'!B:H,6,0))), VLOOKUP(B15,'OUTRAS BASES'!C:D,2,0)) -> 6.35 | H15: =F15*G15 -> 63.5
A16: 1.3 | B16: Código | C16: Banco | D16: Descrição | E16: Und | F16: Quant. | G16: Valor Unit | H16: Total
A17: Composição | B17: 103689 | C17: SINAPI | D17: FORNECIMENTO E INSTALAÇÃO DE PLACA DE OBRA COM CHAPA GALVANIZADA E ESTRUTURA DE MADEIRA. AF_03/2022_PS | E17: m² | F17: 1 | G17: =IF(C17="SINAPI", IF( IF(A17="Insumo", VLOOKUP(B17,'SINAPI INSUMOS'!B:H,6,0), VLOOKUP(B17,'SINAPI COMP'!B:H,6,0))=0,VLOOKUP(B17,'OUTRAS BASES'!C:D,2,0),IF(A17="Insumo", VLOOKUP(B17,'SINAPI INSUMOS'!B:H,6,0),VLOOKUP(B17,'SINAPI COMP'!B:H,6,0))), VLOOKUP(B17,'OUTRAS BASES'!C:D,2,0)) -> 468.16 | H17: =G17 -> 468.16
A18: Composição Auxiliar | B18: 102234 | C18: SINAPI | D18: PINTURA IMUNIZANTE PARA MADEIRA, 2 DEMÃOS. AF_01/2021 | E18: m² | F18: 0.5 | G18: =IF(C18="SINAPI", IF( IF(A18="Insumo", VLOOKUP(B18,'SINAPI INSUMOS'!B:H,6,0), VLOOKUP(B18,'SINAPI COMP'!B:H,6,0))=0,VLOOKUP(B18,'OUTRAS BASES'!C:D,2,0),IF(A18="Insumo", VLOOKUP(B18,'SINAPI INSUMOS'!B:H,6,0),VLOOKUP(B18,'SINAPI COMP'!B:H,6,0))), VLOOKUP(B18,'OUTRAS BASES'!C:D,2,0)) -> 24.65 | H18: =G18*F18 -> 12.325
A19: Composição Auxiliar | B19: 88262 | C19: SINAPI | D19: CARPINTEIRO DE FORMAS COM ENCARGOS COMPLEMENTARES | E19: H | F19: 0.3729 | G19: =IF(C19="SINAPI", IF( IF(A19="Insumo", VLOOKUP(B19,'SINAPI INSUMOS'!B:H,6,0), VLOOKUP(B19,'SINAPI COMP'!B:H,6,0))=0,VLOOKUP(B19,'OUTRAS BASES'!C:D,2,0),IF(A19="Insumo", VLOOKUP(B19,'SINAPI INSUMOS'!B:H,6,0),VLOOKUP(B19,'SINAPI COMP'!B:H,6,0))), VLOOKUP(B19,'OUTRAS BASES'!C:D,2,0)) -> 29.41 | H19: 10.966989
A20: Composição Auxiliar | B20: 88316 | C20: SINAPI | D20: SERVENTE COM ENCARGOS COMPLEMENTARES | E20: H | F20: 1.1186 | G20: =IF(C20="SINAPI", IF( IF(A20="Insumo", VLOOKUP(B20,'SINAPI INSUMOS'!B:H,6,0), VLOOKUP(B20,'SINAPI COMP'!B:H,6,0))=0,VLOOKUP(B20,'OUTRAS BASES'!C:D,2,0),IF(A20="Insumo", VLOOKUP(B20,'SINAPI INSUMOS'!B:H,6,0),VLOOKUP(B20,'SINAPI COMP'!B:H,6,0))), VLOOKUP(B20,'OUTRAS BASES'!C:D,2,0)) -> 24.08 | H20: 26.935888
A21: Insumo | B21: 4509 | C21: SINAPI | D21: SARRAFO *2,5 X 10* CM EM PINUS, MISTA OU EQUIVALENTE DA REGIAO - BRUTA | E21: M | F21: 3.2083 | G21: =IF(C21="SINAPI", IF( IF(A21="Insumo", VLOOKUP(B21,'SINAPI INSUMOS'!B:H,6,0), VLOOKUP(B21,'SINAPI COMP'!B:H,6,0))=0,VLOOKUP(B21,'OUTRAS BASES'!C:D,2,0),IF(A21="Insumo", VLOOKUP(B21,'SINAPI INSUMOS'!B:H,6,0),VLOOKUP(B21,'SINAPI COMP'!B:H,6,0))), VLOOKUP(B21,'OUTRAS BASES'!C:D,2,0)) -> 5.41 | H21: =F21*G21 -> 17.356903
A22: Insumo | B22: 4813 | C22: SINAPI | D22: PLACA DE OBRA (PARA CONSTRUCAO CIVIL) EM CHAPA GALVANIZADA *N. 22*, ADESIVADA, DE *2,4 X 1,2* M (SEM POSTES PARA FIXACAO) | E22: m² | F22: 1 | G22: =IF(C22="SINAPI", IF( IF(A22="Insumo", VLOOKUP(B22,'SINAPI INSUMOS'!B:H,6,0), VLOOKUP(B22,'SINAPI COMP'!B:H,6,0))=0,VLOOKUP(B22,'OUTRAS BASES'!C:D,2,0),IF(A22="Insumo", VLOOKUP(B22,'SINAPI INSUMOS'!B:H,6,0),VLOOKUP(B22,'SINAPI COMP'!B:H,6,0))), VLOOKUP(B22,'OUTRAS BASES'!C:D,2,0)) -> 400 | H22: 400
A23: Insumo | B23: 5065 | C23: SINAPI | D23: PREGO DE ACO POLIDO COM CABECA 10 X 10 (7/8 X 17) | E23: KG | F23: 0.0113 | G23: =IF(C23="SINAPI", IF( IF(A23="Insumo", VLOOKUP(B23,'SINAPI INSUMOS'!B:H,6,0), VLOOKUP(B23,'SINAPI COMP'!B:H,6,0))=0,VLOOKUP(B23,'OUTRAS BASES'!C:D,2,0),IF(A23="Insumo", VLOOKUP(B23,'SINAPI INSUMOS'!B:H,6,0),VLOOKUP(B23,'SINAPI COMP'!B:H,6,0))), VLOOKUP(B23,'OUTRAS BASES'!C:D,2,0)) -> 33.38 | H23: 0.377194
A24: Insumo | B24: 5069 | C24: SINAPI | D24: PREGO DE ACO POLIDO COM CABECA 17 X 27 (2 1/2 X 11) | E24: KG | F24: 0.0132 | G24: =IF(C24="SINAPI", IF( IF(A24="Insumo", VLOOKUP(B24,'SINAPI INSUMOS'!B:H,6,0), VLOOKUP(B24,'SINAPI COMP'!B:H,6,0))=0,VLOOKUP(B24,'OUTRAS BASES'!C:D,2,0),IF(A24="Insumo", VLOOKUP(B24,'SINAPI INSUMOS'!B:H,6,0),VLOOKUP(B24,'SINAPI COMP'!B:H,6,0))), VLOOKUP(B24,'OUTRAS BASES'!C:D,2,0)) -> 17.88 | H24: 0.236016
A25: 2 | D25: MOBILIZAÇÂO E DESMOBILIZAÇÂO EQUIPES PERFURAÇÂO E INSTALAÇÃO | H25: 2461.5
A26: 2.1 | B26: Código | C26: Banco | D26: Descrição | E26: Und | F26: Quant. | G26: Valor Unit | H26: Total
A27: Composição | B27: COMPOSIÇÃO - 3 | C27: Próprio | D27: Transporte de Comboio Perfuração | E27: km | F27: 1 | G27: =SUM(H28:H29) -> 4.6183186 | H27: =G27 -> 4.6183186
A28: Composição Auxiliar | B28: 5824 | C28: SINAPI | D28: CAMINHÃO TOCO, PBT 16.000 KG, CARGA ÚTIL MÁX. 10.685 KG, DIST. ENTRE EIXOS 4,8 M, POTÊNCIA 189 CV, INCLUSIVE CARROCERIA FIXA ABERTA DE MADEIRA P/ TRANSPORTE GERAL DE CARGA SECA, DIMEN. APROX. 2,5 X 7,00 X 0,50 M - CHP DIURNO. AF_06/2014 | E28: CHP | F28: 0.01666 | G28: =IF(C28="SINAPI", IF( IF(A28="Insumo", VLOOKUP(B28,'SINAPI INSUMOS'!B:H,6,0), VLOOKUP(B28,'SINAPI COMP'!B:H,6,0))=0,VLOOKUP(B28,'OUTRAS BASES'!C:D,2,0),IF(A28="Insumo", VLOOKUP(B28,'SINAPI INSUMOS'!B:H,6,0),VLOOKUP(B28,'SINAPI COMP'!B:H,6,0))), VLOOKUP(B28,'OUTRAS BASES'!C:D,2,0)) -> 213.65 | H28: =G28*F28 -> 3.559409
A29: Composição Auxiliar | B29: 5826 | C29: SINAPI | D29: CAMINHÃO TOCO, PBT 16.000 KG, CARGA ÚTIL MÁX. 10.685 KG, DIST. ENTRE EIXOS 4,8 M, POTÊNCIA 189 CV, INCLUSIVE CARROCERIA FIXA ABERTA DE MADEIRA P/ TRANSPORTE GERAL DE CARGA SECA, DIMEN. APROX. 2,5 X 7,00 X 0,50 M - CHI DIURNO. AF_06/2014 | E29: CHI | F29: 0.01666 | G29: =IF(C29="SINAPI", IF( IF(A29="Insumo", VLOOKUP(B29,'SINAPI INSUMOS'!B:H,6,0), VLOOKUP(B29,'SINAPI COMP'!B:H,6,0))=0,VLOOKUP(B29,'OUTRAS BASES'!C:D,2,0),IF(A29="Insumo", VLOOKUP(B29,'SINAPI INSUMOS'!B:H,6,0),VLOOKUP(B29,'SINAPI COMP'!B:H,6,0))), VLOOKUP(B29,'OUTRAS BASES'!C:D,2,0)) -> 63.56 | H29: 1.0589096
A30: 2.2 | B30: Código | C30: Banco | D30: Descrição | E30: Und | F30: Quant. | G30: Valor Unit | H30: Total
A31: Composição | B31: COMPOSIÇÃO - 4 | C31: Próprio | D31: Transporte de Comboio Instalação | E31: km | F31: 1 | G31: =SUM(H32:H33) -> 5.7750224 | H31: =G31 -> 5.7750224
A32: Composição Auxiliar | B32: 5928 | C32: SINAPI | D32: GUINDAUTO HIDRÁULICO, CAPACIDADE MÁXIMA DE CARGA 6200 KG, MOMENTO MÁXIMO DE CARGA 11,7 TM, ALCANCE MÁXIMO HORIZONTAL 9,70 M, INCLUSIVE CAMINHÃO TOCO PBT 16.000 KG, POTÊNCIA DE 189 CV - CHP DIURNO. AF_06/2014 | E32: CHP | F32: 0.01666 | G32: =IF(C32="SINAPI", IF( IF(A32="Insumo", VLOOKUP(B32,'SINAPI INSUMOS'!B:H,6,0), VLOOKUP(B32,'SINAPI COMP'!B:H,6,0))=0,VLOOKUP(B32,'OUTRAS BASES'!C:D,2,0),IF(A32="Insumo", VLOOKUP(B32,'SINAPI INSUMOS'!B:H,6,0),VLOOKUP(B32,'SINAPI COMP'!B:H,6,0))), VLOOKUP(B32,'OUTRAS BASES'!C:D,2,0)) -> 271.66 | H32: =G32*F32 -> 4.5258556
A33: Composição Auxiliar | B33: 5930 | C33: SINAPI | D33: GUINDAUTO HIDRÁULICO, CAPACIDADE MÁXIMA DE CARGA 6200 KG, MOMENTO MÁXIMO DE CARGA 11,7 TM, ALCANCE MÁXIMO HORIZONTAL 9,70 M, INCLUSIVE CAMINHÃO TOCO PBT 16.000 KG, POTÊNCIA DE 189 CV - CHI DIURNO. AF_06/2014 | E33: CHI | F33: 0.01666 | G33: =IF(C33="SINAPI", IF( IF(A33="Insumo", VLOOKUP(B33,'SINAPI INSUMOS'!B:H,6,0), VLOOKUP(B33,'SINAPI COMP'!B:H,6,0))=0,VLOOKUP(B33,'OUTRAS BASES'!C:D,2,0),IF(A33="Insumo", VLOOKUP(B33,'SINAPI INSUMOS'!B:H,6,0),VLOOKUP(B33,'SINAPI COMP'!B:H,6,0))), VLOOKUP(B33,'OUTRAS BASES'!C:D,2,0)) -> 74.98 | H33: 1.2491668
A34: 2.3 | B34: Código | C34: Banco | D34: Descrição | E34: Und | F34: Quant. | G34: Valor Unit | H34: Total
A35: Composição | B35: COMPOSIÇÃO - 5 | C35: Próprio | D35: Transporte de Equipe Teste de Vazão | E35: km | F35: 1 | G35: =SUM(H36:H37) -> 2.516228 | H35: =G35 -> 2.516228
A36: Composição Auxiliar | B36: 73467 | C36: SINAPI | D36: CAMINHÃO TOCO, PBT 14.300 KG, CARGA ÚTIL MÁX. 9.710 KG, DIST. ENTRE EIXOS 3,56 M, POTÊNCIA 185 CV, INCLUSIVE CARROCERIA FIXA ABERTA DE MADEIRA P/ TRANSPORTE GERAL DE CARGA SECA, DIMEN. APROX. 2,50 X 6,50 X 0,50 M - CHP DIURNO. AF_06/2014 | E36: CHP | F36: 0.0083 | G36: =IF(C36="SINAPI", IF( IF(A36="Insumo", VLOOKUP(B36,'SINAPI INSUMOS'!B:H,6,0), VLOOKUP(B36,'SINAPI COMP'!B:H,6,0))=0,VLOOKUP(B36,'OUTRAS BASES'!C:D,2,0),IF(A36="Insumo", VLOOKUP(B36,'SINAPI INSUMOS'!B:H,6,0),VLOOKUP(B36,'SINAPI COMP'!B:H,6,0))), VLOOKUP(B36,'OUTRAS BASES'!C:D,2,0)) -> 242.7 | H36: =G36*F36 -> 2.01441
A37: Composição Auxiliar | B37: 91395 | C37: SINAPI | D37: CAMINHÃO TOCO, PBT 14.300 KG, CARGA ÚTIL MÁX. 9.710 KG, DIST. ENTRE EIXOS 3,56 M, POTÊNCIA 185 CV, INCLUSIVE CARROCERIA FIXA ABERTA DE MADEIRA P/ TRANSPORTE GERAL DE CARGA SECA, DIMEN. APROX. 2,50 X 6,50 X 0,50 M - CHI DIURNO. AF_06/2014 | E37: CHI | F37: 0.0083 | G37: =IF(C37="SINAPI", IF( IF(A37="Insumo", VLOOKUP(B37,'SINAPI INSUMOS'!B:H,6,0), VLOOKUP(B37,'SINAPI COMP'!B:H,6,0))=0,VLOOKUP(B37,'OUTRAS BASES'!C:D,2,0),IF(A37="Insumo", VLOOKUP(B37,'SINAPI INSUMOS'!B:H,6,0),VLOOKUP(B37,'SINAPI COMP'!B:H,6,0))), VLOOKUP(B37,'OUTRAS BASES'!C:D,2,0)) -> 60.46 | H37: 0.501818
A38: 3 | D38: PERFURAÇÃO E COMPLETAÇÃO DE POÇO TUBULAR | H38: 32678.51
A39: 3.1 | B39: Código | C39: Banco | D39: Descrição | E39: Und | F39: Quant. | G39: Valor Unit | H39: Total
A40: Insumo | B40: 5048 | C40: ORSE | D40: Perfuraçao em rocha cristalina - rocha cristalina alterada / compacta dn 6" (poço até 120m) | E40: m | F40: 1 | G40: =IF(C40="SINAPI", IF( IF(A40="Insumo", VLOOKUP(B40,'SINAPI INSUMOS'!B:H,6,0), VLOOKUP(B40,'SINAPI COMP'!B:H,6,0))=0,VLOOKUP(B40,'OUTRAS BASES'!C:D,2,0),IF(A40="Insumo", VLOOKUP(B40,'SINAPI INSUMOS'!B:H,6,0),VLOOKUP(B40,'SINAPI COMP'!B:H,6,0))), VLOOKUP(B40,'OUTRAS BASES'!C:D,2,0)) -> 125.23 | H40: =G40 -> 125.23
A41: 3.2 | B41: Código | C41: Banco | D41: Descrição | E41: Und | F41: Quant. | G41: Valor Unit | H41: Total
A42: Insumo | B42: 5057 | C42: ORSE | D42: Perfuração rocha sedimentar sedimento / Camadas inconsolidadas DN 12.1/2" - Poço até 150 m | E42: m | F42: 1 | G42: =IF(C42="SINAPI", IF( IF(A42="Insumo", VLOOKUP(B42,'SINAPI INSUMOS'!B:H,6,0), VLOOKUP(B42,'SINAPI COMP'!B:H,6,0))=0,VLOOKUP(B42,'OUTRAS BASES'!C:D,2,0),IF(A42="Insumo", VLOOKUP(B42,'SINAPI INSUMOS'!B:H,6,0),VLOOKUP(B42,'SINAPI COMP'!B:H,6,0))), VLOOKUP(B42,'OUTRAS BASES'!C:D,2,0)) -> 247.66 | H42: =G42 -> 247.66
A43: 3.3 | B43: Código | C43: Banco | D43: Descrição | E43: Und | F43: Quant. | G43: Valor Unit | H43: Total
A44: Composição | B44: COMPOSIÇÃO - 6 | C44: Próprio | D44: Serviço de lançamento cimentação anelar, incluso materiais. | E44: m³ | F44: 1 | G44: =H45 -> 521.34 | H44: =G44 -> 521.34
A45: Composição Auxiliar | B45: 1903 | C45: ORSE | D45: Argamassa cimento e areia traço t-1 (1:3) - 1 saco cimento 50kg / 3 padiolas areia dim. 0.35 x 0.45 x 0.23 m - Confecção mecânica e transporte | E45: m³ | F45: 1 | G45: =IF(C45="SINAPI", IF( IF(A45="Insumo", VLOOKUP(B45,'SINAPI INSUMOS'!B:H,6,0), VLOOKUP(B45,'SINAPI COMP'!B:H,6,0))=0,VLOOKUP(B45,'OUTRAS BASES'!C:D,2,0),IF(A45="Insumo", VLOOKUP(B45,'SINAPI INSUMOS'!B:H,6,0),VLOOKUP(B45,'SINAPI COMP'!B:H,6,0))), VLOOKUP(B45,'OUTRAS BASES'!C:D,2,0)) -> 521.34 | H45: =G45*F45 -> 521.34
A46: 3.4 | B46: Código | C46: Banco | D46: Descrição | E46: Und | F46: Quant. | G46: Valor Unit | H46: Total
A47: Insumo | B47: 9854 | C47: SINAPI | D47: TUBO PVC DE REVESTIMENTO GEOMECANICO NERVURADO STANDARD, DN = 154 MM, COMPRIMENTO = 2 M | E47: M | F47: 1 | G47: =IF(C47="SINAPI", IF( IF(A47="Insumo", VLOOKUP(B47,'SINAPI INSUMOS'!B:H,6,0), VLOOKUP(B47,'SINAPI COMP'!B:H,6,0))=0,VLOOKUP(B47,'OUTRAS BASES'!C:D,2,0),IF(A47="Insumo", VLOOKUP(B47,'SINAPI INSUMOS'!B:H,6,0),VLOOKUP(B47,'SINAPI COMP'!B:H,6,0))), VLOOKUP(B47,'OUTRAS BASES'!C:D,2,0)) -> 115.12 | H47: =G47 -> 115.12
A48: 4 | D48: PÓS PERFURAÇÃO | H48: 11810.38
A49: 4.1 | B49: Código | C49: Banco | D49: Descrição | E49: Und | F49: Quant. | G49: Valor Unit | H49: Total
A50: Composição | B50: 6305 | C50: ORSE | D50: Desenvolvimento com Compressor 250psi / 750cfm | E50: h | F50: 1 | G50: =IF(C50="SINAPI", IF( IF(A50="Insumo", VLOOKUP(B50,'SINAPI INSUMOS'!B:H,6,0), VLOOKUP(B50,'SINAPI COMP'!B:H,6,0))=0,VLOOKUP(B50,'OUTRAS BASES'!C:D,2,0),IF(A50="Insumo", VLOOKUP(B50,'SINAPI INSUMOS'!B:H,6,0),VLOOKUP(B50,'SINAPI COMP'!B:H,6,0))), VLOOKUP(B50,'OUTRAS BASES'!C:D,2,0)) -> 411.16 | H50: =G50 -> 411.16
A51: Insumo | B51: 5030 | C51: ORSE | D51: Desenvolvimento com compressor 250psi - 750cfm h | E51: h | F51: 1 | G51: =IF(C51="SINAPI", IF( IF(A51="Insumo", VLOOKUP(B51,'SINAPI INSUMOS'!B:H,6,0), VLOOKUP(B51,'SINAPI COMP'!B:H,6,0))=0,VLOOKUP(B51,'OUTRAS BASES'!C:D,2,0),IF(A51="Insumo", VLOOKUP(B51,'SINAPI INSUMOS'!B:H,6,0),VLOOKUP(B51,'SINAPI COMP'!B:H,6,0))), VLOOKUP(B51,'OUTRAS BASES'!C:D,2,0)) -> 411.16 | H51: =F51*G51 -> 411.16
A52: 4.2 | B52: Código | C52: Banco | D52: Descrição | E52: Und | F52: Quant. | G52: Valor Unit | H52: Total
A53: Composição | B53: COMPOSIÇÃO - 7 | C53: Próprio | D53: Inspeção ótica em poço tubular câmera com rotação de 360º, visada lateral, com fonte própria de luz, entregue vídeo em cores e marcação de profundidades. | E53: m | F53: 1 | G53: =SUM(H54:H55) -> 9.64046 | H53: =G53 -> 9.64046
A54: Insumo | B54: H020050004 | C54: EMBASA | D54: APARELHO DE PERFILAGEM OPTICA | E54: M | F54: 1 | G54: =IF(C54="SINAPI", IF( IF(A54="Insumo", VLOOKUP(B54,'SINAPI INSUMOS'!B:H,6,0), VLOOKUP(B54,'SINAPI COMP'!B:H,6,0))=0,VLOOKUP(B54,'OUTRAS BASES'!C:D,2,0),IF(A54="Insumo", VLOOKUP(B54,'SINAPI INSUMOS'!B:H,6,0),VLOOKUP(B54,'SINAPI COMP'!B:H,6,0))), VLOOKUP(B54,'OUTRAS BASES'!C:D,2,0)) -> 4.4 | H54: =F54*G54 -> 4.4
A55: Insumo | B55: B590000022 | C55: EMBASA | D55: TECNICO MEDIO | E55: H | F55: 0.0835 | G55: =IF(C55="SINAPI", IF( IF(A55="Insumo", VLOOKUP(B55,'SINAPI INSUMOS'!B:H,6,0), VLOOKUP(B55,'SINAPI COMP'!B:H,6,0))=0,VLOOKUP(B55,'OUTRAS BASES'!C:D,2,0),IF(A55="Insumo", VLOOKUP(B55,'SINAPI INSUMOS'!B:H,6,0),VLOOKUP(B55,'SINAPI COMP'!B:H,6,0))), VLOOKUP(B55,'OUTRAS BASES'!C:D,2,0)) -> 62.76 | H55: 5.24046
A56: 4.3 | B56: Código | C56: Banco | D56: Descrição | E56: Und | F56: Quant. | G56: Valor Unit | H56: Total
A57: Composição | B57: COMPOSIÇÃO - 8 | C57: Próprio | D57: Serviço de coleta e Análise Físico-Química e Bacteriológica | E57: un | F57: 1 | G57: =SUM(H58:H59) -> 621.19 | H57: =G57 -> 621.19
A58: Composição Auxiliar | B58: 6312 | C58: ORSE | D58: Análise Físico-química da Água | E58: un | F58: 1 | G58: =IF(C58="SINAPI", IF( IF(A58="Insumo", VLOOKUP(B58,'SINAPI INSUMOS'!B:H,6,0), VLOOKUP(B58,'SINAPI COMP'!B:H,6,0))=0,VLOOKUP(B58,'OUTRAS BASES'!C:D,2,0),IF(A58="Insumo", VLOOKUP(B58,'SINAPI INSUMOS'!B:H,6,0),VLOOKUP(B58,'SINAPI COMP'!B:H,6,0))), VLOOKUP(B58,'OUTRAS BASES'!C:D,2,0)) -> 565.21 | H58: =G58*F58 -> 565.21
A59: Composição Auxiliar | B59: 6313 | C59: ORSE | D59: Análise Bacteriológica da Água | E59: un | F59: 1 | G59: =IF(C59="SINAPI", IF( IF(A59="Insumo", VLOOKUP(B59,'SINAPI INSUMOS'!B:H,6,0), VLOOKUP(B59,'SINAPI COMP'!B:H,6,0))=0,VLOOKUP(B59,'OUTRAS BASES'!C:D,2,0),IF(A59="Insumo", VLOOKUP(B59,'SINAPI INSUMOS'!B:H,6,0),VLOOKUP(B59,'SINAPI COMP'!B:H,6,0))), VLOOKUP(B59,'OUTRAS BASES'!C:D,2,0)) -> 55.98 | H59: 55.98
A60: 4.4 | B60: Código | C60: Banco | D60: Descrição | E60: Und | F60: Quant. | G60: Valor Unit | H60: Total
A61: Composição | B61: 24.80.22 | C61: EMBASA | D61: (REVISADA) DESENVOLVIMENTO OU TESTE COM BOMBA SUBMERSA - UEB1 NO SEDIMENTO COM VAZAO < 60M3 (Ensaio de bombeamento poço tubular incluso materiais e grupo gerador) | E61: H | F61: 1 | G61: =IF(C61="SINAPI", IF( IF(A61="Insumo", VLOOKUP(B61,'SINAPI INSUMOS'!B:H,6,0), VLOOKUP(B61,'SINAPI COMP'!B:H,6,0))=0,VLOOKUP(B61,'OUTRAS BASES'!C:D,2,0),IF(A61="Insumo", VLOOKUP(B61,'SINAPI INSUMOS'!B:H,6,0),VLOOKUP(B61,'SINAPI COMP'!B:H,6,0))), VLOOKUP(B61,'OUTRAS BASES'!C:D,2,0)) -> 263.27 | H61: =G61 -> 263.27
A62: Composição Auxiliar | B62: 24.00.15 | C62: EMBASA | D62: EQUIPE (3 PROFISSIONAIS CAMPO) - BOMBEIO | E62: H | F62: 1 | G62: =IF(C62="SINAPI", IF( IF(A62="Insumo", VLOOKUP(B62,'SINAPI INSUMOS'!B:H,6,0), VLOOKUP(B62,'SINAPI COMP'!B:H,6,0))=0,VLOOKUP(B62,'OUTRAS BASES'!C:D,2,0),IF(A62="Insumo", VLOOKUP(B62,'SINAPI INSUMOS'!B:H,6,0),VLOOKUP(B62,'SINAPI COMP'!B:H,6,0))), VLOOKUP(B62,'OUTRAS BASES'!C:D,2,0)) -> 198.35 | H62: =G62*F62 -> 198.35
A63: Insumo | B63: H020050001 | C63: EMBASA | D63: UNIDADE DE ENSAIO E BOMBEAMENTO - UEB1 ATE 150M3 NO SEDIMENTO | E63: H | F63: 1 | G63: =IF(C63="SINAPI", IF( IF(A63="Insumo", VLOOKUP(B63,'SINAPI INSUMOS'!B:H,6,0), VLOOKUP(B63,'SINAPI COMP'!B:H,6,0))=0,VLOOKUP(B63,'OUTRAS BASES'!C:D,2,0),IF(A63="Insumo", VLOOKUP(B63,'SINAPI INSUMOS'!B:H,6,0),VLOOKUP(B63,'SINAPI COMP'!B:H,6,0))), VLOOKUP(B63,'OUTRAS BASES'!C:D,2,0)) -> 64.92 | H63: =F63*G63 -> 64.92
A64: 4.5 | B64: Código | C64: Banco | D64: Descrição | E64: Und | F64: Quant. | G64: Valor Unit | H64: Total
A65: Composição | B65: COMPOSIÇÃO - 9 | C65: Próprio | D65: Serviço de instalação de laje sanitária com dimensões (1,5x1,5x0,3) metros , incluso material. | E65: un | F65: 1 | G65: =SUM(H66:H69) -> 668.5785 | H65: =G65 -> 668.5785
A66: Composição Auxiliar | B66: 92522 | C66: SINAPI | D66: MONTAGEM E DESMONTAGEM DE FÔRMA DE LAJE MACIÇA, PÉ-DIREITO SIMPLES, EM CHAPA DE MADEIRA COMPENSADA RESINADA, 8 UTILIZAÇÕES. AF_09/2020 | E66: m² | F66: 1.8 | G66: =IF(C66="SINAPI", IF( IF(A66="Insumo", VLOOKUP(B66,'SINAPI INSUMOS'!B:H,6,0), VLOOKUP(B66,'SINAPI COMP'!B:H,6,0))=0,VLOOKUP(B66,'OUTRAS BASES'!C:D,2,0),IF(A66="Insumo", VLOOKUP(B66,'SINAPI INSUMOS'!B:H,6,0),VLOOKUP(B66,'SINAPI COMP'!B:H,6,0))), VLOOKUP(B66,'OUTRAS BASES'!C:D,2,0)) -> 42.28 | H66: =G66*F66 -> 76.104
A67: Composição Auxiliar | B67: 93358 | C67: SINAPI | D67: ESCAVAÇÃO MANUAL DE VALA COM PROFUNDIDADE MENOR OU IGUAL A 1,30 M. AF_02/2021 | E67: m³ | F67: 0.225 | G67: =IF(C67="SINAPI", IF( IF(A67="Insumo", VLOOKUP(B67,'SINAPI INSUMOS'!B:H,6,0), VLOOKUP(B67,'SINAPI COMP'!B:H,6,0))=0,VLOOKUP(B67,'OUTRAS BASES'!C:D,2,0),IF(A67="Insumo", VLOOKUP(B67,'SINAPI INSUMOS'!B:H,6,0),VLOOKUP(B67,'SINAPI COMP'!B:H,6,0))), VLOOKUP(B67,'OUTRAS BASES'!C:D,2,0)) -> 95.25 | H67: 21.43125
A68: Composição Auxiliar | B68: 94975 | C68: SINAPI | D68: CONCRETO FCK = 15MPA, TRAÇO 1:3,4:3,5 (EM MASSA SECA DE CIMENTO/ AREIA MÉDIA/ BRITA 1) - PREPARO MANUAL. AF_05/2021 | E68: m³ | F68: 0.675 | G68: =IF(C68="SINAPI", IF( IF(A68="Insumo", VLOOKUP(B68,'SINAPI INSUMOS'!B:H,6,0), VLOOKUP(B68,'SINAPI COMP'!B:H,6,0))=0,VLOOKUP(B68,'OUTRAS BASES'!C:D,2,0),IF(A68="Insumo", VLOOKUP(B68,'SINAPI INSUMOS'!B:H,6,0),VLOOKUP(B68,'SINAPI COMP'!B:H,6,0))), VLOOKUP(B68,'OUTRAS BASES'!C:D,2,0)) -> 520.36 | H68: 351.243
A69: Composição Auxiliar | B69: 103670 | C69: SINAPI | D69: LANÇAMENTO COM USO DE BALDES, ADENSAMENTO E ACABAMENTO DE CONCRETO EM ESTRUTURAS. AF_02/2022 | E69: m³ | F69: 0.675 | G69: =IF(C69="SINAPI", IF( IF(A69="Insumo", VLOOKUP(B69,'SINAPI INSUMOS'!B:H,6,0), VLOOKUP(B69,'SINAPI COMP'!B:H,6,0))=0,VLOOKUP(B69,'OUTRAS BASES'!C:D,2,0),IF(A69="Insumo", VLOOKUP(B69,'SINAPI INSUMOS'!B:H,6,0),VLOOKUP(B69,'SINAPI COMP'!B:H,6,0))), VLOOKUP(B69,'OUTRAS BASES'!C:D,2,0)) -> 325.63 | H69: 219.80025
A70: 5 | D70: RESERVAÇÃO | H70: 26902.15
A71: 5.1 | B71: Código | C71: Banco | D71: Descrição | E71: Und | F71: Quant. | G71: Valor Unit | H71: Total
A72: Composição | B72: COMPOSIÇÃO - 10 | C72: Próprio | D72: Fornecimento e instalação de reservatório e base elevada 10 m³ | E72: un | F72: 1 | G72: =SUM(H73:H94) -> 18451.80904 | H72: =G72 -> 18451.80904
A73: Composição Auxiliar | B73: 92759 | C73: SINAPI | D73: ARMAÇÃO DE PILAR OU VIGA DE ESTRUTURA CONVENCIONAL DE CONCRETO ARMADO UTILIZANDO AÇO CA-60 DE 5,0 MM - MONTAGEM. AF_06/2022 | E73: KG | F73: 17.2 | G73: =IF(C73="SINAPI", IF( IF(A73="Insumo", VLOOKUP(B73,'SINAPI INSUMOS'!B:H,6,0), VLOOKUP(B73,'SINAPI COMP'!B:H,6,0))=0,VLOOKUP(B73,'OUTRAS BASES'!C:D,2,0),IF(A73="Insumo", VLOOKUP(B73,'SINAPI INSUMOS'!B:H,6,0),VLOOKUP(B73,'SINAPI COMP'!B:H,6,0))), VLOOKUP(B73,'OUTRAS BASES'!C:D,2,0)) -> 13.87 | H73: =G73*F73 -> 238.564
A74: Composição Auxiliar | B74: 92761 | C74: SINAPI | D74: ARMAÇÃO DE PILAR OU VIGA DE ESTRUTURA CONVENCIONAL DE CONCRETO ARMADO UTILIZANDO AÇO CA-50 DE 8,0 MM - MONTAGEM. AF_06/2022 | E74: KG | F74: 30.4 | G74: =IF(C74="SINAPI", IF( IF(A74="Insumo", VLOOKUP(B74,'SINAPI INSUMOS'!B:H,6,0), VLOOKUP(B74,'SINAPI COMP'!B:H,6,0))=0,VLOOKUP(B74,'OUTRAS BASES'!C:D,2,0),IF(A74="Insumo", VLOOKUP(B74,'SINAPI INSUMOS'!B:H,6,0),VLOOKUP(B74,'SINAPI COMP'!B:H,6,0))), VLOOKUP(B74,'OUTRAS BASES'!C:D,2,0)) -> 11.91 | H74: 362.064
A75: Composição Auxiliar | B75: 92768 | C75: SINAPI | D75: ARMAÇÃO DE LAJE DE ESTRUTURA CONVENCIONAL DE CONCRETO ARMADO UTILIZANDO AÇO CA-60 DE 5,0 MM - MONTAGEM. AF_06/2022 | E75: KG | F75: 11.9 | G75: =IF(C75="SINAPI", IF( IF(A75="Insumo", VLOOKUP(B75,'SINAPI INSUMOS'!B:H,6,0), VLOOKUP(B75,'SINAPI COMP'!B:H,6,0))=0,VLOOKUP(B75,'OUTRAS BASES'!C:D,2,0),IF(A75="Insumo", VLOOKUP(B75,'SINAPI INSUMOS'!B:H,6,0),VLOOKUP(B75,'SINAPI COMP'!B:H,6,0))), VLOOKUP(B75,'OUTRAS BASES'!C:D,2,0)) -> 13.29 | H75: 158.151
A76: Composição Auxiliar | B76: 92770 | C76: SINAPI | D76: ARMAÇÃO DE LAJE DE ESTRUTURA CONVENCIONAL DE CONCRETO ARMADO UTILIZANDO AÇO CA-50 DE 8,0 MM - MONTAGEM. AF_06/2022 | E76: KG | F76: 48 | G76: =IF(C76="SINAPI", IF( IF(A76="Insumo", VLOOKUP(B76,'SINAPI INSUMOS'!B:H,6,0), VLOOKUP(B76,'SINAPI COMP'!B:H,6,0))=0,VLOOKUP(B76,'OUTRAS BASES'!C:D,2,0),IF(A76="Insumo", VLOOKUP(B76,'SINAPI INSUMOS'!B:H,6,0),VLOOKUP(B76,'SINAPI COMP'!B:H,6,0))), VLOOKUP(B76,'OUTRAS BASES'!C:D,2,0)) -> 11.37 | H76: 545.76
A77: Composição Auxiliar | B77: 93358 | C77: SINAPI | D77: ESCAVAÇÃO MANUAL DE VALA COM PROFUNDIDADE MENOR OU IGUAL A 1,30 M. AF_02/2021 | E77: m³ | F77: 5.2 | G77: =IF(C77="SINAPI", IF( IF(A77="Insumo", VLOOKUP(B77,'SINAPI INSUMOS'!B:H,6,0), VLOOKUP(B77,'SINAPI COMP'!B:H,6,0))=0,VLOOKUP(B77,'OUTRAS BASES'!C:D,2,0),IF(A77="Insumo", VLOOKUP(B77,'SINAPI INSUMOS'!B:H,6,0),VLOOKUP(B77,'SINAPI COMP'!B:H,6,0))), VLOOKUP(B77,'OUTRAS BASES'!C:D,2,0)) -> 95.25 | H77: 495.3
A78: Composição Auxiliar | B78: 92763 | C78: SINAPI | D78: ARMAÇÃO DE PILAR OU VIGA DE ESTRUTURA CONVENCIONAL DE CONCRETO ARMADO UTILIZANDO AÇO CA-50 DE 12,5 MM - MONTAGEM. AF_06/2022 | E78: KG | F78: 118.4 | G78: =IF(C78="SINAPI", IF( IF(A78="Insumo", VLOOKUP(B78,'SINAPI INSUMOS'!B:H,6,0), VLOOKUP(B78,'SINAPI COMP'!B:H,6,0))=0,VLOOKUP(B78,'OUTRAS BASES'!C:D,2,0),IF(A78="Insumo", VLOOKUP(B78,'SINAPI INSUMOS'!B:H,6,0),VLOOKUP(B78,'SINAPI COMP'!B:H,6,0))), VLOOKUP(B78,'OUTRAS BASES'!C:D,2,0)) -> 8.79 | H78: 1040.736
A79: Composição Auxiliar | B79: 94970 | C79: SINAPI | D79: CONCRETO FCK = 20MPA, TRAÇO 1:2,7:3 (EM MASSA SECA DE CIMENTO/ AREIA MÉDIA/ BRITA 1) - PREPARO MECÂNICO COM BETONEIRA 600 L. AF_05/2021 | E79: m³ | F79: 4.89 | G79: =IF(C79="SINAPI", IF( IF(A79="Insumo", VLOOKUP(B79,'SINAPI INSUMOS'!B:H,6,0), VLOOKUP(B79,'SINAPI COMP'!B:H,6,0))=0,VLOOKUP(B79,'OUTRAS BASES'!C:D,2,0),IF(A79="Insumo", VLOOKUP(B79,'SINAPI INSUMOS'!B:H,6,0),VLOOKUP(B79,'SINAPI COMP'!B:H,6,0))), VLOOKUP(B79,'OUTRAS BASES'!C:D,2,0)) -> 478.58 | H79: 2340.2562
A80: Composição Auxiliar | B80: 103670 | C80: SINAPI | D80: LANÇAMENTO COM USO DE BALDES, ADENSAMENTO E ACABAMENTO DE CONCRETO EM ESTRUTURAS. AF_02/2022 | E80: m³ | F80: 6.85 | G80: =IF(C80="SINAPI", IF( IF(A80="Insumo", VLOOKUP(B80,'SINAPI INSUMOS'!B:H,6,0), VLOOKUP(B80,'SINAPI COMP'!B:H,6,0))=0,VLOOKUP(B80,'OUTRAS BASES'!C:D,2,0),IF(A80="Insumo", VLOOKUP(B80,'SINAPI INSUMOS'!B:H,6,0),VLOOKUP(B80,'SINAPI COMP'!B:H,6,0))), VLOOKUP(B80,'OUTRAS BASES'!C:D,2,0)) -> 325.63 | H80: 2230.5655
A81: Composição Auxiliar | B81: 84651 | C81: SINAPI | D81: PINTURA COM TINTA IMPERMEAVEL MINERAL EM PO, DUAS DEMAOS | E81: m² | F81: 28.27 | G81: =IF(C81="SINAPI", IF( IF(A81="Insumo", VLOOKUP(B81,'SINAPI INSUMOS'!B:H,6,0), VLOOKUP(B81,'SINAPI COMP'!B:H,6,0))=0,VLOOKUP(B81,'OUTRAS BASES'!C:D,2,0),IF(A81="Insumo", VLOOKUP(B81,'SINAPI INSUMOS'!B:H,6,0),VLOOKUP(B81,'SINAPI COMP'!B:H,6,0))), VLOOKUP(B81,'OUTRAS BASES'!C:D,2,0)) -> 15.0305 | H81: 424.912235
A82: Composição Auxiliar | B82: 90776 | C82: SINAPI | D82: ENCARREGADO GERAL COM ENCARGOS COMPLEMENTARES | E82: H | F82: 1 | G82: =IF(C82="SINAPI", IF( IF(A82="Insumo", VLOOKUP(B82,'SINAPI INSUMOS'!B:H,6,0), VLOOKUP(B82,'SINAPI COMP'!B:H,6,0))=0,VLOOKUP(B82,'OUTRAS BASES'!C:D,2,0),IF(A82="Insumo", VLOOKUP(B82,'SINAPI INSUMOS'!B:H,6,0),VLOOKUP(B82,'SINAPI COMP'!B:H,6,0))), VLOOKUP(B82,'OUTRAS BASES'!C:D,2,0)) -> 44.81 | H82: 44.81
A83: Composição Auxiliar | B83: 102482 | C83: SINAPI | D83: CONCRETO FCK = 25MPA, TRAÇO 1:2,2:2,5 (EM MASSA SECA DE CIMENTO/ AREIA MÉDIA/ SEIXO ROLADO) - PREPARO MECÂNICO COM BETONEIRA 600 L. AF_05/2021 | E83: m³ | F83: 1.96 | G83: =IF(C83="SINAPI", IF( IF(A83="Insumo", VLOOKUP(B83,'SINAPI INSUMOS'!B:H,6,0), VLOOKUP(B83,'SINAPI COMP'!B:H,6,0))=0,VLOOKUP(B83,'OUTRAS BASES'!C:D,2,0),IF(A83="Insumo", VLOOKUP(B83,'SINAPI INSUMOS'!B:H,6,0),VLOOKUP(B83,'SINAPI COMP'!B:H,6,0))), VLOOKUP(B83,'OUTRAS BASES'!C:D,2,0)) -> 661.93 | H83: 1297.3828
A84: Composição Auxiliar | B84: 92263 | C84: SINAPI | D84: FABRICAÇÃO DE FÔRMA PARA PILARES E ESTRUTURAS SIMILARES, EM CHAPA DE MADEIRA COMPENSADA RESINADA, E = 17 MM. AF_09/2020 | E84: m² | F84: 25.19 | G84: =IF(C84="SINAPI", IF( IF(A84="Insumo", VLOOKUP(B84,'SINAPI INSUMOS'!B:H,6,0), VLOOKUP(B84,'SINAPI COMP'!B:H,6,0))=0,VLOOKUP(B84,'OUTRAS BASES'!C:D,2,0),IF(A84="Insumo", VLOOKUP(B84,'SINAPI INSUMOS'!B:H,6,0),VLOOKUP(B84,'SINAPI COMP'!B:H,6,0))), VLOOKUP(B84,'OUTRAS BASES'!C:D,2,0)) -> 168.67 | H84: 4248.7973
A85: Composição Auxiliar | B85: 88267 | C85: SINAPI | D85: ENCANADOR OU BOMBEIRO HIDRÁULICO COM ENCARGOS COMPLEMENTARES | E85: H | F85: 4 | G85: =IF(C85="SINAPI", IF( IF(A85="Insumo", VLOOKUP(B85,'SINAPI INSUMOS'!B:H,6,0), VLOOKUP(B85,'SINAPI COMP'!B:H,6,0))=0,VLOOKUP(B85,'OUTRAS BASES'!C:D,2,0),IF(A85="Insumo", VLOOKUP(B85,'SINAPI INSUMOS'!B:H,6,0),VLOOKUP(B85,'SINAPI COMP'!B:H,6,0))), VLOOKUP(B85,'OUTRAS BASES'!C:D,2,0)) -> 29.13 | H85: 116.52
A86: Composição Auxiliar | B86: 88248 | C86: SINAPI | D86: AUXILIAR DE ENCANADOR OU BOMBEIRO HIDRÁULICO COM ENCARGOS COMPLEMENTARES | E86: H | F86: 4 | G86: =IF(C86="SINAPI", IF( IF(A86="Insumo", VLOOKUP(B86,'SINAPI INSUMOS'!B:H,6,0), VLOOKUP(B86,'SINAPI COMP'!B:H,6,0))=0,VLOOKUP(B86,'OUTRAS BASES'!C:D,2,0),IF(A86="Insumo", VLOOKUP(B86,'SINAPI INSUMOS'!B:H,6,0),VLOOKUP(B86,'SINAPI COMP'!B:H,6,0))), VLOOKUP(B86,'OUTRAS BASES'!C:D,2,0)) -> 24.51 | H86: 98.04
A87: Insumo | B87: 3146 | C87: SINAPI | D87: FITA VEDA ROSCA EM ROLOS DE 18 MM X 10 M (L X C) | E87: UN | F87: 0.18 | G87: =IF(C87="SINAPI", IF( IF(A87="Insumo", VLOOKUP(B87,'SINAPI INSUMOS'!B:H,6,0), VLOOKUP(B87,'SINAPI COMP'!B:H,6,0))=0,VLOOKUP(B87,'OUTRAS BASES'!C:D,2,0),IF(A87="Insumo", VLOOKUP(B87,'SINAPI INSUMOS'!B:H,6,0),VLOOKUP(B87,'SINAPI COMP'!B:H,6,0))), VLOOKUP(B87,'OUTRAS BASES'!C:D,2,0)) -> 3.45 | H87: =F87*G87 -> 0.621
A88: Insumo | B88: 37106 | C88: SINAPI | D88: CAIXA D'AGUA / RESERVATORIO EM POLIESTER REFORCADO COM FIBRA DE VIDRO, 10000 LITROS, COM TAMPA | E88: UN | F88: 1 | G88: =IF(C88="SINAPI", IF( IF(A88="Insumo", VLOOKUP(B88,'SINAPI INSUMOS'!B:H,6,0), VLOOKUP(B88,'SINAPI COMP'!B:H,6,0))=0,VLOOKUP(B88,'OUTRAS BASES'!C:D,2,0),IF(A88="Insumo", VLOOKUP(B88,'SINAPI INSUMOS'!B:H,6,0),VLOOKUP(B88,'SINAPI COMP'!B:H,6,0))), VLOOKUP(B88,'OUTRAS BASES'!C:D,2,0)) -> 4554.98 | H88: 4554.98
A89: Insumo | B89: 14073 | C89: ORSE | D89: CURVA 90º PVC D=50MM, LINHA IRRIGA-LF, TIGRE OU SIMILAR | E89: UM | F89: 3 | G89: =IF(C89="SINAPI", IF( IF(A89="Insumo", VLOOKUP(B89,'SINAPI INSUMOS'!B:H,6,0), VLOOKUP(B89,'SINAPI COMP'!B:H,6,0))=0,VLOOKUP(B89,'OUTRAS BASES'!C:D,2,0),IF(A89="Insumo", VLOOKUP(B89,'SINAPI INSUMOS'!B:H,6,0),VLOOKUP(B89,'SINAPI COMP'!B:H,6,0))), VLOOKUP(B89,'OUTRAS BASES'!C:D,2,0)) -> 8.1 | H89: 24.3
A90: Insumo | B90: 14068 | C90: ORSE | D90: Tubo PVC para irrigação LF PN 80 Ø 50mm, linha Irriga-LF, Tigre ou similar | E90: UN | F90: 15.2 | G90: =IF(C90="SINAPI", IF( IF(A90="Insumo", VLOOKUP(B90,'SINAPI INSUMOS'!B:H,6,0), VLOOKUP(B90,'SINAPI COMP'!B:H,6,0))=0,VLOOKUP(B90,'OUTRAS BASES'!C:D,2,0),IF(A90="Insumo", VLOOKUP(B90,'SINAPI INSUMOS'!B:H,6,0),VLOOKUP(B90,'SINAPI COMP'!B:H,6,0))), VLOOKUP(B90,'OUTRAS BASES'!C:D,2,0)) -> 9.27 | H90: 140.904
A91: Insumo | B91: 1434 | C91: ORSE | D91: Luva pvc rigido roscavel d=2 " | E91: UN | F91: 1 | G91: =IF(C91="SINAPI", IF( IF(A91="Insumo", VLOOKUP(B91,'SINAPI INSUMOS'!B:H,6,0), VLOOKUP(B91,'SINAPI COMP'!B:H,6,0))=0,VLOOKUP(B91,'OUTRAS BASES'!C:D,2,0),IF(A91="Insumo", VLOOKUP(B91,'SINAPI INSUMOS'!B:H,6,0),VLOOKUP(B91,'SINAPI COMP'!B:H,6,0))), VLOOKUP(B91,'OUTRAS BASES'!C:D,2,0)) -> 28.58 | H91: 28.58
A92: Insumo | B92: 90 | C92: ORSE | D92: Adaptador curto, pvc rigido soldavel, c/ bolsa e rosca p/ registro, d= 50mm x 1 1/2” | E92: UN | F92: 1 | G92: =IF(C92="SINAPI", IF( IF(A92="Insumo", VLOOKUP(B92,'SINAPI INSUMOS'!B:H,6,0), VLOOKUP(B92,'SINAPI COMP'!B:H,6,0))=0,VLOOKUP(B92,'OUTRAS BASES'!C:D,2,0),IF(A92="Insumo", VLOOKUP(B92,'SINAPI INSUMOS'!B:H,6,0),VLOOKUP(B92,'SINAPI COMP'!B:H,6,0))), VLOOKUP(B92,'OUTRAS BASES'!C:D,2,0)) -> 4.2 | H92: 4.2
A93: Insumo | B93: 99 | C93: SINAPI | D93: ADAPTADOR PVC SOLDAVEL, COM FLANGE E ANEL DE VEDACAO, 50 MM X 1 1/2", PARA CAIXA D'AGUA | E93: UN | F93: 2 | G93: =IF(C93="SINAPI", IF( IF(A93="Insumo", VLOOKUP(B93,'SINAPI INSUMOS'!B:H,6,0), VLOOKUP(B93,'SINAPI COMP'!B:H,6,0))=0,VLOOKUP(B93,'OUTRAS BASES'!C:D,2,0),IF(A93="Insumo", VLOOKUP(B93,'SINAPI INSUMOS'!B:H,6,0),VLOOKUP(B93,'SINAPI COMP'!B:H,6,0))), VLOOKUP(B93,'OUTRAS BASES'!C:D,2,0)) -> 26.27 | H93: 52.54
A94: Insumo | B94: 119 | C94: SINAPI | D94: ADESIVO PLASTICO PARA PVC, BISNAGA COM 75 GR | E94: UN | F94: 0.45 | G94: =IF(C94="SINAPI", IF( IF(A94="Insumo", VLOOKUP(B94,'SINAPI INSUMOS'!B:H,6,0), VLOOKUP(B94,'SINAPI COMP'!B:H,6,0))=0,VLOOKUP(B94,'OUTRAS BASES'!C:D,2,0),IF(A94="Insumo", VLOOKUP(B94,'SINAPI INSUMOS'!B:H,6,0),VLOOKUP(B94,'SINAPI COMP'!B:H,6,0))), VLOOKUP(B94,'OUTRAS BASES'!C:D,2,0)) -> 8.5 | H94: 3.825
A95: 5.2 | B95: Código | C95: Banco | D95: Descrição | E95: Und | F95: Quant. | G95: Valor Unit | H95: Total
A96: Composição | B96: COMPOSIÇÃO - 11 | C96: Próprio | D96: Fornecimento e execução de reservatório apoiado de 5 m³ | E96: un | F96: 1 | G96: =SUM(H97:H106) -> 7722.949525 | H96: =G96 -> 7722.949525
A97: Composição Auxiliar | B97: 88309 | C97: SINAPI | D97: PEDREIRO COM ENCARGOS COMPLEMENTARES | E97: H | F97: 3 | G97: =IF(C97="SINAPI", IF( IF(A97="Insumo", VLOOKUP(B97,'SINAPI INSUMOS'!B:H,6,0), VLOOKUP(B97,'SINAPI COMP'!B:H,6,0))=0,VLOOKUP(B97,'OUTRAS BASES'!C:D,2,0),IF(A97="Insumo", VLOOKUP(B97,'SINAPI INSUMOS'!B:H,6,0),VLOOKUP(B97,'SINAPI COMP'!B:H,6,0))), VLOOKUP(B97,'OUTRAS BASES'!C:D,2,0)) -> 29.85 | H97: =G97*F97 -> 89.55
A98: Composição Auxiliar | B98: 88316 | C98: SINAPI | D98: SERVENTE COM ENCARGOS COMPLEMENTARES | E98: H | F98: 3 | G98: =IF(C98="SINAPI", IF( IF(A98="Insumo", VLOOKUP(B98,'SINAPI INSUMOS'!B:H,6,0), VLOOKUP(B98,'SINAPI COMP'!B:H,6,0))=0,VLOOKUP(B98,'OUTRAS BASES'!C:D,2,0),IF(A98="Insumo", VLOOKUP(B98,'SINAPI INSUMOS'!B:H,6,0),VLOOKUP(B98,'SINAPI COMP'!B:H,6,0))), VLOOKUP(B98,'OUTRAS BASES'!C:D,2,0)) -> 24.08 | H98: 72.24
A99: Composição Auxiliar | B99: 102617 | C99: SINAPI | D99: CAIXA D´ÁGUA EM POLIÉSTER REFORÇADO COM FIBRA DE VIDRO, 5000 LITROS - FORNECIMENTO E INSTALAÇÃO. AF_06/2021 | E99: UN | F99: 1 | G99: =IF(C99="SINAPI", IF( IF(A99="Insumo", VLOOKUP(B99,'SINAPI INSUMOS'!B:H,6,0), VLOOKUP(B99,'SINAPI COMP'!B:H,6,0))=0,VLOOKUP(B99,'OUTRAS BASES'!C:D,2,0),IF(A99="Insumo", VLOOKUP(B99,'SINAPI INSUMOS'!B:H,6,0),VLOOKUP(B99,'SINAPI COMP'!B:H,6,0))), VLOOKUP(B99,'OUTRAS BASES'!C:D,2,0)) -> 3215.13 | H99: 3215.13
A100: Composição Auxiliar | B100: 92767 | C100: SINAPI | D100: ARMAÇÃO DE LAJE DE UMA ESTRUTURA CONVENCIONAL DE CONCRETO ARMADO UTILIZANDO AÇO CA-60 DE 4,2 MM - MONTAGEM. AF_12/2015 | E100: KG | F100: 3.04 | G100: =IF(C100="SINAPI", IF( IF(A100="Insumo", VLOOKUP(B100,'SINAPI INSUMOS'!B:H,6,0), VLOOKUP(B100,'SINAPI COMP'!B:H,6,0))=0,VLOOKUP(B100,'OUTRAS BASES'!C:D,2,0),IF(A100="Insumo", VLOOKUP(B100,'SINAPI INSUMOS'!B:H,6,0),VLOOKUP(B100,'SINAPI COMP'!B:H,6,0))), VLOOKUP(B100,'OUTRAS BASES'!C:D,2,0)) -> 15.37 | H100: 46.7248
A101: Composição Auxiliar | B101: 104917 | C101: SINAPI | D101: ARMAÇAO DE SAPATA ISOLADA, VIGA BALDRAME E SAPATA CORRIDA UTILIZANDO AÇO CA-50 DE 6,3 MM - MONTAGEM AD_01/2024 | E101: KG | F101: 9.3 | G101: =IF(C101="SINAPI", IF( IF(A101="Insumo", VLOOKUP(B101,'SINAPI INSUMOS'!B:H,6,0), VLOOKUP(B101,'SINAPI COMP'!B:H,6,0))=0,VLOOKUP(B101,'OUTRAS BASES'!C:D,2,0),IF(A101="Insumo", VLOOKUP(B101,'SINAPI INSUMOS'!B:H,6,0),VLOOKUP(B101,'SINAPI COMP'!B:H,6,0))), VLOOKUP(B101,'OUTRAS BASES'!C:D,2,0)) -> 15.25 | H101: 141.825
A102: Composição Auxiliar | B102: 92760 | C102: SINAPI | D102: ARMAÇÃO DE PILAR OU VIGA DE ESTRTURA CONVENCIONAL DE CONCRETO ARMADO UTILIZANDO AÇO CA-50 DE 6,3 MM - MONTAGEM. AF_12/2015 | E102: KG | F102: 16.3 | G102: =IF(C102="SINAPI", IF( IF(A102="Insumo", VLOOKUP(B102,'SINAPI INSUMOS'!B:H,6,0), VLOOKUP(B102,'SINAPI COMP'!B:H,6,0))=0,VLOOKUP(B102,'OUTRAS BASES'!C:D,2,0),IF(A102="Insumo", VLOOKUP(B102,'SINAPI INSUMOS'!B:H,6,0),VLOOKUP(B102,'SINAPI COMP'!B:H,6,0))), VLOOKUP(B102,'OUTRAS BASES'!C:D,2,0)) -> 12.85 | H102: 209.455
A103: Composição Auxiliar | B103: 94964 | C103: SINAPI | D103: CONCRETO FCK = 20MPA, TRAÇO 1:2,7:3 (EM MASSA SECA DE CIMENTO/ AREIA MÉDIA/ BRITA 1) - PREPARO MECÂNICO COM BETONEIRA 400 L. AF_05/2021 | E103: m³ | F103: 1.56 | G103: =IF(C103="SINAPI", IF( IF(A103="Insumo", VLOOKUP(B103,'SINAPI INSUMOS'!B:H,6,0), VLOOKUP(B103,'SINAPI COMP'!B:H,6,0))=0,VLOOKUP(B103,'OUTRAS BASES'!C:D,2,0),IF(A103="Insumo", VLOOKUP(B103,'SINAPI INSUMOS'!B:H,6,0),VLOOKUP(B103,'SINAPI COMP'!B:H,6,0))), VLOOKUP(B103,'OUTRAS BASES'!C:D,2,0)) -> 492.8 | H103: 768.768
A104: Composição Auxiliar | B104: 84651 | C104: SINAPI | D104: PINTURA COM TINTA IMPERMEAVEL MINERAL EM PO, DUAS DEMAOS | E104: m² | F104: 7.85 | G104: =IF(C104="SINAPI", IF( IF(A104="Insumo", VLOOKUP(B104,'SINAPI INSUMOS'!B:H,6,0), VLOOKUP(B104,'SINAPI COMP'!B:H,6,0))=0,VLOOKUP(B104,'OUTRAS BASES'!C:D,2,0),IF(A104="Insumo", VLOOKUP(B104,'SINAPI INSUMOS'!B:H,6,0),VLOOKUP(B104,'SINAPI COMP'!B:H,6,0))), VLOOKUP(B104,'OUTRAS BASES'!C:D,2,0)) -> 15.0305 | H104: 117.989425
A105: Composição Auxiliar | B105: 92263 | C105: SINAPI | D105: FABRICAÇÃO DE FÔRMA PARA PILARES E ESTRUTURAS SIMILARES, EM CHAPA DE MADEIRA COMPENSADA RESINADA, E = 17 MM. AF_09/2020 | E105: KG | F105: 16.99 | G105: =IF(C105="SINAPI", IF( IF(A105="Insumo", VLOOKUP(B105,'SINAPI INSUMOS'!B:H,6,0), VLOOKUP(B105,'SINAPI COMP'!B:H,6,0))=0,VLOOKUP(B105,'OUTRAS BASES'!C:D,2,0),IF(A105="Insumo", VLOOKUP(B105,'SINAPI INSUMOS'!B:H,6,0),VLOOKUP(B105,'SINAPI COMP'!B:H,6,0))), VLOOKUP(B105,'OUTRAS BASES'!C:D,2,0)) -> 168.67 | H105: 2865.7033
A106: Composição Auxiliar | B106: 92770 | C106: SINAPI | D106: ARMAÇÃO DE LAJE DE UMA ESTRUTURA CONVENCIONAL DE CONCRETO ARMADO UTILIZANDO AÇO CA-50 DE 8,0 MM - MONTAGEM. AF_06/2022 | E106: KG | F106: 17.2 | G106: =IF(C106="SINAPI", IF( IF(A106="Insumo", VLOOKUP(B106,'SINAPI INSUMOS'!B:H,6,0), VLOOKUP(B106,'SINAPI COMP'!B:H,6,0))=0,VLOOKUP(B106,'OUTRAS BASES'!C:D,2,0),IF(A106="Insumo", VLOOKUP(B106,'SINAPI INSUMOS'!B:H,6,0),VLOOKUP(B106,'SINAPI COMP'!B:H,6,0))), VLOOKUP(B106,'OUTRAS BASES'!C:D,2,0)) -> 11.37 | H106: 195.564
A107: 6 | D107: BEBEDOURO | H107: 1988.58
A108: 6.1 | B108: Código | C108: Banco | D108: Descrição | E108: Und | F108: Quant. | G108: Valor Unit | H108: Total
A109: Composição | B109: COMPOSIÇÃO - 12 | C109: Próprio | D109: Serviço de execução do bebedouro em concreto armado, incluso materiais. | E109: un | F109: 1 | G109: =SUM(H110:H115) -> 1737.24582 | H109: =G109 -> 1737.24582
A110: Composição Auxiliar | B110: 92916 | C110: SINAPI | D110: ARMAÇÃODE ESTRUTURAS DIVERSAS DE CONCRETO ARMADO, EXCETO VIGA, PILARES, LAJES E FUNDAÇÕES, UTILIZANDO AÇO CA-50 DE 6,3 MM - MONTAGEM. AF_06/2022 | E110: KG | F110: 6 | G110: =IF(C110="SINAPI", IF( IF(A110="Insumo", VLOOKUP(B110,'SINAPI INSUMOS'!B:H,6,0), VLOOKUP(B110,'SINAPI COMP'!B:H,6,0))=0,VLOOKUP(B110,'OUTRAS BASES'!C:D,2,0),IF(A110="Insumo", VLOOKUP(B110,'SINAPI INSUMOS'!B:H,6,0),VLOOKUP(B110,'SINAPI COMP'!B:H,6,0))), VLOOKUP(B110,'OUTRAS BASES'!C:D,2,0)) -> 15 | H110: =G110*F110 -> 90
A111: Composição Auxiliar | B111: 92915 | C111: SINAPI | D111: ARMAÇÃODE ESTRUTURAS DIVERSAS DE CONCRETO ARMADO, EXCETO VIGA, PILARES, LAJES E FUNDAÇÕES, UTILIZANDO AÇO CA-60 DE 5,0 MM - MONTAGEM. AF_06/2022 | E111: KG | F111: 13 | G111: =IF(C111="SINAPI", IF( IF(A111="Insumo", VLOOKUP(B111,'SINAPI INSUMOS'!B:H,6,0), VLOOKUP(B111,'SINAPI COMP'!B:H,6,0))=0,VLOOKUP(B111,'OUTRAS BASES'!C:D,2,0),IF(A111="Insumo", VLOOKUP(B111,'SINAPI INSUMOS'!B:H,6,0),VLOOKUP(B111,'SINAPI COMP'!B:H,6,0))), VLOOKUP(B111,'OUTRAS BASES'!C:D,2,0)) -> 16.79 | H111: 218.27
A112: Composição Auxiliar | B112: 92921 | C112: SINAPI | D112: ARMAÇÃODE ESTRUTURAS DIVERSAS DE CONCRETO ARMADO, EXCETO VIGA, PILARES, LAJES E FUNDAÇÕES, UTILIZANDO AÇO CA-50 DE 12,5 MM - MONTAGEM. AF_06/2022 | E112: KG | F112: 12 | G112: =IF(C112="SINAPI", IF( IF(A112="Insumo", VLOOKUP(B112,'SINAPI INSUMOS'!B:H,6,0), VLOOKUP(B112,'SINAPI COMP'!B:H,6,0))=0,VLOOKUP(B112,'OUTRAS BASES'!C:D,2,0),IF(A112="Insumo", VLOOKUP(B112,'SINAPI INSUMOS'!B:H,6,0),VLOOKUP(B112,'SINAPI COMP'!B:H,6,0))), VLOOKUP(B112,'OUTRAS BASES'!C:D,2,0)) -> 9.49 | H112: 113.88
A113: Composição Auxiliar | B113: 94971 | C113: SINAPI | D113: CONCRETO FCK = 25MPA, TRAÇO 1:2,3:2:2,7(EM MASSA SECA DE CIMENTO, AREIA MÉDIA, BRITA 1) - PREPARO MECÂNICO COM BETONEIRA 600l. AF_05/2021 | E113: m³ | F113: 0.374 | G113: =IF(C113="SINAPI", IF( IF(A113="Insumo", VLOOKUP(B113,'SINAPI INSUMOS'!B:H,6,0), VLOOKUP(B113,'SINAPI COMP'!B:H,6,0))=0,VLOOKUP(B113,'OUTRAS BASES'!C:D,2,0),IF(A113="Insumo", VLOOKUP(B113,'SINAPI INSUMOS'!B:H,6,0),VLOOKUP(B113,'SINAPI COMP'!B:H,6,0))), VLOOKUP(B113,'OUTRAS BASES'!C:D,2,0)) -> 500.63 | H113: 187.23562
A114: Composição Auxiliar | B114: 92263 | C114: SINAPI | D114: FABRICAÇÃO DE FÔRMA PARA PILARES E ESTRUTURAS SIMILARES, EM CHAPA DE MADEIRA COMPENSADA RESINADA, E = 17 MM. AF_09/2020 | E114: m² | F114: 6.21 | G114: =IF(C114="SINAPI", IF( IF(A114="Insumo", VLOOKUP(B114,'SINAPI INSUMOS'!B:H,6,0), VLOOKUP(B114,'SINAPI COMP'!B:H,6,0))=0,VLOOKUP(B114,'OUTRAS BASES'!C:D,2,0),IF(A114="Insumo", VLOOKUP(B114,'SINAPI INSUMOS'!B:H,6,0),VLOOKUP(B114,'SINAPI COMP'!B:H,6,0))), VLOOKUP(B114,'OUTRAS BASES'!C:D,2,0)) -> 168.67 | H114: 1047.4407
A115: Composição Auxiliar | B115: 15.07.09 | C115: EMBASA | D115: PINTURA LÁTEX ACRÍLICA, APLICAÇÃO MANUAL EM DUAS DEMÃOS | E115: m² | F115: 6.21 | G115: =IF(C115="SINAPI", IF( IF(A115="Insumo", VLOOKUP(B115,'SINAPI INSUMOS'!B:H,6,0), VLOOKUP(B115,'SINAPI COMP'!B:H,6,0))=0,VLOOKUP(B115,'OUTRAS BASES'!C:D,2,0),IF(A115="Insumo", VLOOKUP(B115,'SINAPI INSUMOS'!B:H,6,0),VLOOKUP(B115,'SINAPI COMP'!B:H,6,0))), VLOOKUP(B115,'OUTRAS BASES'!C:D,2,0)) -> 12.95 | H115: 80.4195
A116: 7 | D116: CHAFARIZ | H116: 1345.6
A117: 7.1 | B117: Código | C117: Banco | D117: Descrição | E117: Und | F117: Quant. | G117: Valor Unit | H117: Total
A118: Composição | B118: COMPOSIÇÃO - 13 | C118: Próprio | D118: Fornecimento de material e instalação do chafariz | E118: un | F118: 1 | G118: =SUM(H119:H137) -> 941.120113 | H118: =G118 -> 941.120113
A119: Composição Auxiliar | B119: 88267 | C119: SINAPI | D119: ENCANADOR OU BOMBEIRO HIDRÁULICO COM ENCARGOS COMPLEMENTARES | E119: H | F119: 2 | G119: =IF(C119="SINAPI", IF( IF(A119="Insumo", VLOOKUP(B119,'SINAPI INSUMOS'!B:H,6,0), VLOOKUP(B119,'SINAPI COMP'!B:H,6,0))=0,VLOOKUP(B119,'OUTRAS BASES'!C:D,2,0),IF(A119="Insumo", VLOOKUP(B119,'SINAPI INSUMOS'!B:H,6,0),VLOOKUP(B119,'SINAPI COMP'!B:H,6,0))), VLOOKUP(B119,'OUTRAS BASES'!C:D,2,0)) -> 29.13 | H119: =G119*F119 -> 58.26
A120: Composição Auxiliar | B120: 88248 | C120: SINAPI | D120: AUXILIAR DE ENCANADOR OU BOMBEIRO HIDRÁULICO COM ENCARGOS COMPLEMENTARES | E120: H | F120: 2 | G120: =IF(C120="SINAPI", IF( IF(A120="Insumo", VLOOKUP(B120,'SINAPI INSUMOS'!B:H,6,0), VLOOKUP(B120,'SINAPI COMP'!B:H,6,0))=0,VLOOKUP(B120,'OUTRAS BASES'!C:D,2,0),IF(A120="Insumo", VLOOKUP(B120,'SINAPI INSUMOS'!B:H,6,0),VLOOKUP(B120,'SINAPI COMP'!B:H,6,0))), VLOOKUP(B120,'OUTRAS BASES'!C:D,2,0)) -> 24.51 | H120: 49.02
A121: Composição Auxiliar | B121: 93358 | C121: SINAPI | D121: ESCAVAÇÃO MANUAL DE VALA COM PROFUNDIDADE MENOR OU IGUAL A 1,30 M. AF_02/2021 | E121: m³ | F121: 0.0785398 | G121: =IF(C121="SINAPI", IF( IF(A121="Insumo", VLOOKUP(B121,'SINAPI INSUMOS'!B:H,6,0), VLOOKUP(B121,'SINAPI COMP'!B:H,6,0))=0,VLOOKUP(B121,'OUTRAS BASES'!C:D,2,0),IF(A121="Insumo", VLOOKUP(B121,'SINAPI INSUMOS'!B:H,6,0),VLOOKUP(B121,'SINAPI COMP'!B:H,6,0))), VLOOKUP(B121,'OUTRAS BASES'!C:D,2,0)) -> 95.25 | H121: 7.48091595
A122: Composição Auxiliar | B122: 96533 | C122: SINAPI | D122: FABRICAÇÃO, MONTAGEM E DESMONTAGEM DE FÔRMA PARA VIGA BALDRAME, EM MADEIRA SERRADA, E=25 MM, 4 UTILIZAÇÕES. AF_01/2024 | E122: m² | F122: 0.628 | G122: =IF(C122="SINAPI", IF( IF(A122="Insumo", VLOOKUP(B122,'SINAPI INSUMOS'!B:H,6,0), VLOOKUP(B122,'SINAPI COMP'!B:H,6,0))=0,VLOOKUP(B122,'OUTRAS BASES'!C:D,2,0),IF(A122="Insumo", VLOOKUP(B122,'SINAPI INSUMOS'!B:H,6,0),VLOOKUP(B122,'SINAPI COMP'!B:H,6,0))), VLOOKUP(B122,'OUTRAS BASES'!C:D,2,0)) -> 107.62 | H122: 67.58536
A123: Composição Auxiliar | B123: 94963 | C123: SINAPI | D123: CONCRETO FCK = 15MPA, TRAÇO 1:3,4:3,5 (EM MASSA SECA DE CIMENTO/ AREIA MÉDIA/ BRITA 1) - PREPARO MANUAL. AF_05/2021 | E123: m³ | F123: 0.157 | G123: =IF(C123="SINAPI", IF( IF(A123="Insumo", VLOOKUP(B123,'SINAPI INSUMOS'!B:H,6,0), VLOOKUP(B123,'SINAPI COMP'!B:H,6,0))=0,VLOOKUP(B123,'OUTRAS BASES'!C:D,2,0),IF(A123="Insumo", VLOOKUP(B123,'SINAPI INSUMOS'!B:H,6,0),VLOOKUP(B123,'SINAPI COMP'!B:H,6,0))), VLOOKUP(B123,'OUTRAS BASES'!C:D,2,0)) -> 455.52 | H123: 71.51664
A124: Composição Auxiliar | B124: 87904 | C124: SINAPI | D124: CHAPISCO APLICADO EM ALVENARIA (COM PRESENÇA DE VÃOS) E ESTRUTURAS DE CONCRETO DE FACHADA, COM COLHER DE PEDREIRO. ARGAMASSA TRAÇO 1:3 COM PREPARO MANUAL. AF_10/2022 | E124: m² | F124: 0.314 | G124: =IF(C124="SINAPI", IF( IF(A124="Insumo", VLOOKUP(B124,'SINAPI INSUMOS'!B:H,6,0), VLOOKUP(B124,'SINAPI COMP'!B:H,6,0))=0,VLOOKUP(B124,'OUTRAS BASES'!C:D,2,0),IF(A124="Insumo", VLOOKUP(B124,'SINAPI INSUMOS'!B:H,6,0),VLOOKUP(B124,'SINAPI COMP'!B:H,6,0))), VLOOKUP(B124,'OUTRAS BASES'!C:D,2,0)) -> 9.08 | H124: 2.85112
A125: Composição Auxiliar | B125: 87529 | C125: SINAPI | D125: MASSA ÚNICA, EM ARGAMASSA TRAÇO 1:2:8, PREPARO MECÂNICO, APLICADA MANUALMENTE EM PAREDES INTERNAS DE AMBIENTES COM ÁREA ENTRE 5M² E 10M², E = 17,5MM, COM TALISCAS. AF_03/2024 | E125: m² | F125: 0.314 | G125: =IF(C125="SINAPI", IF( IF(A125="Insumo", VLOOKUP(B125,'SINAPI INSUMOS'!B:H,6,0), VLOOKUP(B125,'SINAPI COMP'!B:H,6,0))=0,VLOOKUP(B125,'OUTRAS BASES'!C:D,2,0),IF(A125="Insumo", VLOOKUP(B125,'SINAPI INSUMOS'!B:H,6,0),VLOOKUP(B125,'SINAPI COMP'!B:H,6,0))), VLOOKUP(B125,'OUTRAS BASES'!C:D,2,0)) -> 41.25 | H125: 12.9525
A126: Composição Auxiliar | B126: 84651 | C126: SINAPI | D126: PINTURA COM TINTA IMPERMEAVEL MINERAL EM PO, DUAS DEMAOS | E126: m² | F126: 0.314 | G126: =IF(C126="SINAPI", IF( IF(A126="Insumo", VLOOKUP(B126,'SINAPI INSUMOS'!B:H,6,0), VLOOKUP(B126,'SINAPI COMP'!B:H,6,0))=0,VLOOKUP(B126,'OUTRAS BASES'!C:D,2,0),IF(A126="Insumo", VLOOKUP(B126,'SINAPI INSUMOS'!B:H,6,0),VLOOKUP(B126,'SINAPI COMP'!B:H,6,0))), VLOOKUP(B126,'OUTRAS BASES'!C:D,2,0)) -> 15.0305 | H126: 4.719577
A127: Insumo | B127: 765 | C127: SINAPI | D127: BUCHA DE REDUCAO DE FERRO GALVANIZADO, COM ROSCA BSP, DE 1" X 3/4" | E127: UN | F127: 2 | G127: =IF(C127="SINAPI", IF( IF(A127="Insumo", VLOOKUP(B127,'SINAPI INSUMOS'!B:H,6,0), VLOOKUP(B127,'SINAPI COMP'!B:H,6,0))=0,VLOOKUP(B127,'OUTRAS BASES'!C:D,2,0),IF(A127="Insumo", VLOOKUP(B127,'SINAPI INSUMOS'!B:H,6,0),VLOOKUP(B127,'SINAPI COMP'!B:H,6,0))), VLOOKUP(B127,'OUTRAS BASES'!C:D,2,0)) -> 10.43 | H127: 20.86
A128: Insumo | B128: 9887 | C128: SINAPI | D128: UNIAO DE FERRO GALVANIZADO, COM ROSCA BSP, COM ASSENTO PLANO, DE 2" | E128: UN | F128: 2 | G128: =IF(C128="SINAPI", IF( IF(A128="Insumo", VLOOKUP(B128,'SINAPI INSUMOS'!B:H,6,0), VLOOKUP(B128,'SINAPI COMP'!B:H,6,0))=0,VLOOKUP(B128,'OUTRAS BASES'!C:D,2,0),IF(A128="Insumo", VLOOKUP(B128,'SINAPI INSUMOS'!B:H,6,0),VLOOKUP(B128,'SINAPI COMP'!B:H,6,0))), VLOOKUP(B128,'OUTRAS BASES'!C:D,2,0)) -> 106.17 | H128: =F128*G128 -> 212.34
A129: Insumo | B129: 21013 | C129: SINAPI | D129: TUBO ACO GALVANIZADO COM COSTURA, CLASSE LEVE, DN 50 MM ( 2"), E = 3,00 MM, *4,40* KG/M (NBR 5580) | E129: M | F129: 1.8 | G129: =IF(C129="SINAPI", IF( IF(A129="Insumo", VLOOKUP(B129,'SINAPI INSUMOS'!B:H,6,0), VLOOKUP(B129,'SINAPI COMP'!B:H,6,0))=0,VLOOKUP(B129,'OUTRAS BASES'!C:D,2,0),IF(A129="Insumo", VLOOKUP(B129,'SINAPI INSUMOS'!B:H,6,0),VLOOKUP(B129,'SINAPI COMP'!B:H,6,0))), VLOOKUP(B129,'OUTRAS BASES'!C:D,2,0)) -> 59.88 | H129: 107.784
A130: Insumo | B130: 6298 | C130: SINAPI | D130: TE DE FERRO GALVANIZADO, DE 2" | E130: UN | F130: 1 | G130: =IF(C130="SINAPI", IF( IF(A130="Insumo", VLOOKUP(B130,'SINAPI INSUMOS'!B:H,6,0), VLOOKUP(B130,'SINAPI COMP'!B:H,6,0))=0,VLOOKUP(B130,'OUTRAS BASES'!C:D,2,0),IF(A130="Insumo", VLOOKUP(B130,'SINAPI INSUMOS'!B:H,6,0),VLOOKUP(B130,'SINAPI COMP'!B:H,6,0))), VLOOKUP(B130,'OUTRAS BASES'!C:D,2,0)) -> 69.15 | H130: 69.15
A131: Insumo | B131: 3471 | C131: SINAPI | D131: COTOVELO 90 GRAUS DE FERRO GALVANIZADO, COM ROSCA BSP, DE 2" | E131: UN | F131: 1 | G131: =IF(C131="SINAPI", IF( IF(A131="Insumo", VLOOKUP(B131,'SINAPI INSUMOS'!B:H,6,0), VLOOKUP(B131,'SINAPI COMP'!B:H,6,0))=0,VLOOKUP(B131,'OUTRAS BASES'!C:D,2,0),IF(A131="Insumo", VLOOKUP(B131,'SINAPI INSUMOS'!B:H,6,0),VLOOKUP(B131,'SINAPI COMP'!B:H,6,0))), VLOOKUP(B131,'OUTRAS BASES'!C:D,2,0)) -> 52.01 | H131: 52.01
A132: Insumo | B132: 113 | C132: SINAPI | D132: ADAPTADOR PVC SOLDAVEL CURTO COM BOLSA E ROSCA, 60 MM X 2", PARA AGUA FRIA | E132: UN | F132: 1 | G132: =IF(C132="SINAPI", IF( IF(A132="Insumo", VLOOKUP(B132,'SINAPI INSUMOS'!B:H,6,0), VLOOKUP(B132,'SINAPI COMP'!B:H,6,0))=0,VLOOKUP(B132,'OUTRAS BASES'!C:D,2,0),IF(A132="Insumo", VLOOKUP(B132,'SINAPI INSUMOS'!B:H,6,0),VLOOKUP(B132,'SINAPI COMP'!B:H,6,0))), VLOOKUP(B132,'OUTRAS BASES'!C:D,2,0)) -> 11.19 | H132: 11.19
A133: Insumo | B133: 818 | C133: SINAPI | D133: BUCHA DE REDUCAO DE PVC, SOLDAVEL, CURTA, COM 60 X 50 MM, PARA AGUA FRIA PREDIAL | E133: UN | F133: 1 | G133: =IF(C133="SINAPI", IF( IF(A133="Insumo", VLOOKUP(B133,'SINAPI INSUMOS'!B:H,6,0), VLOOKUP(B133,'SINAPI COMP'!B:H,6,0))=0,VLOOKUP(B133,'OUTRAS BASES'!C:D,2,0),IF(A133="Insumo", VLOOKUP(B133,'SINAPI INSUMOS'!B:H,6,0),VLOOKUP(B133,'SINAPI COMP'!B:H,6,0))), VLOOKUP(B133,'OUTRAS BASES'!C:D,2,0)) -> 6.83 | H133: 6.83
A134: Insumo | B134: 7604 | C134: SINAPI | D134: TORNEIRA METALICA CROMADA PARA TANQUE / JARDIM, SEM BICO , CANO LONGO, DE PAREDE, PADRAO POPULAR / USO GERAL, 1/2 " OU 3/4 " (REF 1126) | E134: UN | F134: 2 | G134: =IF(C134="SINAPI", IF( IF(A134="Insumo", VLOOKUP(B134,'SINAPI INSUMOS'!B:H,6,0), VLOOKUP(B134,'SINAPI COMP'!B:H,6,0))=0,VLOOKUP(B134,'OUTRAS BASES'!C:D,2,0),IF(A134="Insumo", VLOOKUP(B134,'SINAPI INSUMOS'!B:H,6,0),VLOOKUP(B134,'SINAPI COMP'!B:H,6,0))), VLOOKUP(B134,'OUTRAS BASES'!C:D,2,0)) -> 58.35 | H134: 116.7
A135: Insumo | B135: 119 | C135: SINAPI | D135: ADESIVO PLASTICO PARA PVC, BISNAGA COM 75 GR | E135: UN | F135: 1 | G135: =IF(C135="SINAPI", IF( IF(A135="Insumo", VLOOKUP(B135,'SINAPI INSUMOS'!B:H,6,0), VLOOKUP(B135,'SINAPI COMP'!B:H,6,0))=0,VLOOKUP(B135,'OUTRAS BASES'!C:D,2,0),IF(A135="Insumo", VLOOKUP(B135,'SINAPI INSUMOS'!B:H,6,0),VLOOKUP(B135,'SINAPI COMP'!B:H,6,0))), VLOOKUP(B135,'OUTRAS BASES'!C:D,2,0)) -> 8.5 | H135: 8.5
A136: Insumo | B136: 3146 | C136: SINAPI | D136: FITA VEDA ROSCA EM ROLOS DE 18 MM X 10 M (L X C) | E136: UN | F136: 1 | G136: =IF(C136="SINAPI", IF( IF(A136="Insumo", VLOOKUP(B136,'SINAPI INSUMOS'!B:H,6,0), VLOOKUP(B136,'SINAPI COMP'!B:H,6,0))=0,VLOOKUP(B136,'OUTRAS BASES'!C:D,2,0),IF(A136="Insumo", VLOOKUP(B136,'SINAPI INSUMOS'!B:H,6,0),VLOOKUP(B136,'SINAPI COMP'!B:H,6,0))), VLOOKUP(B136,'OUTRAS BASES'!C:D,2,0)) -> 3.45 | H136: 3.45
A137: Insumo | B137: 771 | C137: SINAPI | D137: BUCHA DE REDUCAO DE FERRO GALVANIZADO, COM ROSCA BSP, DE 2" X 1" | E137: UN | F137: 2 | G137: =IF(C137="SINAPI", IF( IF(A137="Insumo", VLOOKUP(B137,'SINAPI INSUMOS'!B:H,6,0), VLOOKUP(B137,'SINAPI COMP'!B:H,6,0))=0,VLOOKUP(B137,'OUTRAS BASES'!C:D,2,0),IF(A137="Insumo", VLOOKUP(B137,'SINAPI INSUMOS'!B:H,6,0),VLOOKUP(B137,'SINAPI COMP'!B:H,6,0))), VLOOKUP(B137,'OUTRAS BASES'!C:D,2,0)) -> 28.96 | H137: 57.92
A138: 8 | D138: CAVALETE | H138: 2031.6
A139: 8.1 | B139: Código | C139: Banco | D139: Descrição | E139: Und | F139: Quant. | G139: Valor Unit | H139: Total
A140: Composição | B140: COMPOSIÇÃO - 14 | C140: Próprio | D140: Fornecimento de conexões e Instalação do Cavalete com hidrômetro e clorador de pastilhas | E140: un | F140: 1 | G140: =SUM(H141:H158) -> 2348.66 | H140: =G140 -> 2348.66
A141: Composição Auxiliar | B141: 88248 | C141: SINAPI | D141: AUXILIAR DE ENCANADOR OU BOMBEIRO HIDRÁULICO COM ENCARGOS COMPLEMENTARES | E141: H | F141: 3 | G141: =IF(C141="SINAPI", IF( IF(A141="Insumo", VLOOKUP(B141,'SINAPI INSUMOS'!B:H,6,0), VLOOKUP(B141,'SINAPI COMP'!B:H,6,0))=0,VLOOKUP(B141,'OUTRAS BASES'!C:D,2,0),IF(A141="Insumo", VLOOKUP(B141,'SINAPI INSUMOS'!B:H,6,0),VLOOKUP(B141,'SINAPI COMP'!B:H,6,0))), VLOOKUP(B141,'OUTRAS BASES'!C:D,2,0)) -> 24.51 | H141: =G141*F141 -> 73.53
A142: Insumo | B142: 9860 | C142: SINAPI | D142: TUBO PVC, ROSCAVEL, 2", PARA AGUA FRIA PREDIAL | E142: m | F142: 1.5 | G142: =IF(C142="SINAPI", IF( IF(A142="Insumo", VLOOKUP(B142,'SINAPI INSUMOS'!B:H,6,0), VLOOKUP(B142,'SINAPI COMP'!B:H,6,0))=0,VLOOKUP(B142,'OUTRAS BASES'!C:D,2,0),IF(A142="Insumo", VLOOKUP(B142,'SINAPI INSUMOS'!B:H,6,0),VLOOKUP(B142,'SINAPI COMP'!B:H,6,0))), VLOOKUP(B142,'OUTRAS BASES'!C:D,2,0)) -> 44.92 | H142: =F142*G142 -> 67.38
A143: Insumo | B143: 11831 | C143: SINAPI | D143: TORNEIRA PLASTICA PARA TANQUE 1/2 " OU 3/4 " COM BICO PARA MANGUEIRA | E143: UN | F143: 1 | G143: =IF(C143="SINAPI", IF( IF(A143="Insumo", VLOOKUP(B143,'SINAPI INSUMOS'!B:H,6,0), VLOOKUP(B143,'SINAPI COMP'!B:H,6,0))=0,VLOOKUP(B143,'OUTRAS BASES'!C:D,2,0),IF(A143="Insumo", VLOOKUP(B143,'SINAPI INSUMOS'!B:H,6,0),VLOOKUP(B143,'SINAPI COMP'!B:H,6,0))), VLOOKUP(B143,'OUTRAS BASES'!C:D,2,0)) -> 14.82 | H143: 14.82
A144: Insumo | B144: 9569 | C144: ORSE | D144: Adaptador pvc BSxRM d= 35mm x 1 1/2", linha Irriga-LF, Tigre ou similar un | E144: un | F144: 1 | G144: =IF(C144="SINAPI", IF( IF(A144="Insumo", VLOOKUP(B144,'SINAPI INSUMOS'!B:H,6,0), VLOOKUP(B144,'SINAPI COMP'!B:H,6,0))=0,VLOOKUP(B144,'OUTRAS BASES'!C:D,2,0),IF(A144="Insumo", VLOOKUP(B144,'SINAPI INSUMOS'!B:H,6,0),VLOOKUP(B144,'SINAPI COMP'!B:H,6,0))), VLOOKUP(B144,'OUTRAS BASES'!C:D,2,0)) -> 3.04 | H144: 3.04
A145: Insumo | B145: 3939 | C145: SINAPI | D145: LUVA DE FERRO GALVANIZADO, COM ROSCA BSP, DE 1 1/2" | E145: UN | F145: 1 | G145: =IF(C145="SINAPI", IF( IF(A145="Insumo", VLOOKUP(B145,'SINAPI INSUMOS'!B:H,6,0), VLOOKUP(B145,'SINAPI COMP'!B:H,6,0))=0,VLOOKUP(B145,'OUTRAS BASES'!C:D,2,0),IF(A145="Insumo", VLOOKUP(B145,'SINAPI INSUMOS'!B:H,6,0),VLOOKUP(B145,'SINAPI COMP'!B:H,6,0))), VLOOKUP(B145,'OUTRAS BASES'!C:D,2,0)) -> 23.91 | H145: 23.91
A146: Insumo | B146: 1798 | C146: SINAPI | D146: CURVA 90 GRAUS DE FERRO GALVANIZADO, COM ROSCA BSP MACHO, DE 2" | E146: UN | F146: 1 | G146: =IF(C146="SINAPI", IF( IF(A146="Insumo", VLOOKUP(B146,'SINAPI INSUMOS'!B:H,6,0), VLOOKUP(B146,'SINAPI COMP'!B:H,6,0))=0,VLOOKUP(B146,'OUTRAS BASES'!C:D,2,0),IF(A146="Insumo", VLOOKUP(B146,'SINAPI INSUMOS'!B:H,6,0),VLOOKUP(B146,'SINAPI COMP'!B:H,6,0))), VLOOKUP(B146,'OUTRAS BASES'!C:D,2,0)) -> 133.27 | H146: 133.27
A147: Insumo | B147: 9887 | C147: SINAPI | D147: UNIAO DE FERRO GALVANIZADO, COM ROSCA BSP, COM ASSENTO PLANO, DE 2" | E147: UN | F147: 1 | G147: =IF(C147="SINAPI", IF( IF(A147="Insumo", VLOOKUP(B147,'SINAPI INSUMOS'!B:H,6,0), VLOOKUP(B147,'SINAPI COMP'!B:H,6,0))=0,VLOOKUP(B147,'OUTRAS BASES'!C:D,2,0),IF(A147="Insumo", VLOOKUP(B147,'SINAPI INSUMOS'!B:H,6,0),VLOOKUP(B147,'SINAPI COMP'!B:H,6,0))), VLOOKUP(B147,'OUTRAS BASES'!C:D,2,0)) -> 106.17 | H147: 106.17
A148: Insumo | B148: 00004181/SINAPI | C148: ORSE | D148: Niple de ferro galvanizado, com rosca bsp, de 2" | E148: un | F148: 2 | G148: =IF(C148="SINAPI", IF( IF(A148="Insumo", VLOOKUP(B148,'SINAPI INSUMOS'!B:H,6,0), VLOOKUP(B148,'SINAPI COMP'!B:H,6,0))=0,VLOOKUP(B148,'OUTRAS BASES'!C:D,2,0),IF(A148="Insumo", VLOOKUP(B148,'SINAPI INSUMOS'!B:H,6,0),VLOOKUP(B148,'SINAPI COMP'!B:H,6,0))), VLOOKUP(B148,'OUTRAS BASES'!C:D,2,0)) -> 36.64 | H148: 73.28
A149: Insumo | B149: 6028 | C149: SINAPI | D149: REGISTRO GAVETA BRUTO EM LATAO FORJADO, BITOLA 2 " (REF 1509) | E149: UN | F149: 1 | G149: =IF(C149="SINAPI", IF( IF(A149="Insumo", VLOOKUP(B149,'SINAPI INSUMOS'!B:H,6,0), VLOOKUP(B149,'SINAPI COMP'!B:H,6,0))=0,VLOOKUP(B149,'OUTRAS BASES'!C:D,2,0),IF(A149="Insumo", VLOOKUP(B149,'SINAPI INSUMOS'!B:H,6,0),VLOOKUP(B149,'SINAPI COMP'!B:H,6,0))), VLOOKUP(B149,'OUTRAS BASES'!C:D,2,0)) -> 147.08 | H149: 147.08
A150: Insumo | B150: 12775 | C150: SINAPI | D150: HIDROMETRO MULTIJATO / MEDIDOR DE AGUA, DN 1", VAZAO MAXIMA DE 7 M3/H, PARA AGUA POTAVEL FRIA, RELOJOARIA PLANA, CLASSE B, HORIZONTAL (SEM CONEXOES) | E150: UN | F150: 1 | G150: =IF(C150="SINAPI", IF( IF(A150="Insumo", VLOOKUP(B150,'SINAPI INSUMOS'!B:H,6,0), VLOOKUP(B150,'SINAPI COMP'!B:H,6,0))=0,VLOOKUP(B150,'OUTRAS BASES'!C:D,2,0),IF(A150="Insumo", VLOOKUP(B150,'SINAPI INSUMOS'!B:H,6,0),VLOOKUP(B150,'SINAPI COMP'!B:H,6,0))), VLOOKUP(B150,'OUTRAS BASES'!C:D,2,0)) -> 420.58 | H150: 420.58
A151: Insumo | B151: 771 | C151: SINAPI | D151: BUCHA DE REDUCAO DE FERRO GALVANIZADO, COM ROSCA BSP, DE 2" X 1" | E151: UN | F151: 2 | G151: =IF(C151="SINAPI", IF( IF(A151="Insumo", VLOOKUP(B151,'SINAPI INSUMOS'!B:H,6,0), VLOOKUP(B151,'SINAPI COMP'!B:H,6,0))=0,VLOOKUP(B151,'OUTRAS BASES'!C:D,2,0),IF(A151="Insumo", VLOOKUP(B151,'SINAPI INSUMOS'!B:H,6,0),VLOOKUP(B151,'SINAPI COMP'!B:H,6,0))), VLOOKUP(B151,'OUTRAS BASES'!C:D,2,0)) -> 28.96 | H151: 57.92
A152: Insumo | B152: 6305 | C152: SINAPI | D152: TE DE REDUCAO DE FERRO GALVANIZADO, COM ROSCA BSP, DE 2" X 1" | E152: UN | F152: 1 | G152: =IF(C152="SINAPI", IF( IF(A152="Insumo", VLOOKUP(B152,'SINAPI INSUMOS'!B:H,6,0), VLOOKUP(B152,'SINAPI COMP'!B:H,6,0))=0,VLOOKUP(B152,'OUTRAS BASES'!C:D,2,0),IF(A152="Insumo", VLOOKUP(B152,'SINAPI INSUMOS'!B:H,6,0),VLOOKUP(B152,'SINAPI COMP'!B:H,6,0))), VLOOKUP(B152,'OUTRAS BASES'!C:D,2,0)) -> 411.16 | H152: 411.16
A153: Insumo | B153: 764 | C153: SINAPI | D153: BUCHA DE REDUCAO DE FERRO GALVANIZADO, COM ROSCA BSP, DE 1" X 1/2" | E153: UN | F153: 1 | G153: =IF(C153="SINAPI", IF( IF(A153="Insumo", VLOOKUP(B153,'SINAPI INSUMOS'!B:H,6,0), VLOOKUP(B153,'SINAPI COMP'!B:H,6,0))=0,VLOOKUP(B153,'OUTRAS BASES'!C:D,2,0),IF(A153="Insumo", VLOOKUP(B153,'SINAPI INSUMOS'!B:H,6,0),VLOOKUP(B153,'SINAPI COMP'!B:H,6,0))), VLOOKUP(B153,'OUTRAS BASES'!C:D,2,0)) -> 109.89 | H153: 109.89
A154: Insumo | B154: 5128 | C154: ORSE | D154: Tampa de poço galvanizada em 6" | E154: UN | F154: 1 | G154: =IF(C154="SINAPI", IF( IF(A154="Insumo", VLOOKUP(B154,'SINAPI INSUMOS'!B:H,6,0), VLOOKUP(B154,'SINAPI COMP'!B:H,6,0))=0,VLOOKUP(B154,'OUTRAS BASES'!C:D,2,0),IF(A154="Insumo", VLOOKUP(B154,'SINAPI INSUMOS'!B:H,6,0),VLOOKUP(B154,'SINAPI COMP'!B:H,6,0))), VLOOKUP(B154,'OUTRAS BASES'!C:D,2,0)) -> 107.28 | H154: 107.28
A155: Insumo | B155: 1160 | C155: ORSE | D155: Joelho 45° ferro galvanizado d=2" | E155: UN | F155: 2 | G155: =IF(C155="SINAPI", IF( IF(A155="Insumo", VLOOKUP(B155,'SINAPI INSUMOS'!B:H,6,0), VLOOKUP(B155,'SINAPI COMP'!B:H,6,0))=0,VLOOKUP(B155,'OUTRAS BASES'!C:D,2,0),IF(A155="Insumo", VLOOKUP(B155,'SINAPI INSUMOS'!B:H,6,0),VLOOKUP(B155,'SINAPI COMP'!B:H,6,0))), VLOOKUP(B155,'OUTRAS BASES'!C:D,2,0)) -> 54.39 | H155: 108.78
A156: Insumo | B156: 53688 | C156: SBC | D156: VALVULA DE RETENCAO HORIZONTAL EM LATAO, ROSCA BSP 2" | E156: UN | F156: 1 | G156: =IF(C156="SINAPI", IF( IF(A156="Insumo", VLOOKUP(B156,'SINAPI INSUMOS'!B:H,6,0), VLOOKUP(B156,'SINAPI COMP'!B:H,6,0))=0,VLOOKUP(B156,'OUTRAS BASES'!C:D,2,0),IF(A156="Insumo", VLOOKUP(B156,'SINAPI INSUMOS'!B:H,6,0),VLOOKUP(B156,'SINAPI COMP'!B:H,6,0))), VLOOKUP(B156,'OUTRAS BASES'!C:D,2,0)) -> 192.66 | H156: 192.66
A157: Insumo | B157: 4194 | C157: SINAPI | D157: NIPLE DE REDUCAO DE FERRO GALVANIZADO, COM ROSCA BSP, DE 2" X 1 1/2" | E157: UN | F157: 1 | G157: =IF(C157="SINAPI", IF( IF(A157="Insumo", VLOOKUP(B157,'SINAPI INSUMOS'!B:H,6,0), VLOOKUP(B157,'SINAPI COMP'!B:H,6,0))=0,VLOOKUP(B157,'OUTRAS BASES'!C:D,2,0),IF(A157="Insumo", VLOOKUP(B157,'SINAPI INSUMOS'!B:H,6,0),VLOOKUP(B157,'SINAPI COMP'!B:H,6,0))), VLOOKUP(B157,'OUTRAS BASES'!C:D,2,0)) -> 46.94 | H157: 46.94
A158: Insumo | B158: 12464 | C158: ORSE | D158: Clorador dosador de cloro de pastilhas automático | E158: un | F158: 1 | G158: =IF(C158="SINAPI", IF( IF(A158="Insumo", VLOOKUP(B158,'SINAPI INSUMOS'!B:H,6,0), VLOOKUP(B158,'SINAPI COMP'!B:H,6,0))=0,VLOOKUP(B158,'OUTRAS BASES'!C:D,2,0),IF(A158="Insumo", VLOOKUP(B158,'SINAPI INSUMOS'!B:H,6,0),VLOOKUP(B158,'SINAPI COMP'!B:H,6,0))), VLOOKUP(B158,'OUTRAS BASES'!C:D,2,0)) -> 250.97 | H158: 250.97
A159: 9 | D159: INSTALAÇÕES HIDRÁULICAS | H159: 21652.95
A160: 9.1 | B160: Código | C160: Banco | D160: Descrição | E160: Und | F160: Quant. | G160: Valor Unit | H160: Total
A161: Composição | B161: COMPOSIÇÃO - 15 | C161: Próprio | D161: Fornecimento e instalação da rede adutora poço-reservatório-bebedouro em PN80 e DN50MM | E161: m | F161: 1 | G161: =SUM(H162:H164) -> 6.8165 | H161: =G161 -> 6.8165
A162: Composição Auxiliar | B162: 88316 | C162: SINAPI | D162: SERVENTE COM ENCARGOS COMPLEMENTARES | E162: H | F162: 0.05 | G162: =IF(C162="SINAPI", IF( IF(A162="Insumo", VLOOKUP(B162,'SINAPI INSUMOS'!B:H,6,0), VLOOKUP(B162,'SINAPI COMP'!B:H,6,0))=0,VLOOKUP(B162,'OUTRAS BASES'!C:D,2,0),IF(A162="Insumo", VLOOKUP(B162,'SINAPI INSUMOS'!B:H,6,0),VLOOKUP(B162,'SINAPI COMP'!B:H,6,0))), VLOOKUP(B162,'OUTRAS BASES'!C:D,2,0)) -> 24.08 | H162: =G162*F162 -> 1.204
A163: Composição Auxiliar | B163: 93358 | C163: SINAPI | D163: ESCAVAÇÃO MANUAL DE VALA COM PROFUNDIDADE MENOR OU IGUAL A 1,30 M. AF_02/2021 | E163: m³ | F163: 0.05 | G163: =IF(C163="SINAPI", IF( IF(A163="Insumo", VLOOKUP(B163,'SINAPI INSUMOS'!B:H,6,0), VLOOKUP(B163,'SINAPI COMP'!B:H,6,0))=0,VLOOKUP(B163,'OUTRAS BASES'!C:D,2,0),IF(A163="Insumo", VLOOKUP(B163,'SINAPI INSUMOS'!B:H,6,0),VLOOKUP(B163,'SINAPI COMP'!B:H,6,0))), VLOOKUP(B163,'OUTRAS BASES'!C:D,2,0)) -> 95.25 | H163: 4.7625
A164: Insumo | B164: 119 | C164: SINAPI | D164: ADESIVO PLASTICO PARA PVC, BISNAGA COM 75 GR | E164: UN | F164: 0.1 | G164: =IF(C164="SINAPI", IF( IF(A164="Insumo", VLOOKUP(B164,'SINAPI INSUMOS'!B:H,6,0), VLOOKUP(B164,'SINAPI COMP'!B:H,6,0))=0,VLOOKUP(B164,'OUTRAS BASES'!C:D,2,0),IF(A164="Insumo", VLOOKUP(B164,'SINAPI INSUMOS'!B:H,6,0),VLOOKUP(B164,'SINAPI COMP'!B:H,6,0))), VLOOKUP(B164,'OUTRAS BASES'!C:D,2,0)) -> 8.5 | H164: =F164*G164 -> 0.85
A166: 9.2 | B166: Código | C166: Banco | D166: Descrição | E166: Und | F166: Quant. | G166: Valor Unit | H166: Total
A167: Insumo | B167: 9875 | C167: SINAPI | D167: TUBO PVC, SOLDAVEL, DE 50 MM, AGUA FRIA (NBR-5648) | E167: un | F167: 1 | G167: =IF(C167="SINAPI", IF( IF(A167="Insumo", VLOOKUP(B167,'SINAPI INSUMOS'!B:H,6,0), VLOOKUP(B167,'SINAPI COMP'!B:H,6,0))=0,VLOOKUP(B167,'OUTRAS BASES'!C:D,2,0),IF(A167="Insumo", VLOOKUP(B167,'SINAPI INSUMOS'!B:H,6,0),VLOOKUP(B167,'SINAPI COMP'!B:H,6,0))), VLOOKUP(B167,'OUTRAS BASES'!C:D,2,0)) -> 15.46 | H167: =G167*F167 -> 15.46
A168: 9.3 | B168: Código | C168: Banco | D168: Descrição | E168: Und | F168: Quant. | G168: Valor Unit | H168: Total
A169: Composição | B169: COMPOSIÇÃO - 16 | C169: Próprio | D169: Montagem hidráulica do equipamento de bombeamento | E169: un | F169: 1 | G169: =SUM(H170:H171) -> 160.92 | H169: =G169 -> 160.92
A170: Composição Auxiliar | B170: 88267 | C170: SINAPI | D170: ENCANADOR OU BOMBEIRO HIDRÁULICO COM ENCARGOS COMPLEMENTARES | E170: H | F170: 3 | G170: =IF(C170="SINAPI", IF( IF(A170="Insumo", VLOOKUP(B170,'SINAPI INSUMOS'!B:H,6,0), VLOOKUP(B170,'SINAPI COMP'!B:H,6,0))=0,VLOOKUP(B170,'OUTRAS BASES'!C:D,2,0),IF(A170="Insumo", VLOOKUP(B170,'SINAPI INSUMOS'!B:H,6,0),VLOOKUP(B170,'SINAPI COMP'!B:H,6,0))), VLOOKUP(B170,'OUTRAS BASES'!C:D,2,0)) -> 29.13 | H170: =G170*F170 -> 87.39
A171: Composição Auxiliar | B171: 88248 | C171: SINAPI | D171: AUXILIAR DE ENCANADOR OU BOMBEIRO HIDRÁULICO COM ENCARGOS COMPLEMENTARES | E171: H | F171: 3 | G171: =IF(C171="SINAPI", IF( IF(A171="Insumo", VLOOKUP(B171,'SINAPI INSUMOS'!B:H,6,0), VLOOKUP(B171,'SINAPI COMP'!B:H,6,0))=0,VLOOKUP(B171,'OUTRAS BASES'!C:D,2,0),IF(A171="Insumo", VLOOKUP(B171,'SINAPI INSUMOS'!B:H,6,0),VLOOKUP(B171,'SINAPI COMP'!B:H,6,0))), VLOOKUP(B171,'OUTRAS BASES'!C:D,2,0)) -> 24.51 | H171: 73.53
A172: 9.4 | B172: Código | C172: Banco | D172: Descrição | E172: Und | F172: Quant. | G172: Valor Unit | H172: Total
A173: Insumo | B173: 38200 | C173: SINAPI | D173: CORDA DE POLIAMIDA 12 MM TIPO BOMBEIRO, PARA TRABALHO EM ALTURA | E173: 100M | F173: 1 | G173: =IF(C173="SINAPI", IF( IF(A173="Insumo", VLOOKUP(B173,'SINAPI INSUMOS'!B:H,6,0), VLOOKUP(B173,'SINAPI COMP'!B:H,6,0))=0,VLOOKUP(B173,'OUTRAS BASES'!C:D,2,0),IF(A173="Insumo", VLOOKUP(B173,'SINAPI INSUMOS'!B:H,6,0),VLOOKUP(B173,'SINAPI COMP'!B:H,6,0))), VLOOKUP(B173,'OUTRAS BASES'!C:D,2,0)) -> 458.85 | H173: =G173 -> 458.85
A174: 9.5 | B174: Código | C174: Banco | D174: Descrição | E174: Und | F174: Quant. | G174: Valor Unit | H174: Total
A175: Insumo | B175: 9860 | C175: SINAPI | D175: TUBO PVC, ROSCAVEL, 2", PARA AGUA FRIA PREDIAL | E175: M | F175: 1 | G175: =IF(C175="SINAPI", IF( IF(A175="Insumo", VLOOKUP(B175,'SINAPI INSUMOS'!B:H,6,0), VLOOKUP(B175,'SINAPI COMP'!B:H,6,0))=0,VLOOKUP(B175,'OUTRAS BASES'!C:D,2,0),IF(A175="Insumo", VLOOKUP(B175,'SINAPI INSUMOS'!B:H,6,0),VLOOKUP(B175,'SINAPI COMP'!B:H,6,0))), VLOOKUP(B175,'OUTRAS BASES'!C:D,2,0)) -> 44.92 | H175: =G175 -> 44.92
A176: 9.6 | B176: Código | C176: Banco | D176: Descrição | E176: Und | F176: Quant. | G176: Valor Unit | H176: Total
A177: Insumo | B177: 3912 | C177: SINAPI | D177: LUVA DE FERRO GALVANIZADO, COM ROSCA BSP, DE 2" | E177: UN | F177: 1 | G177: =IF(C177="SINAPI", IF( IF(A177="Insumo", VLOOKUP(B177,'SINAPI INSUMOS'!B:H,6,0), VLOOKUP(B177,'SINAPI COMP'!B:H,6,0))=0,VLOOKUP(B177,'OUTRAS BASES'!C:D,2,0),IF(A177="Insumo", VLOOKUP(B177,'SINAPI INSUMOS'!B:H,6,0),VLOOKUP(B177,'SINAPI COMP'!B:H,6,0))), VLOOKUP(B177,'OUTRAS BASES'!C:D,2,0)) -> 36.61 | H177: =G177 -> 36.61
A178: 9.7 | B178: Código | C178: Banco | D178: Descrição | E178: Und | F178: Quant. | G178: Valor Unit | H178: Total
A179: Insumo | B179: 5128 | C179: ORSE | D179: Tampa de poço galvanizada em 6" un | E179: un | F179: 1 | G179: =IF(C179="SINAPI", IF( IF(A179="Insumo", VLOOKUP(B179,'SINAPI INSUMOS'!B:H,6,0), VLOOKUP(B179,'SINAPI COMP'!B:H,6,0))=0,VLOOKUP(B179,'OUTRAS BASES'!C:D,2,0),IF(A179="Insumo", VLOOKUP(B179,'SINAPI INSUMOS'!B:H,6,0),VLOOKUP(B179,'SINAPI COMP'!B:H,6,0))), VLOOKUP(B179,'OUTRAS BASES'!C:D,2,0)) -> 107.28 | H179: =G179 -> 107.28
A180: 10 | D180: ESTRUTURA DE FIXAÇÃO PARA MÓDULOS FOTOVOLTÁICOS | H180: 5206.56
A181: 10.1 | B181: Código | C181: Banco | D181: Descrição | E181: Und | F181: Quant. | G181: Valor Unit | H181: Total
A182: Composição | B182: COMPOSIÇÃO - 17 | C182: Próprio | D182: Serviço de fixação de estruturas para os módulos fotovoltaicos e suportes de concreto, incluso materiais. | E182: m² | F182: 1 | G182: =SUM(H183:H185) -> 100.336792 | H182: =G182 -> 100.336792
A183: Composição Auxiliar | B183: 94975 | C183: SINAPI | D183: CONCRETO FCK = 15MPA, TRAÇO 1:3,4:3,5 (EM MASSA SECA DE CIMENTO/ AREIA MÉDIA/ BRITA 1) - PREPARO MANUAL. AF_05/2021 | E183: m³ | F183: 0.09 | G183: =IF(C183="SINAPI", IF( IF(A183="Insumo", VLOOKUP(B183,'SINAPI INSUMOS'!B:H,6,0), VLOOKUP(B183,'SINAPI COMP'!B:H,6,0))=0,VLOOKUP(B183,'OUTRAS BASES'!C:D,2,0),IF(A183="Insumo", VLOOKUP(B183,'SINAPI INSUMOS'!B:H,6,0),VLOOKUP(B183,'SINAPI COMP'!B:H,6,0))), VLOOKUP(B183,'OUTRAS BASES'!C:D,2,0)) -> 520.36 | H183: =G183*F183 -> 46.8324
A184: Composição Auxiliar | B184: 96522 | C184: SINAPI | D184: ESCAVAÇÃO MANUAL PARA BLOCO DE COROAMENTO OU SAPATA (SEM ESCAVAÇÃO PARA COLOCAÇÃO DE FÔRMAS). AF_01/2024 | E184: m³ | F184: 0.0062 | G184: =IF(C184="SINAPI", IF( IF(A184="Insumo", VLOOKUP(B184,'SINAPI INSUMOS'!B:H,6,0), VLOOKUP(B184,'SINAPI COMP'!B:H,6,0))=0,VLOOKUP(B184,'OUTRAS BASES'!C:D,2,0),IF(A184="Insumo", VLOOKUP(B184,'SINAPI INSUMOS'!B:H,6,0),VLOOKUP(B184,'SINAPI COMP'!B:H,6,0))), VLOOKUP(B184,'OUTRAS BASES'!C:D,2,0)) -> 157.16 | H184: 0.974392
A185: Insumo | B185: 4183 | C185: SBC | D185: ESTRUTURA METALICA EM TESOURAS OU TRELICAS, VÃO LIVRE DE 12M, FORNECIMENTO E MONTAGEM | E185: m² | F185: 1 | G185: =IF(C185="SINAPI", IF( IF(A185="Insumo", VLOOKUP(B185,'SINAPI INSUMOS'!B:H,6,0), VLOOKUP(B185,'SINAPI COMP'!B:H,6,0))=0,VLOOKUP(B185,'OUTRAS BASES'!C:D,2,0),IF(A185="Insumo", VLOOKUP(B185,'SINAPI INSUMOS'!B:H,6,0),VLOOKUP(B185,'SINAPI COMP'!B:H,6,0))), VLOOKUP(B185,'OUTRAS BASES'!C:D,2,0)) -> 52.53 | H185: 52.53
A186: 11 | D186: INSTALAÇÕES ELÉTRICAS E BÓIA ELÉTRICA | H186: 17940.94
A187: 11.1 | B187: Código | C187: Banco | D187: Descrição | E187: Und | F187: Quant. | G187: Valor Unit | H187: Total
A188: Composição | B188: COMPOSIÇÃO - 18 | C188: Próprio | D188: Montagem e instalação elétrica do kit de bombeamento e sistema fotovoltaico inclusive sistema de aterramento. | E188: un | F188: 1 | G188: =SUM(H189:H199) -> 1056.7196 | H188: =G188 -> 1056.7196
A189: Composição Auxiliar | B189: 88247 | C189: SINAPI | D189: AUXILIAR DE ELETRICISTA COM ENCARGOS COMPLEMENTARES | E189: H | F189: 8 | G189: =IF(C189="SINAPI", IF( IF(A189="Insumo", VLOOKUP(B189,'SINAPI INSUMOS'!B:H,6,0), VLOOKUP(B189,'SINAPI COMP'!B:H,6,0))=0,VLOOKUP(B189,'OUTRAS BASES'!C:D,2,0),IF(A189="Insumo", VLOOKUP(B189,'SINAPI INSUMOS'!B:H,6,0),VLOOKUP(B189,'SINAPI COMP'!B:H,6,0))), VLOOKUP(B189,'OUTRAS BASES'!C:D,2,0)) -> 25.53 | H189: =G189*F189 -> 204.24
A190: Insumo | B190: 20111 | C190: SINAPI | D190: FITA ISOLANTE ADESIVA ANTICHAMA, USO ATE 750 V, EM ROLO DE 19 MM X 20 M | E190: UN | F190: 1 | G190: =IF(C190="SINAPI", IF( IF(A190="Insumo", VLOOKUP(B190,'SINAPI INSUMOS'!B:H,6,0), VLOOKUP(B190,'SINAPI COMP'!B:H,6,0))=0,VLOOKUP(B190,'OUTRAS BASES'!C:D,2,0),IF(A190="Insumo", VLOOKUP(B190,'SINAPI INSUMOS'!B:H,6,0),VLOOKUP(B190,'SINAPI COMP'!B:H,6,0))), VLOOKUP(B190,'OUTRAS BASES'!C:D,2,0)) -> 17.97 | H190: =F190*G190 -> 17.97
A191: Insumo | B191: 2674 | C191: SINAPI | D191: FORNECIMENTO DE ELETRODUTO DE PVC RIGIDO ROSCAVEL DE 3/4 ", SEM LUVA | E191: M | F191: 15 | G191: =IF(C191="SINAPI", IF( IF(A191="Insumo", VLOOKUP(B191,'SINAPI INSUMOS'!B:H,6,0), VLOOKUP(B191,'SINAPI COMP'!B:H,6,0))=0,VLOOKUP(B191,'OUTRAS BASES'!C:D,2,0),IF(A191="Insumo", VLOOKUP(B191,'SINAPI INSUMOS'!B:H,6,0),VLOOKUP(B191,'SINAPI COMP'!B:H,6,0))), VLOOKUP(B191,'OUTRAS BASES'!C:D,2,0)) -> 5.39 | H191: 80.85
A192: Insumo | B192: 12034 | C192: SINAPI | D192: FORNECIMENTO DE CURVA 180 GRAUS, DE PVC RIGIDO ROSCAVEL, DE 3/4", PARA ELETRODUTO | E192: UN | F192: 1 | G192: =IF(C192="SINAPI", IF( IF(A192="Insumo", VLOOKUP(B192,'SINAPI INSUMOS'!B:H,6,0), VLOOKUP(B192,'SINAPI COMP'!B:H,6,0))=0,VLOOKUP(B192,'OUTRAS BASES'!C:D,2,0),IF(A192="Insumo", VLOOKUP(B192,'SINAPI INSUMOS'!B:H,6,0),VLOOKUP(B192,'SINAPI COMP'!B:H,6,0))), VLOOKUP(B192,'OUTRAS BASES'!C:D,2,0)) -> 6.52 | H192: 6.52
A193: Insumo | B193: 39272 | C193: SINAPI | D193: FORNECIMENTO DE CURVA 90 GRAUS, CURTA, DE PVC RIGIDO ROSCAVEL, DE 3/4", PARA ELETRODUTO | E193: UN | F193: 2 | G193: =IF(C193="SINAPI", IF( IF(A193="Insumo", VLOOKUP(B193,'SINAPI INSUMOS'!B:H,6,0), VLOOKUP(B193,'SINAPI COMP'!B:H,6,0))=0,VLOOKUP(B193,'OUTRAS BASES'!C:D,2,0),IF(A193="Insumo", VLOOKUP(B193,'SINAPI INSUMOS'!B:H,6,0),VLOOKUP(B193,'SINAPI COMP'!B:H,6,0))), VLOOKUP(B193,'OUTRAS BASES'!C:D,2,0)) -> 3.56 | H193: 7.12
A194: Insumo | B194: 3379 | C194: SINAPI | D194: HASTE DE ATERRAMENTO EM ACO COM 3,00 M DE COMPRIMENTO E DN = 5/8", REVESTIDA COM BAIXA CAMADA DE COBRE, SEM CONECTOR | E194: UN | F194: 0.66 | G194: =IF(C194="SINAPI", IF( IF(A194="Insumo", VLOOKUP(B194,'SINAPI INSUMOS'!B:H,6,0), VLOOKUP(B194,'SINAPI COMP'!B:H,6,0))=0,VLOOKUP(B194,'OUTRAS BASES'!C:D,2,0),IF(A194="Insumo", VLOOKUP(B194,'SINAPI INSUMOS'!B:H,6,0),VLOOKUP(B194,'SINAPI COMP'!B:H,6,0))), VLOOKUP(B194,'OUTRAS BASES'!C:D,2,0)) -> 96.31 | H194: 63.5646
A195: Insumo | B195: 1891 | C195: SINAPI | D195: FORNECIMENTO DE LUVA EM PVC RIGIDO ROSCAVEL, DE 3/4", PARA ELETRODUTO | E195: UN | F195: 9 | G195: =IF(C195="SINAPI", IF( IF(A195="Insumo", VLOOKUP(B195,'SINAPI INSUMOS'!B:H,6,0), VLOOKUP(B195,'SINAPI COMP'!B:H,6,0))=0,VLOOKUP(B195,'OUTRAS BASES'!C:D,2,0),IF(A195="Insumo", VLOOKUP(B195,'SINAPI INSUMOS'!B:H,6,0),VLOOKUP(B195,'SINAPI COMP'!B:H,6,0))), VLOOKUP(B195,'OUTRAS BASES'!C:D,2,0)) -> 1.65 | H195: 14.85
A196: Insumo | B196: 425 | C196: SINAPI | D196: GRAMPO METALICO TIPO OLHAL PARA HASTE DE ATERRAMENTO DE 5/8'', CONDUTOR DE *10* A 50 MM2 | E196: UN | F196: 2 | G196: =IF(C196="SINAPI", IF( IF(A196="Insumo", VLOOKUP(B196,'SINAPI INSUMOS'!B:H,6,0), VLOOKUP(B196,'SINAPI COMP'!B:H,6,0))=0,VLOOKUP(B196,'OUTRAS BASES'!C:D,2,0),IF(A196="Insumo", VLOOKUP(B196,'SINAPI INSUMOS'!B:H,6,0),VLOOKUP(B196,'SINAPI COMP'!B:H,6,0))), VLOOKUP(B196,'OUTRAS BASES'!C:D,2,0)) -> 9.13 | H196: 18.26
A197: Insumo | B197: 34643 | C197: SINAPI | D197: FORNECIMENTO DE CAIXA DE INSPECAO PARA ATERRAMENTO E PARA RAIOS, EM POLIPROPILENO, DIAMETRO = 300 MM X ALTURA = 400 MM | E197: UN | F197: 2 | G197: =IF(C197="SINAPI", IF( IF(A197="Insumo", VLOOKUP(B197,'SINAPI INSUMOS'!B:H,6,0), VLOOKUP(B197,'SINAPI COMP'!B:H,6,0))=0,VLOOKUP(B197,'OUTRAS BASES'!C:D,2,0),IF(A197="Insumo", VLOOKUP(B197,'SINAPI INSUMOS'!B:H,6,0),VLOOKUP(B197,'SINAPI COMP'!B:H,6,0))), VLOOKUP(B197,'OUTRAS BASES'!C:D,2,0)) -> 36.7 | H197: 73.4
A198: Insumo | B198: 867 | C198: SINAPI | D198: CABO DE COBRE NU 50 MM2 MEIO-DURO | E198: M | F198: 7.5 | G198: =IF(C198="SINAPI", IF( IF(A198="Insumo", VLOOKUP(B198,'SINAPI INSUMOS'!B:H,6,0), VLOOKUP(B198,'SINAPI COMP'!B:H,6,0))=0,VLOOKUP(B198,'OUTRAS BASES'!C:D,2,0),IF(A198="Insumo", VLOOKUP(B198,'SINAPI INSUMOS'!B:H,6,0),VLOOKUP(B198,'SINAPI COMP'!B:H,6,0))), VLOOKUP(B198,'OUTRAS BASES'!C:D,2,0)) -> 55.71 | H198: 417.825
A199: Insumo | B199: 54581 | C199: SIURB INFRA | D199: DPS - DISPOSITIVO DE PROTEÇÃO CONTRA SURTOS – 45KA – 500 VOLTS - CORRENTE CONTÍNUA - CLASSE II - P/ SISTEMA FOTOVOLTÁICO | E199: Un | F199: 1 | G199: =IF(C199="SINAPI", IF( IF(A199="Insumo", VLOOKUP(B199,'SINAPI INSUMOS'!B:H,6,0), VLOOKUP(B199,'SINAPI COMP'!B:H,6,0))=0,VLOOKUP(B199,'OUTRAS BASES'!C:D,2,0),IF(A199="Insumo", VLOOKUP(B199,'SINAPI INSUMOS'!B:H,6,0),VLOOKUP(B199,'SINAPI COMP'!B:H,6,0))), VLOOKUP(B199,'OUTRAS BASES'!C:D,2,0)) -> 152.12 | H199: 152.12
A200: 11.2 | B200: Código | C200: Banco | D200: Descrição | E200: Und | F200: Quant. | G200: Valor Unit | H200: Total
A201: Insumo | B201: 34622 | C201: SINAPI | D201: FORNECIMENTO DE CABO FLEXIVEL PVC 750 V, 3 CONDUTORES DE 6,0 MM2 | E201: M | F201: 1 | G201: =IF(C201="SINAPI", IF( IF(A201="Insumo", VLOOKUP(B201,'SINAPI INSUMOS'!B:H,6,0), VLOOKUP(B201,'SINAPI COMP'!B:H,6,0))=0,VLOOKUP(B201,'OUTRAS BASES'!C:D,2,0),IF(A201="Insumo", VLOOKUP(B201,'SINAPI INSUMOS'!B:H,6,0),VLOOKUP(B201,'SINAPI COMP'!B:H,6,0))), VLOOKUP(B201,'OUTRAS BASES'!C:D,2,0)) -> 21.9 | H201: =G201 -> 21.9
A202: 11.3 | B202: Código | C202: Banco | D202: Descrição | E202: Und | F202: Quant. | G202: Valor Unit | H202: Total
A203: Composição | B203: COMPOSIÇÃO - 19 | C203: Próprio | D203: Fornecimento e instalação de automático de bóia superior e inferior | E203: un | F203: 1 | G203: =SUM(H204:H208) -> 69.2505 | H203: =G203 -> 69.2505
... 57 more rows

Sheet Crono. - PE - P
A1: OBJETO: EXECUÇÃO DE SERVIÇOS DE PERFURAÇÃO E INSTALAÇÃO DE POÇOS TUBULARES EM MUNICÍPIOS LOCALIZADOS NO ESTADO DO PERNAMBUCO ÁREA DE ATUAÇÃO 15ª SUPERINTENDÊNCIA REGIONAL
A8: CRONOGRAMA FÍSICO-FINANCEIRO POÇO PARCIALMENTE REVESTIDO
A10: ITEM | B10: ESPECIFICAÇÃO DOS SERVIÇOS | C10: VALOR TOTAL (R$) | D10: Mês 01 | E10: Mês 02 | F10: Mês 03 | G10: Mês 04 | H10: Mês 05 | I10: Mês 06 | J10: Mês 07 | K10: Mês 08 | L10: Mês 09 | M10: Mês 10 | N10: Mês 11 | O10: Mês 12
A11: 1 | B11: Serviços preliminares. | C11: ='Orçamento Sintético - PE - P'!K4 -> 280410.56 | D11: =$C11/12 -> 23367.54667 | E11: =$C11/12 -> 23367.54667 | F11: 23367.54667 | G11: 23367.54667 | H11: 23367.54667 | I11: 23367.54667 | J11: 23367.54667 | K11: 23367.54667 | L11: 23367.54667 | M11: 23367.54667 | N11: 23367.54667 | O11: 23367.54667
A12: 2 | B12: Mobilizaçâo e desmobilizaçâo equipes perfuraçâo e instalação. | C12: ='Orçamento Sintético - PE - P'!K8 -> 479400 | D12: =$C12/12 -> 39950 | E12: 39950 | F12: 39950 | G12: 39950 | H12: 39950 | I12: 39950 | J12: 39950 | K12: 39950 | L12: 39950 | M12: 39950 | N12: 39950 | O12: 39950
A13: 3 | B13: Perfuração e completação de poço tubular. | C13: ='Orçamento Sintético - PE - P'!K12 -> 5646227.88 | D13: 470518.99 | E13: 470518.99 | F13: 470518.99 | G13: 470518.99 | H13: 470518.99 | I13: 470518.99 | J13: 470518.99 | K13: 470518.99 | L13: 470518.99 | M13: 470518.99 | N13: 470518.99 | O13: 470518.99
A14: 4 | B14: Pós perfuração. | C14: ='Orçamento Sintético - PE - P'!K17 -> 2373412 | D14: 197784.3333 | E14: 197784.3333 | F14: 197784.3333 | G14: 197784.3333 | H14: 197784.3333 | I14: 197784.3333 | J14: 197784.3333 | K14: 197784.3333 | L14: 197784.3333 | M14: 197784.3333 | N14: 197784.3333 | O14: 197784.3333
A15: 5 | B15: Reservação. | C15: ='Orçamento Sintético - PE - P'!K23 -> 4036722.8 | D15: 336393.5667 | E15: 336393.5667 | F15: 336393.5667 | G15: 336393.5667 | H15: 336393.5667 | I15: 336393.5667 | J15: 336393.5667 | K15: 336393.5667 | L15: 336393.5667 | M15: 336393.5667 | N15: 336393.5667 | O15: 336393.5667
A16: 6 | B16: Bebedouro. | C16: ='Orçamento Sintético - PE - P'!K26 -> 430072 | D16: 35839.33333 | E16: 35839.33333 | F16: 35839.33333 | G16: 35839.33333 | H16: 35839.33333 | I16: 35839.33333 | J16: 35839.33333 | K16: 35839.33333 | L16: 35839.33333 | M16: 35839.33333 | N16: 35839.33333 | O16: 35839.33333
A17: 7 | B17: Chafariz. | C17: ='Orçamento Sintético - PE - P'!K28 -> 232984 | D17: 19415.33333 | E17: 19415.33333 | F17: 19415.33333 | G17: 19415.33333 | H17: 19415.33333 | I17: 19415.33333 | J17: 19415.33333 | K17: 19415.33333 | L17: 19415.33333 | M17: 19415.33333 | N17: 19415.33333 | O17: 19415.33333
A18: 8 | B18: Cavalete. | C18: ='Orçamento Sintético - PE - P'!K30 -> 581434 | D18: 48452.83333 | E18: 48452.83333 | F18: 48452.83333 | G18: 48452.83333 | H18: 48452.83333 | I18: 48452.83333 | J18: 48452.83333 | K18: 48452.83333 | L18: 48452.83333 | M18: 48452.83333 | N18: 48452.83333 | O18: 48452.83333
A19: 9 | B19: Instalações hidráulicas. | C19: ='Orçamento Sintético - PE - P'!K32 -> 3781338.36 | D19: 315111.53 | E19: 315111.53 | F19: 315111.53 | G19: 315111.53 | H19: 315111.53 | I19: 315111.53 | J19: 315111.53 | K19: 315111.53 | L19: 315111.53 | M19: 315111.53 | N19: 315111.53 | O19: 315111.53
A20: 10 | B20: Estrutura de fixação para módulos fotovoltáicos. | C20: ='Orçamento Sintético - PE - P'!K40 -> 251380.8 | D20: 20948.4 | E20: 20948.4 | F20: 20948.4 | G20: 20948.4 | H20: 20948.4 | I20: 20948.4 | J20: 20948.4 | K20: 20948.4 | L20: 20948.4 | M20: 20948.4 | N20: 20948.4 | O20: 20948.4
A21: 11 | B21: Instalações elétricas e bóia elétrica. | C21: ='Orçamento Sintético - PE - P'!K42 -> 2660702 | D21: 221725.1667 | E21: 221725.1667 | F21: 221725.1667 | G21: 221725.1667 | H21: 221725.1667 | I21: 221725.1667 | J21: 221725.1667 | K21: 221725.1667 | L21: 221725.1667 | M21: 221725.1667 | N21: 221725.1667 | O21: 221725.1667
A22: 12 | B22: Urbanização. | C22: ='Orçamento Sintético - PE - P'!K48 -> 838562 | D22: 69880.16667 | E22: 69880.16667 | F22: 69880.16667 | G22: 69880.16667 | H22: 69880.16667 | I22: 69880.16667 | J22: 69880.16667 | K22: 69880.16667 | L22: 69880.16667 | M22: 69880.16667 | N22: 69880.16667 | O22: 69880.16667
A23: 13 | B23: Outros serviços e insumos excepcionais. | C23: ='Orçamento Sintético - PE - P'!K51 -> 2114478.78 | D23: 176206.565 | E23: 176206.565 | F23: 176206.565 | G23: 176206.565 | H23: 176206.565 | I23: 176206.565 | J23: 176206.565 | K23: 176206.565 | L23: 176206.565 | M23: 176206.565 | N23: 176206.565 | O23: 176206.565
A24: TOTAL | C24: =SUM(C11:C23) -> 23707125.18 | D24: =SUM(D11:D23) -> 1975593.765 | E24: =SUM(E11:E23) -> 1975593.765 | F24: 1975593.765 | G24: 1975593.765 | H24: 1975593.765 | I24: 1975593.765 | J24: 1975593.765 | K24: 1975593.765 | L24: 1975593.765 | M24: 1975593.765 | N24: 1975593.765 | O24: 1975593.765
A25: PERCENTUAL | D25: 0.08333333333 | E25: 0.08333333333 | F25: 0.08333333333 | G25: 0.08333333333 | H25: 0.08333333333 | I25: 0.08333333333 | J25: 0.08333333333 | K25: 0.08333333333 | L25: 0.08333333333 | M25: 0.08333333333 | N25: 0.08333333333 | O25: 0.08333333333
A26: CUSTO ACUMULADO | D26: =D24 -> 1975593.765 | E26: =D26+E24 -> 3951187.53 | F26: =E26+F24 -> 5926781.295 | G26: 7902375.06 | H26: 9877968.825 | I26: 11853562.59 | J26: 13829156.36 | K26: 15804750.12 | L26: 17780343.89 | M26: 19755937.65 | N26: 21731531.42 | O26: 23707125.18
A27: PERCENTUAL ACUMULADO | D27: =D25 -> 0.08333333333 | E27: =D27+E25 -> 0.1666666667 | F27: 0.25 | G27: 0.3333333333 | H27: 0.4166666667 | I27: 0.5 | J27: 0.5833333333 | K27: 0.6666666667 | L27: 0.75 | M27: 0.8333333333 | N27: 0.9166666667 | O27: 1

Sheet Orçamento Sintético - PE - T
A1: OBJETO: EXECUÇÃO DE SERVIÇOS DE PERFURAÇÃO E INSTALAÇÃO DE POÇOS TUBULARES EM MUNICÍPIOS LOCALIZADOS NO ESTADO DO PERNAMBUCO ÁREA DE ATUAÇÃO 15ª SUPERINTENDÊNCIA REGIONAL | H1: Quantidade de Poços | I1: BDI SERVIÇO | J1: BDI INSUMO | K1: Total | L1: Preço Unitário Por Poço | M1: DESCONTO
